Workbook

Sheet INTRO
B2: Formulaire de Rapport Commun v.4.2
B4: Le but de ce formulaire de rapport commun - disponible sous forme de fichier Excel - est de mettre à disposition des autorités sanitaires nationales et des gestionnaires de données un outil standardisé qui réponde aux défis, facilite l'intégration et par conséquent contribue à améliorer la gestion de programme. Ce formulaire tend à standardiser le rapport de résultats des programmes nationaux, améliore la disponibilité et la coordination des données de chimioprévention à travers les Bureaux des Régions de l'Organisation mondiale de la Santé. Les autorités nationales sont priées de compléter ce formulaire de rapport commun et de le soumettre à l'Organisation mondiale de la Santé dans les 3 mois suivant la mise en œuvre du dernier cycle et au plus tard le 31 mars de l'année de mise en œuvre suivante.
B6: Structure de l'application (feuilles de travail) :
B8: INTRO | C8: Cette feuille contient des instructions pour compléter le formulaire de rapport commun et des informations sur le statut de la chimioprévention pour les maladies d'endémie du pays. En fonction de la co-endémicité de la maladie dans un pays, l’outil générera les feuilles de calcul à remplir.
B9: COUNTRY_INFO | C9: Cette feuille contient des informations sur la structure administrative du pays, la population par groupe d'âge, le statut d'endémicité pour chaque maladie, la population devant être traitée par chimioprévention, les interventions prévues et les interventions mises en oeuvre.
B10: MDA1, MDA2, MDA3, MDA5, T1, T2 et T3 | C10: Ces feuilles contiennent des informations sur l'endémicité des districts ciblés pour le traitement aux médicaments spécifiques pour la chimioprévention, les plans de traitement, et le nombre de personnes traitées par groupe d'âge.
B11: DISTRICT | C11: Cette feuille contient un résumé sur les personnes traitées, par maladie, au niveau de mise en oeuvre. Si les données par genre (sexe) sont disponibles, merci de les saisir.
B12: SUMMARY | C12: Cette feuille contient un résumé sur les personnes traitées, par maladie et par type d'intervention de chimioprévention. Avant de générer le rapport (exécuter macro), veuillez sélectionner la maladie pour laquelle vous souhaitez un rapport. Veuillez suivre le même processus pour générer les divers rapports. Cette feuille doit être imprimée et soumise comme formulaire de rapport commun (voir les instructions pour la soumission du formulaire sous la feuille SUMMARY).
B14: Instructions pour la saisie des données
B16: La plupart des cellules des feuilles de travail mentionnées ci-dessus contiennent des formules calculées automatiquement en fonction du protocole de traitement recommandé par l'OMS pour chaque maladie. Voir : https://www.who.int/publications/i/item/9789241599993
B18: Veuillez entrer vos données dans les cellules en fonction de leur code de couleur :
C20: Blanc - la cellule n'est pas protégée. Veuillez entrer la valeur de l'indicateur demandé.
C22: Jaune - la cellule est protégée et inclut le nom de l'indicateur. Aucune entrée de données requise.
C24: Orange - la cellule n'est pas protégée et contient un menu déroulant. Veuillez sélectionner la valeur dans le menu déroulant.
C27: Vert - la cellule n'est pas protégée et contient des formules. Veuillez changer la valeur indiquée uniquement si vos données sont différentes de celles calculées automatiquement.
C30: Bleu - la cellule est protégée et contient des formules. Aucune entrée de données requise.
B32: Données pays
B34: PAYS | E34: Mali | G34: ML | H34: MLI
B36: Année de rapport des données | E36: 2023
B38: Le pays est-il endémique à la filariose lymphatique (FL) ? | E38: Endémique mais pas de CP
B40: Le pays est-il endémique à l'onchocercose (ONCHO) ? | E40: Endémique
B42: Le pays est-il endémique aux géohelminthiases (STH) ? | E42: Endémique mais pas de CP
B44: Le pays est-il endémique à la schistosomiase (SCH) ? | E44: Endémique
B46: Combien d'unités administratives compte le pays ? | E46: 75
B47: Si les données démographiques par groupe d'âge ne sont pas disponibles au second niveau administratif, veuillez entrer la proportion (%) de population, par groupe d'âge, du pays. Si les données sont disponibles, veuillez laisser les cellules vierges.
B48: 1-4 ans | C48: Enfants d'âge pré-scolaire (EAPréS) | E48: 0.15
B49: 5-14 ans | C49: Enfants d'âge scolaire (EAS) | E49: 0.285
B50: 15 ans et plus | C50: Adultes | E50: 0.515
B51: 15-49 ans | C51: Femmes en âge de procréer (FAP) | E51: 0.22

Sheet COUNTRY_INFO
A1: INFORMATIONS PAYS | Q1: 1557485
A2: Struture administrative, population par groupe d'âge, statut d'endémicité et interventions planifiées | AB2: 3.16
A4: TOTAL | D4: =SUBTOTAL(9,D$10:D$1010) -> 23570465.63 | E4: =SUBTOTAL(9,E$10:E$1010) -> 3535568 | F4: 6717582 | G4: 12138790 | L4: =SUBTOTAL(9,L$10:L$1010) -> 0 | M4: 7034518.293 | N4: 0 | O4: 0 | P4: 0 | Q4: 0 | R4: 1557485 | S4: 4289353 | T4: 7581188 | U4: 13428026
A6: Structure administrative du pays | D6: Population | H6: Endémicité | L6: Population nécessitant la CP | V6: Nombre de tournées de traitement réalisées | Z6: Mise en oeuvre de la chimioprévention
A7: Pays | B7: Région/Département | C7: District | D7: Total | E7: EAPréS | F7: EAS | G7: Adultes | H7: FL | I7: Oncho | J7: STH | K7: SCH | L7: FL | M7: ONCHO | N7: STH | R7: SCH | V7: FL | W7: Oncho | X7: STH | Y7: SCH | Z7: TOURNEE 1 | AA7: TOURNEE 2 | AB7: TOURNEE 3
N8: EAPréS | O8: EAS | P8: FAP | Q8: TOTAL | R8: EAPréS | S8: EAS | T8: Adultes | U8: TOTAL | AH8: IU_ID | AI8: IU_Name | AK8: mda3 | AL8: t2
AC9: x | AD9: x | AE9: x | AF9: x | AG9: x | AH9: x | AI9: X | AJ9: X | AK9: X | AL9: X | AM9: X | AN9: X | AO9: X | AP9: X | AQ9: X | AR9: X | AS9: X | AT9: X | AU9: X | AV9: X | AW9: X | AX9: X | AY9: X | AZ9: X | BA9: X | BB9: X | BC9: X | BD9: X | BE9: X | BF9: X | BG9: X | BH9: X | BI9: X | BJ9: X | BK9: X | BL9: X | BM9: X | BN9: X | BO9: X | BP9: X | BQ9: X | BR9: X | BS9: X
A10: =IF(INTRO!$E$34<>0,INTRO!$E$34,"") -> Mali | B10: Bamako | C10: Commune 1 | D10: 539142.3399 | E10: =IF(INTRO!$E$48="","",ROUND($D10*INTRO!$E$48,0)) -> 80871 | F10: =IF(INTRO!$E$49="","",ROUND($D10*INTRO!$E$49,0)) -> 153656 | G10: =IF(INTRO!$E$50="","",ROUND($D10*INTRO!$E$50,0)) -> 277658 | H10: 99 | I10: 0 | J10: 0 | K10: 21 | M10: =IF(INTRO!$E$40="Endémique", IF($I10>0, IF($I10=4,"Inconnu",IF($I10=99,"Interrompu", $D10)), 0),"Non requis") -> 0 | N10: =IF(INTRO!$E$42="Endémique", IF($J10>1, IF($J10=4, "Inconnu", IF($J10=99, "Surveillance", E10)), 0),"Non requis") -> Non requis | O10: =IF(INTRO!$E$42="Endémique", IF($J10>1, IF($J10=4, "Inconnu", IF($J10=99, "Surveillance", F10)), 0),"Non requis") -> Non requis | P10: =IF(INTRO!$E$42="Endémique", IF($J10>1, IF($J10=4, "Inconnu", IF($J10=99, "Surveillance", ROUND(D10*INTRO!$E$51,0))), 0),"Non requis") -> Non requis | Q10: =IF(INTRO!$E$42="Endémique", IF($J10>1, IF($J10=4, "Inconnu", IF($J10=99, "Surveillance", SUM($N10:$P10))), 0),"Non requis") -> Non requis | R10: 17188 | S10: 46301 | T10: 83666 | U10: =SUM(R10:T10) -> 147155 | V10: 0 | W10: 0 | X10: 0 | Y10: 0 | AH10: 29972 | AI10: Commune 1 | AK10: ='MDA3'!O10 -> 0 | AL10: ='T2'!S10 -> 0 | AO10: =_xlfn.XLOOKUP($AH10,[1]D_Projections!$F$5:$F$79,[1]D_Projections!G$5:G$79) -> 21 | AP10: =_xlfn.XLOOKUP($AH10,[1]D_Projections!$F$5:$F$79,[1]D_Projections!H$5:H$79) -> 17749 | AQ10: =_xlfn.XLOOKUP($AH10,[1]D_Projections!$F$5:$F$79,[1]D_Projections!I$5:I$79) -> 47812 | AR10: =_xlfn.XLOOKUP($AH10,[1]D_Projections!$F$5:$F$79,[1]D_Projections!J$5:J$79) -> 86396 | AT10: =ROUND(AP10*(100-$AB$2)/100,0) -> 17188 | AU10: =ROUND(AQ10*(100-$AB$2)/100,0) -> 46301 | AV10: 83666
A11: =IF(INTRO!$E$34<>0,INTRO!$E$34,"") -> Mali | B11: Bamako | C11: Commune 2 | D11: 256876.2249 | E11: =IF(INTRO!$E$48="","",ROUND($D11*INTRO!$E$48,0)) -> 38531 | F11: =IF(INTRO!$E$49="","",ROUND($D11*INTRO!$E$49,0)) -> 73210 | G11: =IF(INTRO!$E$50="","",ROUND($D11*INTRO!$E$50,0)) -> 132291 | H11: 99 | I11: 0 | J11: 0 | K11: 21 | M11: =IF(INTRO!$E$40="Endémique", IF($I11>0, IF($I11=4,"Inconnu",IF($I11=99,"Interrompu", $D11)), 0),"Non requis") -> 0 | N11: =IF(INTRO!$E$42="Endémique", IF($J11>1, IF($J11=4, "Inconnu", IF($J11=99, "Surveillance", E11)), 0),"Non requis") -> Non requis | O11: =IF(INTRO!$E$42="Endémique", IF($J11>1, IF($J11=4, "Inconnu", IF($J11=99, "Surveillance", F11)), 0),"Non requis") -> Non requis | P11: =IF(INTRO!$E$42="Endémique", IF($J11>1, IF($J11=4, "Inconnu", IF($J11=99, "Surveillance", ROUND(D11*INTRO!$E$51,0))), 0),"Non requis") -> Non requis | Q11: =IF(INTRO!$E$42="Endémique", IF($J11>1, IF($J11=4, "Inconnu", IF($J11=99, "Surveillance", SUM($N11:$P11))), 0),"Non requis") -> Non requis | R11: 2566 | S11: 6915 | T11: 12496 | U11: =SUM(R11:T11) -> 21977 | V11: 0 | W11: 0 | X11: 0 | Y11: 0 | AH11: 29973 | AI11: Commune 2 | AK11: ='MDA3'!O11 -> 0 | AL11: ='T2'!S11 -> 0 | AO11: =_xlfn.XLOOKUP($AH11,[1]D_Projections!$F$5:$F$79,[1]D_Projections!G$5:G$79) -> 21 | AP11: =_xlfn.XLOOKUP($AH11,[1]D_Projections!$F$5:$F$79,[1]D_Projections!H$5:H$79) -> 2650 | AQ11: =_xlfn.XLOOKUP($AH11,[1]D_Projections!$F$5:$F$79,[1]D_Projections!I$5:I$79) -> 7141 | AR11: =_xlfn.XLOOKUP($AH11,[1]D_Projections!$F$5:$F$79,[1]D_Projections!J$5:J$79) -> 12904 | AT11: =ROUND(AP11*(100-$AB$2)/100,0) -> 2566 | AU11: =ROUND(AQ11*(100-$AB$2)/100,0) -> 6915 | AV11: =ROUND(AR11*(100-$AB$2)/100,0) -> 12496
A12: =IF(INTRO!$E$34<>0,INTRO!$E$34,"") -> Mali | B12: Bamako | C12: Commune 3 | D12: 207152.5678 | E12: =IF(INTRO!$E$48="","",ROUND($D12*INTRO!$E$48,0)) -> 31073 | F12: =IF(INTRO!$E$49="","",ROUND($D12*INTRO!$E$49,0)) -> 59038 | G12: =IF(INTRO!$E$50="","",ROUND($D12*INTRO!$E$50,0)) -> 106684 | H12: 99 | I12: 0 | J12: 0 | K12: 21 | M12: =IF(INTRO!$E$40="Endémique", IF($I12>0, IF($I12=4,"Inconnu",IF($I12=99,"Interrompu", $D12)), 0),"Non requis") -> 0 | N12: =IF(INTRO!$E$42="Endémique", IF($J12>1, IF($J12=4, "Inconnu", IF($J12=99, "Surveillance", E12)), 0),"Non requis") -> Non requis | O12: =IF(INTRO!$E$42="Endémique", IF($J12>1, IF($J12=4, "Inconnu", IF($J12=99, "Surveillance", F12)), 0),"Non requis") -> Non requis | P12: =IF(INTRO!$E$42="Endémique", IF($J12>1, IF($J12=4, "Inconnu", IF($J12=99, "Surveillance", ROUND(D12*INTRO!$E$51,0))), 0),"Non requis") -> Non requis | Q12: =IF(INTRO!$E$42="Endémique", IF($J12>1, IF($J12=4, "Inconnu", IF($J12=99, "Surveillance", SUM($N12:$P12))), 0),"Non requis") -> Non requis | R12: 7053 | S12: 18996 | T12: 34326 | U12: 60375 | V12: 0 | W12: 0 | X12: 0 | Y12: 0 | AH12: 29974 | AI12: Commune 3 | AK12: ='MDA3'!O12 -> 0 | AL12: ='T2'!S12 -> 0 | AO12: =_xlfn.XLOOKUP($AH12,[1]D_Projections!$F$5:$F$79,[1]D_Projections!G$5:G$79) -> 21 | AP12: =_xlfn.XLOOKUP($AH12,[1]D_Projections!$F$5:$F$79,[1]D_Projections!H$5:H$79) -> 7283 | AQ12: =_xlfn.XLOOKUP($AH12,[1]D_Projections!$F$5:$F$79,[1]D_Projections!I$5:I$79) -> 19616 | AR12: =_xlfn.XLOOKUP($AH12,[1]D_Projections!$F$5:$F$79,[1]D_Projections!J$5:J$79) -> 35446 | AT12: 7053 | AU12: 18996 | AV12: 34326
A13: =IF(INTRO!$E$34<>0,INTRO!$E$34,"") -> Mali | B13: Bamako | C13: Commune 4 | D13: 482364.9815 | E13: =IF(INTRO!$E$48="","",ROUND($D13*INTRO!$E$48,0)) -> 72355 | F13: =IF(INTRO!$E$49="","",ROUND($D13*INTRO!$E$49,0)) -> 137474 | G13: =IF(INTRO!$E$50="","",ROUND($D13*INTRO!$E$50,0)) -> 248418 | H13: 99 | I13: 0 | J13: 0 | K13: 31 | M13: =IF(INTRO!$E$40="Endémique", IF($I13>0, IF($I13=4,"Inconnu",IF($I13=99,"Interrompu", $D13)), 0),"Non requis") -> 0 | N13: =IF(INTRO!$E$42="Endémique", IF($J13>1, IF($J13=4, "Inconnu", IF($J13=99, "Surveillance", E13)), 0),"Non requis") -> Non requis | O13: =IF(INTRO!$E$42="Endémique", IF($J13>1, IF($J13=4, "Inconnu", IF($J13=99, "Surveillance", F13)), 0),"Non requis") -> Non requis | P13: =IF(INTRO!$E$42="Endémique", IF($J13>1, IF($J13=4, "Inconnu", IF($J13=99, "Surveillance", ROUND(D13*INTRO!$E$51,0))), 0),"Non requis") -> Non requis | Q13: =IF(INTRO!$E$42="Endémique", IF($J13>1, IF($J13=4, "Inconnu", IF($J13=99, "Surveillance", SUM($N13:$P13))), 0),"Non requis") -> Non requis | R13: 29750 | S13: 80141 | T13: 144818 | U13: 254709 | V13: 0 | W13: 0 | X13: 0 | Y13: 1 | AA13: T2 (PZQ) | AH13: 29975 | AI13: Commune 4 | AK13: ='MDA3'!O13 -> 0 | AL13: ='T2'!S13 -> 43994 | AO13: =_xlfn.XLOOKUP($AH13,[1]D_Projections!$F$5:$F$79,[1]D_Projections!G$5:G$79) -> 31 | AP13: =_xlfn.XLOOKUP($AH13,[1]D_Projections!$F$5:$F$79,[1]D_Projections!H$5:H$79) -> 30721 | AQ13: =_xlfn.XLOOKUP($AH13,[1]D_Projections!$F$5:$F$79,[1]D_Projections!I$5:I$79) -> 82756 | AR13: =_xlfn.XLOOKUP($AH13,[1]D_Projections!$F$5:$F$79,[1]D_Projections!J$5:J$79) -> 149544 | AT13: 29750 | AU13: 80141 | AV13: 144818
A14: =IF(INTRO!$E$34<>0,INTRO!$E$34,"") -> Mali | B14: Bamako | C14: Commune 5 | D14: 666550.0882 | E14: =IF(INTRO!$E$48="","",ROUND($D14*INTRO!$E$48,0)) -> 99983 | F14: =IF(INTRO!$E$49="","",ROUND($D14*INTRO!$E$49,0)) -> 189967 | G14: =IF(INTRO!$E$50="","",ROUND($D14*INTRO!$E$50,0)) -> 343273 | H14: 99 | I14: 0 | J14: 0 | K14: 21 | M14: =IF(INTRO!$E$40="Endémique", IF($I14>0, IF($I14=4,"Inconnu",IF($I14=99,"Interrompu", $D14)), 0),"Non requis") -> 0 | N14: =IF(INTRO!$E$42="Endémique", IF($J14>1, IF($J14=4, "Inconnu", IF($J14=99, "Surveillance", E14)), 0),"Non requis") -> Non requis | O14: =IF(INTRO!$E$42="Endémique", IF($J14>1, IF($J14=4, "Inconnu", IF($J14=99, "Surveillance", F14)), 0),"Non requis") -> Non requis | P14: =IF(INTRO!$E$42="Endémique", IF($J14>1, IF($J14=4, "Inconnu", IF($J14=99, "Surveillance", ROUND(D14*INTRO!$E$51,0))), 0),"Non requis") -> Non requis | Q14: =IF(INTRO!$E$42="Endémique", IF($J14>1, IF($J14=4, "Inconnu", IF($J14=99, "Surveillance", SUM($N14:$P14))), 0),"Non requis") -> Non requis | R14: 54294 | S14: 146255 | T14: 264282 | U14: 464831 | V14: 0 | W14: 0 | X14: 0 | Y14: 1 | AA14: T2 (PZQ) | AH14: 29976 | AI14: Commune 5 | AK14: ='MDA3'!O14 -> 0 | AL14: ='T2'!S14 -> 51064 | AO14: =_xlfn.XLOOKUP($AH14,[1]D_Projections!$F$5:$F$79,[1]D_Projections!G$5:G$79) -> 21 | AP14: =_xlfn.XLOOKUP($AH14,[1]D_Projections!$F$5:$F$79,[1]D_Projections!H$5:H$79) -> 56066 | AQ14: =_xlfn.XLOOKUP($AH14,[1]D_Projections!$F$5:$F$79,[1]D_Projections!I$5:I$79) -> 151027 | AR14: =_xlfn.XLOOKUP($AH14,[1]D_Projections!$F$5:$F$79,[1]D_Projections!J$5:J$79) -> 272906 | AT14: 54294 | AU14: 146255 | AV14: 264282
A15: =IF(INTRO!$E$34<>0,INTRO!$E$34,"") -> Mali | B15: Bamako | C15: Commune 6 | D15: 755924.5194 | E15: =IF(INTRO!$E$48="","",ROUND($D15*INTRO!$E$48,0)) -> 113389 | F15: =IF(INTRO!$E$49="","",ROUND($D15*INTRO!$E$49,0)) -> 215438 | G15: =IF(INTRO!$E$50="","",ROUND($D15*INTRO!$E$50,0)) -> 389301 | H15: 99 | I15: 0 | J15: 0 | K15: 21 | M15: =IF(INTRO!$E$40="Endémique", IF($I15>0, IF($I15=4,"Inconnu",IF($I15=99,"Interrompu", $D15)), 0),"Non requis") -> 0 | N15: =IF(INTRO!$E$42="Endémique", IF($J15>1, IF($J15=4, "Inconnu", IF($J15=99, "Surveillance", E15)), 0),"Non requis") -> Non requis | O15: =IF(INTRO!$E$42="Endémique", IF($J15>1, IF($J15=4, "Inconnu", IF($J15=99, "Surveillance", F15)), 0),"Non requis") -> Non requis | P15: =IF(INTRO!$E$42="Endémique", IF($J15>1, IF($J15=4, "Inconnu", IF($J15=99, "Surveillance", ROUND(D15*INTRO!$E$51,0))), 0),"Non requis") -> Non requis | Q15: =IF(INTRO!$E$42="Endémique", IF($J15>1, IF($J15=4, "Inconnu", IF($J15=99, "Surveillance", SUM($N15:$P15))), 0),"Non requis") -> Non requis | R15: 53499 | S15: 144116 | T15: 260421 | U15: 458036 | V15: 0 | W15: 0 | X15: 0 | Y15: 1 | AA15: T2 (PZQ) | AH15: 29977 | AI15: Commune 6 | AK15: ='MDA3'!O15 -> 0 | AL15: ='T2'!S15 -> 121820 | AO15: =_xlfn.XLOOKUP($AH15,[1]D_Projections!$F$5:$F$79,[1]D_Projections!G$5:G$79) -> 21 | AP15: =_xlfn.XLOOKUP($AH15,[1]D_Projections!$F$5:$F$79,[1]D_Projections!H$5:H$79) -> 55245 | AQ15: =_xlfn.XLOOKUP($AH15,[1]D_Projections!$F$5:$F$79,[1]D_Projections!I$5:I$79) -> 148819 | AR15: =_xlfn.XLOOKUP($AH15,[1]D_Projections!$F$5:$F$79,[1]D_Projections!J$5:J$79) -> 268919 | AT15: 53499 | AU15: 144116 | AV15: 260421
A16: =IF(INTRO!$E$34<>0,INTRO!$E$34,"") -> Mali | B16: Gao | C16: Ansongo | D16: 211788.1332 | E16: =IF(INTRO!$E$48="","",ROUND($D16*INTRO!$E$48,0)) -> 31768 | F16: =IF(INTRO!$E$49="","",ROUND($D16*INTRO!$E$49,0)) -> 60360 | G16: =IF(INTRO!$E$50="","",ROUND($D16*INTRO!$E$50,0)) -> 109071 | H16: 99 | I16: 0 | J16: 0 | K16: 3 | M16: =IF(INTRO!$E$40="Endémique", IF($I16>0, IF($I16=4,"Inconnu",IF($I16=99,"Interrompu", $D16)), 0),"Non requis") -> 0 | N16: =IF(INTRO!$E$42="Endémique", IF($J16>1, IF($J16=4, "Inconnu", IF($J16=99, "Surveillance", E16)), 0),"Non requis") -> Non requis | O16: =IF(INTRO!$E$42="Endémique", IF($J16>1, IF($J16=4, "Inconnu", IF($J16=99, "Surveillance", F16)), 0),"Non requis") -> Non requis | P16: =IF(INTRO!$E$42="Endémique", IF($J16>1, IF($J16=4, "Inconnu", IF($J16=99, "Surveillance", ROUND(D16*INTRO!$E$51,0))), 0),"Non requis") -> Non requis | Q16: =IF(INTRO!$E$42="Endémique", IF($J16>1, IF($J16=4, "Inconnu", IF($J16=99, "Surveillance", SUM($N16:$P16))), 0),"Non requis") -> Non requis | R16: 21323 | S16: 57432 | T16: 103770 | U16: 182525 | V16: 0 | W16: 0 | X16: 0 | Y16: 1 | AA16: T2 (PZQ) | AH16: 29978 | AI16: Ansongo | AK16: ='MDA3'!O16 -> 0 | AL16: ='T2'!S16 -> 28775 | AO16: =_xlfn.XLOOKUP($AH16,[1]D_Projections!$F$5:$F$79,[1]D_Projections!G$5:G$79) -> 3 | AP16: =_xlfn.XLOOKUP($AH16,[1]D_Projections!$F$5:$F$79,[1]D_Projections!H$5:H$79) -> 22019 | AQ16: =_xlfn.XLOOKUP($AH16,[1]D_Projections!$F$5:$F$79,[1]D_Projections!I$5:I$79) -> 59306 | AR16: =_xlfn.XLOOKUP($AH16,[1]D_Projections!$F$5:$F$79,[1]D_Projections!J$5:J$79) -> 107156 | AT16: 21323 | AU16: 57432 | AV16: 103770
A17: =IF(INTRO!$E$34<>0,INTRO!$E$34,"") -> Mali | B17: Gao | C17: Bourem | D17: 185759.6319 | E17: =IF(INTRO!$E$48="","",ROUND($D17*INTRO!$E$48,0)) -> 27864 | F17: =IF(INTRO!$E$49="","",ROUND($D17*INTRO!$E$49,0)) -> 52941 | G17: =IF(INTRO!$E$50="","",ROUND($D17*INTRO!$E$50,0)) -> 95666 | H17: 99 | I17: 0 | J17: 0 | K17: 3 | M17: =IF(INTRO!$E$40="Endémique", IF($I17>0, IF($I17=4,"Inconnu",IF($I17=99,"Interrompu", $D17)), 0),"Non requis") -> 0 | N17: =IF(INTRO!$E$42="Endémique", IF($J17>1, IF($J17=4, "Inconnu", IF($J17=99, "Surveillance", E17)), 0),"Non requis") -> Non requis | O17: =IF(INTRO!$E$42="Endémique", IF($J17>1, IF($J17=4, "Inconnu", IF($J17=99, "Surveillance", F17)), 0),"Non requis") -> Non requis | P17: =IF(INTRO!$E$42="Endémique", IF($J17>1, IF($J17=4, "Inconnu", IF($J17=99, "Surveillance", ROUND(D17*INTRO!$E$51,0))), 0),"Non requis") -> Non requis | Q17: =IF(INTRO!$E$42="Endémique", IF($J17>1, IF($J17=4, "Inconnu", IF($J17=99, "Surveillance", SUM($N17:$P17))), 0),"Non requis") -> Non requis | R17: 14597 | S17: 39324 | T17: 71057 | U17: 124978 | V17: 0 | W17: 0 | X17: 0 | Y17: 1 | AA17: T2 (PZQ) | AH17: 29979 | AI17: Bourem | AK17: ='MDA3'!O17 -> 0 | AL17: ='T2'!S17 -> 35884 | AO17: =_xlfn.XLOOKUP($AH17,[1]D_Projections!$F$5:$F$79,[1]D_Projections!G$5:G$79) -> 3 | AP17: =_xlfn.XLOOKUP($AH17,[1]D_Projections!$F$5:$F$79,[1]D_Projections!H$5:H$79) -> 15073 | AQ17: =_xlfn.XLOOKUP($AH17,[1]D_Projections!$F$5:$F$79,[1]D_Projections!I$5:I$79) -> 40607 | AR17: =_xlfn.XLOOKUP($AH17,[1]D_Projections!$F$5:$F$79,[1]D_Projections!J$5:J$79) -> 73376 | AT17: 14597 | AU17: 39324 | AV17: 71057
A18: =IF(INTRO!$E$34<>0,INTRO!$E$34,"") -> Mali | B18: Gao | C18: Almoustrat | D18: 14612.92504 | E18: =IF(INTRO!$E$48="","",ROUND($D18*INTRO!$E$48,0)) -> 2192 | F18: =IF(INTRO!$E$49="","",ROUND($D18*INTRO!$E$49,0)) -> 4165 | G18: =IF(INTRO!$E$50="","",ROUND($D18*INTRO!$E$50,0)) -> 7526 | H18: 99 | I18: 0 | J18: 0 | K18: 1 | M18: =IF(INTRO!$E$40="Endémique", IF($I18>0, IF($I18=4,"Inconnu",IF($I18=99,"Interrompu", $D18)), 0),"Non requis") -> 0 | N18: =IF(INTRO!$E$42="Endémique", IF($J18>1, IF($J18=4, "Inconnu", IF($J18=99, "Surveillance", E18)), 0),"Non requis") -> Non requis | O18: =IF(INTRO!$E$42="Endémique", IF($J18>1, IF($J18=4, "Inconnu", IF($J18=99, "Surveillance", F18)), 0),"Non requis") -> Non requis | P18: =IF(INTRO!$E$42="Endémique", IF($J18>1, IF($J18=4, "Inconnu", IF($J18=99, "Surveillance", ROUND(D18*INTRO!$E$51,0))), 0),"Non requis") -> Non requis | Q18: =IF(INTRO!$E$42="Endémique", IF($J18>1, IF($J18=4, "Inconnu", IF($J18=99, "Surveillance", SUM($N18:$P18))), 0),"Non requis") -> Non requis | R18: 0 | S18: 0 | T18: 0 | U18: 0 | V18: 0 | W18: 0 | X18: 0 | Y18: 1 | AA18: T2 (PZQ) | AH18: 30035 | AI18: Almoustrat | AK18: ='MDA3'!O18 -> 0 | AL18: ='T2'!S18 -> 2627 | AO18: =_xlfn.XLOOKUP($AH18,[1]D_Projections!$F$5:$F$79,[1]D_Projections!G$5:G$79) -> 1 | AP18: =_xlfn.XLOOKUP($AH18,[1]D_Projections!$F$5:$F$79,[1]D_Projections!H$5:H$79) -> 0 | AQ18: =_xlfn.XLOOKUP($AH18,[1]D_Projections!$F$5:$F$79,[1]D_Projections!I$5:I$79) -> 0 | AR18: =_xlfn.XLOOKUP($AH18,[1]D_Projections!$F$5:$F$79,[1]D_Projections!J$5:J$79) -> 0 | AT18: 0 | AU18: 0 | AV18: 0
A19: =IF(INTRO!$E$34<>0,INTRO!$E$34,"") -> Mali | B19: Gao | C19: Gao | D19: 384235.6748 | E19: =IF(INTRO!$E$48="","",ROUND($D19*INTRO!$E$48,0)) -> 57635 | F19: =IF(INTRO!$E$49="","",ROUND($D19*INTRO!$E$49,0)) -> 109507 | G19: =IF(INTRO!$E$50="","",ROUND($D19*INTRO!$E$50,0)) -> 197881 | H19: 99 | I19: 0 | J19: 0 | K19: 3 | M19: =IF(INTRO!$E$40="Endémique", IF($I19>0, IF($I19=4,"Inconnu",IF($I19=99,"Interrompu", $D19)), 0),"Non requis") -> 0 | N19: =IF(INTRO!$E$42="Endémique", IF($J19>1, IF($J19=4, "Inconnu", IF($J19=99, "Surveillance", E19)), 0),"Non requis") -> Non requis | O19: =IF(INTRO!$E$42="Endémique", IF($J19>1, IF($J19=4, "Inconnu", IF($J19=99, "Surveillance", F19)), 0),"Non requis") -> Non requis | P19: =IF(INTRO!$E$42="Endémique", IF($J19>1, IF($J19=4, "Inconnu", IF($J19=99, "Surveillance", ROUND(D19*INTRO!$E$51,0))), 0),"Non requis") -> Non requis | Q19: =IF(INTRO!$E$42="Endémique", IF($J19>1, IF($J19=4, "Inconnu", IF($J19=99, "Surveillance", SUM($N19:$P19))), 0),"Non requis") -> Non requis | R19: 34928 | S19: 94091 | T19: 170023 | U19: 299042 | V19: 0 | W19: 0 | X19: 0 | Y19: 1 | AA19: T2 (PZQ) | AH19: 29980 | AI19: Gao | AK19: ='MDA3'!O19 -> 0 | AL19: ='T2'!S19 -> 83403 | AO19: =_xlfn.XLOOKUP($AH19,[1]D_Projections!$F$5:$F$79,[1]D_Projections!G$5:G$79) -> 3 | AP19: =_xlfn.XLOOKUP($AH19,[1]D_Projections!$F$5:$F$79,[1]D_Projections!H$5:H$79) -> 36068 | AQ19: =_xlfn.XLOOKUP($AH19,[1]D_Projections!$F$5:$F$79,[1]D_Projections!I$5:I$79) -> 97161 | AR19: =_xlfn.XLOOKUP($AH19,[1]D_Projections!$F$5:$F$79,[1]D_Projections!J$5:J$79) -> 175571 | AT19: 34928 | AU19: 94091 | AV19: 170023
A20: =IF(INTRO!$E$34<>0,INTRO!$E$34,"") -> Mali | B20: Menaka | C20: Menaka | D20: 59298.5307 | E20: =IF(INTRO!$E$48="","",ROUND($D20*INTRO!$E$48,0)) -> 8895 | F20: =IF(INTRO!$E$49="","",ROUND($D20*INTRO!$E$49,0)) -> 16900 | G20: =IF(INTRO!$E$50="","",ROUND($D20*INTRO!$E$50,0)) -> 30539 | H20: 99 | I20: 0 | J20: 0 | K20: 1 | M20: =IF(INTRO!$E$40="Endémique", IF($I20>0, IF($I20=4,"Inconnu",IF($I20=99,"Interrompu", $D20)), 0),"Non requis") -> 0 | N20: =IF(INTRO!$E$42="Endémique", IF($J20>1, IF($J20=4, "Inconnu", IF($J20=99, "Surveillance", E20)), 0),"Non requis") -> Non requis | O20: =IF(INTRO!$E$42="Endémique", IF($J20>1, IF($J20=4, "Inconnu", IF($J20=99, "Surveillance", F20)), 0),"Non requis") -> Non requis | P20: =IF(INTRO!$E$42="Endémique", IF($J20>1, IF($J20=4, "Inconnu", IF($J20=99, "Surveillance", ROUND(D20*INTRO!$E$51,0))), 0),"Non requis") -> Non requis | Q20: =IF(INTRO!$E$42="Endémique", IF($J20>1, IF($J20=4, "Inconnu", IF($J20=99, "Surveillance", SUM($N20:$P20))), 0),"Non requis") -> Non requis | R20: 0 | S20: 0 | T20: 0 | U20: 0 | V20: 0 | W20: 0 | X20: 0 | Y20: 0 | AH20: 29981 | AI20: Menaka | AK20: ='MDA3'!O20 -> 0 | AL20: ='T2'!S20 -> 0 | AO20: =_xlfn.XLOOKUP($AH20,[1]D_Projections!$F$5:$F$79,[1]D_Projections!G$5:G$79) -> 1 | AP20: =_xlfn.XLOOKUP($AH20,[1]D_Projections!$F$5:$F$79,[1]D_Projections!H$5:H$79) -> 0 | AQ20: =_xlfn.XLOOKUP($AH20,[1]D_Projections!$F$5:$F$79,[1]D_Projections!I$5:I$79) -> 0 | AR20: =_xlfn.XLOOKUP($AH20,[1]D_Projections!$F$5:$F$79,[1]D_Projections!J$5:J$79) -> 0 | AT20: 0 | AU20: 0 | AV20: 0
A21: =IF(INTRO!$E$34<>0,INTRO!$E$34,"") -> Mali | B21: Menaka | C21: Anderamboukane | D21: 18790.19307 | E21: =IF(INTRO!$E$48="","",ROUND($D21*INTRO!$E$48,0)) -> 2819 | F21: =IF(INTRO!$E$49="","",ROUND($D21*INTRO!$E$49,0)) -> 5355 | G21: =IF(INTRO!$E$50="","",ROUND($D21*INTRO!$E$50,0)) -> 9677 | H21: 99 | I21: 0 | J21: 0 | K21: 1 | M21: =IF(INTRO!$E$40="Endémique", IF($I21>0, IF($I21=4,"Inconnu",IF($I21=99,"Interrompu", $D21)), 0),"Non requis") -> 0 | N21: =IF(INTRO!$E$42="Endémique", IF($J21>1, IF($J21=4, "Inconnu", IF($J21=99, "Surveillance", E21)), 0),"Non requis") -> Non requis | O21: =IF(INTRO!$E$42="Endémique", IF($J21>1, IF($J21=4, "Inconnu", IF($J21=99, "Surveillance", F21)), 0),"Non requis") -> Non requis | P21: =IF(INTRO!$E$42="Endémique", IF($J21>1, IF($J21=4, "Inconnu", IF($J21=99, "Surveillance", ROUND(D21*INTRO!$E$51,0))), 0),"Non requis") -> Non requis | Q21: =IF(INTRO!$E$42="Endémique", IF($J21>1, IF($J21=4, "Inconnu", IF($J21=99, "Surveillance", SUM($N21:$P21))), 0),"Non requis") -> Non requis | R21: 0 | S21: 0 | T21: 0 | U21: 0 | V21: 0 | W21: 0 | X21: 0 | Y21: 0 | AH21: 30036 | AI21: Anderamboukane | AK21: ='MDA3'!O21 -> 0 | AL21: ='T2'!S21 -> 0 | AO21: =_xlfn.XLOOKUP($AH21,[1]D_Projections!$F$5:$F$79,[1]D_Projections!G$5:G$79) -> 1 | AP21: =_xlfn.XLOOKUP($AH21,[1]D_Projections!$F$5:$F$79,[1]D_Projections!H$5:H$79) -> 0 | AQ21: =_xlfn.XLOOKUP($AH21,[1]D_Projections!$F$5:$F$79,[1]D_Projections!I$5:I$79) -> 0 | AR21: =_xlfn.XLOOKUP($AH21,[1]D_Projections!$F$5:$F$79,[1]D_Projections!J$5:J$79) -> 0 | AT21: 0 | AU21: 0 | AV21: 0
A22: =IF(INTRO!$E$34<>0,INTRO!$E$34,"") -> Mali | B22: Menaka | C22: Inekar | D22: 6971.05752 | E22: =IF(INTRO!$E$48="","",ROUND($D22*INTRO!$E$48,0)) -> 1046 | F22: =IF(INTRO!$E$49="","",ROUND($D22*INTRO!$E$49,0)) -> 1987 | G22: =IF(INTRO!$E$50="","",ROUND($D22*INTRO!$E$50,0)) -> 3590 | H22: 99 | I22: 0 | J22: 0 | K22: 0 | M22: =IF(INTRO!$E$40="Endémique", IF($I22>0, IF($I22=4,"Inconnu",IF($I22=99,"Interrompu", $D22)), 0),"Non requis") -> 0 | N22: =IF(INTRO!$E$42="Endémique", IF($J22>1, IF($J22=4, "Inconnu", IF($J22=99, "Surveillance", E22)), 0),"Non requis") -> Non requis | O22: =IF(INTRO!$E$42="Endémique", IF($J22>1, IF($J22=4, "Inconnu", IF($J22=99, "Surveillance", F22)), 0),"Non requis") -> Non requis | P22: =IF(INTRO!$E$42="Endémique", IF($J22>1, IF($J22=4, "Inconnu", IF($J22=99, "Surveillance", ROUND(D22*INTRO!$E$51,0))), 0),"Non requis") -> Non requis | Q22: =IF(INTRO!$E$42="Endémique", IF($J22>1, IF($J22=4, "Inconnu", IF($J22=99, "Surveillance", SUM($N22:$P22))), 0),"Non requis") -> Non requis | R22: 0 | S22: 0 | T22: 0 | U22: 0 | V22: 0 | W22: 0 | X22: 0 | Y22: 0 | AH22: 30037 | AI22: Inekar | AK22: ='MDA3'!O22 -> 0 | AL22: ='T2'!S22 -> 0 | AO22: =_xlfn.XLOOKUP($AH22,[1]D_Projections!$F$5:$F$79,[1]D_Projections!G$5:G$79) -> 0 | AP22: =_xlfn.XLOOKUP($AH22,[1]D_Projections!$F$5:$F$79,[1]D_Projections!H$5:H$79) -> 0 | AQ22: =_xlfn.XLOOKUP($AH22,[1]D_Projections!$F$5:$F$79,[1]D_Projections!I$5:I$79) -> 0 | AR22: =_xlfn.XLOOKUP($AH22,[1]D_Projections!$F$5:$F$79,[1]D_Projections!J$5:J$79) -> 0 | AT22: 0 | AU22: 0 | AV22: 0
A23: =IF(INTRO!$E$34<>0,INTRO!$E$34,"") -> Mali | B23: Menaka | C23: Tidermene | D23: 4815.879152 | E23: =IF(INTRO!$E$48="","",ROUND($D23*INTRO!$E$48,0)) -> 722 | F23: =IF(INTRO!$E$49="","",ROUND($D23*INTRO!$E$49,0)) -> 1373 | G23: =IF(INTRO!$E$50="","",ROUND($D23*INTRO!$E$50,0)) -> 2480 | H23: 99 | I23: 0 | J23: 0 | K23: 2 | M23: =IF(INTRO!$E$40="Endémique", IF($I23>0, IF($I23=4,"Inconnu",IF($I23=99,"Interrompu", $D23)), 0),"Non requis") -> 0 | N23: =IF(INTRO!$E$42="Endémique", IF($J23>1, IF($J23=4, "Inconnu", IF($J23=99, "Surveillance", E23)), 0),"Non requis") -> Non requis | O23: =IF(INTRO!$E$42="Endémique", IF($J23>1, IF($J23=4, "Inconnu", IF($J23=99, "Surveillance", F23)), 0),"Non requis") -> Non requis | P23: =IF(INTRO!$E$42="Endémique", IF($J23>1, IF($J23=4, "Inconnu", IF($J23=99, "Surveillance", ROUND(D23*INTRO!$E$51,0))), 0),"Non requis") -> Non requis | Q23: =IF(INTRO!$E$42="Endémique", IF($J23>1, IF($J23=4, "Inconnu", IF($J23=99, "Surveillance", SUM($N23:$P23))), 0),"Non requis") -> Non requis | R23: 85 | S23: 229 | T23: 413 | U23: 727 | V23: 0 | W23: 0 | X23: 0 | Y23: 0 | AH23: 30038 | AI23: Tidermene | AK23: ='MDA3'!O23 -> 0 | AL23: ='T2'!S23 -> 0 | AO23: =_xlfn.XLOOKUP($AH23,[1]D_Projections!$F$5:$F$79,[1]D_Projections!G$5:G$79) -> 2 | AP23: =_xlfn.XLOOKUP($AH23,[1]D_Projections!$F$5:$F$79,[1]D_Projections!H$5:H$79) -> 88 | AQ23: =_xlfn.XLOOKUP($AH23,[1]D_Projections!$F$5:$F$79,[1]D_Projections!I$5:I$79) -> 236 | AR23: =_xlfn.XLOOKUP($AH23,[1]D_Projections!$F$5:$F$79,[1]D_Projections!J$5:J$79) -> 426 | AT23: 85 | AU23: 229 | AV23: 413
A24: =IF(INTRO!$E$34<>0,INTRO!$E$34,"") -> Mali | B24: Kayes | C24: Bafoulabe | D24: 206330.423 | E24: =IF(INTRO!$E$48="","",ROUND($D24*INTRO!$E$48,0)) -> 30950 | F24: =IF(INTRO!$E$49="","",ROUND($D24*INTRO!$E$49,0)) -> 58804 | G24: =IF(INTRO!$E$50="","",ROUND($D24*INTRO!$E$50,0)) -> 106260 | H24: 99 | I24: 1 | J24: 0 | K24: 31 | M24: =IF(INTRO!$E$40="Endémique", IF($I24>0, IF($I24=4,"Inconnu",IF($I24=99,"Interrompu", $D24)), 0),"Non requis") -> 206330.423 | N24: =IF(INTRO!$E$42="Endémique", IF($J24>1, IF($J24=4, "Inconnu", IF($J24=99, "Surveillance", E24)), 0),"Non requis") -> Non requis | O24: =IF(INTRO!$E$42="Endémique", IF($J24>1, IF($J24=4, "Inconnu", IF($J24=99, "Surveillance", F24)), 0),"Non requis") -> Non requis | P24: =IF(INTRO!$E$42="Endémique", IF($J24>1, IF($J24=4, "Inconnu", IF($J24=99, "Surveillance", ROUND(D24*INTRO!$E$51,0))), 0),"Non requis") -> Non requis | Q24: =IF(INTRO!$E$42="Endémique", IF($J24>1, IF($J24=4, "Inconnu", IF($J24=99, "Surveillance", SUM($N24:$P24))), 0),"Non requis") -> Non requis | R24: 20352 | S24: 54815 | T24: 99056 | U24: 174223 | V24: 0 | W24: 1 | X24: 0 | Y24: 1 | Z24: MDA3 (IVM) | AA24: T2 (PZQ) | AH24: 29982 | AI24: Bafoulabe | AK24: ='MDA3'!O24 -> 50133 | AL24: ='T2'!S24 -> 14501 | AO24: =_xlfn.XLOOKUP($AH24,[1]D_Projections!$F$5:$F$79,[1]D_Projections!G$5:G$79) -> 31 | AP24: =_xlfn.XLOOKUP($AH24,[1]D_Projections!$F$5:$F$79,[1]D_Projections!H$5:H$79) -> 21016 | AQ24: =_xlfn.XLOOKUP($AH24,[1]D_Projections!$F$5:$F$79,[1]D_Projections!I$5:I$79) -> 56604 | AR24: =_xlfn.XLOOKUP($AH24,[1]D_Projections!$F$5:$F$79,[1]D_Projections!J$5:J$79) -> 102288 | AT24: 20352 | AU24: 54815 | AV24: 99056
A25: =IF(INTRO!$E$34<>0,INTRO!$E$34,"") -> Mali | B25: Kayes | C25: Diema | D25: 340083.4973 | E25: =IF(INTRO!$E$48="","",ROUND($D25*INTRO!$E$48,0)) -> 51013 | F25: =IF(INTRO!$E$49="","",ROUND($D25*INTRO!$E$49,0)) -> 96924 | G25: =IF(INTRO!$E$50="","",ROUND($D25*INTRO!$E$50,0)) -> 175143 | H25: 99 | I25: 0 | J25: 0 | K25: 31 | M25: =IF(INTRO!$E$40="Endémique", IF($I25>0, IF($I25=4,"Inconnu",IF($I25=99,"Interrompu", $D25)), 0),"Non requis") -> 0 | N25: =IF(INTRO!$E$42="Endémique", IF($J25>1, IF($J25=4, "Inconnu", IF($J25=99, "Surveillance", E25)), 0),"Non requis") -> Non requis | O25: =IF(INTRO!$E$42="Endémique", IF($J25>1, IF($J25=4, "Inconnu", IF($J25=99, "Surveillance", F25)), 0),"Non requis") -> Non requis | P25: =IF(INTRO!$E$42="Endémique", IF($J25>1, IF($J25=4, "Inconnu", IF($J25=99, "Surveillance", ROUND(D25*INTRO!$E$51,0))), 0),"Non requis") -> Non requis | Q25: =IF(INTRO!$E$42="Endémique", IF($J25>1, IF($J25=4, "Inconnu", IF($J25=99, "Surveillance", SUM($N25:$P25))), 0),"Non requis") -> Non requis | R25: 36120 | S25: 97295 | T25: 175816 | U25: 309231 | V25: 0 | W25: 0 | X25: 0 | Y25: 1 | AA25: T2 (PZQ) | AH25: 29983 | AI25: Diema | AK25: ='MDA3'!O25 -> 0 | AL25: ='T2'!S25 -> 3939 | AO25: =_xlfn.XLOOKUP($AH25,[1]D_Projections!$F$5:$F$79,[1]D_Projections!G$5:G$79) -> 31 | AP25: =_xlfn.XLOOKUP($AH25,[1]D_Projections!$F$5:$F$79,[1]D_Projections!H$5:H$79) -> 37299 | AQ25: =_xlfn.XLOOKUP($AH25,[1]D_Projections!$F$5:$F$79,[1]D_Projections!I$5:I$79) -> 100470 | AR25: =_xlfn.XLOOKUP($AH25,[1]D_Projections!$F$5:$F$79,[1]D_Projections!J$5:J$79) -> 181553 | AT25: 36120 | AU25: 97295 | AV25: 175816
A26: =IF(INTRO!$E$34<>0,INTRO!$E$34,"") -> Mali | B26: Kayes | C26: Kayes | D26: 823273.8434 | E26: =IF(INTRO!$E$48="","",ROUND($D26*INTRO!$E$48,0)) -> 123491 | F26: =IF(INTRO!$E$49="","",ROUND($D26*INTRO!$E$49,0)) -> 234633 | G26: =IF(INTRO!$E$50="","",ROUND($D26*INTRO!$E$50,0)) -> 423986 | H26: 99 | I26: 1 | J26: 0 | K26: 31 | M26: =IF(INTRO!$E$40="Endémique", IF($I26>0, IF($I26=4,"Inconnu",IF($I26=99,"Interrompu", $D26)), 0),"Non requis") -> 823273.8434 | N26: =IF(INTRO!$E$42="Endémique", IF($J26>1, IF($J26=4, "Inconnu", IF($J26=99, "Surveillance", E26)), 0),"Non requis") -> Non requis | O26: =IF(INTRO!$E$42="Endémique", IF($J26>1, IF($J26=4, "Inconnu", IF($J26=99, "Surveillance", F26)), 0),"Non requis") -> Non requis | P26: =IF(INTRO!$E$42="Endémique", IF($J26>1, IF($J26=4, "Inconnu", IF($J26=99, "Surveillance", ROUND(D26*INTRO!$E$51,0))), 0),"Non requis") -> Non requis | Q26: =IF(INTRO!$E$42="Endémique", IF($J26>1, IF($J26=4, "Inconnu", IF($J26=99, "Surveillance", SUM($N26:$P26))), 0),"Non requis") -> Non requis | R26: 67421 | S26: 181611 | T26: 328178 | U26: 577210 | V26: 0 | W26: 1 | X26: 0 | Y26: 1 | Z26: MDA3 (IVM) | AA26: T2 (PZQ) | AH26: 29984 | AI26: Kayes | AK26: ='MDA3'!O26 -> 200998 | AL26: ='T2'!S26 -> 86063 | AO26: =_xlfn.XLOOKUP($AH26,[1]D_Projections!$F$5:$F$79,[1]D_Projections!G$5:G$79) -> 31 | AP26: =_xlfn.XLOOKUP($AH26,[1]D_Projections!$F$5:$F$79,[1]D_Projections!H$5:H$79) -> 69621 | AQ26: =_xlfn.XLOOKUP($AH26,[1]D_Projections!$F$5:$F$79,[1]D_Projections!I$5:I$79) -> 187537 | AR26: =_xlfn.XLOOKUP($AH26,[1]D_Projections!$F$5:$F$79,[1]D_Projections!J$5:J$79) -> 338887 | AT26: 67421 | AU26: 181611 | AV26: 328178
A27: =IF(INTRO!$E$34<>0,INTRO!$E$34,"") -> Mali | B27: Kayes | C27: Kenieba | D27: 311363.1696 | E27: =IF(INTRO!$E$48="","",ROUND($D27*INTRO!$E$48,0)) -> 46704 | F27: =IF(INTRO!$E$49="","",ROUND($D27*INTRO!$E$49,0)) -> 88739 | G27: =IF(INTRO!$E$50="","",ROUND($D27*INTRO!$E$50,0)) -> 160352 | H27: 99 | I27: 1 | J27: 0 | K27: 31 | M27: =IF(INTRO!$E$40="Endémique", IF($I27>0, IF($I27=4,"Inconnu",IF($I27=99,"Interrompu", $D27)), 0),"Non requis") -> 311363.1696 | N27: =IF(INTRO!$E$42="Endémique", IF($J27>1, IF($J27=4, "Inconnu", IF($J27=99, "Surveillance", E27)), 0),"Non requis") -> Non requis | O27: =IF(INTRO!$E$42="Endémique", IF($J27>1, IF($J27=4, "Inconnu", IF($J27=99, "Surveillance", F27)), 0),"Non requis") -> Non requis | P27: =IF(INTRO!$E$42="Endémique", IF($J27>1, IF($J27=4, "Inconnu", IF($J27=99, "Surveillance", ROUND(D27*INTRO!$E$51,0))), 0),"Non requis") -> Non requis | Q27: =IF(INTRO!$E$42="Endémique", IF($J27>1, IF($J27=4, "Inconnu", IF($J27=99, "Surveillance", SUM($N27:$P27))), 0),"Non requis") -> Non requis | R27: 5464 | S27: 14714 | T27: 26590 | U27: 46768 | V27: 0 | W27: 1 | X27: 0 | Y27: 1 | Z27: MDA3 (IVM) | AA27: T2 (PZQ) | AH27: 29985 | AI27: Kenieba | AK27: ='MDA3'!O27 -> 84628 | AL27: ='T2'!S27 -> 67591 | AO27: =_xlfn.XLOOKUP($AH27,[1]D_Projections!$F$5:$F$79,[1]D_Projections!G$5:G$79) -> 31 | AP27: =_xlfn.XLOOKUP($AH27,[1]D_Projections!$F$5:$F$79,[1]D_Projections!H$5:H$79) -> 5642 | AQ27: =_xlfn.XLOOKUP($AH27,[1]D_Projections!$F$5:$F$79,[1]D_Projections!I$5:I$79) -> 15194 | AR27: =_xlfn.XLOOKUP($AH27,[1]D_Projections!$F$5:$F$79,[1]D_Projections!J$5:J$79) -> 27458 | AT27: 5464 | AU27: 14714 | AV27: 26590
A28: =IF(INTRO!$E$34<>0,INTRO!$E$34,"") -> Mali | B28: Kayes | C28: Kita | D28: 554203.9027 | E28: =IF(INTRO!$E$48="","",ROUND($D28*INTRO!$E$48,0)) -> 83131 | F28: =IF(INTRO!$E$49="","",ROUND($D28*INTRO!$E$49,0)) -> 157948 | G28: =IF(INTRO!$E$50="","",ROUND($D28*INTRO!$E$50,0)) -> 285415 | H28: 99 | I28: 1 | J28: 0 | K28: 3 | M28: =IF(INTRO!$E$40="Endémique", IF($I28>0, IF($I28=4,"Inconnu",IF($I28=99,"Interrompu", $D28)), 0),"Non requis") -> 554203.9027 | N28: =IF(INTRO!$E$42="Endémique", IF($J28>1, IF($J28=4, "Inconnu", IF($J28=99, "Surveillance", E28)), 0),"Non requis") -> Non requis | O28: =IF(INTRO!$E$42="Endémique", IF($J28>1, IF($J28=4, "Inconnu", IF($J28=99, "Surveillance", F28)), 0),"Non requis") -> Non requis | P28: =IF(INTRO!$E$42="Endémique", IF($J28>1, IF($J28=4, "Inconnu", IF($J28=99, "Surveillance", ROUND(D28*INTRO!$E$51,0))), 0),"Non requis") -> Non requis | Q28: =IF(INTRO!$E$42="Endémique", IF($J28>1, IF($J28=4, "Inconnu", IF($J28=99, "Surveillance", SUM($N28:$P28))), 0),"Non requis") -> Non requis | R28: 14761 | S28: 39760 | T28: 71849 | U28: 126370 | V28: 0 | W28: 1 | X28: 0 | Y28: 1 | Z28: MDA3 (IVM) | AA28: T2 (PZQ) | AH28: 29986 | AI28: Kita | AK28: ='MDA3'!O28 -> 173623 | AL28: ='T2'!S28 -> 148786 | AO28: =_xlfn.XLOOKUP($AH28,[1]D_Projections!$F$5:$F$79,[1]D_Projections!G$5:G$79) -> 3 | AP28: =_xlfn.XLOOKUP($AH28,[1]D_Projections!$F$5:$F$79,[1]D_Projections!H$5:H$79) -> 15243 | AQ28: =_xlfn.XLOOKUP($AH28,[1]D_Projections!$F$5:$F$79,[1]D_Projections!I$5:I$79) -> 41057 | AR28: =_xlfn.XLOOKUP($AH28,[1]D_Projections!$F$5:$F$79,[1]D_Projections!J$5:J$79) -> 74193 | AT28: 14761 | AU28: 39760 | AV28: 71849
A29: =IF(INTRO!$E$34<>0,INTRO!$E$34,"") -> Mali | B29: Kayes | C29: Sagabari | D29: 65024.56486 | E29: =IF(INTRO!$E$48="","",ROUND($D29*INTRO!$E$48,0)) -> 9754 | F29: =IF(INTRO!$E$49="","",ROUND($D29*INTRO!$E$49,0)) -> 18532 | G29: =IF(INTRO!$E$50="","",ROUND($D29*INTRO!$E$50,0)) -> 33488 | H29: 99 | I29: 1 | J29: 0 | K29: 21 | M29: =IF(INTRO!$E$40="Endémique", IF($I29>0, IF($I29=4,"Inconnu",IF($I29=99,"Interrompu", $D29)), 0),"Non requis") -> 65024.56486 | N29: =IF(INTRO!$E$42="Endémique", IF($J29>1, IF($J29=4, "Inconnu", IF($J29=99, "Surveillance", E29)), 0),"Non requis") -> Non requis | O29: =IF(INTRO!$E$42="Endémique", IF($J29>1, IF($J29=4, "Inconnu", IF($J29=99, "Surveillance", F29)), 0),"Non requis") -> Non requis | P29: =IF(INTRO!$E$42="Endémique", IF($J29>1, IF($J29=4, "Inconnu", IF($J29=99, "Surveillance", ROUND(D29*INTRO!$E$51,0))), 0),"Non requis") -> Non requis | Q29: =IF(INTRO!$E$42="Endémique", IF($J29>1, IF($J29=4, "Inconnu", IF($J29=99, "Surveillance", SUM($N29:$P29))), 0),"Non requis") -> Non requis | R29: 4850 | S29: 13066 | T29: 23608 | U29: 41524 | V29: 0 | W29: 1 | X29: 0 | Y29: 1 | Z29: MDA3 (IVM) | AA29: T2 (PZQ) | AH29: 30039 | AI29: Sagabari | AK29: ='MDA3'!O29 -> 17279 | AL29: ='T2'!S29 -> 14614 | AO29: =_xlfn.XLOOKUP($AH29,[1]D_Projections!$F$5:$F$79,[1]D_Projections!G$5:G$79) -> 21 | AP29: =_xlfn.XLOOKUP($AH29,[1]D_Projections!$F$5:$F$79,[1]D_Projections!H$5:H$79) -> 5008 | AQ29: =_xlfn.XLOOKUP($AH29,[1]D_Projections!$F$5:$F$79,[1]D_Projections!I$5:I$79) -> 13492 | AR29: =_xlfn.XLOOKUP($AH29,[1]D_Projections!$F$5:$F$79,[1]D_Projections!J$5:J$79) -> 24378 | AT29: 4850 | AU29: 13066 | AV29: 23608
A30: =IF(INTRO!$E$34<>0,INTRO!$E$34,"") -> Mali | B30: Kayes | C30: Sefeto | D30: 77383.5683 | E30: =IF(INTRO!$E$48="","",ROUND($D30*INTRO!$E$48,0)) -> 11608 | F30: =IF(INTRO!$E$49="","",ROUND($D30*INTRO!$E$49,0)) -> 22054 | G30: =IF(INTRO!$E$50="","",ROUND($D30*INTRO!$E$50,0)) -> 39853 | H30: 99 | I30: 1 | J30: 0 | K30: 31 | M30: =IF(INTRO!$E$40="Endémique", IF($I30>0, IF($I30=4,"Inconnu",IF($I30=99,"Interrompu", $D30)), 0),"Non requis") -> 77383.5683 | N30: =IF(INTRO!$E$42="Endémique", IF($J30>1, IF($J30=4, "Inconnu", IF($J30=99, "Surveillance", E30)), 0),"Non requis") -> Non requis | O30: =IF(INTRO!$E$42="Endémique", IF($J30>1, IF($J30=4, "Inconnu", IF($J30=99, "Surveillance", F30)), 0),"Non requis") -> Non requis | P30: =IF(INTRO!$E$42="Endémique", IF($J30>1, IF($J30=4, "Inconnu", IF($J30=99, "Surveillance", ROUND(D30*INTRO!$E$51,0))), 0),"Non requis") -> Non requis | Q30: =IF(INTRO!$E$42="Endémique", IF($J30>1, IF($J30=4, "Inconnu", IF($J30=99, "Surveillance", SUM($N30:$P30))), 0),"Non requis") -> Non requis | R30: 8026 | S30: 21618 | T30: 39063 | U30: 68707 | V30: 0 | W30: 1 | X30: 0 | Y30: 1 | Z30: MDA3 (IVM) | AA30: T2 (PZQ) | AH30: 30040 | AI30: Sefeto | AK30: ='MDA3'!O30 -> 19164 | AL30: ='T2'!S30 -> 22340 | AO30: =_xlfn.XLOOKUP($AH30,[1]D_Projections!$F$5:$F$79,[1]D_Projections!G$5:G$79) -> 31 | AP30: =_xlfn.XLOOKUP($AH30,[1]D_Projections!$F$5:$F$79,[1]D_Projections!H$5:H$79) -> 8288 | AQ30: =_xlfn.XLOOKUP($AH30,[1]D_Projections!$F$5:$F$79,[1]D_Projections!I$5:I$79) -> 22323 | AR30: =_xlfn.XLOOKUP($AH30,[1]D_Projections!$F$5:$F$79,[1]D_Projections!J$5:J$79) -> 40338 | AT30: 8026 | AU30: 21618 | AV30: 39063
A31: =IF(INTRO!$E$34<>0,INTRO!$E$34,"") -> Mali | B31: Kayes | C31: Nioro | D31: 369631.3361 | E31: =IF(INTRO!$E$48="","",ROUND($D31*INTRO!$E$48,0)) -> 55445 | F31: =IF(INTRO!$E$49="","",ROUND($D31*INTRO!$E$49,0)) -> 105345 | G31: =IF(INTRO!$E$50="","",ROUND($D31*INTRO!$E$50,0)) -> 190360 | H31: 99 | I31: 0 | J31: 0 | K31: 31 | M31: =IF(INTRO!$E$40="Endémique", IF($I31>0, IF($I31=4,"Inconnu",IF($I31=99,"Interrompu", $D31)), 0),"Non requis") -> 0 | N31: =IF(INTRO!$E$42="Endémique", IF($J31>1, IF($J31=4, "Inconnu", IF($J31=99, "Surveillance", E31)), 0),"Non requis") -> Non requis | O31: =IF(INTRO!$E$42="Endémique", IF($J31>1, IF($J31=4, "Inconnu", IF($J31=99, "Surveillance", F31)), 0),"Non requis") -> Non requis | P31: =IF(INTRO!$E$42="Endémique", IF($J31>1, IF($J31=4, "Inconnu", IF($J31=99, "Surveillance", ROUND(D31*INTRO!$E$51,0))), 0),"Non requis") -> Non requis | Q31: =IF(INTRO!$E$42="Endémique", IF($J31>1, IF($J31=4, "Inconnu", IF($J31=99, "Surveillance", SUM($N31:$P31))), 0),"Non requis") -> Non requis | R31: 34983 | S31: 94231 | T31: 170277 | U31: 299491 | V31: 0 | W31: 0 | X31: 0 | Y31: 1 | AA31: T2 (PZQ) | AH31: 29987 | AI31: Nioro | AK31: ='MDA3'!O31 -> 0 | AL31: ='T2'!S31 -> 20945 | AO31: =_xlfn.XLOOKUP($AH31,[1]D_Projections!$F$5:$F$79,[1]D_Projections!G$5:G$79) -> 31 | AP31: =_xlfn.XLOOKUP($AH31,[1]D_Projections!$F$5:$F$79,[1]D_Projections!H$5:H$79) -> 36125 | AQ31: =_xlfn.XLOOKUP($AH31,[1]D_Projections!$F$5:$F$79,[1]D_Projections!I$5:I$79) -> 97306 | AR31: =_xlfn.XLOOKUP($AH31,[1]D_Projections!$F$5:$F$79,[1]D_Projections!J$5:J$79) -> 175833 | AT31: 34983 | AU31: 94231 | AV31: 170277
A32: =IF(INTRO!$E$34<>0,INTRO!$E$34,"") -> Mali | B32: Kayes | C32: Oussoubidiagna | D32: 168815.508 | E32: =IF(INTRO!$E$48="","",ROUND($D32*INTRO!$E$48,0)) -> 25322 | F32: =IF(INTRO!$E$49="","",ROUND($D32*INTRO!$E$49,0)) -> 48112 | G32: =IF(INTRO!$E$50="","",ROUND($D32*INTRO!$E$50,0)) -> 86940 | H32: 99 | I32: 1 | J32: 0 | K32: 31 | M32: =IF(INTRO!$E$40="Endémique", IF($I32>0, IF($I32=4,"Inconnu",IF($I32=99,"Interrompu", $D32)), 0),"Non requis") -> 168815.508 | N32: =IF(INTRO!$E$42="Endémique", IF($J32>1, IF($J32=4, "Inconnu", IF($J32=99, "Surveillance", E32)), 0),"Non requis") -> Non requis | O32: =IF(INTRO!$E$42="Endémique", IF($J32>1, IF($J32=4, "Inconnu", IF($J32=99, "Surveillance", F32)), 0),"Non requis") -> Non requis | P32: =IF(INTRO!$E$42="Endémique", IF($J32>1, IF($J32=4, "Inconnu", IF($J32=99, "Surveillance", ROUND(D32*INTRO!$E$51,0))), 0),"Non requis") -> Non requis | Q32: =IF(INTRO!$E$42="Endémique", IF($J32>1, IF($J32=4, "Inconnu", IF($J32=99, "Surveillance", SUM($N32:$P32))), 0),"Non requis") -> Non requis | R32: 6847 | S32: 18437 | T32: 33318 | U32: 58602 | V32: 0 | W32: 1 | X32: 0 | Y32: 1 | Z32: MDA3 (IVM) | AA32: T2 (PZQ) | AH32: 29988 | AI32: Oussoubidiagna | AK32: ='MDA3'!O32 -> 51119 | AL32: ='T2'!S32 -> 36344 | AO32: =_xlfn.XLOOKUP($AH32,[1]D_Projections!$F$5:$F$79,[1]D_Projections!G$5:G$79) -> 31 | AP32: =_xlfn.XLOOKUP($AH32,[1]D_Projections!$F$5:$F$79,[1]D_Projections!H$5:H$79) -> 7070 | AQ32: =_xlfn.XLOOKUP($AH32,[1]D_Projections!$F$5:$F$79,[1]D_Projections!I$5:I$79) -> 19039 | AR32: =_xlfn.XLOOKUP($AH32,[1]D_Projections!$F$5:$F$79,[1]D_Projections!J$5:J$79) -> 34405 | AT32: 6847 | AU32: 18437 | AV32: 33318
A33: =IF(INTRO!$E$34<>0,INTRO!$E$34,"") -> Mali | B33: Kayes | C33: Yelimane | D33: 286165.3994 | E33: =IF(INTRO!$E$48="","",ROUND($D33*INTRO!$E$48,0)) -> 42925 | F33: =IF(INTRO!$E$49="","",ROUND($D33*INTRO!$E$49,0)) -> 81557 | G33: =IF(INTRO!$E$50="","",ROUND($D33*INTRO!$E$50,0)) -> 147375 | H33: 99 | I33: 0 | J33: 1 | K33: 2 | M33: =IF(INTRO!$E$40="Endémique", IF($I33>0, IF($I33=4,"Inconnu",IF($I33=99,"Interrompu", $D33)), 0),"Non requis") -> 0 | N33: =IF(INTRO!$E$42="Endémique", IF($J33>1, IF($J33=4, "Inconnu", IF($J33=99, "Surveillance", E33)), 0),"Non requis") -> Non requis | O33: =IF(INTRO!$E$42="Endémique", IF($J33>1, IF($J33=4, "Inconnu", IF($J33=99, "Surveillance", F33)), 0),"Non requis") -> Non requis | P33: =IF(INTRO!$E$42="Endémique", IF($J33>1, IF($J33=4, "Inconnu", IF($J33=99, "Surveillance", ROUND(D33*INTRO!$E$51,0))), 0),"Non requis") -> Non requis | Q33: =IF(INTRO!$E$42="Endémique", IF($J33>1, IF($J33=4, "Inconnu", IF($J33=99, "Surveillance", SUM($N33:$P33))), 0),"Non requis") -> Non requis | R33: 3288 | S33: 8859 | T33: 16008 | U33: 28155 | V33: 0 | W33: 0 | X33: 0 | Y33: 1 | AA33: T2 (PZQ) | AH33: 29989 | AI33: Yelimane | AK33: ='MDA3'!O33 -> 0 | AL33: ='T2'!S33 -> 67372 | AO33: =_xlfn.XLOOKUP($AH33,[1]D_Projections!$F$5:$F$79,[1]D_Projections!G$5:G$79) -> 2 | AP33: =_xlfn.XLOOKUP($AH33,[1]D_Projections!$F$5:$F$79,[1]D_Projections!H$5:H$79) -> 3395 | AQ33: =_xlfn.XLOOKUP($AH33,[1]D_Projections!$F$5:$F$79,[1]D_Projections!I$5:I$79) -> 9148 | AR33: =_xlfn.XLOOKUP($AH33,[1]D_Projections!$F$5:$F$79,[1]D_Projections!J$5:J$79) -> 16530 | AT33: 3288 | AU33: 8859 | AV33: 16008
A34: =IF(INTRO!$E$34<>0,INTRO!$E$34,"") -> Mali | B34: Kidal | C34: Abeibara | D34: 16547.00443 | E34: =IF(INTRO!$E$48="","",ROUND($D34*INTRO!$E$48,0)) -> 2482 | F34: =IF(INTRO!$E$49="","",ROUND($D34*INTRO!$E$49,0)) -> 4716 | G34: =IF(INTRO!$E$50="","",ROUND($D34*INTRO!$E$50,0)) -> 8522 | H34: 99 | I34: 0 | J34: 0 | K34: 1 | M34: =IF(INTRO!$E$40="Endémique", IF($I34>0, IF($I34=4,"Inconnu",IF($I34=99,"Interrompu", $D34)), 0),"Non requis") -> 0 | N34: =IF(INTRO!$E$42="Endémique", IF($J34>1, IF($J34=4, "Inconnu", IF($J34=99, "Surveillance", E34)), 0),"Non requis") -> Non requis | O34: =IF(INTRO!$E$42="Endémique", IF($J34>1, IF($J34=4, "Inconnu", IF($J34=99, "Surveillance", F34)), 0),"Non requis") -> Non requis | P34: =IF(INTRO!$E$42="Endémique", IF($J34>1, IF($J34=4, "Inconnu", IF($J34=99, "Surveillance", ROUND(D34*INTRO!$E$51,0))), 0),"Non requis") -> Non requis | Q34: =IF(INTRO!$E$42="Endémique", IF($J34>1, IF($J34=4, "Inconnu", IF($J34=99, "Surveillance", SUM($N34:$P34))), 0),"Non requis") -> Non requis | R34: 1759 | S34: 4734 | T34: 8555 | U34: 15048 | V34: 0 | W34: 0 | X34: 0 | Y34: 0 | AH34: 29990 | AI34: Abeibara | AK34: ='MDA3'!O34 -> 0 | AL34: ='T2'!S34 -> 0 | AO34: =_xlfn.XLOOKUP($AH34,[1]D_Projections!$F$5:$F$79,[1]D_Projections!G$5:G$79) -> 1 | AP34: =_xlfn.XLOOKUP($AH34,[1]D_Projections!$F$5:$F$79,[1]D_Projections!H$5:H$79) -> 1816 | AQ34: =_xlfn.XLOOKUP($AH34,[1]D_Projections!$F$5:$F$79,[1]D_Projections!I$5:I$79) -> 4888 | AR34: =_xlfn.XLOOKUP($AH34,[1]D_Projections!$F$5:$F$79,[1]D_Projections!J$5:J$79) -> 8834 | AT34: 1759 | AU34: 4734 | AV34: 8555
A35: =IF(INTRO!$E$34<>0,INTRO!$E$34,"") -> Mali | B35: Kidal | C35: Kidal | D35: 53224.74864 | E35: =IF(INTRO!$E$48="","",ROUND($D35*INTRO!$E$48,0)) -> 7984 | F35: =IF(INTRO!$E$49="","",ROUND($D35*INTRO!$E$49,0)) -> 15169 | G35: =IF(INTRO!$E$50="","",ROUND($D35*INTRO!$E$50,0)) -> 27411 | H35: 99 | I35: 0 | J35: 0 | K35: 1 | M35: =IF(INTRO!$E$40="Endémique", IF($I35>0, IF($I35=4,"Inconnu",IF($I35=99,"Interrompu", $D35)), 0),"Non requis") -> 0 | N35: =IF(INTRO!$E$42="Endémique", IF($J35>1, IF($J35=4, "Inconnu", IF($J35=99, "Surveillance", E35)), 0),"Non requis") -> Non requis | O35: =IF(INTRO!$E$42="Endémique", IF($J35>1, IF($J35=4, "Inconnu", IF($J35=99, "Surveillance", F35)), 0),"Non requis") -> Non requis | P35: =IF(INTRO!$E$42="Endémique", IF($J35>1, IF($J35=4, "Inconnu", IF($J35=99, "Surveillance", ROUND(D35*INTRO!$E$51,0))), 0),"Non requis") -> Non requis | Q35: =IF(INTRO!$E$42="Endémique", IF($J35>1, IF($J35=4, "Inconnu", IF($J35=99, "Surveillance", SUM($N35:$P35))), 0),"Non requis") -> Non requis | R35: 5656 | S35: 15229 | T35: 27515 | U35: 48400 | V35: 0 | W35: 0 | X35: 0 | Y35: 0 | AH35: 29991 | AI35: Kidal | AK35: ='MDA3'!O35 -> 0 | AL35: ='T2'!S35 -> 0 | AO35: =_xlfn.XLOOKUP($AH35,[1]D_Projections!$F$5:$F$79,[1]D_Projections!G$5:G$79) -> 1 | AP35: =_xlfn.XLOOKUP($AH35,[1]D_Projections!$F$5:$F$79,[1]D_Projections!H$5:H$79) -> 5841 | AQ35: =_xlfn.XLOOKUP($AH35,[1]D_Projections!$F$5:$F$79,[1]D_Projections!I$5:I$79) -> 15726 | AR35: =_xlfn.XLOOKUP($AH35,[1]D_Projections!$F$5:$F$79,[1]D_Projections!J$5:J$79) -> 28413 | AT35: 5656 | AU35: 15229 | AV35: 27515
A36: =IF(INTRO!$E$34<>0,INTRO!$E$34,"") -> Mali | B36: Kidal | C36: Tessalit | D36: 26202.37525 | E36: =IF(INTRO!$E$48="","",ROUND($D36*INTRO!$E$48,0)) -> 3930 | F36: =IF(INTRO!$E$49="","",ROUND($D36*INTRO!$E$49,0)) -> 7468 | G36: =IF(INTRO!$E$50="","",ROUND($D36*INTRO!$E$50,0)) -> 13494 | H36: 99 | I36: 0 | J36: 0 | K36: 1 | M36: =IF(INTRO!$E$40="Endémique", IF($I36>0, IF($I36=4,"Inconnu",IF($I36=99,"Interrompu", $D36)), 0),"Non requis") -> 0 | N36: =IF(INTRO!$E$42="Endémique", IF($J36>1, IF($J36=4, "Inconnu", IF($J36=99, "Surveillance", E36)), 0),"Non requis") -> Non requis | O36: =IF(INTRO!$E$42="Endémique", IF($J36>1, IF($J36=4, "Inconnu", IF($J36=99, "Surveillance", F36)), 0),"Non requis") -> Non requis | P36: =IF(INTRO!$E$42="Endémique", IF($J36>1, IF($J36=4, "Inconnu", IF($J36=99, "Surveillance", ROUND(D36*INTRO!$E$51,0))), 0),"Non requis") -> Non requis | Q36: =IF(INTRO!$E$42="Endémique", IF($J36>1, IF($J36=4, "Inconnu", IF($J36=99, "Surveillance", SUM($N36:$P36))), 0),"Non requis") -> Non requis | R36: 2784 | S36: 7496 | T36: 13548 | U36: 23828 | V36: 0 | W36: 0 | X36: 0 | Y36: 0 | AH36: 29992 | AI36: Tessalit | AK36: ='MDA3'!O36 -> 0 | AL36: ='T2'!S36 -> 0 | AO36: =_xlfn.XLOOKUP($AH36,[1]D_Projections!$F$5:$F$79,[1]D_Projections!G$5:G$79) -> 1 | AP36: =_xlfn.XLOOKUP($AH36,[1]D_Projections!$F$5:$F$79,[1]D_Projections!H$5:H$79) -> 2875 | AQ36: =_xlfn.XLOOKUP($AH36,[1]D_Projections!$F$5:$F$79,[1]D_Projections!I$5:I$79) -> 7741 | AR36: =_xlfn.XLOOKUP($AH36,[1]D_Projections!$F$5:$F$79,[1]D_Projections!J$5:J$79) -> 13990 | AT36: 2784 | AU36: 7496 | AV36: 13548
A37: =IF(INTRO!$E$34<>0,INTRO!$E$34,"") -> Mali | B37: Kidal | C37: Tin-Essako | D37: 12830.18038 | E37: =IF(INTRO!$E$48="","",ROUND($D37*INTRO!$E$48,0)) -> 1925 | F37: =IF(INTRO!$E$49="","",ROUND($D37*INTRO!$E$49,0)) -> 3657 | G37: =IF(INTRO!$E$50="","",ROUND($D37*INTRO!$E$50,0)) -> 6608 | H37: 99 | I37: 0 | J37: 0 | K37: 1 | M37: =IF(INTRO!$E$40="Endémique", IF($I37>0, IF($I37=4,"Inconnu",IF($I37=99,"Interrompu", $D37)), 0),"Non requis") -> 0 | N37: =IF(INTRO!$E$42="Endémique", IF($J37>1, IF($J37=4, "Inconnu", IF($J37=99, "Surveillance", E37)), 0),"Non requis") -> Non requis | O37: =IF(INTRO!$E$42="Endémique", IF($J37>1, IF($J37=4, "Inconnu", IF($J37=99, "Surveillance", F37)), 0),"Non requis") -> Non requis | P37: =IF(INTRO!$E$42="Endémique", IF($J37>1, IF($J37=4, "Inconnu", IF($J37=99, "Surveillance", ROUND(D37*INTRO!$E$51,0))), 0),"Non requis") -> Non requis | Q37: =IF(INTRO!$E$42="Endémique", IF($J37>1, IF($J37=4, "Inconnu", IF($J37=99, "Surveillance", SUM($N37:$P37))), 0),"Non requis") -> Non requis | R37: 1362 | S37: 3670 | T37: 6633 | U37: 11665 | V37: 0 | W37: 0 | X37: 0 | Y37: 0 | AH37: 29993 | AI37: TiN-Essako | AK37: ='MDA3'!O37 -> 0 | AL37: ='T2'!S37 -> 0 | AO37: =_xlfn.XLOOKUP($AH37,[1]D_Projections!$F$5:$F$79,[1]D_Projections!G$5:G$79) -> 1 | AP37: =_xlfn.XLOOKUP($AH37,[1]D_Projections!$F$5:$F$79,[1]D_Projections!H$5:H$79) -> 1406 | AQ37: =_xlfn.XLOOKUP($AH37,[1]D_Projections!$F$5:$F$79,[1]D_Projections!I$5:I$79) -> 3790 | AR37: =_xlfn.XLOOKUP($AH37,[1]D_Projections!$F$5:$F$79,[1]D_Projections!J$5:J$79) -> 6849 | AT37: 1362 | AU37: 3670 | AV37: 6633
A38: =IF(INTRO!$E$34<>0,INTRO!$E$34,"") -> Mali | B38: Koulikoro | C38: Banamba | D38: 306080.4067 | E38: =IF(INTRO!$E$48="","",ROUND($D38*INTRO!$E$48,0)) -> 45912 | F38: =IF(INTRO!$E$49="","",ROUND($D38*INTRO!$E$49,0)) -> 87233 | G38: =IF(INTRO!$E$50="","",ROUND($D38*INTRO!$E$50,0)) -> 157631 | H38: 99 | I38: 0 | J38: 0 | K38: 31 | M38: =IF(INTRO!$E$40="Endémique", IF($I38>0, IF($I38=4,"Inconnu",IF($I38=99,"Interrompu", $D38)), 0),"Non requis") -> 0 | N38: =IF(INTRO!$E$42="Endémique", IF($J38>1, IF($J38=4, "Inconnu", IF($J38=99, "Surveillance", E38)), 0),"Non requis") -> Non requis | O38: =IF(INTRO!$E$42="Endémique", IF($J38>1, IF($J38=4, "Inconnu", IF($J38=99, "Surveillance", F38)), 0),"Non requis") -> Non requis | P38: =IF(INTRO!$E$42="Endémique", IF($J38>1, IF($J38=4, "Inconnu", IF($J38=99, "Surveillance", ROUND(D38*INTRO!$E$51,0))), 0),"Non requis") -> Non requis | Q38: =IF(INTRO!$E$42="Endémique", IF($J38>1, IF($J38=4, "Inconnu", IF($J38=99, "Surveillance", SUM($N38:$P38))), 0),"Non requis") -> Non requis | R38: 10167 | S38: 27385 | T38: 49486 | U38: 87038 | V38: 0 | W38: 0 | X38: 0 | Y38: 1 | AA38: T2 (PZQ) | AH38: 29994 | AI38: Banamba | AK38: ='MDA3'!O38 -> 0 | AL38: ='T2'!S38 -> 65676 | AO38: =_xlfn.XLOOKUP($AH38,[1]D_Projections!$F$5:$F$79,[1]D_Projections!G$5:G$79) -> 31 | AP38: =_xlfn.XLOOKUP($AH38,[1]D_Projections!$F$5:$F$79,[1]D_Projections!H$5:H$79) -> 10499 | AQ38: =_xlfn.XLOOKUP($AH38,[1]D_Projections!$F$5:$F$79,[1]D_Projections!I$5:I$79) -> 28279 | AR38: =_xlfn.XLOOKUP($AH38,[1]D_Projections!$F$5:$F$79,[1]D_Projections!J$5:J$79) -> 51101 | AT38: 10167 | AU38: 27385 | AV38: 49486
A39: =IF(INTRO!$E$34<>0,INTRO!$E$34,"") -> Mali | B39: Koulikoro | C39: Dioila | D39: 426781.1283 | E39: =IF(INTRO!$E$48="","",ROUND($D39*INTRO!$E$48,0)) -> 64017 | F39: =IF(INTRO!$E$49="","",ROUND($D39*INTRO!$E$49,0)) -> 121633 | G39: =IF(INTRO!$E$50="","",ROUND($D39*INTRO!$E$50,0)) -> 219792 | H39: 99 | I39: 1 | J39: 0 | K39: 3 | M39: =IF(INTRO!$E$40="Endémique", IF($I39>0, IF($I39=4,"Inconnu",IF($I39=99,"Interrompu", $D39)), 0),"Non requis") -> 426781.1283 | N39: =IF(INTRO!$E$42="Endémique", IF($J39>1, IF($J39=4, "Inconnu", IF($J39=99, "Surveillance", E39)), 0),"Non requis") -> Non requis | O39: =IF(INTRO!$E$42="Endémique", IF($J39>1, IF($J39=4, "Inconnu", IF($J39=99, "Surveillance", F39)), 0),"Non requis") -> Non requis | P39: =IF(INTRO!$E$42="Endémique", IF($J39>1, IF($J39=4, "Inconnu", IF($J39=99, "Surveillance", ROUND(D39*INTRO!$E$51,0))), 0),"Non requis") -> Non requis | Q39: =IF(INTRO!$E$42="Endémique", IF($J39>1, IF($J39=4, "Inconnu", IF($J39=99, "Surveillance", SUM($N39:$P39))), 0),"Non requis") -> Non requis | R39: 25024 | S39: 67405 | T39: 121801 | U39: 214230 | V39: 0 | W39: 1 | X39: 0 | Y39: 1 | Z39: MDA3 (IVM) | AA39: T2 (PZQ) | AH39: 29995 | AI39: Dioila | AK39: ='MDA3'!O39 -> 139436 | AL39: ='T2'!S39 -> 31937 | AO39: =_xlfn.XLOOKUP($AH39,[1]D_Projections!$F$5:$F$79,[1]D_Projections!G$5:G$79) -> 3 | AP39: =_xlfn.XLOOKUP($AH39,[1]D_Projections!$F$5:$F$79,[1]D_Projections!H$5:H$79) -> 25841 | AQ39: =_xlfn.XLOOKUP($AH39,[1]D_Projections!$F$5:$F$79,[1]D_Projections!I$5:I$79) -> 69604 | AR39: =_xlfn.XLOOKUP($AH39,[1]D_Projections!$F$5:$F$79,[1]D_Projections!J$5:J$79) -> 125775 | AT39: 25024 | AU39: 67405 | AV39: 121801
A40: =IF(INTRO!$E$34<>0,INTRO!$E$34,"") -> Mali | B40: Koulikoro | C40: Fana | D40: 363554.3342 | E40: =IF(INTRO!$E$48="","",ROUND($D40*INTRO!$E$48,0)) -> 54533 | F40: =IF(INTRO!$E$49="","",ROUND($D40*INTRO!$E$49,0)) -> 103613 | G40: =IF(INTRO!$E$50="","",ROUND($D40*INTRO!$E$50,0)) -> 187230 | H40: 99 | I40: 1 | J40: 0 | K40: 31 | M40: =IF(INTRO!$E$40="Endémique", IF($I40>0, IF($I40=4,"Inconnu",IF($I40=99,"Interrompu", $D40)), 0),"Non requis") -> 363554.3342 | N40: =IF(INTRO!$E$42="Endémique", IF($J40>1, IF($J40=4, "Inconnu", IF($J40=99, "Surveillance", E40)), 0),"Non requis") -> Non requis | O40: =IF(INTRO!$E$42="Endémique", IF($J40>1, IF($J40=4, "Inconnu", IF($J40=99, "Surveillance", F40)), 0),"Non requis") -> Non requis | P40: =IF(INTRO!$E$42="Endémique", IF($J40>1, IF($J40=4, "Inconnu", IF($J40=99, "Surveillance", ROUND(D40*INTRO!$E$51,0))), 0),"Non requis") -> Non requis | Q40: =IF(INTRO!$E$42="Endémique", IF($J40>1, IF($J40=4, "Inconnu", IF($J40=99, "Surveillance", SUM($N40:$P40))), 0),"Non requis") -> Non requis | R40: 5384 | S40: 14500 | T40: 26202 | U40: 46086 | V40: 0 | W40: 1 | X40: 0 | Y40: 1 | Z40: MDA3 (IVM) | AA40: T2 (PZQ) | AH40: 29996 | AI40: Fana | AK40: ='MDA3'!O40 -> 107565 | AL40: ='T2'!S40 -> 90936 | AO40: =_xlfn.XLOOKUP($AH40,[1]D_Projections!$F$5:$F$79,[1]D_Projections!G$5:G$79) -> 31 | AP40: =_xlfn.XLOOKUP($AH40,[1]D_Projections!$F$5:$F$79,[1]D_Projections!H$5:H$79) -> 5560 | AQ40: =_xlfn.XLOOKUP($AH40,[1]D_Projections!$F$5:$F$79,[1]D_Projections!I$5:I$79) -> 14973 | AR40: =_xlfn.XLOOKUP($AH40,[1]D_Projections!$F$5:$F$79,[1]D_Projections!J$5:J$79) -> 27057 | AT40: 5384 | AU40: 14500 | AV40: 26202
A41: =IF(INTRO!$E$34<>0,INTRO!$E$34,"") -> Mali | B41: Koulikoro | C41: Kalabancoro | D41: 397698.0265 | E41: =IF(INTRO!$E$48="","",ROUND($D41*INTRO!$E$48,0)) -> 59655 | F41: =IF(INTRO!$E$49="","",ROUND($D41*INTRO!$E$49,0)) -> 113344 | G41: =IF(INTRO!$E$50="","",ROUND($D41*INTRO!$E$50,0)) -> 204814 | H41: 99 | I41: 1 | J41: 0 | K41: 21 | M41: =IF(INTRO!$E$40="Endémique", IF($I41>0, IF($I41=4,"Inconnu",IF($I41=99,"Interrompu", $D41)), 0),"Non requis") -> 397698.0265 | N41: =IF(INTRO!$E$42="Endémique", IF($J41>1, IF($J41=4, "Inconnu", IF($J41=99, "Surveillance", E41)), 0),"Non requis") -> Non requis | O41: =IF(INTRO!$E$42="Endémique", IF($J41>1, IF($J41=4, "Inconnu", IF($J41=99, "Surveillance", F41)), 0),"Non requis") -> Non requis | P41: =IF(INTRO!$E$42="Endémique", IF($J41>1, IF($J41=4, "Inconnu", IF($J41=99, "Surveillance", ROUND(D41*INTRO!$E$51,0))), 0),"Non requis") -> Non requis | Q41: =IF(INTRO!$E$42="Endémique", IF($J41>1, IF($J41=4, "Inconnu", IF($J41=99, "Surveillance", SUM($N41:$P41))), 0),"Non requis") -> Non requis | R41: 17288 | S41: 46567 | T41: 84150 | U41: 148005 | V41: 0 | W41: 1 | X41: 0 | Y41: 1 | Z41: MDA3 (IVM) | AA41: T2 (PZQ) | AH41: 29997 | AI41: Kalabancoro | AK41: ='MDA3'!O41 -> 173661 | AL41: ='T2'!S41 -> 56886 | AO41: =_xlfn.XLOOKUP($AH41,[1]D_Projections!$F$5:$F$79,[1]D_Projections!G$5:G$79) -> 21 | AP41: =_xlfn.XLOOKUP($AH41,[1]D_Projections!$F$5:$F$79,[1]D_Projections!H$5:H$79) -> 17852 | AQ41: =_xlfn.XLOOKUP($AH41,[1]D_Projections!$F$5:$F$79,[1]D_Projections!I$5:I$79) -> 48087 | AR41: =_xlfn.XLOOKUP($AH41,[1]D_Projections!$F$5:$F$79,[1]D_Projections!J$5:J$79) -> 86896 | AT41: 17288 | AU41: 46567 | AV41: 84150
A42: =IF(INTRO!$E$34<>0,INTRO!$E$34,"") -> Mali | B42: Koulikoro | C42: Kangaba | D42: 162053.7432 | E42: =IF(INTRO!$E$48="","",ROUND($D42*INTRO!$E$48,0)) -> 24308 | F42: =IF(INTRO!$E$49="","",ROUND($D42*INTRO!$E$49,0)) -> 46185 | G42: =IF(INTRO!$E$50="","",ROUND($D42*INTRO!$E$50,0)) -> 83458 | H42: 99 | I42: 1 | J42: 0 | K42: 2 | M42: =IF(INTRO!$E$40="Endémique", IF($I42>0, IF($I42=4,"Inconnu",IF($I42=99,"Interrompu", $D42)), 0),"Non requis") -> 162053.7432 | N42: =IF(INTRO!$E$42="Endémique", IF($J42>1, IF($J42=4, "Inconnu", IF($J42=99, "Surveillance", E42)), 0),"Non requis") -> Non requis | O42: =IF(INTRO!$E$42="Endémique", IF($J42>1, IF($J42=4, "Inconnu", IF($J42=99, "Surveillance", F42)), 0),"Non requis") -> Non requis | P42: =IF(INTRO!$E$42="Endémique", IF($J42>1, IF($J42=4, "Inconnu", IF($J42=99, "Surveillance", ROUND(D42*INTRO!$E$51,0))), 0),"Non requis") -> Non requis | Q42: =IF(INTRO!$E$42="Endémique", IF($J42>1, IF($J42=4, "Inconnu", IF($J42=99, "Surveillance", SUM($N42:$P42))), 0),"Non requis") -> Non requis | R42: 2089 | S42: 5626 | T42: 10167 | U42: 17882 | V42: 0 | W42: 1 | X42: 0 | Y42: 1 | Z42: MDA3 (IVM) | AA42: T2 (PZQ) | AH42: 29998 | AI42: Kangaba | AK42: ='MDA3'!O42 -> 55256 | AL42: ='T2'!S42 -> 42867 | AO42: =_xlfn.XLOOKUP($AH42,[1]D_Projections!$F$5:$F$79,[1]D_Projections!G$5:G$79) -> 2 | AP42: =_xlfn.XLOOKUP($AH42,[1]D_Projections!$F$5:$F$79,[1]D_Projections!H$5:H$79) -> 2157 | AQ42: =_xlfn.XLOOKUP($AH42,[1]D_Projections!$F$5:$F$79,[1]D_Projections!I$5:I$79) -> 5810 | AR42: =_xlfn.XLOOKUP($AH42,[1]D_Projections!$F$5:$F$79,[1]D_Projections!J$5:J$79) -> 10499 | AT42: 2089 | AU42: 5626 | AV42: 10167
A43: =IF(INTRO!$E$34<>0,INTRO!$E$34,"") -> Mali | B43: Koulikoro | C43: Kati | D43: 807444.874 | E43: =IF(INTRO!$E$48="","",ROUND($D43*INTRO!$E$48,0)) -> 121117 | F43: =IF(INTRO!$E$49="","",ROUND($D43*INTRO!$E$49,0)) -> 230122 | G43: =IF(INTRO!$E$50="","",ROUND($D43*INTRO!$E$50,0)) -> 415834 | H43: 99 | I43: 1 | J43: 0 | K43: 21 | M43: =IF(INTRO!$E$40="Endémique", IF($I43>0, IF($I43=4,"Inconnu",IF($I43=99,"Interrompu", $D43)), 0),"Non requis") -> 807444.874 | N43: =IF(INTRO!$E$42="Endémique", IF($J43>1, IF($J43=4, "Inconnu", IF($J43=99, "Surveillance", E43)), 0),"Non requis") -> Non requis | O43: =IF(INTRO!$E$42="Endémique", IF($J43>1, IF($J43=4, "Inconnu", IF($J43=99, "Surveillance", F43)), 0),"Non requis") -> Non requis | P43: =IF(INTRO!$E$42="Endémique", IF($J43>1, IF($J43=4, "Inconnu", IF($J43=99, "Surveillance", ROUND(D43*INTRO!$E$51,0))), 0),"Non requis") -> Non requis | Q43: =IF(INTRO!$E$42="Endémique", IF($J43>1, IF($J43=4, "Inconnu", IF($J43=99, "Surveillance", SUM($N43:$P43))), 0),"Non requis") -> Non requis | R43: 29075 | S43: 78324 | T43: 141530 | U43: 248929 | V43: 0 | W43: 1 | X43: 0 | Y43: 1 | Z43: MDA3 (IVM) | AA43: T2 (PZQ) | AH43: 29999 | AI43: Kati | AK43: ='MDA3'!O43 -> 242790 | AL43: ='T2'!S43 -> 71599 | AO43: =_xlfn.XLOOKUP($AH43,[1]D_Projections!$F$5:$F$79,[1]D_Projections!G$5:G$79) -> 21 | AP43: =_xlfn.XLOOKUP($AH43,[1]D_Projections!$F$5:$F$79,[1]D_Projections!H$5:H$79) -> 30024 | AQ43: =_xlfn.XLOOKUP($AH43,[1]D_Projections!$F$5:$F$79,[1]D_Projections!I$5:I$79) -> 80880 | AR43: =_xlfn.XLOOKUP($AH43,[1]D_Projections!$F$5:$F$79,[1]D_Projections!J$5:J$79) -> 146148 | AT43: 29075 | AU43: 78324 | AV43: 141530
A44: =IF(INTRO!$E$34<>0,INTRO!$E$34,"") -> Mali | B44: Koulikoro | C44: Kolokani | D44: 376365.1952 | E44: =IF(INTRO!$E$48="","",ROUND($D44*INTRO!$E$48,0)) -> 56455 | F44: =IF(INTRO!$E$49="","",ROUND($D44*INTRO!$E$49,0)) -> 107264 | G44: =IF(INTRO!$E$50="","",ROUND($D44*INTRO!$E$50,0)) -> 193828 | H44: 99 | I44: 1 | J44: 0 | K44: 2 | M44: =IF(INTRO!$E$40="Endémique", IF($I44>0, IF($I44=4,"Inconnu",IF($I44=99,"Interrompu", $D44)), 0),"Non requis") -> 376365.1952 | N44: =IF(INTRO!$E$42="Endémique", IF($J44>1, IF($J44=4, "Inconnu", IF($J44=99, "Surveillance", E44)), 0),"Non requis") -> Non requis | O44: =IF(INTRO!$E$42="Endémique", IF($J44>1, IF($J44=4, "Inconnu", IF($J44=99, "Surveillance", F44)), 0),"Non requis") -> Non requis | P44: =IF(INTRO!$E$42="Endémique", IF($J44>1, IF($J44=4, "Inconnu", IF($J44=99, "Surveillance", ROUND(D44*INTRO!$E$51,0))), 0),"Non requis") -> Non requis | Q44: =IF(INTRO!$E$42="Endémique", IF($J44>1, IF($J44=4, "Inconnu", IF($J44=99, "Surveillance", SUM($N44:$P44))), 0),"Non requis") -> Non requis | R44: 10924 | S44: 29426 | T44: 53172 | U44: 93522 | V44: 0 | W44: 1 | X44: 0 | Y44: 1 | Z44: MDA3 (IVM) | AA44: T2 (PZQ) | AH44: 30000 | AI44: Kolokani | AK44: ='MDA3'!O44 -> 110594 | AL44: ='T2'!S44 -> 28874 | AO44: =_xlfn.XLOOKUP($AH44,[1]D_Projections!$F$5:$F$79,[1]D_Projections!G$5:G$79) -> 2 | AP44: =_xlfn.XLOOKUP($AH44,[1]D_Projections!$F$5:$F$79,[1]D_Projections!H$5:H$79) -> 11280 | AQ44: =_xlfn.XLOOKUP($AH44,[1]D_Projections!$F$5:$F$79,[1]D_Projections!I$5:I$79) -> 30386 | AR44: =_xlfn.XLOOKUP($AH44,[1]D_Projections!$F$5:$F$79,[1]D_Projections!J$5:J$79) -> 54907 | AT44: 10924 | AU44: 29426 | AV44: 53172
A45: =IF(INTRO!$E$34<>0,INTRO!$E$34,"") -> Mali | B45: Koulikoro | C45: Koulikoro | D45: 339656.3255 | E45: =IF(INTRO!$E$48="","",ROUND($D45*INTRO!$E$48,0)) -> 50948 | F45: =IF(INTRO!$E$49="","",ROUND($D45*INTRO!$E$49,0)) -> 96802 | G45: =IF(INTRO!$E$50="","",ROUND($D45*INTRO!$E$50,0)) -> 174923 | H45: 99 | I45: 1 | J45: 0 | K45: 21 | M45: =IF(INTRO!$E$40="Endémique", IF($I45>0, IF($I45=4,"Inconnu",IF($I45=99,"Interrompu", $D45)), 0),"Non requis") -> 339656.3255 | N45: =IF(INTRO!$E$42="Endémique", IF($J45>1, IF($J45=4, "Inconnu", IF($J45=99, "Surveillance", E45)), 0),"Non requis") -> Non requis | O45: =IF(INTRO!$E$42="Endémique", IF($J45>1, IF($J45=4, "Inconnu", IF($J45=99, "Surveillance", F45)), 0),"Non requis") -> Non requis | P45: =IF(INTRO!$E$42="Endémique", IF($J45>1, IF($J45=4, "Inconnu", IF($J45=99, "Surveillance", ROUND(D45*INTRO!$E$51,0))), 0),"Non requis") -> Non requis | Q45: =IF(INTRO!$E$42="Endémique", IF($J45>1, IF($J45=4, "Inconnu", IF($J45=99, "Surveillance", SUM($N45:$P45))), 0),"Non requis") -> Non requis | R45: 11648 | S45: 31377 | T45: 56696 | U45: 99721 | V45: 0 | W45: 1 | X45: 0 | Y45: 1 | Z45: MDA3 (IVM) | AA45: T2 (PZQ) | AH45: 30001 | AI45: Koulikoro | AK45: ='MDA3'!O45 -> 90848 | AL45: ='T2'!S45 -> 66641 | AO45: =_xlfn.XLOOKUP($AH45,[1]D_Projections!$F$5:$F$79,[1]D_Projections!G$5:G$79) -> 21 | AP45: =_xlfn.XLOOKUP($AH45,[1]D_Projections!$F$5:$F$79,[1]D_Projections!H$5:H$79) -> 12028 | AQ45: =_xlfn.XLOOKUP($AH45,[1]D_Projections!$F$5:$F$79,[1]D_Projections!I$5:I$79) -> 32401 | AR45: =_xlfn.XLOOKUP($AH45,[1]D_Projections!$F$5:$F$79,[1]D_Projections!J$5:J$79) -> 58546 | AT45: 11648 | AU45: 31377 | AV45: 56696
A46: =IF(INTRO!$E$34<>0,INTRO!$E$34,"") -> Mali | B46: Koulikoro | C46: Nara | D46: 390960.9476 | E46: =IF(INTRO!$E$48="","",ROUND($D46*INTRO!$E$48,0)) -> 58644 | F46: =IF(INTRO!$E$49="","",ROUND($D46*INTRO!$E$49,0)) -> 111424 | G46: =IF(INTRO!$E$50="","",ROUND($D46*INTRO!$E$50,0)) -> 201345 | H46: 99 | I46: 0 | J46: 0 | K46: 3 | M46: =IF(INTRO!$E$40="Endémique", IF($I46>0, IF($I46=4,"Inconnu",IF($I46=99,"Interrompu", $D46)), 0),"Non requis") -> 0 | N46: =IF(INTRO!$E$42="Endémique", IF($J46>1, IF($J46=4, "Inconnu", IF($J46=99, "Surveillance", E46)), 0),"Non requis") -> Non requis | O46: =IF(INTRO!$E$42="Endémique", IF($J46>1, IF($J46=4, "Inconnu", IF($J46=99, "Surveillance", F46)), 0),"Non requis") -> Non requis | P46: =IF(INTRO!$E$42="Endémique", IF($J46>1, IF($J46=4, "Inconnu", IF($J46=99, "Surveillance", ROUND(D46*INTRO!$E$51,0))), 0),"Non requis") -> Non requis | Q46: =IF(INTRO!$E$42="Endémique", IF($J46>1, IF($J46=4, "Inconnu", IF($J46=99, "Surveillance", SUM($N46:$P46))), 0),"Non requis") -> Non requis | R46: 8590 | S46: 23144 | T46: 41820 | U46: 73554 | V46: 0 | W46: 0 | X46: 0 | Y46: 1 | AA46: T2 (PZQ) | AH46: 30002 | AI46: Nara | AK46: ='MDA3'!O46 -> 0 | AL46: ='T2'!S46 -> 24312 | AO46: =_xlfn.XLOOKUP($AH46,[1]D_Projections!$F$5:$F$79,[1]D_Projections!G$5:G$79) -> 3 | AP46: =_xlfn.XLOOKUP($AH46,[1]D_Projections!$F$5:$F$79,[1]D_Projections!H$5:H$79) -> 8870 | AQ46: =_xlfn.XLOOKUP($AH46,[1]D_Projections!$F$5:$F$79,[1]D_Projections!I$5:I$79) -> 23899 | AR46: =_xlfn.XLOOKUP($AH46,[1]D_Projections!$F$5:$F$79,[1]D_Projections!J$5:J$79) -> 43185 | AT46: 8590 | AU46: 23144 | AV46: 41820
A47: =IF(INTRO!$E$34<>0,INTRO!$E$34,"") -> Mali | B47: Koulikoro | C47: Ouelessebougou | D47: 320353.0969 | E47: =IF(INTRO!$E$48="","",ROUND($D47*INTRO!$E$48,0)) -> 48053 | F47: =IF(INTRO!$E$49="","",ROUND($D47*INTRO!$E$49,0)) -> 91301 | G47: =IF(INTRO!$E$50="","",ROUND($D47*INTRO!$E$50,0)) -> 164982 | H47: 99 | I47: 1 | J47: 0 | K47: 21 | M47: =IF(INTRO!$E$40="Endémique", IF($I47>0, IF($I47=4,"Inconnu",IF($I47=99,"Interrompu", $D47)), 0),"Non requis") -> 320353.0969 | N47: =IF(INTRO!$E$42="Endémique", IF($J47>1, IF($J47=4, "Inconnu", IF($J47=99, "Surveillance", E47)), 0),"Non requis") -> Non requis | O47: =IF(INTRO!$E$42="Endémique", IF($J47>1, IF($J47=4, "Inconnu", IF($J47=99, "Surveillance", F47)), 0),"Non requis") -> Non requis | P47: =IF(INTRO!$E$42="Endémique", IF($J47>1, IF($J47=4, "Inconnu", IF($J47=99, "Surveillance", ROUND(D47*INTRO!$E$51,0))), 0),"Non requis") -> Non requis | Q47: =IF(INTRO!$E$42="Endémique", IF($J47>1, IF($J47=4, "Inconnu", IF($J47=99, "Surveillance", SUM($N47:$P47))), 0),"Non requis") -> Non requis | R47: 9438 | S47: 25424 | T47: 45942 | U47: 80804 | V47: 0 | W47: 1 | X47: 0 | Y47: 1 | Z47: MDA3 (IVM) | AA47: T2 (PZQ) | AH47: 30003 | AI47: Ouelessebougou | AK47: ='MDA3'!O47 -> 75870 | AL47: ='T2'!S47 -> 63532 | AO47: =_xlfn.XLOOKUP($AH47,[1]D_Projections!$F$5:$F$79,[1]D_Projections!G$5:G$79) -> 21 | AP47: =_xlfn.XLOOKUP($AH47,[1]D_Projections!$F$5:$F$79,[1]D_Projections!H$5:H$79) -> 9746 | AQ47: =_xlfn.XLOOKUP($AH47,[1]D_Projections!$F$5:$F$79,[1]D_Projections!I$5:I$79) -> 26254 | AR47: =_xlfn.XLOOKUP($AH47,[1]D_Projections!$F$5:$F$79,[1]D_Projections!J$5:J$79) -> 47441 | AT47: 9438 | AU47: 25424 | AV47: 45942
A48: =IF(INTRO!$E$34<>0,INTRO!$E$34,"") -> Mali | B48: Mopti | C48: Bandiagara | D48: 510389.8134 | E48: =IF(INTRO!$E$48="","",ROUND($D48*INTRO!$E$48,0)) -> 76558 | F48: =IF(INTRO!$E$49="","",ROUND($D48*INTRO!$E$49,0)) -> 145461 | G48: =IF(INTRO!$E$50="","",ROUND($D48*INTRO!$E$50,0)) -> 262851 | H48: 99 | I48: 0 | J48: 0 | K48: 31 | M48: =IF(INTRO!$E$40="Endémique", IF($I48>0, IF($I48=4,"Inconnu",IF($I48=99,"Interrompu", $D48)), 0),"Non requis") -> 0 | N48: =IF(INTRO!$E$42="Endémique", IF($J48>1, IF($J48=4, "Inconnu", IF($J48=99, "Surveillance", E48)), 0),"Non requis") -> Non requis | O48: =IF(INTRO!$E$42="Endémique", IF($J48>1, IF($J48=4, "Inconnu", IF($J48=99, "Surveillance", F48)), 0),"Non requis") -> Non requis | P48: =IF(INTRO!$E$42="Endémique", IF($J48>1, IF($J48=4, "Inconnu", IF($J48=99, "Surveillance", ROUND(D48*INTRO!$E$51,0))), 0),"Non requis") -> Non requis | Q48: =IF(INTRO!$E$42="Endémique", IF($J48>1, IF($J48=4, "Inconnu", IF($J48=99, "Surveillance", SUM($N48:$P48))), 0),"Non requis") -> Non requis | R48: 53375 | S48: 143790 | T48: 259828 | U48: 456993 | V48: 0 | W48: 0 | X48: 0 | Y48: 1 | AA48: T2 (PZQ) | AH48: 30004 | AI48: Bandiagara | AK48: ='MDA3'!O48 -> 0 | AL48: ='T2'!S48 -> 149665 | AO48: =_xlfn.XLOOKUP($AH48,[1]D_Projections!$F$5:$F$79,[1]D_Projections!G$5:G$79) -> 31 | AP48: =_xlfn.XLOOKUP($AH48,[1]D_Projections!$F$5:$F$79,[1]D_Projections!H$5:H$79) -> 55117 | AQ48: =_xlfn.XLOOKUP($AH48,[1]D_Projections!$F$5:$F$79,[1]D_Projections!I$5:I$79) -> 148482 | AR48: =_xlfn.XLOOKUP($AH48,[1]D_Projections!$F$5:$F$79,[1]D_Projections!J$5:J$79) -> 268306 | AT48: 53375 | AU48: 143790 | AV48: 259828
A49: =IF(INTRO!$E$34<>0,INTRO!$E$34,"") -> Mali | B49: Mopti | C49: Bankass | D49: 422876.4774 | E49: =IF(INTRO!$E$48="","",ROUND($D49*INTRO!$E$48,0)) -> 63431 | F49: =IF(INTRO!$E$49="","",ROUND($D49*INTRO!$E$49,0)) -> 120520 | G49: =IF(INTRO!$E$50="","",ROUND($D49*INTRO!$E$50,0)) -> 217781 | H49: 99 | I49: 0 | J49: 0 | K49: 31 | M49: =IF(INTRO!$E$40="Endémique", IF($I49>0, IF($I49=4,"Inconnu",IF($I49=99,"Interrompu", $D49)), 0),"Non requis") -> 0 | N49: =IF(INTRO!$E$42="Endémique", IF($J49>1, IF($J49=4, "Inconnu", IF($J49=99, "Surveillance", E49)), 0),"Non requis") -> Non requis | O49: =IF(INTRO!$E$42="Endémique", IF($J49>1, IF($J49=4, "Inconnu", IF($J49=99, "Surveillance", F49)), 0),"Non requis") -> Non requis | P49: =IF(INTRO!$E$42="Endémique", IF($J49>1, IF($J49=4, "Inconnu", IF($J49=99, "Surveillance", ROUND(D49*INTRO!$E$51,0))), 0),"Non requis") -> Non requis | Q49: =IF(INTRO!$E$42="Endémique", IF($J49>1, IF($J49=4, "Inconnu", IF($J49=99, "Surveillance", SUM($N49:$P49))), 0),"Non requis") -> Non requis | R49: 44914 | S49: 120979 | T49: 218617 | U49: 384510 | V49: 0 | W49: 0 | X49: 0 | Y49: 1 | AA49: T2 (PZQ) | AH49: 30005 | AI49: Bankass | AK49: ='MDA3'!O49 -> 0 | AL49: ='T2'!S49 -> 79399 | AO49: =_xlfn.XLOOKUP($AH49,[1]D_Projections!$F$5:$F$79,[1]D_Projections!G$5:G$79) -> 31 | AP49: =_xlfn.XLOOKUP($AH49,[1]D_Projections!$F$5:$F$79,[1]D_Projections!H$5:H$79) -> 46380 | AQ49: =_xlfn.XLOOKUP($AH49,[1]D_Projections!$F$5:$F$79,[1]D_Projections!I$5:I$79) -> 124927 | AR49: =_xlfn.XLOOKUP($AH49,[1]D_Projections!$F$5:$F$79,[1]D_Projections!J$5:J$79) -> 225751 | AT49: 44914 | AU49: 120979 | AV49: 218617
A50: =IF(INTRO!$E$34<>0,INTRO!$E$34,"") -> Mali | B50: Mopti | C50: Djenne | D50: 332688.4878 | E50: =IF(INTRO!$E$48="","",ROUND($D50*INTRO!$E$48,0)) -> 49903 | F50: =IF(INTRO!$E$49="","",ROUND($D50*INTRO!$E$49,0)) -> 94816 | G50: =IF(INTRO!$E$50="","",ROUND($D50*INTRO!$E$50,0)) -> 171335 | H50: 99 | I50: 0 | J50: 0 | K50: 3 | M50: =IF(INTRO!$E$40="Endémique", IF($I50>0, IF($I50=4,"Inconnu",IF($I50=99,"Interrompu", $D50)), 0),"Non requis") -> 0 | N50: =IF(INTRO!$E$42="Endémique", IF($J50>1, IF($J50=4, "Inconnu", IF($J50=99, "Surveillance", E50)), 0),"Non requis") -> Non requis | O50: =IF(INTRO!$E$42="Endémique", IF($J50>1, IF($J50=4, "Inconnu", IF($J50=99, "Surveillance", F50)), 0),"Non requis") -> Non requis | P50: =IF(INTRO!$E$42="Endémique", IF($J50>1, IF($J50=4, "Inconnu", IF($J50=99, "Surveillance", ROUND(D50*INTRO!$E$51,0))), 0),"Non requis") -> Non requis | Q50: =IF(INTRO!$E$42="Endémique", IF($J50>1, IF($J50=4, "Inconnu", IF($J50=99, "Surveillance", SUM($N50:$P50))), 0),"Non requis") -> Non requis | R50: 34794 | S50: 93719 | T50: 169355 | U50: 297868 | V50: 0 | W50: 0 | X50: 0 | Y50: 1 | AA50: T2 (PZQ) | AH50: 30006 | AI50: Djenne | AK50: ='MDA3'!O50 -> 0 | AL50: ='T2'!S50 -> 79677 | AO50: =_xlfn.XLOOKUP($AH50,[1]D_Projections!$F$5:$F$79,[1]D_Projections!G$5:G$79) -> 3 | AP50: =_xlfn.XLOOKUP($AH50,[1]D_Projections!$F$5:$F$79,[1]D_Projections!H$5:H$79) -> 35929 | AQ50: =_xlfn.XLOOKUP($AH50,[1]D_Projections!$F$5:$F$79,[1]D_Projections!I$5:I$79) -> 96777 | AR50: =_xlfn.XLOOKUP($AH50,[1]D_Projections!$F$5:$F$79,[1]D_Projections!J$5:J$79) -> 174881 | AT50: 34794 | AU50: 93719 | AV50: 169355
A51: =IF(INTRO!$E$34<>0,INTRO!$E$34,"") -> Mali | B51: Mopti | C51: Douentza | D51: 397753.8379 | E51: =IF(INTRO!$E$48="","",ROUND($D51*INTRO!$E$48,0)) -> 59663 | F51: =IF(INTRO!$E$49="","",ROUND($D51*INTRO!$E$49,0)) -> 113360 | G51: =IF(INTRO!$E$50="","",ROUND($D51*INTRO!$E$50,0)) -> 204843 | H51: 99 | I51: 0 | J51: 0 | K51: 3 | M51: =IF(INTRO!$E$40="Endémique", IF($I51>0, IF($I51=4,"Inconnu",IF($I51=99,"Interrompu", $D51)), 0),"Non requis") -> 0 | N51: =IF(INTRO!$E$42="Endémique", IF($J51>1, IF($J51=4, "Inconnu", IF($J51=99, "Surveillance", E51)), 0),"Non requis") -> Non requis | O51: =IF(INTRO!$E$42="Endémique", IF($J51>1, IF($J51=4, "Inconnu", IF($J51=99, "Surveillance", F51)), 0),"Non requis") -> Non requis | P51: =IF(INTRO!$E$42="Endémique", IF($J51>1, IF($J51=4, "Inconnu", IF($J51=99, "Surveillance", ROUND(D51*INTRO!$E$51,0))), 0),"Non requis") -> Non requis | Q51: =IF(INTRO!$E$42="Endémique", IF($J51>1, IF($J51=4, "Inconnu", IF($J51=99, "Surveillance", SUM($N51:$P51))), 0),"Non requis") -> Non requis | R51: 33498 | S51: 90235 | T51: 163060 | U51: 286793 | V51: 0 | W51: 0 | X51: 0 | Y51: 1 | AA51: T2 (PZQ) | AH51: 30007 | AI51: Douentza | AK51: ='MDA3'!O51 -> 0 | AL51: ='T2'!S51 -> 89740 | AO51: =_xlfn.XLOOKUP($AH51,[1]D_Projections!$F$5:$F$79,[1]D_Projections!G$5:G$79) -> 3 | AP51: =_xlfn.XLOOKUP($AH51,[1]D_Projections!$F$5:$F$79,[1]D_Projections!H$5:H$79) -> 34591 | AQ51: =_xlfn.XLOOKUP($AH51,[1]D_Projections!$F$5:$F$79,[1]D_Projections!I$5:I$79) -> 93179 | AR51: =_xlfn.XLOOKUP($AH51,[1]D_Projections!$F$5:$F$79,[1]D_Projections!J$5:J$79) -> 168381 | AT51: 33498 | AU51: 90235 | AV51: 163060
A52: =IF(INTRO!$E$34<>0,INTRO!$E$34,"") -> Mali | B52: Mopti | C52: Koro | D52: 580983.7112 | E52: =IF(INTRO!$E$48="","",ROUND($D52*INTRO!$E$48,0)) -> 87148 | F52: =IF(INTRO!$E$49="","",ROUND($D52*INTRO!$E$49,0)) -> 165580 | G52: =IF(INTRO!$E$50="","",ROUND($D52*INTRO!$E$50,0)) -> 299207 | H52: 99 | I52: 0 | J52: 0 | K52: 3 | M52: =IF(INTRO!$E$40="Endémique", IF($I52>0, IF($I52=4,"Inconnu",IF($I52=99,"Interrompu", $D52)), 0),"Non requis") -> 0 | N52: =IF(INTRO!$E$42="Endémique", IF($J52>1, IF($J52=4, "Inconnu", IF($J52=99, "Surveillance", E52)), 0),"Non requis") -> Non requis | O52: =IF(INTRO!$E$42="Endémique", IF($J52>1, IF($J52=4, "Inconnu", IF($J52=99, "Surveillance", F52)), 0),"Non requis") -> Non requis | P52: =IF(INTRO!$E$42="Endémique", IF($J52>1, IF($J52=4, "Inconnu", IF($J52=99, "Surveillance", ROUND(D52*INTRO!$E$51,0))), 0),"Non requis") -> Non requis | Q52: =IF(INTRO!$E$42="Endémique", IF($J52>1, IF($J52=4, "Inconnu", IF($J52=99, "Surveillance", SUM($N52:$P52))), 0),"Non requis") -> Non requis | R52: 58303 | S52: 157058 | T52: 283807 | U52: 499168 | V52: 0 | W52: 0 | X52: 0 | Y52: 1 | AA52: T2 (PZQ) | AH52: 30008 | AI52: Koro | AK52: ='MDA3'!O52 -> 0 | AL52: ='T2'!S52 -> 94575 | AO52: =_xlfn.XLOOKUP($AH52,[1]D_Projections!$F$5:$F$79,[1]D_Projections!G$5:G$79) -> 3 | AP52: =_xlfn.XLOOKUP($AH52,[1]D_Projections!$F$5:$F$79,[1]D_Projections!H$5:H$79) -> 60205 | AQ52: =_xlfn.XLOOKUP($AH52,[1]D_Projections!$F$5:$F$79,[1]D_Projections!I$5:I$79) -> 162183 | AR52: =_xlfn.XLOOKUP($AH52,[1]D_Projections!$F$5:$F$79,[1]D_Projections!J$5:J$79) -> 293068 | AT52: 58303 | AU52: 157058 | AV52: 283807
A53: =IF(INTRO!$E$34<>0,INTRO!$E$34,"") -> Mali | B53: Mopti | C53: Mopti | D53: 591526.6978 | E53: =IF(INTRO!$E$48="","",ROUND($D53*INTRO!$E$48,0)) -> 88729 | F53: =IF(INTRO!$E$49="","",ROUND($D53*INTRO!$E$49,0)) -> 168585 | G53: =IF(INTRO!$E$50="","",ROUND($D53*INTRO!$E$50,0)) -> 304636 | H53: 99 | I53: 0 | J53: 0 | K53: 31 | M53: =IF(INTRO!$E$40="Endémique", IF($I53>0, IF($I53=4,"Inconnu",IF($I53=99,"Interrompu", $D53)), 0),"Non requis") -> 0 | N53: =IF(INTRO!$E$42="Endémique", IF($J53>1, IF($J53=4, "Inconnu", IF($J53=99, "Surveillance", E53)), 0),"Non requis") -> Non requis | O53: =IF(INTRO!$E$42="Endémique", IF($J53>1, IF($J53=4, "Inconnu", IF($J53=99, "Surveillance", F53)), 0),"Non requis") -> Non requis | P53: =IF(INTRO!$E$42="Endémique", IF($J53>1, IF($J53=4, "Inconnu", IF($J53=99, "Surveillance", ROUND(D53*INTRO!$E$51,0))), 0),"Non requis") -> Non requis | Q53: =IF(INTRO!$E$42="Endémique", IF($J53>1, IF($J53=4, "Inconnu", IF($J53=99, "Surveillance", SUM($N53:$P53))), 0),"Non requis") -> Non requis | R53: 62828 | S53: 169234 | T53: 305805 | U53: 537867 | V53: 0 | W53: 0 | X53: 0 | Y53: 1 | AA53: T2 (PZQ) | AH53: 30009 | AI53: Mopti | AK53: ='MDA3'!O53 -> 0 | AL53: ='T2'!S53 -> 111510 | AO53: =_xlfn.XLOOKUP($AH53,[1]D_Projections!$F$5:$F$79,[1]D_Projections!G$5:G$79) -> 31 | AP53: =_xlfn.XLOOKUP($AH53,[1]D_Projections!$F$5:$F$79,[1]D_Projections!H$5:H$79) -> 64878 | AQ53: =_xlfn.XLOOKUP($AH53,[1]D_Projections!$F$5:$F$79,[1]D_Projections!I$5:I$79) -> 174756 | AR53: =_xlfn.XLOOKUP($AH53,[1]D_Projections!$F$5:$F$79,[1]D_Projections!J$5:J$79) -> 315784 | AT53: 62828 | AU53: 169234 | AV53: 305805
A54: =IF(INTRO!$E$34<>0,INTRO!$E$34,"") -> Mali | B54: Mopti | C54: Teninkou | D54: 262673.0966 | E54: =IF(INTRO!$E$48="","",ROUND($D54*INTRO!$E$48,0)) -> 39401 | F54: =IF(INTRO!$E$49="","",ROUND($D54*INTRO!$E$49,0)) -> 74862 | G54: =IF(INTRO!$E$50="","",ROUND($D54*INTRO!$E$50,0)) -> 135277 | H54: 99 | I54: 0 | J54: 0 | K54: 3 | M54: =IF(INTRO!$E$40="Endémique", IF($I54>0, IF($I54=4,"Inconnu",IF($I54=99,"Interrompu", $D54)), 0),"Non requis") -> 0 | N54: =IF(INTRO!$E$42="Endémique", IF($J54>1, IF($J54=4, "Inconnu", IF($J54=99, "Surveillance", E54)), 0),"Non requis") -> Non requis | O54: =IF(INTRO!$E$42="Endémique", IF($J54>1, IF($J54=4, "Inconnu", IF($J54=99, "Surveillance", F54)), 0),"Non requis") -> Non requis | P54: =IF(INTRO!$E$42="Endémique", IF($J54>1, IF($J54=4, "Inconnu", IF($J54=99, "Surveillance", ROUND(D54*INTRO!$E$51,0))), 0),"Non requis") -> Non requis | Q54: =IF(INTRO!$E$42="Endémique", IF($J54>1, IF($J54=4, "Inconnu", IF($J54=99, "Surveillance", SUM($N54:$P54))), 0),"Non requis") -> Non requis | R54: 22990 | S54: 61931 | T54: 111910 | U54: 196831 | V54: 0 | W54: 0 | X54: 0 | Y54: 1 | AA54: T2 (PZQ) | AH54: 30010 | AI54: Teninkou | AK54: ='MDA3'!O54 -> 0 | AL54: ='T2'!S54 -> 10016 | AO54: =_xlfn.XLOOKUP($AH54,[1]D_Projections!$F$5:$F$79,[1]D_Projections!G$5:G$79) -> 3 | AP54: =_xlfn.XLOOKUP($AH54,[1]D_Projections!$F$5:$F$79,[1]D_Projections!H$5:H$79) -> 23740 | AQ54: =_xlfn.XLOOKUP($AH54,[1]D_Projections!$F$5:$F$79,[1]D_Projections!I$5:I$79) -> 63952 | AR54: =_xlfn.XLOOKUP($AH54,[1]D_Projections!$F$5:$F$79,[1]D_Projections!J$5:J$79) -> 115562 | AT54: 22990 | AU54: 61931 | AV54: 111910
A55: =IF(INTRO!$E$34<>0,INTRO!$E$34,"") -> Mali | B55: Mopti | C55: Youwarou | D55: 171381.7587 | E55: =IF(INTRO!$E$48="","",ROUND($D55*INTRO!$E$48,0)) -> 25707 | F55: =IF(INTRO!$E$49="","",ROUND($D55*INTRO!$E$49,0)) -> 48844 | G55: =IF(INTRO!$E$50="","",ROUND($D55*INTRO!$E$50,0)) -> 88262 | H55: 99 | I55: 0 | J55: 0 | K55: 2 | M55: =IF(INTRO!$E$40="Endémique", IF($I55>0, IF($I55=4,"Inconnu",IF($I55=99,"Interrompu", $D55)), 0),"Non requis") -> 0 | N55: =IF(INTRO!$E$42="Endémique", IF($J55>1, IF($J55=4, "Inconnu", IF($J55=99, "Surveillance", E55)), 0),"Non requis") -> Non requis | O55: =IF(INTRO!$E$42="Endémique", IF($J55>1, IF($J55=4, "Inconnu", IF($J55=99, "Surveillance", F55)), 0),"Non requis") -> Non requis | P55: =IF(INTRO!$E$42="Endémique", IF($J55>1, IF($J55=4, "Inconnu", IF($J55=99, "Surveillance", ROUND(D55*INTRO!$E$51,0))), 0),"Non requis") -> Non requis | Q55: =IF(INTRO!$E$42="Endémique", IF($J55>1, IF($J55=4, "Inconnu", IF($J55=99, "Surveillance", SUM($N55:$P55))), 0),"Non requis") -> Non requis | R55: 18202 | S55: 49033 | T55: 88601 | U55: 155836 | V55: 0 | W55: 0 | X55: 0 | Y55: 0 | AH55: 30011 | AI55: Youwarou | AK55: ='MDA3'!O55 -> 0 | AL55: ='T2'!S55 -> 0 | AO55: =_xlfn.XLOOKUP($AH55,[1]D_Projections!$F$5:$F$79,[1]D_Projections!G$5:G$79) -> 2 | AP55: =_xlfn.XLOOKUP($AH55,[1]D_Projections!$F$5:$F$79,[1]D_Projections!H$5:H$79) -> 18796 | AQ55: =_xlfn.XLOOKUP($AH55,[1]D_Projections!$F$5:$F$79,[1]D_Projections!I$5:I$79) -> 50633 | AR55: =_xlfn.XLOOKUP($AH55,[1]D_Projections!$F$5:$F$79,[1]D_Projections!J$5:J$79) -> 91492 | AT55: 18202 | AU55: 49033 | AV55: 88601
A56: =IF(INTRO!$E$34<>0,INTRO!$E$34,"") -> Mali | B56: Segou | C56: Barouéli | D56: 327262.9765 | E56: =IF(INTRO!$E$48="","",ROUND($D56*INTRO!$E$48,0)) -> 49089 | F56: =IF(INTRO!$E$49="","",ROUND($D56*INTRO!$E$49,0)) -> 93270 | G56: =IF(INTRO!$E$50="","",ROUND($D56*INTRO!$E$50,0)) -> 168540 | H56: 99 | I56: 0 | J56: 0 | K56: 21 | M56: =IF(INTRO!$E$40="Endémique", IF($I56>0, IF($I56=4,"Inconnu",IF($I56=99,"Interrompu", $D56)), 0),"Non requis") -> 0 | N56: =IF(INTRO!$E$42="Endémique", IF($J56>1, IF($J56=4, "Inconnu", IF($J56=99, "Surveillance", E56)), 0),"Non requis") -> Non requis | O56: =IF(INTRO!$E$42="Endémique", IF($J56>1, IF($J56=4, "Inconnu", IF($J56=99, "Surveillance", F56)), 0),"Non requis") -> Non requis | P56: =IF(INTRO!$E$42="Endémique", IF($J56>1, IF($J56=4, "Inconnu", IF($J56=99, "Surveillance", ROUND(D56*INTRO!$E$51,0))), 0),"Non requis") -> Non requis | Q56: =IF(INTRO!$E$42="Endémique", IF($J56>1, IF($J56=4, "Inconnu", IF($J56=99, "Surveillance", SUM($N56:$P56))), 0),"Non requis") -> Non requis | R56: 628 | S56: 1690 | T56: 3053 | U56: 5371 | V56: 0 | W56: 0 | X56: 0 | Y56: 1 | AA56: T2 (PZQ) | AH56: 30012 | AI56: Barouéli | AK56: ='MDA3'!O56 -> 0 | AL56: ='T2'!S56 -> 4209 | AO56: =_xlfn.XLOOKUP($AH56,[1]D_Projections!$F$5:$F$79,[1]D_Projections!G$5:G$79) -> 21 | AP56: =_xlfn.XLOOKUP($AH56,[1]D_Projections!$F$5:$F$79,[1]D_Projections!H$5:H$79) -> 648 | AQ56: =_xlfn.XLOOKUP($AH56,[1]D_Projections!$F$5:$F$79,[1]D_Projections!I$5:I$79) -> 1745 | AR56: =_xlfn.XLOOKUP($AH56,[1]D_Projections!$F$5:$F$79,[1]D_Projections!J$5:J$79) -> 3153 | AT56: 628 | AU56: 1690 | AV56: 3053
A57: =IF(INTRO!$E$34<>0,INTRO!$E$34,"") -> Mali | B57: Segou | C57: Bla | D57: 456067.0829 | E57: =IF(INTRO!$E$48="","",ROUND($D57*INTRO!$E$48,0)) -> 68410 | F57: =IF(INTRO!$E$49="","",ROUND($D57*INTRO!$E$49,0)) -> 129979 | G57: =IF(INTRO!$E$50="","",ROUND($D57*INTRO!$E$50,0)) -> 234875 | H57: 99 | I57: 0 | J57: 0 | K57: 3 | M57: =IF(INTRO!$E$40="Endémique", IF($I57>0, IF($I57=4,"Inconnu",IF($I57=99,"Interrompu", $D57)), 0),"Non requis") -> 0 | N57: =IF(INTRO!$E$42="Endémique", IF($J57>1, IF($J57=4, "Inconnu", IF($J57=99, "Surveillance", E57)), 0),"Non requis") -> Non requis | O57: =IF(INTRO!$E$42="Endémique", IF($J57>1, IF($J57=4, "Inconnu", IF($J57=99, "Surveillance", F57)), 0),"Non requis") -> Non requis | P57: =IF(INTRO!$E$42="Endémique", IF($J57>1, IF($J57=4, "Inconnu", IF($J57=99, "Surveillance", ROUND(D57*INTRO!$E$51,0))), 0),"Non requis") -> Non requis | Q57: =IF(INTRO!$E$42="Endémique", IF($J57>1, IF($J57=4, "Inconnu", IF($J57=99, "Surveillance", SUM($N57:$P57))), 0),"Non requis") -> Non requis | R57: 47528 | S57: 128031 | T57: 231352 | U57: 406911 | V57: 0 | W57: 0 | X57: 0 | Y57: 1 | AA57: T2 (PZQ) | AH57: 30013 | AI57: Bla | AK57: ='MDA3'!O57 -> 0 | AL57: ='T2'!S57 -> 119028 | AO57: =_xlfn.XLOOKUP($AH57,[1]D_Projections!$F$5:$F$79,[1]D_Projections!G$5:G$79) -> 3 | AP57: =_xlfn.XLOOKUP($AH57,[1]D_Projections!$F$5:$F$79,[1]D_Projections!H$5:H$79) -> 49079 | AQ57: =_xlfn.XLOOKUP($AH57,[1]D_Projections!$F$5:$F$79,[1]D_Projections!I$5:I$79) -> 132209 | AR57: =_xlfn.XLOOKUP($AH57,[1]D_Projections!$F$5:$F$79,[1]D_Projections!J$5:J$79) -> 238901 | AT57: 47528 | AU57: 128031 | AV57: 231352
A58: =IF(INTRO!$E$34<>0,INTRO!$E$34,"") -> Mali | B58: Segou | C58: Macina | D58: 381808.9526 | E58: =IF(INTRO!$E$48="","",ROUND($D58*INTRO!$E$48,0)) -> 57271 | F58: =IF(INTRO!$E$49="","",ROUND($D58*INTRO!$E$49,0)) -> 108816 | G58: =IF(INTRO!$E$50="","",ROUND($D58*INTRO!$E$50,0)) -> 196632 | H58: 99 | I58: 0 | J58: 0 | K58: 31 | M58: =IF(INTRO!$E$40="Endémique", IF($I58>0, IF($I58=4,"Inconnu",IF($I58=99,"Interrompu", $D58)), 0),"Non requis") -> 0 | N58: =IF(INTRO!$E$42="Endémique", IF($J58>1, IF($J58=4, "Inconnu", IF($J58=99, "Surveillance", E58)), 0),"Non requis") -> Non requis | O58: =IF(INTRO!$E$42="Endémique", IF($J58>1, IF($J58=4, "Inconnu", IF($J58=99, "Surveillance", F58)), 0),"Non requis") -> Non requis | P58: =IF(INTRO!$E$42="Endémique", IF($J58>1, IF($J58=4, "Inconnu", IF($J58=99, "Surveillance", ROUND(D58*INTRO!$E$51,0))), 0),"Non requis") -> Non requis | Q58: =IF(INTRO!$E$42="Endémique", IF($J58>1, IF($J58=4, "Inconnu", IF($J58=99, "Surveillance", SUM($N58:$P58))), 0),"Non requis") -> Non requis | R58: 40550 | S58: 109232 | T58: 197388 | U58: 347170 | V58: 0 | W58: 0 | X58: 0 | Y58: 1 | AA58: T2 (PZQ) | AH58: 30014 | AI58: Macina | AK58: ='MDA3'!O58 -> 0 | AL58: ='T2'!S58 -> 105981 | AO58: =_xlfn.XLOOKUP($AH58,[1]D_Projections!$F$5:$F$79,[1]D_Projections!G$5:G$79) -> 31 | AP58: =_xlfn.XLOOKUP($AH58,[1]D_Projections!$F$5:$F$79,[1]D_Projections!H$5:H$79) -> 41873 | AQ58: =_xlfn.XLOOKUP($AH58,[1]D_Projections!$F$5:$F$79,[1]D_Projections!I$5:I$79) -> 112796 | AR58: =_xlfn.XLOOKUP($AH58,[1]D_Projections!$F$5:$F$79,[1]D_Projections!J$5:J$79) -> 203829 | AT58: 40550 | AU58: 109232 | AV58: 197388
A59: =IF(INTRO!$E$34<>0,INTRO!$E$34,"") -> Mali | B59: Segou | C59: Markala | D59: 289002.1207 | E59: =IF(INTRO!$E$48="","",ROUND($D59*INTRO!$E$48,0)) -> 43350 | F59: =IF(INTRO!$E$49="","",ROUND($D59*INTRO!$E$49,0)) -> 82366 | G59: =IF(INTRO!$E$50="","",ROUND($D59*INTRO!$E$50,0)) -> 148836 | H59: 99 | I59: 0 | J59: 0 | K59: 3 | M59: =IF(INTRO!$E$40="Endémique", IF($I59>0, IF($I59=4,"Inconnu",IF($I59=99,"Interrompu", $D59)), 0),"Non requis") -> 0 | N59: =IF(INTRO!$E$42="Endémique", IF($J59>1, IF($J59=4, "Inconnu", IF($J59=99, "Surveillance", E59)), 0),"Non requis") -> Non requis | O59: =IF(INTRO!$E$42="Endémique", IF($J59>1, IF($J59=4, "Inconnu", IF($J59=99, "Surveillance", F59)), 0),"Non requis") -> Non requis | P59: =IF(INTRO!$E$42="Endémique", IF($J59>1, IF($J59=4, "Inconnu", IF($J59=99, "Surveillance", ROUND(D59*INTRO!$E$51,0))), 0),"Non requis") -> Non requis | Q59: =IF(INTRO!$E$42="Endémique", IF($J59>1, IF($J59=4, "Inconnu", IF($J59=99, "Surveillance", SUM($N59:$P59))), 0),"Non requis") -> Non requis | R59: 27553 | S59: 74212 | T59: 134106 | U59: 235871 | V59: 0 | W59: 0 | X59: 0 | Y59: 1 | AA59: T2 (PZQ) | AH59: 30015 | AI59: Markala | AK59: ='MDA3'!O59 -> 0 | AL59: ='T2'!S59 -> 80289 | AO59: =_xlfn.XLOOKUP($AH59,[1]D_Projections!$F$5:$F$79,[1]D_Projections!G$5:G$79) -> 3 | AP59: =_xlfn.XLOOKUP($AH59,[1]D_Projections!$F$5:$F$79,[1]D_Projections!H$5:H$79) -> 28452 | AQ59: =_xlfn.XLOOKUP($AH59,[1]D_Projections!$F$5:$F$79,[1]D_Projections!I$5:I$79) -> 76634 | AR59: =_xlfn.XLOOKUP($AH59,[1]D_Projections!$F$5:$F$79,[1]D_Projections!J$5:J$79) -> 138482 | AT59: 27553 | AU59: 74212 | AV59: 134106
A60: =IF(INTRO!$E$34<>0,INTRO!$E$34,"") -> Mali | B60: Segou | C60: Niono | D60: 587552.2827 | E60: =IF(INTRO!$E$48="","",ROUND($D60*INTRO!$E$48,0)) -> 88133 | F60: =IF(INTRO!$E$49="","",ROUND($D60*INTRO!$E$49,0)) -> 167452 | G60: =IF(INTRO!$E$50="","",ROUND($D60*INTRO!$E$50,0)) -> 302589 | H60: 99 | I60: 0 | J60: 0 | K60: 31 | M60: =IF(INTRO!$E$40="Endémique", IF($I60>0, IF($I60=4,"Inconnu",IF($I60=99,"Interrompu", $D60)), 0),"Non requis") -> 0 | N60: =IF(INTRO!$E$42="Endémique", IF($J60>1, IF($J60=4, "Inconnu", IF($J60=99, "Surveillance", E60)), 0),"Non requis") -> Non requis | O60: =IF(INTRO!$E$42="Endémique", IF($J60>1, IF($J60=4, "Inconnu", IF($J60=99, "Surveillance", F60)), 0),"Non requis") -> Non requis | P60: =IF(INTRO!$E$42="Endémique", IF($J60>1, IF($J60=4, "Inconnu", IF($J60=99, "Surveillance", ROUND(D60*INTRO!$E$51,0))), 0),"Non requis") -> Non requis | Q60: =IF(INTRO!$E$42="Endémique", IF($J60>1, IF($J60=4, "Inconnu", IF($J60=99, "Surveillance", SUM($N60:$P60))), 0),"Non requis") -> Non requis | R60: 62403 | S60: 168092 | T60: 303750 | U60: 534245 | V60: 0 | W60: 0 | X60: 0 | Y60: 1 | AA60: T2 (PZQ) | AH60: 30016 | AI60: Niono | AK60: ='MDA3'!O60 -> 0 | AL60: ='T2'!S60 -> 183188 | AO60: =_xlfn.XLOOKUP($AH60,[1]D_Projections!$F$5:$F$79,[1]D_Projections!G$5:G$79) -> 31 | AP60: =_xlfn.XLOOKUP($AH60,[1]D_Projections!$F$5:$F$79,[1]D_Projections!H$5:H$79) -> 64439 | AQ60: =_xlfn.XLOOKUP($AH60,[1]D_Projections!$F$5:$F$79,[1]D_Projections!I$5:I$79) -> 173577 | AR60: =_xlfn.XLOOKUP($AH60,[1]D_Projections!$F$5:$F$79,[1]D_Projections!J$5:J$79) -> 313662 | AT60: 62403 | AU60: 168092 | AV60: 303750
A61: =IF(INTRO!$E$34<>0,INTRO!$E$34,"") -> Mali | B61: Segou | C61: San | D61: 538462.9435 | E61: =IF(INTRO!$E$48="","",ROUND($D61*INTRO!$E$48,0)) -> 80769 | F61: =IF(INTRO!$E$49="","",ROUND($D61*INTRO!$E$49,0)) -> 153462 | G61: =IF(INTRO!$E$50="","",ROUND($D61*INTRO!$E$50,0)) -> 277308 | H61: 99 | I61: 0 | J61: 0 | K61: 3 | M61: =IF(INTRO!$E$40="Endémique", IF($I61>0, IF($I61=4,"Inconnu",IF($I61=99,"Interrompu", $D61)), 0),"Non requis") -> 0 | N61: =IF(INTRO!$E$42="Endémique", IF($J61>1, IF($J61=4, "Inconnu", IF($J61=99, "Surveillance", E61)), 0),"Non requis") -> Non requis | O61: =IF(INTRO!$E$42="Endémique", IF($J61>1, IF($J61=4, "Inconnu", IF($J61=99, "Surveillance", F61)), 0),"Non requis") -> Non requis | P61: =IF(INTRO!$E$42="Endémique", IF($J61>1, IF($J61=4, "Inconnu", IF($J61=99, "Surveillance", ROUND(D61*INTRO!$E$51,0))), 0),"Non requis") -> Non requis | Q61: =IF(INTRO!$E$42="Endémique", IF($J61>1, IF($J61=4, "Inconnu", IF($J61=99, "Surveillance", SUM($N61:$P61))), 0),"Non requis") -> Non requis | R61: 43593 | S61: 117421 | T61: 212187 | U61: 373201 | V61: 0 | W61: 0 | X61: 0 | Y61: 1 | AA61: T2 (PZQ) | AH61: 30017 | AI61: San | AK61: ='MDA3'!O61 -> 0 | AL61: ='T2'!S61 -> 92854 | AO61: =_xlfn.XLOOKUP($AH61,[1]D_Projections!$F$5:$F$79,[1]D_Projections!G$5:G$79) -> 3 | AP61: =_xlfn.XLOOKUP($AH61,[1]D_Projections!$F$5:$F$79,[1]D_Projections!H$5:H$79) -> 45016 | AQ61: =_xlfn.XLOOKUP($AH61,[1]D_Projections!$F$5:$F$79,[1]D_Projections!I$5:I$79) -> 121253 | AR61: =_xlfn.XLOOKUP($AH61,[1]D_Projections!$F$5:$F$79,[1]D_Projections!J$5:J$79) -> 219111 | AT61: 43593 | AU61: 117421 | AV61: 212187
A62: =IF(INTRO!$E$34<>0,INTRO!$E$34,"") -> Mali | B62: Segou | C62: Segou | D62: 822548.2953 | E62: =IF(INTRO!$E$48="","",ROUND($D62*INTRO!$E$48,0)) -> 123382 | F62: =IF(INTRO!$E$49="","",ROUND($D62*INTRO!$E$49,0)) -> 234426 | G62: =IF(INTRO!$E$50="","",ROUND($D62*INTRO!$E$50,0)) -> 423612 | H62: 99 | I62: 0 | J62: 0 | K62: 31 | M62: =IF(INTRO!$E$40="Endémique", IF($I62>0, IF($I62=4,"Inconnu",IF($I62=99,"Interrompu", $D62)), 0),"Non requis") -> 0 | N62: =IF(INTRO!$E$42="Endémique", IF($J62>1, IF($J62=4, "Inconnu", IF($J62=99, "Surveillance", E62)), 0),"Non requis") -> Non requis | O62: =IF(INTRO!$E$42="Endémique", IF($J62>1, IF($J62=4, "Inconnu", IF($J62=99, "Surveillance", F62)), 0),"Non requis") -> Non requis | P62: =IF(INTRO!$E$42="Endémique", IF($J62>1, IF($J62=4, "Inconnu", IF($J62=99, "Surveillance", ROUND(D62*INTRO!$E$51,0))), 0),"Non requis") -> Non requis | Q62: =IF(INTRO!$E$42="Endémique", IF($J62>1, IF($J62=4, "Inconnu", IF($J62=99, "Surveillance", SUM($N62:$P62))), 0),"Non requis") -> Non requis | R62: 84274 | S62: 227007 | T62: 410206 | U62: 721487 | V62: 0 | W62: 0 | X62: 0 | Y62: 1 | AA62: T2 (PZQ) | AH62: 30018 | AI62: Segou | AK62: ='MDA3'!O62 -> 0 | AL62: ='T2'!S62 -> 202538 | AO62: =_xlfn.XLOOKUP($AH62,[1]D_Projections!$F$5:$F$79,[1]D_Projections!G$5:G$79) -> 31 | AP62: =_xlfn.XLOOKUP($AH62,[1]D_Projections!$F$5:$F$79,[1]D_Projections!H$5:H$79) -> 87024 | AQ62: =_xlfn.XLOOKUP($AH62,[1]D_Projections!$F$5:$F$79,[1]D_Projections!I$5:I$79) -> 234414 | AR62: =_xlfn.XLOOKUP($AH62,[1]D_Projections!$F$5:$F$79,[1]D_Projections!J$5:J$79) -> 423592 | AT62: 84274 | AU62: 227007 | AV62: 410206
A63: =IF(INTRO!$E$34<>0,INTRO!$E$34,"") -> Mali | B63: Segou | C63: Tominian | D63: 353475.0115 | E63: =IF(INTRO!$E$48="","",ROUND($D63*INTRO!$E$48,0)) -> 53021 | F63: =IF(INTRO!$E$49="","",ROUND($D63*INTRO!$E$49,0)) -> 100740 | G63: =IF(INTRO!$E$50="","",ROUND($D63*INTRO!$E$50,0)) -> 182040 | H63: 99 | I63: 0 | J63: 0 | K63: 11 | M63: =IF(INTRO!$E$40="Endémique", IF($I63>0, IF($I63=4,"Inconnu",IF($I63=99,"Interrompu", $D63)), 0),"Non requis") -> 0 | N63: =IF(INTRO!$E$42="Endémique", IF($J63>1, IF($J63=4, "Inconnu", IF($J63=99, "Surveillance", E63)), 0),"Non requis") -> Non requis | O63: =IF(INTRO!$E$42="Endémique", IF($J63>1, IF($J63=4, "Inconnu", IF($J63=99, "Surveillance", F63)), 0),"Non requis") -> Non requis | P63: =IF(INTRO!$E$42="Endémique", IF($J63>1, IF($J63=4, "Inconnu", IF($J63=99, "Surveillance", ROUND(D63*INTRO!$E$51,0))), 0),"Non requis") -> Non requis | Q63: =IF(INTRO!$E$42="Endémique", IF($J63>1, IF($J63=4, "Inconnu", IF($J63=99, "Surveillance", SUM($N63:$P63))), 0),"Non requis") -> Non requis | R63: 0 | S63: 93940 | T63: 0 | U63: 93940 | V63: 0 | W63: 0 | X63: 0 | Y63: 1 | AA63: T2 (PZQ) | AH63: 30019 | AI63: Tominian | AK63: ='MDA3'!O63 -> 0 | AL63: ='T2'!S63 -> 92300 | AO63: =_xlfn.XLOOKUP($AH63,[1]D_Projections!$F$5:$F$79,[1]D_Projections!G$5:G$79) -> 11 | AP63: =_xlfn.XLOOKUP($AH63,[1]D_Projections!$F$5:$F$79,[1]D_Projections!H$5:H$79) -> 0 | AQ63: =_xlfn.XLOOKUP($AH63,[1]D_Projections!$F$5:$F$79,[1]D_Projections!I$5:I$79) -> 0 | AR63: =_xlfn.XLOOKUP($AH63,[1]D_Projections!$F$5:$F$79,[1]D_Projections!J$5:J$79) -> 0 | AT63: 0 | AU63: 0 | AV63: 0
A64: =IF(INTRO!$E$34<>0,INTRO!$E$34,"") -> Mali | B64: Sikasso | C64: Bougouni | D64: 742969.8367 | E64: =IF(INTRO!$E$48="","",ROUND($D64*INTRO!$E$48,0)) -> 111445 | F64: =IF(INTRO!$E$49="","",ROUND($D64*INTRO!$E$49,0)) -> 211746 | G64: =IF(INTRO!$E$50="","",ROUND($D64*INTRO!$E$50,0)) -> 382629 | H64: 99 | I64: 99 | J64: 0 | K64: 21 | M64: =IF(INTRO!$E$40="Endémique", IF($I64>0, IF($I64=4,"Inconnu",IF($I64=99,"Interrompu", $D64)), 0),"Non requis") -> Interrompu | N64: =IF(INTRO!$E$42="Endémique", IF($J64>1, IF($J64=4, "Inconnu", IF($J64=99, "Surveillance", E64)), 0),"Non requis") -> Non requis | O64: =IF(INTRO!$E$42="Endémique", IF($J64>1, IF($J64=4, "Inconnu", IF($J64=99, "Surveillance", F64)), 0),"Non requis") -> Non requis | P64: =IF(INTRO!$E$42="Endémique", IF($J64>1, IF($J64=4, "Inconnu", IF($J64=99, "Surveillance", ROUND(D64*INTRO!$E$51,0))), 0),"Non requis") -> Non requis | Q64: =IF(INTRO!$E$42="Endémique", IF($J64>1, IF($J64=4, "Inconnu", IF($J64=99, "Surveillance", SUM($N64:$P64))), 0),"Non requis") -> Non requis | R64: 77650 | S64: 209173 | T64: 377976 | U64: 664799 | V64: 0 | W64: 0 | X64: 0 | Y64: 1 | AA64: T2 (PZQ) | AH64: 30020 | AI64: Bougouni | AK64: ='MDA3'!O64 -> 0 | AL64: ='T2'!S64 -> 61849 | AO64: =_xlfn.XLOOKUP($AH64,[1]D_Projections!$F$5:$F$79,[1]D_Projections!G$5:G$79) -> 21 | AP64: =_xlfn.XLOOKUP($AH64,[1]D_Projections!$F$5:$F$79,[1]D_Projections!H$5:H$79) -> 80184 | AQ64: =_xlfn.XLOOKUP($AH64,[1]D_Projections!$F$5:$F$79,[1]D_Projections!I$5:I$79) -> 215999 | AR64: =_xlfn.XLOOKUP($AH64,[1]D_Projections!$F$5:$F$79,[1]D_Projections!J$5:J$79) -> 390310 | AT64: 77650 | AU64: 209173 | AV64: 377976
A65: =IF(INTRO!$E$34<>0,INTRO!$E$34,"") -> Mali | B65: Sikasso | C65: Kadiolo | D65: 387587.5782 | E65: =IF(INTRO!$E$48="","",ROUND($D65*INTRO!$E$48,0)) -> 58138 | F65: =IF(INTRO!$E$49="","",ROUND($D65*INTRO!$E$49,0)) -> 110462 | G65: =IF(INTRO!$E$50="","",ROUND($D65*INTRO!$E$50,0)) -> 199608 | H65: 99 | I65: 0 | J65: 0 | K65: 11 | M65: =IF(INTRO!$E$40="Endémique", IF($I65>0, IF($I65=4,"Inconnu",IF($I65=99,"Interrompu", $D65)), 0),"Non requis") -> 0 | N65: =IF(INTRO!$E$42="Endémique", IF($J65>1, IF($J65=4, "Inconnu", IF($J65=99, "Surveillance", E65)), 0),"Non requis") -> Non requis | O65: =IF(INTRO!$E$42="Endémique", IF($J65>1, IF($J65=4, "Inconnu", IF($J65=99, "Surveillance", F65)), 0),"Non requis") -> Non requis | P65: =IF(INTRO!$E$42="Endémique", IF($J65>1, IF($J65=4, "Inconnu", IF($J65=99, "Surveillance", ROUND(D65*INTRO!$E$51,0))), 0),"Non requis") -> Non requis | Q65: =IF(INTRO!$E$42="Endémique", IF($J65>1, IF($J65=4, "Inconnu", IF($J65=99, "Surveillance", SUM($N65:$P65))), 0),"Non requis") -> Non requis | R65: 14607 | S65: 39349 | T65: 71106 | U65: 125062 | V65: 0 | W65: 0 | X65: 0 | Y65: 0 | AH65: 30021 | AI65: Kadiolo | AK65: ='MDA3'!O65 -> 0 | AL65: ='T2'!S65 -> 0 | AO65: =_xlfn.XLOOKUP($AH65,[1]D_Projections!$F$5:$F$79,[1]D_Projections!G$5:G$79) -> 11 | AP65: =_xlfn.XLOOKUP($AH65,[1]D_Projections!$F$5:$F$79,[1]D_Projections!H$5:H$79) -> 15084 | AQ65: =_xlfn.XLOOKUP($AH65,[1]D_Projections!$F$5:$F$79,[1]D_Projections!I$5:I$79) -> 40633 | AR65: =_xlfn.XLOOKUP($AH65,[1]D_Projections!$F$5:$F$79,[1]D_Projections!J$5:J$79) -> 73426 | AT65: 14607 | AU65: 39349 | AV65: 71106
A66: =IF(INTRO!$E$34<>0,INTRO!$E$34,"") -> Mali | B66: Sikasso | C66: Kignan | D66: 187686.1982 | E66: =IF(INTRO!$E$48="","",ROUND($D66*INTRO!$E$48,0)) -> 28153 | F66: =IF(INTRO!$E$49="","",ROUND($D66*INTRO!$E$49,0)) -> 53491 | G66: =IF(INTRO!$E$50="","",ROUND($D66*INTRO!$E$50,0)) -> 96658 | H66: 99 | I66: 1 | J66: 0 | K66: 1 | M66: =IF(INTRO!$E$40="Endémique", IF($I66>0, IF($I66=4,"Inconnu",IF($I66=99,"Interrompu", $D66)), 0),"Non requis") -> 187686.1982 | N66: =IF(INTRO!$E$42="Endémique", IF($J66>1, IF($J66=4, "Inconnu", IF($J66=99, "Surveillance", E66)), 0),"Non requis") -> Non requis | O66: =IF(INTRO!$E$42="Endémique", IF($J66>1, IF($J66=4, "Inconnu", IF($J66=99, "Surveillance", F66)), 0),"Non requis") -> Non requis | P66: =IF(INTRO!$E$42="Endémique", IF($J66>1, IF($J66=4, "Inconnu", IF($J66=99, "Surveillance", ROUND(D66*INTRO!$E$51,0))), 0),"Non requis") -> Non requis | Q66: =IF(INTRO!$E$42="Endémique", IF($J66>1, IF($J66=4, "Inconnu", IF($J66=99, "Surveillance", SUM($N66:$P66))), 0),"Non requis") -> Non requis | R66: 3743 | S66: 10081 | T66: 18216 | U66: 32040 | V66: 0 | W66: 1 | X66: 0 | Y66: 0 | Z66: MDA3 (IVM) | AH66: 30022 | AI66: Kignan | AK66: ='MDA3'!O66 -> 60401 | AL66: ='T2'!S66 -> 0 | AO66: =_xlfn.XLOOKUP($AH66,[1]D_Projections!$F$5:$F$79,[1]D_Projections!G$5:G$79) -> 1 | AP66: =_xlfn.XLOOKUP($AH66,[1]D_Projections!$F$5:$F$79,[1]D_Projections!H$5:H$79) -> 3865 | AQ66: =_xlfn.XLOOKUP($AH66,[1]D_Projections!$F$5:$F$79,[1]D_Projections!I$5:I$79) -> 10410 | AR66: =_xlfn.XLOOKUP($AH66,[1]D_Projections!$F$5:$F$79,[1]D_Projections!J$5:J$79) -> 18810 | AT66: 3743 | AU66: 10081 | AV66: 18216
A67: =IF(INTRO!$E$34<>0,INTRO!$E$34,"") -> Mali | B67: Sikasso | C67: Kolondieba | D67: 327608.5779 | E67: =IF(INTRO!$E$48="","",ROUND($D67*INTRO!$E$48,0)) -> 49141 | F67: =IF(INTRO!$E$49="","",ROUND($D67*INTRO!$E$49,0)) -> 93368 | G67: =IF(INTRO!$E$50="","",ROUND($D67*INTRO!$E$50,0)) -> 168718 | H67: 99 | I67: 1 | J67: 1 | K67: 11 | M67: =IF(INTRO!$E$40="Endémique", IF($I67>0, IF($I67=4,"Inconnu",IF($I67=99,"Interrompu", $D67)), 0),"Non requis") -> 327608.5779 | N67: =IF(INTRO!$E$42="Endémique", IF($J67>1, IF($J67=4, "Inconnu", IF($J67=99, "Surveillance", E67)), 0),"Non requis") -> Non requis | O67: =IF(INTRO!$E$42="Endémique", IF($J67>1, IF($J67=4, "Inconnu", IF($J67=99, "Surveillance", F67)), 0),"Non requis") -> Non requis | P67: =IF(INTRO!$E$42="Endémique", IF($J67>1, IF($J67=4, "Inconnu", IF($J67=99, "Surveillance", ROUND(D67*INTRO!$E$51,0))), 0),"Non requis") -> Non requis | Q67: =IF(INTRO!$E$42="Endémique", IF($J67>1, IF($J67=4, "Inconnu", IF($J67=99, "Surveillance", SUM($N67:$P67))), 0),"Non requis") -> Non requis | R67: 15350 | S67: 41354 | T67: 74725 | U67: 131429 | V67: 0 | W67: 1 | X67: 0 | Y67: 1 | Z67: MDA3 (IVM) | AA67: T2 (PZQ) | AH67: 30023 | AI67: Kolondieba | AK67: ='MDA3'!O67 -> 79290 | AL67: ='T2'!S67 -> 20782 | AO67: =_xlfn.XLOOKUP($AH67,[1]D_Projections!$F$5:$F$79,[1]D_Projections!G$5:G$79) -> 11 | AP67: =_xlfn.XLOOKUP($AH67,[1]D_Projections!$F$5:$F$79,[1]D_Projections!H$5:H$79) -> 15851 | AQ67: =_xlfn.XLOOKUP($AH67,[1]D_Projections!$F$5:$F$79,[1]D_Projections!I$5:I$79) -> 42703 | AR67: =_xlfn.XLOOKUP($AH67,[1]D_Projections!$F$5:$F$79,[1]D_Projections!J$5:J$79) -> 77163 | AT67: 15350 | AU67: 41354 | AV67: 74725
A68: =IF(INTRO!$E$34<>0,INTRO!$E$34,"") -> Mali | B68: Sikasso | C68: Koutiala | D68: 930114.0204 | E68: =IF(INTRO!$E$48="","",ROUND($D68*INTRO!$E$48,0)) -> 139517 | F68: =IF(INTRO!$E$49="","",ROUND($D68*INTRO!$E$49,0)) -> 265082 | G68: =IF(INTRO!$E$50="","",ROUND($D68*INTRO!$E$50,0)) -> 479009 | H68: 99 | I68: 0 | J68: 0 | K68: 1 | M68: =IF(INTRO!$E$40="Endémique", IF($I68>0, IF($I68=4,"Inconnu",IF($I68=99,"Interrompu", $D68)), 0),"Non requis") -> 0 | N68: =IF(INTRO!$E$42="Endémique", IF($J68>1, IF($J68=4, "Inconnu", IF($J68=99, "Surveillance", E68)), 0),"Non requis") -> Non requis | O68: =IF(INTRO!$E$42="Endémique", IF($J68>1, IF($J68=4, "Inconnu", IF($J68=99, "Surveillance", F68)), 0),"Non requis") -> Non requis | P68: =IF(INTRO!$E$42="Endémique", IF($J68>1, IF($J68=4, "Inconnu", IF($J68=99, "Surveillance", ROUND(D68*INTRO!$E$51,0))), 0),"Non requis") -> Non requis | Q68: =IF(INTRO!$E$42="Endémique", IF($J68>1, IF($J68=4, "Inconnu", IF($J68=99, "Surveillance", SUM($N68:$P68))), 0),"Non requis") -> Non requis | R68: 32408 | S68: 87302 | T68: 157759 | U68: 277469 | V68: 0 | W68: 0 | X68: 0 | Y68: 0 | AH68: 30024 | AI68: Koutiala | AK68: ='MDA3'!O68 -> 0 | AL68: ='T2'!S68 -> 0 | AO68: =_xlfn.XLOOKUP($AH68,[1]D_Projections!$F$5:$F$79,[1]D_Projections!G$5:G$79) -> 1 | AP68: =_xlfn.XLOOKUP($AH68,[1]D_Projections!$F$5:$F$79,[1]D_Projections!H$5:H$79) -> 33465 | AQ68: =_xlfn.XLOOKUP($AH68,[1]D_Projections!$F$5:$F$79,[1]D_Projections!I$5:I$79) -> 90151 | AR68: =_xlfn.XLOOKUP($AH68,[1]D_Projections!$F$5:$F$79,[1]D_Projections!J$5:J$79) -> 162907 | AT68: 32408 | AU68: 87302 | AV68: 157759
A69: =IF(INTRO!$E$34<>0,INTRO!$E$34,"") -> Mali | B69: Sikasso | C69: Niena | D69: 197068.9519 | E69: =IF(INTRO!$E$48="","",ROUND($D69*INTRO!$E$48,0)) -> 29560 | F69: =IF(INTRO!$E$49="","",ROUND($D69*INTRO!$E$49,0)) -> 56165 | G69: =IF(INTRO!$E$50="","",ROUND($D69*INTRO!$E$50,0)) -> 101491 | H69: 99 | I69: 1 | J69: 0 | K69: 21 | M69: =IF(INTRO!$E$40="Endémique", IF($I69>0, IF($I69=4,"Inconnu",IF($I69=99,"Interrompu", $D69)), 0),"Non requis") -> 197068.9519 | N69: =IF(INTRO!$E$42="Endémique", IF($J69>1, IF($J69=4, "Inconnu", IF($J69=99, "Surveillance", E69)), 0),"Non requis") -> Non requis | O69: =IF(INTRO!$E$42="Endémique", IF($J69>1, IF($J69=4, "Inconnu", IF($J69=99, "Surveillance", F69)), 0),"Non requis") -> Non requis | P69: =IF(INTRO!$E$42="Endémique", IF($J69>1, IF($J69=4, "Inconnu", IF($J69=99, "Surveillance", ROUND(D69*INTRO!$E$51,0))), 0),"Non requis") -> Non requis | Q69: =IF(INTRO!$E$42="Endémique", IF($J69>1, IF($J69=4, "Inconnu", IF($J69=99, "Surveillance", SUM($N69:$P69))), 0),"Non requis") -> Non requis | R69: 3751 | S69: 10103 | T69: 18256 | U69: 32110 | V69: 0 | W69: 1 | X69: 0 | Y69: 1 | Z69: MDA3 (IVM) | AA69: T2 (PZQ) | AH69: 30025 | AI69: Niena | AK69: ='MDA3'!O69 -> 49688 | AL69: ='T2'!S69 -> 5534 | AO69: =_xlfn.XLOOKUP($AH69,[1]D_Projections!$F$5:$F$79,[1]D_Projections!G$5:G$79) -> 21 | AP69: =_xlfn.XLOOKUP($AH69,[1]D_Projections!$F$5:$F$79,[1]D_Projections!H$5:H$79) -> 3873 | AQ69: =_xlfn.XLOOKUP($AH69,[1]D_Projections!$F$5:$F$79,[1]D_Projections!I$5:I$79) -> 10433 | AR69: =_xlfn.XLOOKUP($AH69,[1]D_Projections!$F$5:$F$79,[1]D_Projections!J$5:J$79) -> 18852 | AT69: 3751 | AU69: 10103 | AV69: 18256
A70: =IF(INTRO!$E$34<>0,INTRO!$E$34,"") -> Mali | B70: Sikasso | C70: Sélingué | D70: 133572.7605 | E70: =IF(INTRO!$E$48="","",ROUND($D70*INTRO!$E$48,0)) -> 20036 | F70: =IF(INTRO!$E$49="","",ROUND($D70*INTRO!$E$49,0)) -> 38068 | G70: =IF(INTRO!$E$50="","",ROUND($D70*INTRO!$E$50,0)) -> 68790 | H70: 99 | I70: 1 | J70: 0 | K70: 2 | M70: =IF(INTRO!$E$40="Endémique", IF($I70>0, IF($I70=4,"Inconnu",IF($I70=99,"Interrompu", $D70)), 0),"Non requis") -> 133572.7605 | N70: =IF(INTRO!$E$42="Endémique", IF($J70>1, IF($J70=4, "Inconnu", IF($J70=99, "Surveillance", E70)), 0),"Non requis") -> Non requis | O70: =IF(INTRO!$E$42="Endémique", IF($J70>1, IF($J70=4, "Inconnu", IF($J70=99, "Surveillance", F70)), 0),"Non requis") -> Non requis | P70: =IF(INTRO!$E$42="Endémique", IF($J70>1, IF($J70=4, "Inconnu", IF($J70=99, "Surveillance", ROUND(D70*INTRO!$E$51,0))), 0),"Non requis") -> Non requis | Q70: =IF(INTRO!$E$42="Endémique", IF($J70>1, IF($J70=4, "Inconnu", IF($J70=99, "Surveillance", SUM($N70:$P70))), 0),"Non requis") -> Non requis | R70: 1106 | S70: 2979 | T70: 5382 | U70: 9467 | V70: 0 | W70: 1 | X70: 0 | Y70: 1 | Z70: MDA3 (IVM) | AA70: T2 (PZQ) | AH70: 30027 | AI70: Sélingué | AK70: ='MDA3'!O70 -> 45377 | AL70: ='T2'!S70 -> 18320 | AO70: =_xlfn.XLOOKUP($AH70,[1]D_Projections!$F$5:$F$79,[1]D_Projections!G$5:G$79) -> 2 | AP70: =_xlfn.XLOOKUP($AH70,[1]D_Projections!$F$5:$F$79,[1]D_Projections!H$5:H$79) -> 1142 | AQ70: =_xlfn.XLOOKUP($AH70,[1]D_Projections!$F$5:$F$79,[1]D_Projections!I$5:I$79) -> 3076 | AR70: =_xlfn.XLOOKUP($AH70,[1]D_Projections!$F$5:$F$79,[1]D_Projections!J$5:J$79) -> 5558 | AT70: 1106 | AU70: 2979 | AV70: 5382
A71: =IF(INTRO!$E$34<>0,INTRO!$E$34,"") -> Mali | B71: Sikasso | C71: Sikasso | D71: 788280.1006 | E71: =IF(INTRO!$E$48="","",ROUND($D71*INTRO!$E$48,0)) -> 118242 | F71: =IF(INTRO!$E$49="","",ROUND($D71*INTRO!$E$49,0)) -> 224660 | G71: =IF(INTRO!$E$50="","",ROUND($D71*INTRO!$E$50,0)) -> 405964 | H71: 99 | I71: 1 | J71: 0 | K71: 11 | M71: =IF(INTRO!$E$40="Endémique", IF($I71>0, IF($I71=4,"Inconnu",IF($I71=99,"Interrompu", $D71)), 0),"Non requis") -> 788280.1006 | N71: =IF(INTRO!$E$42="Endémique", IF($J71>1, IF($J71=4, "Inconnu", IF($J71=99, "Surveillance", E71)), 0),"Non requis") -> Non requis | O71: =IF(INTRO!$E$42="Endémique", IF($J71>1, IF($J71=4, "Inconnu", IF($J71=99, "Surveillance", F71)), 0),"Non requis") -> Non requis | P71: =IF(INTRO!$E$42="Endémique", IF($J71>1, IF($J71=4, "Inconnu", IF($J71=99, "Surveillance", ROUND(D71*INTRO!$E$51,0))), 0),"Non requis") -> Non requis | Q71: =IF(INTRO!$E$42="Endémique", IF($J71>1, IF($J71=4, "Inconnu", IF($J71=99, "Surveillance", SUM($N71:$P71))), 0),"Non requis") -> Non requis | R71: 79892 | S71: 215212 | T71: 388882 | U71: 683986 | V71: 0 | W71: 1 | X71: 0 | Y71: 1 | Z71: MDA3 (IVM) | AA71: T2 (PZQ) | AH71: 30026 | AI71: Sikasso | AK71: ='MDA3'!O71 -> 232943 | AL71: ='T2'!S71 -> 194033 | AO71: =_xlfn.XLOOKUP($AH71,[1]D_Projections!$F$5:$F$79,[1]D_Projections!G$5:G$79) -> 11 | AP71: =_xlfn.XLOOKUP($AH71,[1]D_Projections!$F$5:$F$79,[1]D_Projections!H$5:H$79) -> 82499 | AQ71: =_xlfn.XLOOKUP($AH71,[1]D_Projections!$F$5:$F$79,[1]D_Projections!I$5:I$79) -> 222235 | AR71: =_xlfn.XLOOKUP($AH71,[1]D_Projections!$F$5:$F$79,[1]D_Projections!J$5:J$79) -> 401572 | AT71: 79892 | AU71: 215212 | AV71: 388882
A72: =IF(INTRO!$E$34<>0,INTRO!$E$34,"") -> Mali | B72: Sikasso | C72: Yanfolila | D72: 208921.3596 | E72: =IF(INTRO!$E$48="","",ROUND($D72*INTRO!$E$48,0)) -> 31338 | F72: =IF(INTRO!$E$49="","",ROUND($D72*INTRO!$E$49,0)) -> 59543 | G72: =IF(INTRO!$E$50="","",ROUND($D72*INTRO!$E$50,0)) -> 107595 | H72: 99 | I72: 99 | J72: 0 | K72: 1 | M72: =IF(INTRO!$E$40="Endémique", IF($I72>0, IF($I72=4,"Inconnu",IF($I72=99,"Interrompu", $D72)), 0),"Non requis") -> Interrompu | N72: =IF(INTRO!$E$42="Endémique", IF($J72>1, IF($J72=4, "Inconnu", IF($J72=99, "Surveillance", E72)), 0),"Non requis") -> Non requis | O72: =IF(INTRO!$E$42="Endémique", IF($J72>1, IF($J72=4, "Inconnu", IF($J72=99, "Surveillance", F72)), 0),"Non requis") -> Non requis | P72: =IF(INTRO!$E$42="Endémique", IF($J72>1, IF($J72=4, "Inconnu", IF($J72=99, "Surveillance", ROUND(D72*INTRO!$E$51,0))), 0),"Non requis") -> Non requis | Q72: =IF(INTRO!$E$42="Endémique", IF($J72>1, IF($J72=4, "Inconnu", IF($J72=99, "Surveillance", SUM($N72:$P72))), 0),"Non requis") -> Non requis | R72: 0 | S72: 0 | T72: 0 | U72: 0 | V72: 0 | W72: 0 | X72: 0 | Y72: 1 | AA72: T2 (PZQ) | AH72: 30028 | AI72: Yanfolila | AK72: ='MDA3'!O72 -> 0 | AL72: ='T2'!S72 -> 1803 | AO72: =_xlfn.XLOOKUP($AH72,[1]D_Projections!$F$5:$F$79,[1]D_Projections!G$5:G$79) -> 1 | AP72: =_xlfn.XLOOKUP($AH72,[1]D_Projections!$F$5:$F$79,[1]D_Projections!H$5:H$79) -> 0 | AQ72: =_xlfn.XLOOKUP($AH72,[1]D_Projections!$F$5:$F$79,[1]D_Projections!I$5:I$79) -> 0 | AR72: =_xlfn.XLOOKUP($AH72,[1]D_Projections!$F$5:$F$79,[1]D_Projections!J$5:J$79) -> 0 | AT72: 0 | AU72: 0 | AV72: 0
A73: =IF(INTRO!$E$34<>0,INTRO!$E$34,"") -> Mali | B73: Sikasso | C73: Yorosso | D73: 341983.2312 | E73: =IF(INTRO!$E$48="","",ROUND($D73*INTRO!$E$48,0)) -> 51297 | F73: =IF(INTRO!$E$49="","",ROUND($D73*INTRO!$E$49,0)) -> 97465 | G73: =IF(INTRO!$E$50="","",ROUND($D73*INTRO!$E$50,0)) -> 176121 | H73: 99 | I73: 0 | J73: 0 | K73: 2 | M73: =IF(INTRO!$E$40="Endémique", IF($I73>0, IF($I73=4,"Inconnu",IF($I73=99,"Interrompu", $D73)), 0),"Non requis") -> 0 | N73: =IF(INTRO!$E$42="Endémique", IF($J73>1, IF($J73=4, "Inconnu", IF($J73=99, "Surveillance", E73)), 0),"Non requis") -> Non requis | O73: =IF(INTRO!$E$42="Endémique", IF($J73>1, IF($J73=4, "Inconnu", IF($J73=99, "Surveillance", F73)), 0),"Non requis") -> Non requis | P73: =IF(INTRO!$E$42="Endémique", IF($J73>1, IF($J73=4, "Inconnu", IF($J73=99, "Surveillance", ROUND(D73*INTRO!$E$51,0))), 0),"Non requis") -> Non requis | Q73: =IF(INTRO!$E$42="Endémique", IF($J73>1, IF($J73=4, "Inconnu", IF($J73=99, "Surveillance", SUM($N73:$P73))), 0),"Non requis") -> Non requis | R73: 4771 | S73: 12853 | T73: 23222 | U73: 40846 | V73: 0 | W73: 0 | X73: 0 | Y73: 0 | AH73: 30029 | AI73: Yorosso | AK73: ='MDA3'!O73 -> 0 | AL73: ='T2'!S73 -> 0 | AO73: =_xlfn.XLOOKUP($AH73,[1]D_Projections!$F$5:$F$79,[1]D_Projections!G$5:G$79) -> 2 | AP73: =_xlfn.XLOOKUP($AH73,[1]D_Projections!$F$5:$F$79,[1]D_Projections!H$5:H$79) -> 4927 | AQ73: =_xlfn.XLOOKUP($AH73,[1]D_Projections!$F$5:$F$79,[1]D_Projections!I$5:I$79) -> 13272 | AR73: =_xlfn.XLOOKUP($AH73,[1]D_Projections!$F$5:$F$79,[1]D_Projections!J$5:J$79) -> 23980 | AT73: 4771 | AU73: 12853 | AV73: 23222
A74: =IF(INTRO!$E$34<>0,INTRO!$E$34,"") -> Mali | B74: Tombouctou | C74: Diré | D74: 177075.594 | E74: =IF(INTRO!$E$48="","",ROUND($D74*INTRO!$E$48,0)) -> 26561 | F74: =IF(INTRO!$E$49="","",ROUND($D74*INTRO!$E$49,0)) -> 50467 | G74: =IF(INTRO!$E$50="","",ROUND($D74*INTRO!$E$50,0)) -> 91194 | H74: 99 | I74: 0 | J74: 0 | K74: 3 | M74: =IF(INTRO!$E$40="Endémique", IF($I74>0, IF($I74=4,"Inconnu",IF($I74=99,"Interrompu", $D74)), 0),"Non requis") -> 0 | N74: =IF(INTRO!$E$42="Endémique", IF($J74>1, IF($J74=4, "Inconnu", IF($J74=99, "Surveillance", E74)), 0),"Non requis") -> Non requis | O74: =IF(INTRO!$E$42="Endémique", IF($J74>1, IF($J74=4, "Inconnu", IF($J74=99, "Surveillance", F74)), 0),"Non requis") -> Non requis | P74: =IF(INTRO!$E$42="Endémique", IF($J74>1, IF($J74=4, "Inconnu", IF($J74=99, "Surveillance", ROUND(D74*INTRO!$E$51,0))), 0),"Non requis") -> Non requis | Q74: =IF(INTRO!$E$42="Endémique", IF($J74>1, IF($J74=4, "Inconnu", IF($J74=99, "Surveillance", SUM($N74:$P74))), 0),"Non requis") -> Non requis | R74: 18807 | S74: 50660 | T74: 91545 | U74: 161012 | V74: 0 | W74: 0 | X74: 0 | Y74: 1 | AA74: T2 (PZQ) | AH74: 30030 | AI74: Diré | AK74: ='MDA3'!O74 -> 0 | AL74: ='T2'!S74 -> 3170 | AO74: =_xlfn.XLOOKUP($AH74,[1]D_Projections!$F$5:$F$79,[1]D_Projections!G$5:G$79) -> 3 | AP74: =_xlfn.XLOOKUP($AH74,[1]D_Projections!$F$5:$F$79,[1]D_Projections!H$5:H$79) -> 19421 | AQ74: =_xlfn.XLOOKUP($AH74,[1]D_Projections!$F$5:$F$79,[1]D_Projections!I$5:I$79) -> 52313 | AR74: =_xlfn.XLOOKUP($AH74,[1]D_Projections!$F$5:$F$79,[1]D_Projections!J$5:J$79) -> 94532 | AT74: 18807 | AU74: 50660 | AV74: 91545
A75: =IF(INTRO!$E$34<>0,INTRO!$E$34,"") -> Mali | B75: Tombouctou | C75: Goundam | D75: 238833.0458 | E75: =IF(INTRO!$E$48="","",ROUND($D75*INTRO!$E$48,0)) -> 35825 | F75: =IF(INTRO!$E$49="","",ROUND($D75*INTRO!$E$49,0)) -> 68067 | G75: =IF(INTRO!$E$50="","",ROUND($D75*INTRO!$E$50,0)) -> 122999 | H75: 99 | I75: 0 | J75: 0 | K75: 2 | M75: =IF(INTRO!$E$40="Endémique", IF($I75>0, IF($I75=4,"Inconnu",IF($I75=99,"Interrompu", $D75)), 0),"Non requis") -> 0 | N75: =IF(INTRO!$E$42="Endémique", IF($J75>1, IF($J75=4, "Inconnu", IF($J75=99, "Surveillance", E75)), 0),"Non requis") -> Non requis | O75: =IF(INTRO!$E$42="Endémique", IF($J75>1, IF($J75=4, "Inconnu", IF($J75=99, "Surveillance", F75)), 0),"Non requis") -> Non requis | P75: =IF(INTRO!$E$42="Endémique", IF($J75>1, IF($J75=4, "Inconnu", IF($J75=99, "Surveillance", ROUND(D75*INTRO!$E$51,0))), 0),"Non requis") -> Non requis | Q75: =IF(INTRO!$E$42="Endémique", IF($J75>1, IF($J75=4, "Inconnu", IF($J75=99, "Surveillance", SUM($N75:$P75))), 0),"Non requis") -> Non requis | R75: 23595 | S75: 63562 | T75: 114859 | U75: =SUM(R75:T75) -> 202016 | V75: 0 | W75: 0 | X75: 0 | Y75: 1 | AA75: T2 (PZQ) | AH75: 30031 | AI75: Goundam | AK75: ='MDA3'!O75 -> 0 | AL75: ='T2'!S75 -> 4503 | AO75: =_xlfn.XLOOKUP($AH75,[1]D_Projections!$F$5:$F$79,[1]D_Projections!G$5:G$79) -> 2 | AP75: =_xlfn.XLOOKUP($AH75,[1]D_Projections!$F$5:$F$79,[1]D_Projections!H$5:H$79) -> 24365 | AQ75: =_xlfn.XLOOKUP($AH75,[1]D_Projections!$F$5:$F$79,[1]D_Projections!I$5:I$79) -> 65636 | AR75: =_xlfn.XLOOKUP($AH75,[1]D_Projections!$F$5:$F$79,[1]D_Projections!J$5:J$79) -> 118607 | AT75: =ROUND(AP75*(100-$AB$2)/100,0) -> 23595 | AU75: =ROUND(AQ75*(100-$AB$2)/100,0) -> 63562 | AV75: =ROUND(AR75*(100-$AB$2)/100,0) -> 114859
A76: =IF(INTRO!$E$34<>0,INTRO!$E$34,"") -> Mali | B76: Tombouctou | C76: Gourma-Rharous | D76: 177174.3372 | E76: =IF(INTRO!$E$48="","",ROUND($D76*INTRO!$E$48,0)) -> 26576 | F76: =IF(INTRO!$E$49="","",ROUND($D76*INTRO!$E$49,0)) -> 50495 | G76: =IF(INTRO!$E$50="","",ROUND($D76*INTRO!$E$50,0)) -> 91245 | H76: 99 | I76: 0 | J76: 0 | K76: 31 | M76: =IF(INTRO!$E$40="Endémique", IF($I76>0, IF($I76=4,"Inconnu",IF($I76=99,"Interrompu", $D76)), 0),"Non requis") -> 0 | N76: =IF(INTRO!$E$42="Endémique", IF($J76>1, IF($J76=4, "Inconnu", IF($J76=99, "Surveillance", E76)), 0),"Non requis") -> Non requis | O76: =IF(INTRO!$E$42="Endémique", IF($J76>1, IF($J76=4, "Inconnu", IF($J76=99, "Surveillance", F76)), 0),"Non requis") -> Non requis | P76: =IF(INTRO!$E$42="Endémique", IF($J76>1, IF($J76=4, "Inconnu", IF($J76=99, "Surveillance", ROUND(D76*INTRO!$E$51,0))), 0),"Non requis") -> Non requis | Q76: =IF(INTRO!$E$42="Endémique", IF($J76>1, IF($J76=4, "Inconnu", IF($J76=99, "Surveillance", SUM($N76:$P76))), 0),"Non requis") -> Non requis | R76: 17326 | S76: 46664 | T76: 84324 | U76: 148314 | V76: 0 | W76: 0 | X76: 0 | Y76: 1 | AA76: T2 (PZQ) | AH76: 30032 | AI76: GourmA-Rharous | AK76: ='MDA3'!O76 -> 0 | AL76: ='T2'!S76 -> 37449 | AO76: =_xlfn.XLOOKUP($AH76,[1]D_Projections!$F$5:$F$79,[1]D_Projections!G$5:G$79) -> 31 | AP76: =_xlfn.XLOOKUP($AH76,[1]D_Projections!$F$5:$F$79,[1]D_Projections!H$5:H$79) -> 17891 | AQ76: =_xlfn.XLOOKUP($AH76,[1]D_Projections!$F$5:$F$79,[1]D_Projections!I$5:I$79) -> 48187 | AR76: =_xlfn.XLOOKUP($AH76,[1]D_Projections!$F$5:$F$79,[1]D_Projections!J$5:J$79) -> 87076 | AT76: 17326 | AU76: 46664 | AV76: 84324
A77: =IF(INTRO!$E$34<>0,INTRO!$E$34,"") -> Mali | B77: Tombouctou | C77: Niafunké | D77: 293130.0172 | E77: =IF(INTRO!$E$48="","",ROUND($D77*INTRO!$E$48,0)) -> 43970 | F77: =IF(INTRO!$E$49="","",ROUND($D77*INTRO!$E$49,0)) -> 83542 | G77: =IF(INTRO!$E$50="","",ROUND($D77*INTRO!$E$50,0)) -> 150962 | H77: 99 | I77: 0 | J77: 0 | K77: 3 | M77: =IF(INTRO!$E$40="Endémique", IF($I77>0, IF($I77=4,"Inconnu",IF($I77=99,"Interrompu", $D77)), 0),"Non requis") -> 0 | N77: =IF(INTRO!$E$42="Endémique", IF($J77>1, IF($J77=4, "Inconnu", IF($J77=99, "Surveillance", E77)), 0),"Non requis") -> Non requis | O77: =IF(INTRO!$E$42="Endémique", IF($J77>1, IF($J77=4, "Inconnu", IF($J77=99, "Surveillance", F77)), 0),"Non requis") -> Non requis | P77: =IF(INTRO!$E$42="Endémique", IF($J77>1, IF($J77=4, "Inconnu", IF($J77=99, "Surveillance", ROUND(D77*INTRO!$E$51,0))), 0),"Non requis") -> Non requis | Q77: =IF(INTRO!$E$42="Endémique", IF($J77>1, IF($J77=4, "Inconnu", IF($J77=99, "Surveillance", SUM($N77:$P77))), 0),"Non requis") -> Non requis | R77: 29425 | S77: 79268 | T77: 143241 | U77: 251934 | V77: 0 | W77: 0 | X77: 0 | Y77: 1 | AA77: T2 (PZQ) | AH77: 30033 | AI77: Niafunké | AK77: ='MDA3'!O77 -> 0 | AL77: ='T2'!S77 -> 14691 | AO77: =_xlfn.XLOOKUP($AH77,[1]D_Projections!$F$5:$F$79,[1]D_Projections!G$5:G$79) -> 3 | AP77: =_xlfn.XLOOKUP($AH77,[1]D_Projections!$F$5:$F$79,[1]D_Projections!H$5:H$79) -> 30385 | AQ77: =_xlfn.XLOOKUP($AH77,[1]D_Projections!$F$5:$F$79,[1]D_Projections!I$5:I$79) -> 81855 | AR77: =_xlfn.XLOOKUP($AH77,[1]D_Projections!$F$5:$F$79,[1]D_Projections!J$5:J$79) -> 147915 | AT77: 29425 | AU77: 79268 | AV77: 143241
A78: =IF(INTRO!$E$34<>0,INTRO!$E$34,"") -> Mali | B78: Tombouctou | C78: Tombouctou | D78: 198106.8291 | E78: =IF(INTRO!$E$48="","",ROUND($D78*INTRO!$E$48,0)) -> 29716 | F78: =IF(INTRO!$E$49="","",ROUND($D78*INTRO!$E$49,0)) -> 56460 | G78: =IF(INTRO!$E$50="","",ROUND($D78*INTRO!$E$50,0)) -> 102025 | H78: 99 | I78: 0 | J78: 0 | K78: 2 | M78: =IF(INTRO!$E$40="Endémique", IF($I78>0, IF($I78=4,"Inconnu",IF($I78=99,"Interrompu", $D78)), 0),"Non requis") -> 0 | N78: =IF(INTRO!$E$42="Endémique", IF($J78>1, IF($J78=4, "Inconnu", IF($J78=99, "Surveillance", E78)), 0),"Non requis") -> Non requis | O78: =IF(INTRO!$E$42="Endémique", IF($J78>1, IF($J78=4, "Inconnu", IF($J78=99, "Surveillance", F78)), 0),"Non requis") -> Non requis | P78: =IF(INTRO!$E$42="Endémique", IF($J78>1, IF($J78=4, "Inconnu", IF($J78=99, "Surveillance", ROUND(D78*INTRO!$E$51,0))), 0),"Non requis") -> Non requis | Q78: =IF(INTRO!$E$42="Endémique", IF($J78>1, IF($J78=4, "Inconnu", IF($J78=99, "Surveillance", SUM($N78:$P78))), 0),"Non requis") -> Non requis | R78: 21038 | S78: 56676 | T78: 102418 | U78: 180132 | V78: 0 | W78: 0 | X78: 0 | Y78: 1 | AA78: T2 (PZQ) | AH78: 30034 | AI78: Tombouctou | AK78: ='MDA3'!O78 -> 0 | AL78: ='T2'!S78 -> 3738 | AO78: =_xlfn.XLOOKUP($AH78,[1]D_Projections!$F$5:$F$79,[1]D_Projections!G$5:G$79) -> 2 | AP78: =_xlfn.XLOOKUP($AH78,[1]D_Projections!$F$5:$F$79,[1]D_Projections!H$5:H$79) -> 21725 | AQ78: =_xlfn.XLOOKUP($AH78,[1]D_Projections!$F$5:$F$79,[1]D_Projections!I$5:I$79) -> 58525 | AR78: =_xlfn.XLOOKUP($AH78,[1]D_Projections!$F$5:$F$79,[1]D_Projections!J$5:J$79) -> 105760 | AT78: 21038 | AU78: 56676 | AV78: 102418
A79: =IF(INTRO!$E$34<>0,INTRO!$E$34,"") -> Mali | B79: Taoudenit | C79: Achourat | D79: 36720.67605 | E79: =IF(INTRO!$E$48="","",ROUND($D79*INTRO!$E$48,0)) -> 5508 | F79: =IF(INTRO!$E$49="","",ROUND($D79*INTRO!$E$49,0)) -> 10465 | G79: =IF(INTRO!$E$50="","",ROUND($D79*INTRO!$E$50,0)) -> 18911 | H79: 99 | I79: 0 | J79: 0 | K79: 1 | M79: =IF(INTRO!$E$40="Endémique", IF($I79>0, IF($I79=4,"Inconnu",IF($I79=99,"Interrompu", $D79)), 0),"Non requis") -> 0 | N79: =IF(INTRO!$E$42="Endémique", IF($J79>1, IF($J79=4, "Inconnu", IF($J79=99, "Surveillance", E79)), 0),"Non requis") -> Non requis | O79: =IF(INTRO!$E$42="Endémique", IF($J79>1, IF($J79=4, "Inconnu", IF($J79=99, "Surveillance", F79)), 0),"Non requis") -> Non requis | P79: =IF(INTRO!$E$42="Endémique", IF($J79>1, IF($J79=4, "Inconnu", IF($J79=99, "Surveillance", ROUND(D79*INTRO!$E$51,0))), 0),"Non requis") -> Non requis | Q79: =IF(INTRO!$E$42="Endémique", IF($J79>1, IF($J79=4, "Inconnu", IF($J79=99, "Surveillance", SUM($N79:$P79))), 0),"Non requis") -> Non requis | R79: 0 | S79: 0 | T79: 0 | U79: 0 | V79: 0 | W79: 0 | X79: 0 | Y79: 0 | AH79: 30041 | AI79: Achourat | AK79: ='MDA3'!O79 -> 0 | AL79: ='T2'!S79 -> 0 | AO79: =_xlfn.XLOOKUP($AH79,[1]D_Projections!$F$5:$F$79,[1]D_Projections!G$5:G$79) -> 1 | AP79: =_xlfn.XLOOKUP($AH79,[1]D_Projections!$F$5:$F$79,[1]D_Projections!H$5:H$79) -> 0 | AQ79: =_xlfn.XLOOKUP($AH79,[1]D_Projections!$F$5:$F$79,[1]D_Projections!I$5:I$79) -> 0 | AR79: =_xlfn.XLOOKUP($AH79,[1]D_Projections!$F$5:$F$79,[1]D_Projections!J$5:J$79) -> 0 | AT79: 0 | AU79: 0 | AV79: 0
A80: =IF(INTRO!$E$34<>0,INTRO!$E$34,"") -> Mali | B80: Taoudenit | C80: Al-Ourch | D80: 60718.50131 | E80: =IF(INTRO!$E$48="","",ROUND($D80*INTRO!$E$48,0)) -> 9108 | F80: =IF(INTRO!$E$49="","",ROUND($D80*INTRO!$E$49,0)) -> 17305 | G80: =IF(INTRO!$E$50="","",ROUND($D80*INTRO!$E$50,0)) -> 31270 | H80: 99 | I80: 0 | J80: 0 | K80: 1 | M80: =IF(INTRO!$E$40="Endémique", IF($I80>0, IF($I80=4,"Inconnu",IF($I80=99,"Interrompu", $D80)), 0),"Non requis") -> 0 | N80: =IF(INTRO!$E$42="Endémique", IF($J80>1, IF($J80=4, "Inconnu", IF($J80=99, "Surveillance", E80)), 0),"Non requis") -> Non requis | O80: =IF(INTRO!$E$42="Endémique", IF($J80>1, IF($J80=4, "Inconnu", IF($J80=99, "Surveillance", F80)), 0),"Non requis") -> Non requis | P80: =IF(INTRO!$E$42="Endémique", IF($J80>1, IF($J80=4, "Inconnu", IF($J80=99, "Surveillance", ROUND(D80*INTRO!$E$51,0))), 0),"Non requis") -> Non requis | Q80: =IF(INTRO!$E$42="Endémique", IF($J80>1, IF($J80=4, "Inconnu", IF($J80=99, "Surveillance", SUM($N80:$P80))), 0),"Non requis") -> Non requis | R80: 0 | S80: 0 | T80: 0 | U80: 0 | V80: 0 | W80: 0 | X80: 0 | Y80: 0 | AH80: 30042 | AI80: AL-Ourch | AK80: ='MDA3'!O80 -> 0 | AL80: ='T2'!S80 -> 0 | AO80: =_xlfn.XLOOKUP($AH80,[1]D_Projections!$F$5:$F$79,[1]D_Projections!G$5:G$79) -> 1 | AP80: =_xlfn.XLOOKUP($AH80,[1]D_Projections!$F$5:$F$79,[1]D_Projections!H$5:H$79) -> 0 | AQ80: =_xlfn.XLOOKUP($AH80,[1]D_Projections!$F$5:$F$79,[1]D_Projections!I$5:I$79) -> 0 | AR80: =_xlfn.XLOOKUP($AH80,[1]D_Projections!$F$5:$F$79,[1]D_Projections!J$5:J$79) -> 0 | AT80: 0 | AU80: 0 | AV80: 0
A81: =IF(INTRO!$E$34<>0,INTRO!$E$34,"") -> Mali | B81: Taoudenit | C81: Araouane | D81: 33758.37909 | E81: =IF(INTRO!$E$48="","",ROUND($D81*INTRO!$E$48,0)) -> 5064 | F81: =IF(INTRO!$E$49="","",ROUND($D81*INTRO!$E$49,0)) -> 9621 | G81: =IF(INTRO!$E$50="","",ROUND($D81*INTRO!$E$50,0)) -> 17386 | H81: 99 | I81: 0 | J81: 0 | K81: 1 | M81: =IF(INTRO!$E$40="Endémique", IF($I81>0, IF($I81=4,"Inconnu",IF($I81=99,"Interrompu", $D81)), 0),"Non requis") -> 0 | N81: =IF(INTRO!$E$42="Endémique", IF($J81>1, IF($J81=4, "Inconnu", IF($J81=99, "Surveillance", E81)), 0),"Non requis") -> Non requis | O81: =IF(INTRO!$E$42="Endémique", IF($J81>1, IF($J81=4, "Inconnu", IF($J81=99, "Surveillance", F81)), 0),"Non requis") -> Non requis | P81: =IF(INTRO!$E$42="Endémique", IF($J81>1, IF($J81=4, "Inconnu", IF($J81=99, "Surveillance", ROUND(D81*INTRO!$E$51,0))), 0),"Non requis") -> Non requis | Q81: =IF(INTRO!$E$42="Endémique", IF($J81>1, IF($J81=4, "Inconnu", IF($J81=99, "Surveillance", SUM($N81:$P81))), 0),"Non requis") -> Non requis | R81: 0 | S81: 0 | T81: 0 | U81: 0 | V81: 0 | W81: 0 | X81: 0 | Y81: 0 | AH81: 30043 | AI81: Araouane | AK81: ='MDA3'!O81 -> 0 | AL81: ='T2'!S81 -> 0 | AO81: =_xlfn.XLOOKUP($AH81,[1]D_Projections!$F$5:$F$79,[1]D_Projections!G$5:G$79) -> 1 | AP81: =_xlfn.XLOOKUP($AH81,[1]D_Projections!$F$5:$F$79,[1]D_Projections!H$5:H$79) -> 0 | AQ81: =_xlfn.XLOOKUP($AH81,[1]D_Projections!$F$5:$F$79,[1]D_Projections!I$5:I$79) -> 0 | AR81: =_xlfn.XLOOKUP($AH81,[1]D_Projections!$F$5:$F$79,[1]D_Projections!J$5:J$79) -> 0 | AT81: 0 | AU81: 0 | AV81: 0
A82: =IF(INTRO!$E$34<>0,INTRO!$E$34,"") -> Mali | B82: Taoudenit | C82: Boujbeha | D82: 38004.33806 | E82: =IF(INTRO!$E$48="","",ROUND($D82*INTRO!$E$48,0)) -> 5701 | F82: =IF(INTRO!$E$49="","",ROUND($D82*INTRO!$E$49,0)) -> 10831 | G82: =IF(INTRO!$E$50="","",ROUND($D82*INTRO!$E$50,0)) -> 19572 | H82: 99 | I82: 0 | J82: 0 | K82: 1 | M82: =IF(INTRO!$E$40="Endémique", IF($I82>0, IF($I82=4,"Inconnu",IF($I82=99,"Interrompu", $D82)), 0),"Non requis") -> 0 | N82: =IF(INTRO!$E$42="Endémique", IF($J82>1, IF($J82=4, "Inconnu", IF($J82=99, "Surveillance", E82)), 0),"Non requis") -> Non requis | O82: =IF(INTRO!$E$42="Endémique", IF($J82>1, IF($J82=4, "Inconnu", IF($J82=99, "Surveillance", F82)), 0),"Non requis") -> Non requis | P82: =IF(INTRO!$E$42="Endémique", IF($J82>1, IF($J82=4, "Inconnu", IF($J82=99, "Surveillance", ROUND(D82*INTRO!$E$51,0))), 0),"Non requis") -> Non requis | Q82: =IF(INTRO!$E$42="Endémique", IF($J82>1, IF($J82=4, "Inconnu", IF($J82=99, "Surveillance", SUM($N82:$P82))), 0),"Non requis") -> Non requis | R82: 0 | S82: 0 | T82: 0 | U82: 0 | V82: 0 | W82: 0 | X82: 0 | Y82: 0 | AH82: 30044 | AI82: Boujbeha | AK82: ='MDA3'!O82 -> 0 | AL82: ='T2'!S82 -> 0 | AO82: =_xlfn.XLOOKUP($AH82,[1]D_Projections!$F$5:$F$79,[1]D_Projections!G$5:G$79) -> 1 | AP82: =_xlfn.XLOOKUP($AH82,[1]D_Projections!$F$5:$F$79,[1]D_Projections!H$5:H$79) -> 0 | AQ82: =_xlfn.XLOOKUP($AH82,[1]D_Projections!$F$5:$F$79,[1]D_Projections!I$5:I$79) -> 0 | AR82: =_xlfn.XLOOKUP($AH82,[1]D_Projections!$F$5:$F$79,[1]D_Projections!J$5:J$79) -> 0 | AT82: 0 | AU82: 0 | AV82: 0
A83: =IF(INTRO!$E$34<>0,INTRO!$E$34,"") -> Mali | B83: Taoudenit | C83: Foum-Elba | D83: 19889.24818 | E83: =IF(INTRO!$E$48="","",ROUND($D83*INTRO!$E$48,0)) -> 2983 | F83: =IF(INTRO!$E$49="","",ROUND($D83*INTRO!$E$49,0)) -> 5668 | G83: =IF(INTRO!$E$50="","",ROUND($D83*INTRO!$E$50,0)) -> 10243 | H83: 99 | I83: 0 | J83: 0 | K83: 1 | M83: =IF(INTRO!$E$40="Endémique", IF($I83>0, IF($I83=4,"Inconnu",IF($I83=99,"Interrompu", $D83)), 0),"Non requis") -> 0 | N83: =IF(INTRO!$E$42="Endémique", IF($J83>1, IF($J83=4, "Inconnu", IF($J83=99, "Surveillance", E83)), 0),"Non requis") -> Non requis | O83: =IF(INTRO!$E$42="Endémique", IF($J83>1, IF($J83=4, "Inconnu", IF($J83=99, "Surveillance", F83)), 0),"Non requis") -> Non requis | P83: =IF(INTRO!$E$42="Endémique", IF($J83>1, IF($J83=4, "Inconnu", IF($J83=99, "Surveillance", ROUND(D83*INTRO!$E$51,0))), 0),"Non requis") -> Non requis | Q83: =IF(INTRO!$E$42="Endémique", IF($J83>1, IF($J83=4, "Inconnu", IF($J83=99, "Surveillance", SUM($N83:$P83))), 0),"Non requis") -> Non requis | R83: 0 | S83: 0 | T83: 0 | U83: 0 | V83: 0 | W83: 0 | X83: 0 | Y83: 0 | AH83: 30045 | AI83: FouM-Elba | AK83: ='MDA3'!O83 -> 0 | AL83: ='T2'!S83 -> 0 | AO83: =_xlfn.XLOOKUP($AH83,[1]D_Projections!$F$5:$F$79,[1]D_Projections!G$5:G$79) -> 1 | AP83: =_xlfn.XLOOKUP($AH83,[1]D_Projections!$F$5:$F$79,[1]D_Projections!H$5:H$79) -> 0 | AQ83: =_xlfn.XLOOKUP($AH83,[1]D_Projections!$F$5:$F$79,[1]D_Projections!I$5:I$79) -> 0 | AR83: =_xlfn.XLOOKUP($AH83,[1]D_Projections!$F$5:$F$79,[1]D_Projections!J$5:J$79) -> 0 | AT83: 0 | AU83: 0 | AV83: 0
A84: =IF(INTRO!$E$34<>0,INTRO!$E$34,"") -> Mali | B84: Taoudenit | C84: Taoudenit | D84: 28498.15539 | E84: =IF(INTRO!$E$48="","",ROUND($D84*INTRO!$E$48,0)) -> 4275 | F84: =IF(INTRO!$E$49="","",ROUND($D84*INTRO!$E$49,0)) -> 8122 | G84: =IF(INTRO!$E$50="","",ROUND($D84*INTRO!$E$50,0)) -> 14677 | H84: 99 | I84: 0 | J84: 0 | K84: 1 | M84: =IF(INTRO!$E$40="Endémique", IF($I84>0, IF($I84=4,"Inconnu",IF($I84=99,"Interrompu", $D84)), 0),"Non requis") -> 0 | N84: =IF(INTRO!$E$42="Endémique", IF($J84>1, IF($J84=4, "Inconnu", IF($J84=99, "Surveillance", E84)), 0),"Non requis") -> Non requis | O84: =IF(INTRO!$E$42="Endémique", IF($J84>1, IF($J84=4, "Inconnu", IF($J84=99, "Surveillance", F84)), 0),"Non requis") -> Non requis | P84: =IF(INTRO!$E$42="Endémique", IF($J84>1, IF($J84=4, "Inconnu", IF($J84=99, "Surveillance", ROUND(D84*INTRO!$E$51,0))), 0),"Non requis") -> Non requis | Q84: =IF(INTRO!$E$42="Endémique", IF($J84>1, IF($J84=4, "Inconnu", IF($J84=99, "Surveillance", SUM($N84:$P84))), 0),"Non requis") -> Non requis | R84: 0 | S84: 0 | T84: 0 | U84: 0 | V84: 0 | W84: 0 | X84: 0 | Y84: 0 | AH84: 30046 | AI84: Taoudenit | AK84: ='MDA3'!O84 -> 0 | AL84: ='T2'!S84 -> 0 | AO84: =_xlfn.XLOOKUP($AH84,[1]D_Projections!$F$5:$F$79,[1]D_Projections!G$5:G$79) -> 1 | AP84: =_xlfn.XLOOKUP($AH84,[1]D_Projections!$F$5:$F$79,[1]D_Projections!H$5:H$79) -> 0 | AQ84: =_xlfn.XLOOKUP($AH84,[1]D_Projections!$F$5:$F$79,[1]D_Projections!I$5:I$79) -> 0 | AR84: =_xlfn.XLOOKUP($AH84,[1]D_Projections!$F$5:$F$79,[1]D_Projections!J$5:J$79) -> 0 | AT84: 0 | AU84: 0 | AV84: 0

Sheet MDA1 (hidden)
A1: MDA 1 - Ivermectine (IVM) et Albendazole (ALB)
A2: Structure administrative, population nécessitant une chimioprévention par groupe d'âge, population traitée par groupe d'âge et couverture
A4: TOTAL | G4: =SUBTOTAL(9,G$10:G$1010) -> 0 | H4: 0 | I4: 0 | K4: =SUBTOTAL(9,K$10:K$1010) -> 0 | L4: 0 | M4: 0 | O4: =IF(G4<>0, IF(K4/G4*100=0, "-", K4/G4*100), " ") ->  | P4: =IF(H4<>0, IF(L4/H4*100=0, "-", L4/H4*100), " ") ->  | Q4: =IF(I4<>0, IF(M4/I4*100=0, "-", M4/I4*100), " ") -> 
A6: Structure administrative du pays | D6: Mise en oeuvre de la CP | E6: Date | F6: Population ciblée pour MDA 1 | J6: Population traitée | N6: Couverture du Programme (%)
A7: Pays | B7: Région/Département | C7: District | F7: EAPréS | G7: EAS | H7: Adultes | I7: Total | J7: EAPréS | K7: EAS | L7: Adultes | M7: Total | N7: EAPréS | O7: EAS | P7: Adultes | Q7: Total
A10: =IF(COUNTRY_INFO!A10=0," ",COUNTRY_INFO!A10) -> Mali | B10: =IF(COUNTRY_INFO!B10=0," ",COUNTRY_INFO!B10) -> Bamako | C10: =IF(COUNTRY_INFO!C10=0," ",COUNTRY_INFO!C10) -> Commune 1 | D10: =IF(COUNTRY_INFO!$Z10="MDA1 (IVM+ALB)", COUNTRY_INFO!$Z10, " ") ->  | I10: =SUM(F10:H10) -> 0 | M10: =SUM(J10:L10) -> 0 | O10: =IF(G10<>0, IF(K10/G10*100=0, "-", K10/G10*100), " ") ->  | P10: =IF(H10<>0, IF(L10/H10*100=0, "-", L10/H10*100), " ") -> 
A11: =IF(COUNTRY_INFO!A11=0," ",COUNTRY_INFO!A11) -> Mali | B11: =IF(COUNTRY_INFO!B11=0," ",COUNTRY_INFO!B11) -> Bamako | C11: =IF(COUNTRY_INFO!C11=0," ",COUNTRY_INFO!C11) -> Commune 2 | D11: =IF(COUNTRY_INFO!$Z11="MDA1 (IVM+ALB)", COUNTRY_INFO!$Z11, " ") ->  | I11: =SUM(F11:H11) -> 0 | M11: =SUM(J11:L11) -> 0 | O11: =IF(G11<>0, IF(K11/G11*100=0, "-", K11/G11*100), " ") ->  | P11: =IF(H11<>0, IF(L11/H11*100=0, "-", L11/H11*100), " ") ->  | Q11: =IF(I11<>0, IF(M11/I11*100=0, "-", M11/I11*100), " ") -> 
A12: =IF(COUNTRY_INFO!A12=0," ",COUNTRY_INFO!A12) -> Mali | B12: =IF(COUNTRY_INFO!B12=0," ",COUNTRY_INFO!B12) -> Bamako | C12: =IF(COUNTRY_INFO!C12=0," ",COUNTRY_INFO!C12) -> Commune 3 | D12: =IF(COUNTRY_INFO!$Z12="MDA1 (IVM+ALB)", COUNTRY_INFO!$Z12, " ") ->  | I12: 0 | M12: 0
A13: =IF(COUNTRY_INFO!A13=0," ",COUNTRY_INFO!A13) -> Mali | B13: =IF(COUNTRY_INFO!B13=0," ",COUNTRY_INFO!B13) -> Bamako | C13: =IF(COUNTRY_INFO!C13=0," ",COUNTRY_INFO!C13) -> Commune 4 | D13: =IF(COUNTRY_INFO!$Z13="MDA1 (IVM+ALB)", COUNTRY_INFO!$Z13, " ") ->  | I13: 0 | M13: 0
A14: =IF(COUNTRY_INFO!A14=0," ",COUNTRY_INFO!A14) -> Mali | B14: =IF(COUNTRY_INFO!B14=0," ",COUNTRY_INFO!B14) -> Bamako | C14: =IF(COUNTRY_INFO!C14=0," ",COUNTRY_INFO!C14) -> Commune 5 | D14: =IF(COUNTRY_INFO!$Z14="MDA1 (IVM+ALB)", COUNTRY_INFO!$Z14, " ") ->  | I14: 0 | M14: 0
A15: =IF(COUNTRY_INFO!A15=0," ",COUNTRY_INFO!A15) -> Mali | B15: =IF(COUNTRY_INFO!B15=0," ",COUNTRY_INFO!B15) -> Bamako | C15: =IF(COUNTRY_INFO!C15=0," ",COUNTRY_INFO!C15) -> Commune 6 | D15: =IF(COUNTRY_INFO!$Z15="MDA1 (IVM+ALB)", COUNTRY_INFO!$Z15, " ") ->  | I15: 0 | M15: 0
A16: =IF(COUNTRY_INFO!A16=0," ",COUNTRY_INFO!A16) -> Mali | B16: =IF(COUNTRY_INFO!B16=0," ",COUNTRY_INFO!B16) -> Gao | C16: =IF(COUNTRY_INFO!C16=0," ",COUNTRY_INFO!C16) -> Ansongo | D16: =IF(COUNTRY_INFO!$Z16="MDA1 (IVM+ALB)", COUNTRY_INFO!$Z16, " ") ->  | I16: 0 | M16: 0
A17: =IF(COUNTRY_INFO!A17=0," ",COUNTRY_INFO!A17) -> Mali | B17: =IF(COUNTRY_INFO!B17=0," ",COUNTRY_INFO!B17) -> Gao | C17: =IF(COUNTRY_INFO!C17=0," ",COUNTRY_INFO!C17) -> Bourem | D17: =IF(COUNTRY_INFO!$Z17="MDA1 (IVM+ALB)", COUNTRY_INFO!$Z17, " ") ->  | I17: 0 | M17: 0
A18: =IF(COUNTRY_INFO!A18=0," ",COUNTRY_INFO!A18) -> Mali | B18: =IF(COUNTRY_INFO!B18=0," ",COUNTRY_INFO!B18) -> Gao | C18: =IF(COUNTRY_INFO!C18=0," ",COUNTRY_INFO!C18) -> Almoustrat | D18: =IF(COUNTRY_INFO!$Z18="MDA1 (IVM+ALB)", COUNTRY_INFO!$Z18, " ") ->  | I18: 0 | M18: 0
A19: =IF(COUNTRY_INFO!A19=0," ",COUNTRY_INFO!A19) -> Mali | B19: =IF(COUNTRY_INFO!B19=0," ",COUNTRY_INFO!B19) -> Gao | C19: =IF(COUNTRY_INFO!C19=0," ",COUNTRY_INFO!C19) -> Gao | D19: =IF(COUNTRY_INFO!$Z19="MDA1 (IVM+ALB)", COUNTRY_INFO!$Z19, " ") ->  | I19: 0 | M19: 0
A20: =IF(COUNTRY_INFO!A20=0," ",COUNTRY_INFO!A20) -> Mali | B20: =IF(COUNTRY_INFO!B20=0," ",COUNTRY_INFO!B20) -> Menaka | C20: =IF(COUNTRY_INFO!C20=0," ",COUNTRY_INFO!C20) -> Menaka | D20: =IF(COUNTRY_INFO!$Z20="MDA1 (IVM+ALB)", COUNTRY_INFO!$Z20, " ") ->  | I20: 0 | M20: 0
A21: =IF(COUNTRY_INFO!A21=0," ",COUNTRY_INFO!A21) -> Mali | B21: =IF(COUNTRY_INFO!B21=0," ",COUNTRY_INFO!B21) -> Menaka | C21: =IF(COUNTRY_INFO!C21=0," ",COUNTRY_INFO!C21) -> Anderamboukane | D21: =IF(COUNTRY_INFO!$Z21="MDA1 (IVM+ALB)", COUNTRY_INFO!$Z21, " ") ->  | I21: 0 | M21: 0
A22: =IF(COUNTRY_INFO!A22=0," ",COUNTRY_INFO!A22) -> Mali | B22: =IF(COUNTRY_INFO!B22=0," ",COUNTRY_INFO!B22) -> Menaka | C22: =IF(COUNTRY_INFO!C22=0," ",COUNTRY_INFO!C22) -> Inekar | D22: =IF(COUNTRY_INFO!$Z22="MDA1 (IVM+ALB)", COUNTRY_INFO!$Z22, " ") ->  | I22: 0 | M22: 0
A23: =IF(COUNTRY_INFO!A23=0," ",COUNTRY_INFO!A23) -> Mali | B23: =IF(COUNTRY_INFO!B23=0," ",COUNTRY_INFO!B23) -> Menaka | C23: =IF(COUNTRY_INFO!C23=0," ",COUNTRY_INFO!C23) -> Tidermene | D23: =IF(COUNTRY_INFO!$Z23="MDA1 (IVM+ALB)", COUNTRY_INFO!$Z23, " ") ->  | I23: 0 | M23: 0
A24: =IF(COUNTRY_INFO!A24=0," ",COUNTRY_INFO!A24) -> Mali | B24: =IF(COUNTRY_INFO!B24=0," ",COUNTRY_INFO!B24) -> Kayes | C24: =IF(COUNTRY_INFO!C24=0," ",COUNTRY_INFO!C24) -> Bafoulabe | D24: =IF(COUNTRY_INFO!$Z24="MDA1 (IVM+ALB)", COUNTRY_INFO!$Z24, " ") ->  | I24: 0 | M24: 0
A25: =IF(COUNTRY_INFO!A25=0," ",COUNTRY_INFO!A25) -> Mali | B25: =IF(COUNTRY_INFO!B25=0," ",COUNTRY_INFO!B25) -> Kayes | C25: =IF(COUNTRY_INFO!C25=0," ",COUNTRY_INFO!C25) -> Diema | D25: =IF(COUNTRY_INFO!$Z25="MDA1 (IVM+ALB)", COUNTRY_INFO!$Z25, " ") ->  | I25: 0 | M25: 0
A26: =IF(COUNTRY_INFO!A26=0," ",COUNTRY_INFO!A26) -> Mali | B26: =IF(COUNTRY_INFO!B26=0," ",COUNTRY_INFO!B26) -> Kayes | C26: =IF(COUNTRY_INFO!C26=0," ",COUNTRY_INFO!C26) -> Kayes | D26: =IF(COUNTRY_INFO!$Z26="MDA1 (IVM+ALB)", COUNTRY_INFO!$Z26, " ") ->  | I26: 0 | M26: 0
A27: =IF(COUNTRY_INFO!A27=0," ",COUNTRY_INFO!A27) -> Mali | B27: =IF(COUNTRY_INFO!B27=0," ",COUNTRY_INFO!B27) -> Kayes | C27: =IF(COUNTRY_INFO!C27=0," ",COUNTRY_INFO!C27) -> Kenieba | D27: =IF(COUNTRY_INFO!$Z27="MDA1 (IVM+ALB)", COUNTRY_INFO!$Z27, " ") ->  | I27: 0 | M27: 0
A28: =IF(COUNTRY_INFO!A28=0," ",COUNTRY_INFO!A28) -> Mali | B28: =IF(COUNTRY_INFO!B28=0," ",COUNTRY_INFO!B28) -> Kayes | C28: =IF(COUNTRY_INFO!C28=0," ",COUNTRY_INFO!C28) -> Kita | D28: =IF(COUNTRY_INFO!$Z28="MDA1 (IVM+ALB)", COUNTRY_INFO!$Z28, " ") ->  | I28: 0 | M28: 0
A29: =IF(COUNTRY_INFO!A29=0," ",COUNTRY_INFO!A29) -> Mali | B29: =IF(COUNTRY_INFO!B29=0," ",COUNTRY_INFO!B29) -> Kayes | C29: =IF(COUNTRY_INFO!C29=0," ",COUNTRY_INFO!C29) -> Sagabari | D29: =IF(COUNTRY_INFO!$Z29="MDA1 (IVM+ALB)", COUNTRY_INFO!$Z29, " ") ->  | I29: 0 | M29: 0
A30: =IF(COUNTRY_INFO!A30=0," ",COUNTRY_INFO!A30) -> Mali | B30: =IF(COUNTRY_INFO!B30=0," ",COUNTRY_INFO!B30) -> Kayes | C30: =IF(COUNTRY_INFO!C30=0," ",COUNTRY_INFO!C30) -> Sefeto | D30: =IF(COUNTRY_INFO!$Z30="MDA1 (IVM+ALB)", COUNTRY_INFO!$Z30, " ") ->  | I30: 0 | M30: 0
A31: =IF(COUNTRY_INFO!A31=0," ",COUNTRY_INFO!A31) -> Mali | B31: =IF(COUNTRY_INFO!B31=0," ",COUNTRY_INFO!B31) -> Kayes | C31: =IF(COUNTRY_INFO!C31=0," ",COUNTRY_INFO!C31) -> Nioro | D31: =IF(COUNTRY_INFO!$Z31="MDA1 (IVM+ALB)", COUNTRY_INFO!$Z31, " ") ->  | I31: 0 | M31: 0
A32: =IF(COUNTRY_INFO!A32=0," ",COUNTRY_INFO!A32) -> Mali | B32: =IF(COUNTRY_INFO!B32=0," ",COUNTRY_INFO!B32) -> Kayes | C32: =IF(COUNTRY_INFO!C32=0," ",COUNTRY_INFO!C32) -> Oussoubidiagna | D32: =IF(COUNTRY_INFO!$Z32="MDA1 (IVM+ALB)", COUNTRY_INFO!$Z32, " ") ->  | I32: 0 | M32: 0
A33: =IF(COUNTRY_INFO!A33=0," ",COUNTRY_INFO!A33) -> Mali | B33: =IF(COUNTRY_INFO!B33=0," ",COUNTRY_INFO!B33) -> Kayes | C33: =IF(COUNTRY_INFO!C33=0," ",COUNTRY_INFO!C33) -> Yelimane | D33: =IF(COUNTRY_INFO!$Z33="MDA1 (IVM+ALB)", COUNTRY_INFO!$Z33, " ") ->  | I33: 0 | M33: 0
A34: =IF(COUNTRY_INFO!A34=0," ",COUNTRY_INFO!A34) -> Mali | B34: =IF(COUNTRY_INFO!B34=0," ",COUNTRY_INFO!B34) -> Kidal | C34: =IF(COUNTRY_INFO!C34=0," ",COUNTRY_INFO!C34) -> Abeibara | D34: =IF(COUNTRY_INFO!$Z34="MDA1 (IVM+ALB)", COUNTRY_INFO!$Z34, " ") ->  | I34: 0 | M34: 0
A35: =IF(COUNTRY_INFO!A35=0," ",COUNTRY_INFO!A35) -> Mali | B35: =IF(COUNTRY_INFO!B35=0," ",COUNTRY_INFO!B35) -> Kidal | C35: =IF(COUNTRY_INFO!C35=0," ",COUNTRY_INFO!C35) -> Kidal | D35: =IF(COUNTRY_INFO!$Z35="MDA1 (IVM+ALB)", COUNTRY_INFO!$Z35, " ") ->  | I35: 0 | M35: 0
A36: =IF(COUNTRY_INFO!A36=0," ",COUNTRY_INFO!A36) -> Mali | B36: =IF(COUNTRY_INFO!B36=0," ",COUNTRY_INFO!B36) -> Kidal | C36: =IF(COUNTRY_INFO!C36=0," ",COUNTRY_INFO!C36) -> Tessalit | D36: =IF(COUNTRY_INFO!$Z36="MDA1 (IVM+ALB)", COUNTRY_INFO!$Z36, " ") ->  | I36: 0 | M36: 0
A37: =IF(COUNTRY_INFO!A37=0," ",COUNTRY_INFO!A37) -> Mali | B37: =IF(COUNTRY_INFO!B37=0," ",COUNTRY_INFO!B37) -> Kidal | C37: =IF(COUNTRY_INFO!C37=0," ",COUNTRY_INFO!C37) -> Tin-Essako | D37: =IF(COUNTRY_INFO!$Z37="MDA1 (IVM+ALB)", COUNTRY_INFO!$Z37, " ") ->  | I37: 0 | M37: 0
A38: =IF(COUNTRY_INFO!A38=0," ",COUNTRY_INFO!A38) -> Mali | B38: =IF(COUNTRY_INFO!B38=0," ",COUNTRY_INFO!B38) -> Koulikoro | C38: =IF(COUNTRY_INFO!C38=0," ",COUNTRY_INFO!C38) -> Banamba | D38: =IF(COUNTRY_INFO!$Z38="MDA1 (IVM+ALB)", COUNTRY_INFO!$Z38, " ") ->  | I38: 0 | M38: 0
A39: =IF(COUNTRY_INFO!A39=0," ",COUNTRY_INFO!A39) -> Mali | B39: =IF(COUNTRY_INFO!B39=0," ",COUNTRY_INFO!B39) -> Koulikoro | C39: =IF(COUNTRY_INFO!C39=0," ",COUNTRY_INFO!C39) -> Dioila | D39: =IF(COUNTRY_INFO!$Z39="MDA1 (IVM+ALB)", COUNTRY_INFO!$Z39, " ") ->  | I39: 0 | M39: 0
A40: =IF(COUNTRY_INFO!A40=0," ",COUNTRY_INFO!A40) -> Mali | B40: =IF(COUNTRY_INFO!B40=0," ",COUNTRY_INFO!B40) -> Koulikoro | C40: =IF(COUNTRY_INFO!C40=0," ",COUNTRY_INFO!C40) -> Fana | D40: =IF(COUNTRY_INFO!$Z40="MDA1 (IVM+ALB)", COUNTRY_INFO!$Z40, " ") ->  | I40: 0 | M40: 0
A41: =IF(COUNTRY_INFO!A41=0," ",COUNTRY_INFO!A41) -> Mali | B41: =IF(COUNTRY_INFO!B41=0," ",COUNTRY_INFO!B41) -> Koulikoro | C41: =IF(COUNTRY_INFO!C41=0," ",COUNTRY_INFO!C41) -> Kalabancoro | D41: =IF(COUNTRY_INFO!$Z41="MDA1 (IVM+ALB)", COUNTRY_INFO!$Z41, " ") ->  | I41: 0 | M41: 0
A42: =IF(COUNTRY_INFO!A42=0," ",COUNTRY_INFO!A42) -> Mali | B42: =IF(COUNTRY_INFO!B42=0," ",COUNTRY_INFO!B42) -> Koulikoro | C42: =IF(COUNTRY_INFO!C42=0," ",COUNTRY_INFO!C42) -> Kangaba | D42: =IF(COUNTRY_INFO!$Z42="MDA1 (IVM+ALB)", COUNTRY_INFO!$Z42, " ") ->  | I42: 0 | M42: 0
A43: =IF(COUNTRY_INFO!A43=0," ",COUNTRY_INFO!A43) -> Mali | B43: =IF(COUNTRY_INFO!B43=0," ",COUNTRY_INFO!B43) -> Koulikoro | C43: =IF(COUNTRY_INFO!C43=0," ",COUNTRY_INFO!C43) -> Kati | D43: =IF(COUNTRY_INFO!$Z43="MDA1 (IVM+ALB)", COUNTRY_INFO!$Z43, " ") ->  | I43: 0 | M43: 0
A44: =IF(COUNTRY_INFO!A44=0," ",COUNTRY_INFO!A44) -> Mali | B44: =IF(COUNTRY_INFO!B44=0," ",COUNTRY_INFO!B44) -> Koulikoro | C44: =IF(COUNTRY_INFO!C44=0," ",COUNTRY_INFO!C44) -> Kolokani | D44: =IF(COUNTRY_INFO!$Z44="MDA1 (IVM+ALB)", COUNTRY_INFO!$Z44, " ") ->  | I44: 0 | M44: 0
A45: =IF(COUNTRY_INFO!A45=0," ",COUNTRY_INFO!A45) -> Mali | B45: =IF(COUNTRY_INFO!B45=0," ",COUNTRY_INFO!B45) -> Koulikoro | C45: =IF(COUNTRY_INFO!C45=0," ",COUNTRY_INFO!C45) -> Koulikoro | D45: =IF(COUNTRY_INFO!$Z45="MDA1 (IVM+ALB)", COUNTRY_INFO!$Z45, " ") ->  | I45: 0 | M45: 0
A46: =IF(COUNTRY_INFO!A46=0," ",COUNTRY_INFO!A46) -> Mali | B46: =IF(COUNTRY_INFO!B46=0," ",COUNTRY_INFO!B46) -> Koulikoro | C46: =IF(COUNTRY_INFO!C46=0," ",COUNTRY_INFO!C46) -> Nara | D46: =IF(COUNTRY_INFO!$Z46="MDA1 (IVM+ALB)", COUNTRY_INFO!$Z46, " ") ->  | I46: 0 | M46: 0
A47: =IF(COUNTRY_INFO!A47=0," ",COUNTRY_INFO!A47) -> Mali | B47: =IF(COUNTRY_INFO!B47=0," ",COUNTRY_INFO!B47) -> Koulikoro | C47: =IF(COUNTRY_INFO!C47=0," ",COUNTRY_INFO!C47) -> Ouelessebougou | D47: =IF(COUNTRY_INFO!$Z47="MDA1 (IVM+ALB)", COUNTRY_INFO!$Z47, " ") ->  | I47: 0 | M47: 0
A48: =IF(COUNTRY_INFO!A48=0," ",COUNTRY_INFO!A48) -> Mali | B48: =IF(COUNTRY_INFO!B48=0," ",COUNTRY_INFO!B48) -> Mopti | C48: =IF(COUNTRY_INFO!C48=0," ",COUNTRY_INFO!C48) -> Bandiagara | D48: =IF(COUNTRY_INFO!$Z48="MDA1 (IVM+ALB)", COUNTRY_INFO!$Z48, " ") ->  | I48: 0 | M48: 0
A49: =IF(COUNTRY_INFO!A49=0," ",COUNTRY_INFO!A49) -> Mali | B49: =IF(COUNTRY_INFO!B49=0," ",COUNTRY_INFO!B49) -> Mopti | C49: =IF(COUNTRY_INFO!C49=0," ",COUNTRY_INFO!C49) -> Bankass | D49: =IF(COUNTRY_INFO!$Z49="MDA1 (IVM+ALB)", COUNTRY_INFO!$Z49, " ") ->  | I49: 0 | M49: 0
A50: =IF(COUNTRY_INFO!A50=0," ",COUNTRY_INFO!A50) -> Mali | B50: =IF(COUNTRY_INFO!B50=0," ",COUNTRY_INFO!B50) -> Mopti | C50: =IF(COUNTRY_INFO!C50=0," ",COUNTRY_INFO!C50) -> Djenne | D50: =IF(COUNTRY_INFO!$Z50="MDA1 (IVM+ALB)", COUNTRY_INFO!$Z50, " ") ->  | I50: 0 | M50: 0
A51: =IF(COUNTRY_INFO!A51=0," ",COUNTRY_INFO!A51) -> Mali | B51: =IF(COUNTRY_INFO!B51=0," ",COUNTRY_INFO!B51) -> Mopti | C51: =IF(COUNTRY_INFO!C51=0," ",COUNTRY_INFO!C51) -> Douentza | D51: =IF(COUNTRY_INFO!$Z51="MDA1 (IVM+ALB)", COUNTRY_INFO!$Z51, " ") ->  | I51: 0 | M51: 0
A52: =IF(COUNTRY_INFO!A52=0," ",COUNTRY_INFO!A52) -> Mali | B52: =IF(COUNTRY_INFO!B52=0," ",COUNTRY_INFO!B52) -> Mopti | C52: =IF(COUNTRY_INFO!C52=0," ",COUNTRY_INFO!C52) -> Koro | D52: =IF(COUNTRY_INFO!$Z52="MDA1 (IVM+ALB)", COUNTRY_INFO!$Z52, " ") ->  | I52: 0 | M52: 0
A53: =IF(COUNTRY_INFO!A53=0," ",COUNTRY_INFO!A53) -> Mali | B53: =IF(COUNTRY_INFO!B53=0," ",COUNTRY_INFO!B53) -> Mopti | C53: =IF(COUNTRY_INFO!C53=0," ",COUNTRY_INFO!C53) -> Mopti | D53: =IF(COUNTRY_INFO!$Z53="MDA1 (IVM+ALB)", COUNTRY_INFO!$Z53, " ") ->  | I53: 0 | M53: 0
A54: =IF(COUNTRY_INFO!A54=0," ",COUNTRY_INFO!A54) -> Mali | B54: =IF(COUNTRY_INFO!B54=0," ",COUNTRY_INFO!B54) -> Mopti | C54: =IF(COUNTRY_INFO!C54=0," ",COUNTRY_INFO!C54) -> Teninkou | D54: =IF(COUNTRY_INFO!$Z54="MDA1 (IVM+ALB)", COUNTRY_INFO!$Z54, " ") ->  | I54: 0 | M54: 0
A55: =IF(COUNTRY_INFO!A55=0," ",COUNTRY_INFO!A55) -> Mali | B55: =IF(COUNTRY_INFO!B55=0," ",COUNTRY_INFO!B55) -> Mopti | C55: =IF(COUNTRY_INFO!C55=0," ",COUNTRY_INFO!C55) -> Youwarou | D55: =IF(COUNTRY_INFO!$Z55="MDA1 (IVM+ALB)", COUNTRY_INFO!$Z55, " ") ->  | I55: 0 | M55: 0
A56: =IF(COUNTRY_INFO!A56=0," ",COUNTRY_INFO!A56) -> Mali | B56: =IF(COUNTRY_INFO!B56=0," ",COUNTRY_INFO!B56) -> Segou | C56: =IF(COUNTRY_INFO!C56=0," ",COUNTRY_INFO!C56) -> Barouéli | D56: =IF(COUNTRY_INFO!$Z56="MDA1 (IVM+ALB)", COUNTRY_INFO!$Z56, " ") ->  | I56: 0 | M56: 0
A57: =IF(COUNTRY_INFO!A57=0," ",COUNTRY_INFO!A57) -> Mali | B57: =IF(COUNTRY_INFO!B57=0," ",COUNTRY_INFO!B57) -> Segou | C57: =IF(COUNTRY_INFO!C57=0," ",COUNTRY_INFO!C57) -> Bla | D57: =IF(COUNTRY_INFO!$Z57="MDA1 (IVM+ALB)", COUNTRY_INFO!$Z57, " ") ->  | I57: 0 | M57: 0
A58: =IF(COUNTRY_INFO!A58=0," ",COUNTRY_INFO!A58) -> Mali | B58: =IF(COUNTRY_INFO!B58=0," ",COUNTRY_INFO!B58) -> Segou | C58: =IF(COUNTRY_INFO!C58=0," ",COUNTRY_INFO!C58) -> Macina | D58: =IF(COUNTRY_INFO!$Z58="MDA1 (IVM+ALB)", COUNTRY_INFO!$Z58, " ") ->  | I58: 0 | M58: 0
A59: =IF(COUNTRY_INFO!A59=0," ",COUNTRY_INFO!A59) -> Mali | B59: =IF(COUNTRY_INFO!B59=0," ",COUNTRY_INFO!B59) -> Segou | C59: =IF(COUNTRY_INFO!C59=0," ",COUNTRY_INFO!C59) -> Markala | D59: =IF(COUNTRY_INFO!$Z59="MDA1 (IVM+ALB)", COUNTRY_INFO!$Z59, " ") ->  | I59: 0 | M59: 0
A60: =IF(COUNTRY_INFO!A60=0," ",COUNTRY_INFO!A60) -> Mali | B60: =IF(COUNTRY_INFO!B60=0," ",COUNTRY_INFO!B60) -> Segou | C60: =IF(COUNTRY_INFO!C60=0," ",COUNTRY_INFO!C60) -> Niono | D60: =IF(COUNTRY_INFO!$Z60="MDA1 (IVM+ALB)", COUNTRY_INFO!$Z60, " ") ->  | I60: 0 | M60: 0
A61: =IF(COUNTRY_INFO!A61=0," ",COUNTRY_INFO!A61) -> Mali | B61: =IF(COUNTRY_INFO!B61=0," ",COUNTRY_INFO!B61) -> Segou | C61: =IF(COUNTRY_INFO!C61=0," ",COUNTRY_INFO!C61) -> San | D61: =IF(COUNTRY_INFO!$Z61="MDA1 (IVM+ALB)", COUNTRY_INFO!$Z61, " ") ->  | I61: 0 | M61: 0
A62: =IF(COUNTRY_INFO!A62=0," ",COUNTRY_INFO!A62) -> Mali | B62: =IF(COUNTRY_INFO!B62=0," ",COUNTRY_INFO!B62) -> Segou | C62: =IF(COUNTRY_INFO!C62=0," ",COUNTRY_INFO!C62) -> Segou | D62: =IF(COUNTRY_INFO!$Z62="MDA1 (IVM+ALB)", COUNTRY_INFO!$Z62, " ") ->  | I62: 0 | M62: 0
A63: =IF(COUNTRY_INFO!A63=0," ",COUNTRY_INFO!A63) -> Mali | B63: =IF(COUNTRY_INFO!B63=0," ",COUNTRY_INFO!B63) -> Segou | C63: =IF(COUNTRY_INFO!C63=0," ",COUNTRY_INFO!C63) -> Tominian | D63: =IF(COUNTRY_INFO!$Z63="MDA1 (IVM+ALB)", COUNTRY_INFO!$Z63, " ") ->  | I63: 0 | M63: 0
A64: =IF(COUNTRY_INFO!A64=0," ",COUNTRY_INFO!A64) -> Mali | B64: =IF(COUNTRY_INFO!B64=0," ",COUNTRY_INFO!B64) -> Sikasso | C64: =IF(COUNTRY_INFO!C64=0," ",COUNTRY_INFO!C64) -> Bougouni | D64: =IF(COUNTRY_INFO!$Z64="MDA1 (IVM+ALB)", COUNTRY_INFO!$Z64, " ") ->  | I64: 0 | M64: 0
A65: =IF(COUNTRY_INFO!A65=0," ",COUNTRY_INFO!A65) -> Mali | B65: =IF(COUNTRY_INFO!B65=0," ",COUNTRY_INFO!B65) -> Sikasso | C65: =IF(COUNTRY_INFO!C65=0," ",COUNTRY_INFO!C65) -> Kadiolo | D65: =IF(COUNTRY_INFO!$Z65="MDA1 (IVM+ALB)", COUNTRY_INFO!$Z65, " ") ->  | I65: 0 | M65: 0
A66: =IF(COUNTRY_INFO!A66=0," ",COUNTRY_INFO!A66) -> Mali | B66: =IF(COUNTRY_INFO!B66=0," ",COUNTRY_INFO!B66) -> Sikasso | C66: =IF(COUNTRY_INFO!C66=0," ",COUNTRY_INFO!C66) -> Kignan | D66: =IF(COUNTRY_INFO!$Z66="MDA1 (IVM+ALB)", COUNTRY_INFO!$Z66, " ") ->  | I66: 0 | M66: 0
A67: =IF(COUNTRY_INFO!A67=0," ",COUNTRY_INFO!A67) -> Mali | B67: =IF(COUNTRY_INFO!B67=0," ",COUNTRY_INFO!B67) -> Sikasso | C67: =IF(COUNTRY_INFO!C67=0," ",COUNTRY_INFO!C67) -> Kolondieba | D67: =IF(COUNTRY_INFO!$Z67="MDA1 (IVM+ALB)", COUNTRY_INFO!$Z67, " ") ->  | I67: 0 | M67: 0
A68: =IF(COUNTRY_INFO!A68=0," ",COUNTRY_INFO!A68) -> Mali | B68: =IF(COUNTRY_INFO!B68=0," ",COUNTRY_INFO!B68) -> Sikasso | C68: =IF(COUNTRY_INFO!C68=0," ",COUNTRY_INFO!C68) -> Koutiala | D68: =IF(COUNTRY_INFO!$Z68="MDA1 (IVM+ALB)", COUNTRY_INFO!$Z68, " ") ->  | I68: 0 | M68: 0
A69: =IF(COUNTRY_INFO!A69=0," ",COUNTRY_INFO!A69) -> Mali | B69: =IF(COUNTRY_INFO!B69=0," ",COUNTRY_INFO!B69) -> Sikasso | C69: =IF(COUNTRY_INFO!C69=0," ",COUNTRY_INFO!C69) -> Niena | D69: =IF(COUNTRY_INFO!$Z69="MDA1 (IVM+ALB)", COUNTRY_INFO!$Z69, " ") ->  | I69: 0 | M69: 0
A70: =IF(COUNTRY_INFO!A70=0," ",COUNTRY_INFO!A70) -> Mali | B70: =IF(COUNTRY_INFO!B70=0," ",COUNTRY_INFO!B70) -> Sikasso | C70: =IF(COUNTRY_INFO!C70=0," ",COUNTRY_INFO!C70) -> Sélingué | D70: =IF(COUNTRY_INFO!$Z70="MDA1 (IVM+ALB)", COUNTRY_INFO!$Z70, " ") ->  | I70: 0 | M70: 0
A71: =IF(COUNTRY_INFO!A71=0," ",COUNTRY_INFO!A71) -> Mali | B71: =IF(COUNTRY_INFO!B71=0," ",COUNTRY_INFO!B71) -> Sikasso | C71: =IF(COUNTRY_INFO!C71=0," ",COUNTRY_INFO!C71) -> Sikasso | D71: =IF(COUNTRY_INFO!$Z71="MDA1 (IVM+ALB)", COUNTRY_INFO!$Z71, " ") ->  | I71: 0 | M71: 0
A72: =IF(COUNTRY_INFO!A72=0," ",COUNTRY_INFO!A72) -> Mali | B72: =IF(COUNTRY_INFO!B72=0," ",COUNTRY_INFO!B72) -> Sikasso | C72: =IF(COUNTRY_INFO!C72=0," ",COUNTRY_INFO!C72) -> Yanfolila | D72: =IF(COUNTRY_INFO!$Z72="MDA1 (IVM+ALB)", COUNTRY_INFO!$Z72, " ") ->  | I72: 0 | M72: 0
A73: =IF(COUNTRY_INFO!A73=0," ",COUNTRY_INFO!A73) -> Mali | B73: =IF(COUNTRY_INFO!B73=0," ",COUNTRY_INFO!B73) -> Sikasso | C73: =IF(COUNTRY_INFO!C73=0," ",COUNTRY_INFO!C73) -> Yorosso | D73: =IF(COUNTRY_INFO!$Z73="MDA1 (IVM+ALB)", COUNTRY_INFO!$Z73, " ") ->  | I73: 0 | M73: 0
A74: =IF(COUNTRY_INFO!A74=0," ",COUNTRY_INFO!A74) -> Mali | B74: =IF(COUNTRY_INFO!B74=0," ",COUNTRY_INFO!B74) -> Tombouctou | C74: =IF(COUNTRY_INFO!C74=0," ",COUNTRY_INFO!C74) -> Diré | D74: =IF(COUNTRY_INFO!$Z74="MDA1 (IVM+ALB)", COUNTRY_INFO!$Z74, " ") ->  | I74: 0 | M74: 0
A75: =IF(COUNTRY_INFO!A75=0," ",COUNTRY_INFO!A75) -> Mali | B75: =IF(COUNTRY_INFO!B75=0," ",COUNTRY_INFO!B75) -> Tombouctou | C75: =IF(COUNTRY_INFO!C75=0," ",COUNTRY_INFO!C75) -> Goundam | D75: =IF(COUNTRY_INFO!$Z75="MDA1 (IVM+ALB)", COUNTRY_INFO!$Z75, " ") ->  | I75: =SUM(F75:H75) -> 0 | M75: =SUM(J75:L75) -> 0 | O75: =IF(G75<>0, IF(K75/G75*100=0, "-", K75/G75*100), " ") ->  | P75: =IF(H75<>0, IF(L75/H75*100=0, "-", L75/H75*100), " ") ->  | Q75: =IF(I75<>0, IF(M75/I75*100=0, "-", M75/I75*100), " ") -> 
A76: =IF(COUNTRY_INFO!A76=0," ",COUNTRY_INFO!A76) -> Mali | B76: =IF(COUNTRY_INFO!B76=0," ",COUNTRY_INFO!B76) -> Tombouctou | C76: =IF(COUNTRY_INFO!C76=0," ",COUNTRY_INFO!C76) -> Gourma-Rharous | D76: =IF(COUNTRY_INFO!$Z76="MDA1 (IVM+ALB)", COUNTRY_INFO!$Z76, " ") ->  | I76: 0 | M76: 0
A77: =IF(COUNTRY_INFO!A77=0," ",COUNTRY_INFO!A77) -> Mali | B77: =IF(COUNTRY_INFO!B77=0," ",COUNTRY_INFO!B77) -> Tombouctou | C77: =IF(COUNTRY_INFO!C77=0," ",COUNTRY_INFO!C77) -> Niafunké | D77: =IF(COUNTRY_INFO!$Z77="MDA1 (IVM+ALB)", COUNTRY_INFO!$Z77, " ") ->  | I77: 0 | M77: 0
A78: =IF(COUNTRY_INFO!A78=0," ",COUNTRY_INFO!A78) -> Mali | B78: =IF(COUNTRY_INFO!B78=0," ",COUNTRY_INFO!B78) -> Tombouctou | C78: =IF(COUNTRY_INFO!C78=0," ",COUNTRY_INFO!C78) -> Tombouctou | D78: =IF(COUNTRY_INFO!$Z78="MDA1 (IVM+ALB)", COUNTRY_INFO!$Z78, " ") ->  | I78: 0 | M78: 0
A79: =IF(COUNTRY_INFO!A79=0," ",COUNTRY_INFO!A79) -> Mali | B79: =IF(COUNTRY_INFO!B79=0," ",COUNTRY_INFO!B79) -> Taoudenit | C79: =IF(COUNTRY_INFO!C79=0," ",COUNTRY_INFO!C79) -> Achourat | D79: =IF(COUNTRY_INFO!$Z79="MDA1 (IVM+ALB)", COUNTRY_INFO!$Z79, " ") ->  | I79: 0 | M79: 0
A80: =IF(COUNTRY_INFO!A80=0," ",COUNTRY_INFO!A80) -> Mali | B80: =IF(COUNTRY_INFO!B80=0," ",COUNTRY_INFO!B80) -> Taoudenit | C80: =IF(COUNTRY_INFO!C80=0," ",COUNTRY_INFO!C80) -> Al-Ourch | D80: =IF(COUNTRY_INFO!$Z80="MDA1 (IVM+ALB)", COUNTRY_INFO!$Z80, " ") ->  | I80: 0 | M80: 0
A81: =IF(COUNTRY_INFO!A81=0," ",COUNTRY_INFO!A81) -> Mali | B81: =IF(COUNTRY_INFO!B81=0," ",COUNTRY_INFO!B81) -> Taoudenit | C81: =IF(COUNTRY_INFO!C81=0," ",COUNTRY_INFO!C81) -> Araouane | D81: =IF(COUNTRY_INFO!$Z81="MDA1 (IVM+ALB)", COUNTRY_INFO!$Z81, " ") ->  | I81: 0 | M81: 0
A82: =IF(COUNTRY_INFO!A82=0," ",COUNTRY_INFO!A82) -> Mali | B82: =IF(COUNTRY_INFO!B82=0," ",COUNTRY_INFO!B82) -> Taoudenit | C82: =IF(COUNTRY_INFO!C82=0," ",COUNTRY_INFO!C82) -> Boujbeha | D82: =IF(COUNTRY_INFO!$Z82="MDA1 (IVM+ALB)", COUNTRY_INFO!$Z82, " ") ->  | I82: 0 | M82: 0
A83: =IF(COUNTRY_INFO!A83=0," ",COUNTRY_INFO!A83) -> Mali | B83: =IF(COUNTRY_INFO!B83=0," ",COUNTRY_INFO!B83) -> Taoudenit | C83: =IF(COUNTRY_INFO!C83=0," ",COUNTRY_INFO!C83) -> Foum-Elba | D83: =IF(COUNTRY_INFO!$Z83="MDA1 (IVM+ALB)", COUNTRY_INFO!$Z83, " ") ->  | I83: 0 | M83: 0
A84: =IF(COUNTRY_INFO!A84=0," ",COUNTRY_INFO!A84) -> Mali | B84: =IF(COUNTRY_INFO!B84=0," ",COUNTRY_INFO!B84) -> Taoudenit | C84: =IF(COUNTRY_INFO!C84=0," ",COUNTRY_INFO!C84) -> Taoudenit | D84: =IF(COUNTRY_INFO!$Z84="MDA1 (IVM+ALB)", COUNTRY_INFO!$Z84, " ") ->  | I84: 0 | M84: 0

Sheet MDA2 (hidden)
A1: MDA 2 - Diethylcarbamazine (DEC) + Albendazole (ALB)
A2: Structure administrative, population nécessitant une chimioprévention par groupe d'âge, population traitée par groupe d'âge et couverture
A4: TOTAL | F4: =SUBTOTAL(9,F$10:F$1010) -> 0 | G4: 0 | H4: 0 | I4: 0 | J4: 0 | K4: 0 | L4: 0 | M4: 0 | N4: =IF(F4<>0, IF(J4/F4*100=0, "-", J4/F4*100), " ") ->  | O4: =IF(G4<>0, IF(K4/G4*100=0, "-", K4/G4*100), " ") ->  | P4: =IF(H4<>0, IF(L4/H4*100=0, "-", L4/H4*100), " ") ->  | Q4: =IF(I4<>0, IF(M4/I4*100=0, "-", M4/I4*100), " ") -> 
A6: Structure administrative du pays | D6: Mise en oeuvre de la CP | E6: Date | F6: Population ciblée pour MDA 2 | J6: Population traitée | N6: Couverture du Programme (%)
A7: Pays | B7: Région/Département | C7: District | F7: EAPréS | G7: EAS | H7: Adultes | I7: Total | J7: EAPréS | K7: EAS | L7: Adultes | M7: Total | N7: EAPréS | O7: EAS | P7: Adultes | Q7: Total
A10: =IF(COUNTRY_INFO!A10=0," ",COUNTRY_INFO!A10) -> Mali | B10: =IF(COUNTRY_INFO!B10=0," ",COUNTRY_INFO!B10) -> Bamako | C10: =IF(COUNTRY_INFO!C10=0," ",COUNTRY_INFO!C10) -> Commune 1 | D10: =IF(COUNTRY_INFO!$Z10="MDA2 (DEC+ALB)", COUNTRY_INFO!$Z10, " ") ->  | I10: =SUM(F10:H10) -> 0 | M10: =SUM(J10:L10) -> 0 | N10: =IF(F10<>0, IF(J10/F10*100=0, "-", J10/F10*100), " ") ->  | O10: =IF(G10<>0, IF(K10/G10*100=0, "-", K10/G10*100), " ") -> 
A11: =IF(COUNTRY_INFO!A11=0," ",COUNTRY_INFO!A11) -> Mali | B11: =IF(COUNTRY_INFO!B11=0," ",COUNTRY_INFO!B11) -> Bamako | C11: =IF(COUNTRY_INFO!C11=0," ",COUNTRY_INFO!C11) -> Commune 2 | D11: =IF(COUNTRY_INFO!$Z11="MDA2 (DEC+ALB)", COUNTRY_INFO!$Z11, " ") ->  | I11: =SUM(F11:H11) -> 0 | M11: =SUM(J11:L11) -> 0 | N11: =IF(F11<>0, IF(J11/F11*100=0, "-", J11/F11*100), " ") ->  | O11: =IF(G11<>0, IF(K11/G11*100=0, "-", K11/G11*100), " ") ->  | P11: =IF(H11<>0, IF(L11/H11*100=0, "-", L11/H11*100), " ") ->  | Q11: =IF(I11<>0, IF(M11/I11*100=0, "-", M11/I11*100), " ") -> 
A12: =IF(COUNTRY_INFO!A12=0," ",COUNTRY_INFO!A12) -> Mali | B12: =IF(COUNTRY_INFO!B12=0," ",COUNTRY_INFO!B12) -> Bamako | C12: =IF(COUNTRY_INFO!C12=0," ",COUNTRY_INFO!C12) -> Commune 3 | D12: =IF(COUNTRY_INFO!$Z12="MDA2 (DEC+ALB)", COUNTRY_INFO!$Z12, " ") ->  | I12: 0 | M12: 0
A13: =IF(COUNTRY_INFO!A13=0," ",COUNTRY_INFO!A13) -> Mali | B13: =IF(COUNTRY_INFO!B13=0," ",COUNTRY_INFO!B13) -> Bamako | C13: =IF(COUNTRY_INFO!C13=0," ",COUNTRY_INFO!C13) -> Commune 4 | D13: =IF(COUNTRY_INFO!$Z13="MDA2 (DEC+ALB)", COUNTRY_INFO!$Z13, " ") ->  | I13: 0 | M13: 0
A14: =IF(COUNTRY_INFO!A14=0," ",COUNTRY_INFO!A14) -> Mali | B14: =IF(COUNTRY_INFO!B14=0," ",COUNTRY_INFO!B14) -> Bamako | C14: =IF(COUNTRY_INFO!C14=0," ",COUNTRY_INFO!C14) -> Commune 5 | D14: =IF(COUNTRY_INFO!$Z14="MDA2 (DEC+ALB)", COUNTRY_INFO!$Z14, " ") ->  | I14: 0 | M14: 0
A15: =IF(COUNTRY_INFO!A15=0," ",COUNTRY_INFO!A15) -> Mali | B15: =IF(COUNTRY_INFO!B15=0," ",COUNTRY_INFO!B15) -> Bamako | C15: =IF(COUNTRY_INFO!C15=0," ",COUNTRY_INFO!C15) -> Commune 6 | D15: =IF(COUNTRY_INFO!$Z15="MDA2 (DEC+ALB)", COUNTRY_INFO!$Z15, " ") ->  | I15: 0 | M15: 0
A16: =IF(COUNTRY_INFO!A16=0," ",COUNTRY_INFO!A16) -> Mali | B16: =IF(COUNTRY_INFO!B16=0," ",COUNTRY_INFO!B16) -> Gao | C16: =IF(COUNTRY_INFO!C16=0," ",COUNTRY_INFO!C16) -> Ansongo | D16: =IF(COUNTRY_INFO!$Z16="MDA2 (DEC+ALB)", COUNTRY_INFO!$Z16, " ") ->  | I16: 0 | M16: 0
A17: =IF(COUNTRY_INFO!A17=0," ",COUNTRY_INFO!A17) -> Mali | B17: =IF(COUNTRY_INFO!B17=0," ",COUNTRY_INFO!B17) -> Gao | C17: =IF(COUNTRY_INFO!C17=0," ",COUNTRY_INFO!C17) -> Bourem | D17: =IF(COUNTRY_INFO!$Z17="MDA2 (DEC+ALB)", COUNTRY_INFO!$Z17, " ") ->  | I17: 0 | M17: 0
A18: =IF(COUNTRY_INFO!A18=0," ",COUNTRY_INFO!A18) -> Mali | B18: =IF(COUNTRY_INFO!B18=0," ",COUNTRY_INFO!B18) -> Gao | C18: =IF(COUNTRY_INFO!C18=0," ",COUNTRY_INFO!C18) -> Almoustrat | D18: =IF(COUNTRY_INFO!$Z18="MDA2 (DEC+ALB)", COUNTRY_INFO!$Z18, " ") ->  | I18: 0 | M18: 0
A19: =IF(COUNTRY_INFO!A19=0," ",COUNTRY_INFO!A19) -> Mali | B19: =IF(COUNTRY_INFO!B19=0," ",COUNTRY_INFO!B19) -> Gao | C19: =IF(COUNTRY_INFO!C19=0," ",COUNTRY_INFO!C19) -> Gao | D19: =IF(COUNTRY_INFO!$Z19="MDA2 (DEC+ALB)", COUNTRY_INFO!$Z19, " ") ->  | I19: 0 | M19: 0
A20: =IF(COUNTRY_INFO!A20=0," ",COUNTRY_INFO!A20) -> Mali | B20: =IF(COUNTRY_INFO!B20=0," ",COUNTRY_INFO!B20) -> Menaka | C20: =IF(COUNTRY_INFO!C20=0," ",COUNTRY_INFO!C20) -> Menaka | D20: =IF(COUNTRY_INFO!$Z20="MDA2 (DEC+ALB)", COUNTRY_INFO!$Z20, " ") ->  | I20: 0 | M20: 0
A21: =IF(COUNTRY_INFO!A21=0," ",COUNTRY_INFO!A21) -> Mali | B21: =IF(COUNTRY_INFO!B21=0," ",COUNTRY_INFO!B21) -> Menaka | C21: =IF(COUNTRY_INFO!C21=0," ",COUNTRY_INFO!C21) -> Anderamboukane | D21: =IF(COUNTRY_INFO!$Z21="MDA2 (DEC+ALB)", COUNTRY_INFO!$Z21, " ") ->  | I21: 0 | M21: 0
A22: =IF(COUNTRY_INFO!A22=0," ",COUNTRY_INFO!A22) -> Mali | B22: =IF(COUNTRY_INFO!B22=0," ",COUNTRY_INFO!B22) -> Menaka | C22: =IF(COUNTRY_INFO!C22=0," ",COUNTRY_INFO!C22) -> Inekar | D22: =IF(COUNTRY_INFO!$Z22="MDA2 (DEC+ALB)", COUNTRY_INFO!$Z22, " ") ->  | I22: 0 | M22: 0
A23: =IF(COUNTRY_INFO!A23=0," ",COUNTRY_INFO!A23) -> Mali | B23: =IF(COUNTRY_INFO!B23=0," ",COUNTRY_INFO!B23) -> Menaka | C23: =IF(COUNTRY_INFO!C23=0," ",COUNTRY_INFO!C23) -> Tidermene | D23: =IF(COUNTRY_INFO!$Z23="MDA2 (DEC+ALB)", COUNTRY_INFO!$Z23, " ") ->  | I23: 0 | M23: 0
A24: =IF(COUNTRY_INFO!A24=0," ",COUNTRY_INFO!A24) -> Mali | B24: =IF(COUNTRY_INFO!B24=0," ",COUNTRY_INFO!B24) -> Kayes | C24: =IF(COUNTRY_INFO!C24=0," ",COUNTRY_INFO!C24) -> Bafoulabe | D24: =IF(COUNTRY_INFO!$Z24="MDA2 (DEC+ALB)", COUNTRY_INFO!$Z24, " ") ->  | I24: 0 | M24: 0
A25: =IF(COUNTRY_INFO!A25=0," ",COUNTRY_INFO!A25) -> Mali | B25: =IF(COUNTRY_INFO!B25=0," ",COUNTRY_INFO!B25) -> Kayes | C25: =IF(COUNTRY_INFO!C25=0," ",COUNTRY_INFO!C25) -> Diema | D25: =IF(COUNTRY_INFO!$Z25="MDA2 (DEC+ALB)", COUNTRY_INFO!$Z25, " ") ->  | I25: 0 | M25: 0
A26: =IF(COUNTRY_INFO!A26=0," ",COUNTRY_INFO!A26) -> Mali | B26: =IF(COUNTRY_INFO!B26=0," ",COUNTRY_INFO!B26) -> Kayes | C26: =IF(COUNTRY_INFO!C26=0," ",COUNTRY_INFO!C26) -> Kayes | D26: =IF(COUNTRY_INFO!$Z26="MDA2 (DEC+ALB)", COUNTRY_INFO!$Z26, " ") ->  | I26: 0 | M26: 0
A27: =IF(COUNTRY_INFO!A27=0," ",COUNTRY_INFO!A27) -> Mali | B27: =IF(COUNTRY_INFO!B27=0," ",COUNTRY_INFO!B27) -> Kayes | C27: =IF(COUNTRY_INFO!C27=0," ",COUNTRY_INFO!C27) -> Kenieba | D27: =IF(COUNTRY_INFO!$Z27="MDA2 (DEC+ALB)", COUNTRY_INFO!$Z27, " ") ->  | I27: 0 | M27: 0
A28: =IF(COUNTRY_INFO!A28=0," ",COUNTRY_INFO!A28) -> Mali | B28: =IF(COUNTRY_INFO!B28=0," ",COUNTRY_INFO!B28) -> Kayes | C28: =IF(COUNTRY_INFO!C28=0," ",COUNTRY_INFO!C28) -> Kita | D28: =IF(COUNTRY_INFO!$Z28="MDA2 (DEC+ALB)", COUNTRY_INFO!$Z28, " ") ->  | I28: 0 | M28: 0
A29: =IF(COUNTRY_INFO!A29=0," ",COUNTRY_INFO!A29) -> Mali | B29: =IF(COUNTRY_INFO!B29=0," ",COUNTRY_INFO!B29) -> Kayes | C29: =IF(COUNTRY_INFO!C29=0," ",COUNTRY_INFO!C29) -> Sagabari | D29: =IF(COUNTRY_INFO!$Z29="MDA2 (DEC+ALB)", COUNTRY_INFO!$Z29, " ") ->  | I29: 0 | M29: 0
A30: =IF(COUNTRY_INFO!A30=0," ",COUNTRY_INFO!A30) -> Mali | B30: =IF(COUNTRY_INFO!B30=0," ",COUNTRY_INFO!B30) -> Kayes | C30: =IF(COUNTRY_INFO!C30=0," ",COUNTRY_INFO!C30) -> Sefeto | D30: =IF(COUNTRY_INFO!$Z30="MDA2 (DEC+ALB)", COUNTRY_INFO!$Z30, " ") ->  | I30: 0 | M30: 0
A31: =IF(COUNTRY_INFO!A31=0," ",COUNTRY_INFO!A31) -> Mali | B31: =IF(COUNTRY_INFO!B31=0," ",COUNTRY_INFO!B31) -> Kayes | C31: =IF(COUNTRY_INFO!C31=0," ",COUNTRY_INFO!C31) -> Nioro | D31: =IF(COUNTRY_INFO!$Z31="MDA2 (DEC+ALB)", COUNTRY_INFO!$Z31, " ") ->  | I31: 0 | M31: 0
A32: =IF(COUNTRY_INFO!A32=0," ",COUNTRY_INFO!A32) -> Mali | B32: =IF(COUNTRY_INFO!B32=0," ",COUNTRY_INFO!B32) -> Kayes | C32: =IF(COUNTRY_INFO!C32=0," ",COUNTRY_INFO!C32) -> Oussoubidiagna | D32: =IF(COUNTRY_INFO!$Z32="MDA2 (DEC+ALB)", COUNTRY_INFO!$Z32, " ") ->  | I32: 0 | M32: 0
A33: =IF(COUNTRY_INFO!A33=0," ",COUNTRY_INFO!A33) -> Mali | B33: =IF(COUNTRY_INFO!B33=0," ",COUNTRY_INFO!B33) -> Kayes | C33: =IF(COUNTRY_INFO!C33=0," ",COUNTRY_INFO!C33) -> Yelimane | D33: =IF(COUNTRY_INFO!$Z33="MDA2 (DEC+ALB)", COUNTRY_INFO!$Z33, " ") ->  | I33: 0 | M33: 0
A34: =IF(COUNTRY_INFO!A34=0," ",COUNTRY_INFO!A34) -> Mali | B34: =IF(COUNTRY_INFO!B34=0," ",COUNTRY_INFO!B34) -> Kidal | C34: =IF(COUNTRY_INFO!C34=0," ",COUNTRY_INFO!C34) -> Abeibara | D34: =IF(COUNTRY_INFO!$Z34="MDA2 (DEC+ALB)", COUNTRY_INFO!$Z34, " ") ->  | I34: 0 | M34: 0
A35: =IF(COUNTRY_INFO!A35=0," ",COUNTRY_INFO!A35) -> Mali | B35: =IF(COUNTRY_INFO!B35=0," ",COUNTRY_INFO!B35) -> Kidal | C35: =IF(COUNTRY_INFO!C35=0," ",COUNTRY_INFO!C35) -> Kidal | D35: =IF(COUNTRY_INFO!$Z35="MDA2 (DEC+ALB)", COUNTRY_INFO!$Z35, " ") ->  | I35: 0 | M35: 0
A36: =IF(COUNTRY_INFO!A36=0," ",COUNTRY_INFO!A36) -> Mali | B36: =IF(COUNTRY_INFO!B36=0," ",COUNTRY_INFO!B36) -> Kidal | C36: =IF(COUNTRY_INFO!C36=0," ",COUNTRY_INFO!C36) -> Tessalit | D36: =IF(COUNTRY_INFO!$Z36="MDA2 (DEC+ALB)", COUNTRY_INFO!$Z36, " ") ->  | I36: 0 | M36: 0
A37: =IF(COUNTRY_INFO!A37=0," ",COUNTRY_INFO!A37) -> Mali | B37: =IF(COUNTRY_INFO!B37=0," ",COUNTRY_INFO!B37) -> Kidal | C37: =IF(COUNTRY_INFO!C37=0," ",COUNTRY_INFO!C37) -> Tin-Essako | D37: =IF(COUNTRY_INFO!$Z37="MDA2 (DEC+ALB)", COUNTRY_INFO!$Z37, " ") ->  | I37: 0 | M37: 0
A38: =IF(COUNTRY_INFO!A38=0," ",COUNTRY_INFO!A38) -> Mali | B38: =IF(COUNTRY_INFO!B38=0," ",COUNTRY_INFO!B38) -> Koulikoro | C38: =IF(COUNTRY_INFO!C38=0," ",COUNTRY_INFO!C38) -> Banamba | D38: =IF(COUNTRY_INFO!$Z38="MDA2 (DEC+ALB)", COUNTRY_INFO!$Z38, " ") ->  | I38: 0 | M38: 0
A39: =IF(COUNTRY_INFO!A39=0," ",COUNTRY_INFO!A39) -> Mali | B39: =IF(COUNTRY_INFO!B39=0," ",COUNTRY_INFO!B39) -> Koulikoro | C39: =IF(COUNTRY_INFO!C39=0," ",COUNTRY_INFO!C39) -> Dioila | D39: =IF(COUNTRY_INFO!$Z39="MDA2 (DEC+ALB)", COUNTRY_INFO!$Z39, " ") ->  | I39: 0 | M39: 0
A40: =IF(COUNTRY_INFO!A40=0," ",COUNTRY_INFO!A40) -> Mali | B40: =IF(COUNTRY_INFO!B40=0," ",COUNTRY_INFO!B40) -> Koulikoro | C40: =IF(COUNTRY_INFO!C40=0," ",COUNTRY_INFO!C40) -> Fana | D40: =IF(COUNTRY_INFO!$Z40="MDA2 (DEC+ALB)", COUNTRY_INFO!$Z40, " ") ->  | I40: 0 | M40: 0
A41: =IF(COUNTRY_INFO!A41=0," ",COUNTRY_INFO!A41) -> Mali | B41: =IF(COUNTRY_INFO!B41=0," ",COUNTRY_INFO!B41) -> Koulikoro | C41: =IF(COUNTRY_INFO!C41=0," ",COUNTRY_INFO!C41) -> Kalabancoro | D41: =IF(COUNTRY_INFO!$Z41="MDA2 (DEC+ALB)", COUNTRY_INFO!$Z41, " ") ->  | I41: 0 | M41: 0
A42: =IF(COUNTRY_INFO!A42=0," ",COUNTRY_INFO!A42) -> Mali | B42: =IF(COUNTRY_INFO!B42=0," ",COUNTRY_INFO!B42) -> Koulikoro | C42: =IF(COUNTRY_INFO!C42=0," ",COUNTRY_INFO!C42) -> Kangaba | D42: =IF(COUNTRY_INFO!$Z42="MDA2 (DEC+ALB)", COUNTRY_INFO!$Z42, " ") ->  | I42: 0 | M42: 0
A43: =IF(COUNTRY_INFO!A43=0," ",COUNTRY_INFO!A43) -> Mali | B43: =IF(COUNTRY_INFO!B43=0," ",COUNTRY_INFO!B43) -> Koulikoro | C43: =IF(COUNTRY_INFO!C43=0," ",COUNTRY_INFO!C43) -> Kati | D43: =IF(COUNTRY_INFO!$Z43="MDA2 (DEC+ALB)", COUNTRY_INFO!$Z43, " ") ->  | I43: 0 | M43: 0
A44: =IF(COUNTRY_INFO!A44=0," ",COUNTRY_INFO!A44) -> Mali | B44: =IF(COUNTRY_INFO!B44=0," ",COUNTRY_INFO!B44) -> Koulikoro | C44: =IF(COUNTRY_INFO!C44=0," ",COUNTRY_INFO!C44) -> Kolokani | D44: =IF(COUNTRY_INFO!$Z44="MDA2 (DEC+ALB)", COUNTRY_INFO!$Z44, " ") ->  | I44: 0 | M44: 0
A45: =IF(COUNTRY_INFO!A45=0," ",COUNTRY_INFO!A45) -> Mali | B45: =IF(COUNTRY_INFO!B45=0," ",COUNTRY_INFO!B45) -> Koulikoro | C45: =IF(COUNTRY_INFO!C45=0," ",COUNTRY_INFO!C45) -> Koulikoro | D45: =IF(COUNTRY_INFO!$Z45="MDA2 (DEC+ALB)", COUNTRY_INFO!$Z45, " ") ->  | I45: 0 | M45: 0
A46: =IF(COUNTRY_INFO!A46=0," ",COUNTRY_INFO!A46) -> Mali | B46: =IF(COUNTRY_INFO!B46=0," ",COUNTRY_INFO!B46) -> Koulikoro | C46: =IF(COUNTRY_INFO!C46=0," ",COUNTRY_INFO!C46) -> Nara | D46: =IF(COUNTRY_INFO!$Z46="MDA2 (DEC+ALB)", COUNTRY_INFO!$Z46, " ") ->  | I46: 0 | M46: 0
A47: =IF(COUNTRY_INFO!A47=0," ",COUNTRY_INFO!A47) -> Mali | B47: =IF(COUNTRY_INFO!B47=0," ",COUNTRY_INFO!B47) -> Koulikoro | C47: =IF(COUNTRY_INFO!C47=0," ",COUNTRY_INFO!C47) -> Ouelessebougou | D47: =IF(COUNTRY_INFO!$Z47="MDA2 (DEC+ALB)", COUNTRY_INFO!$Z47, " ") ->  | I47: 0 | M47: 0
A48: =IF(COUNTRY_INFO!A48=0," ",COUNTRY_INFO!A48) -> Mali | B48: =IF(COUNTRY_INFO!B48=0," ",COUNTRY_INFO!B48) -> Mopti | C48: =IF(COUNTRY_INFO!C48=0," ",COUNTRY_INFO!C48) -> Bandiagara | D48: =IF(COUNTRY_INFO!$Z48="MDA2 (DEC+ALB)", COUNTRY_INFO!$Z48, " ") ->  | I48: 0 | M48: 0
A49: =IF(COUNTRY_INFO!A49=0," ",COUNTRY_INFO!A49) -> Mali | B49: =IF(COUNTRY_INFO!B49=0," ",COUNTRY_INFO!B49) -> Mopti | C49: =IF(COUNTRY_INFO!C49=0," ",COUNTRY_INFO!C49) -> Bankass | D49: =IF(COUNTRY_INFO!$Z49="MDA2 (DEC+ALB)", COUNTRY_INFO!$Z49, " ") ->  | I49: 0 | M49: 0
A50: =IF(COUNTRY_INFO!A50=0," ",COUNTRY_INFO!A50) -> Mali | B50: =IF(COUNTRY_INFO!B50=0," ",COUNTRY_INFO!B50) -> Mopti | C50: =IF(COUNTRY_INFO!C50=0," ",COUNTRY_INFO!C50) -> Djenne | D50: =IF(COUNTRY_INFO!$Z50="MDA2 (DEC+ALB)", COUNTRY_INFO!$Z50, " ") ->  | I50: 0 | M50: 0
A51: =IF(COUNTRY_INFO!A51=0," ",COUNTRY_INFO!A51) -> Mali | B51: =IF(COUNTRY_INFO!B51=0," ",COUNTRY_INFO!B51) -> Mopti | C51: =IF(COUNTRY_INFO!C51=0," ",COUNTRY_INFO!C51) -> Douentza | D51: =IF(COUNTRY_INFO!$Z51="MDA2 (DEC+ALB)", COUNTRY_INFO!$Z51, " ") ->  | I51: 0 | M51: 0
A52: =IF(COUNTRY_INFO!A52=0," ",COUNTRY_INFO!A52) -> Mali | B52: =IF(COUNTRY_INFO!B52=0," ",COUNTRY_INFO!B52) -> Mopti | C52: =IF(COUNTRY_INFO!C52=0," ",COUNTRY_INFO!C52) -> Koro | D52: =IF(COUNTRY_INFO!$Z52="MDA2 (DEC+ALB)", COUNTRY_INFO!$Z52, " ") ->  | I52: 0 | M52: 0
A53: =IF(COUNTRY_INFO!A53=0," ",COUNTRY_INFO!A53) -> Mali | B53: =IF(COUNTRY_INFO!B53=0," ",COUNTRY_INFO!B53) -> Mopti | C53: =IF(COUNTRY_INFO!C53=0," ",COUNTRY_INFO!C53) -> Mopti | D53: =IF(COUNTRY_INFO!$Z53="MDA2 (DEC+ALB)", COUNTRY_INFO!$Z53, " ") ->  | I53: 0 | M53: 0
A54: =IF(COUNTRY_INFO!A54=0," ",COUNTRY_INFO!A54) -> Mali | B54: =IF(COUNTRY_INFO!B54=0," ",COUNTRY_INFO!B54) -> Mopti | C54: =IF(COUNTRY_INFO!C54=0," ",COUNTRY_INFO!C54) -> Teninkou | D54: =IF(COUNTRY_INFO!$Z54="MDA2 (DEC+ALB)", COUNTRY_INFO!$Z54, " ") ->  | I54: 0 | M54: 0
A55: =IF(COUNTRY_INFO!A55=0," ",COUNTRY_INFO!A55) -> Mali | B55: =IF(COUNTRY_INFO!B55=0," ",COUNTRY_INFO!B55) -> Mopti | C55: =IF(COUNTRY_INFO!C55=0," ",COUNTRY_INFO!C55) -> Youwarou | D55: =IF(COUNTRY_INFO!$Z55="MDA2 (DEC+ALB)", COUNTRY_INFO!$Z55, " ") ->  | I55: 0 | M55: 0
A56: =IF(COUNTRY_INFO!A56=0," ",COUNTRY_INFO!A56) -> Mali | B56: =IF(COUNTRY_INFO!B56=0," ",COUNTRY_INFO!B56) -> Segou | C56: =IF(COUNTRY_INFO!C56=0," ",COUNTRY_INFO!C56) -> Barouéli | D56: =IF(COUNTRY_INFO!$Z56="MDA2 (DEC+ALB)", COUNTRY_INFO!$Z56, " ") ->  | I56: 0 | M56: 0
A57: =IF(COUNTRY_INFO!A57=0," ",COUNTRY_INFO!A57) -> Mali | B57: =IF(COUNTRY_INFO!B57=0," ",COUNTRY_INFO!B57) -> Segou | C57: =IF(COUNTRY_INFO!C57=0," ",COUNTRY_INFO!C57) -> Bla | D57: =IF(COUNTRY_INFO!$Z57="MDA2 (DEC+ALB)", COUNTRY_INFO!$Z57, " ") ->  | I57: 0 | M57: 0
A58: =IF(COUNTRY_INFO!A58=0," ",COUNTRY_INFO!A58) -> Mali | B58: =IF(COUNTRY_INFO!B58=0," ",COUNTRY_INFO!B58) -> Segou | C58: =IF(COUNTRY_INFO!C58=0," ",COUNTRY_INFO!C58) -> Macina | D58: =IF(COUNTRY_INFO!$Z58="MDA2 (DEC+ALB)", COUNTRY_INFO!$Z58, " ") ->  | I58: 0 | M58: 0
A59: =IF(COUNTRY_INFO!A59=0," ",COUNTRY_INFO!A59) -> Mali | B59: =IF(COUNTRY_INFO!B59=0," ",COUNTRY_INFO!B59) -> Segou | C59: =IF(COUNTRY_INFO!C59=0," ",COUNTRY_INFO!C59) -> Markala | D59: =IF(COUNTRY_INFO!$Z59="MDA2 (DEC+ALB)", COUNTRY_INFO!$Z59, " ") ->  | I59: 0 | M59: 0
A60: =IF(COUNTRY_INFO!A60=0," ",COUNTRY_INFO!A60) -> Mali | B60: =IF(COUNTRY_INFO!B60=0," ",COUNTRY_INFO!B60) -> Segou | C60: =IF(COUNTRY_INFO!C60=0," ",COUNTRY_INFO!C60) -> Niono | D60: =IF(COUNTRY_INFO!$Z60="MDA2 (DEC+ALB)", COUNTRY_INFO!$Z60, " ") ->  | I60: 0 | M60: 0
A61: =IF(COUNTRY_INFO!A61=0," ",COUNTRY_INFO!A61) -> Mali | B61: =IF(COUNTRY_INFO!B61=0," ",COUNTRY_INFO!B61) -> Segou | C61: =IF(COUNTRY_INFO!C61=0," ",COUNTRY_INFO!C61) -> San | D61: =IF(COUNTRY_INFO!$Z61="MDA2 (DEC+ALB)", COUNTRY_INFO!$Z61, " ") ->  | I61: 0 | M61: 0
A62: =IF(COUNTRY_INFO!A62=0," ",COUNTRY_INFO!A62) -> Mali | B62: =IF(COUNTRY_INFO!B62=0," ",COUNTRY_INFO!B62) -> Segou | C62: =IF(COUNTRY_INFO!C62=0," ",COUNTRY_INFO!C62) -> Segou | D62: =IF(COUNTRY_INFO!$Z62="MDA2 (DEC+ALB)", COUNTRY_INFO!$Z62, " ") ->  | I62: 0 | M62: 0
A63: =IF(COUNTRY_INFO!A63=0," ",COUNTRY_INFO!A63) -> Mali | B63: =IF(COUNTRY_INFO!B63=0," ",COUNTRY_INFO!B63) -> Segou | C63: =IF(COUNTRY_INFO!C63=0," ",COUNTRY_INFO!C63) -> Tominian | D63: =IF(COUNTRY_INFO!$Z63="MDA2 (DEC+ALB)", COUNTRY_INFO!$Z63, " ") ->  | I63: 0 | M63: 0
A64: =IF(COUNTRY_INFO!A64=0," ",COUNTRY_INFO!A64) -> Mali | B64: =IF(COUNTRY_INFO!B64=0," ",COUNTRY_INFO!B64) -> Sikasso | C64: =IF(COUNTRY_INFO!C64=0," ",COUNTRY_INFO!C64) -> Bougouni | D64: =IF(COUNTRY_INFO!$Z64="MDA2 (DEC+ALB)", COUNTRY_INFO!$Z64, " ") ->  | I64: 0 | M64: 0
A65: =IF(COUNTRY_INFO!A65=0," ",COUNTRY_INFO!A65) -> Mali | B65: =IF(COUNTRY_INFO!B65=0," ",COUNTRY_INFO!B65) -> Sikasso | C65: =IF(COUNTRY_INFO!C65=0," ",COUNTRY_INFO!C65) -> Kadiolo | D65: =IF(COUNTRY_INFO!$Z65="MDA2 (DEC+ALB)", COUNTRY_INFO!$Z65, " ") ->  | I65: 0 | M65: 0
A66: =IF(COUNTRY_INFO!A66=0," ",COUNTRY_INFO!A66) -> Mali | B66: =IF(COUNTRY_INFO!B66=0," ",COUNTRY_INFO!B66) -> Sikasso | C66: =IF(COUNTRY_INFO!C66=0," ",COUNTRY_INFO!C66) -> Kignan | D66: =IF(COUNTRY_INFO!$Z66="MDA2 (DEC+ALB)", COUNTRY_INFO!$Z66, " ") ->  | I66: 0 | M66: 0
A67: =IF(COUNTRY_INFO!A67=0," ",COUNTRY_INFO!A67) -> Mali | B67: =IF(COUNTRY_INFO!B67=0," ",COUNTRY_INFO!B67) -> Sikasso | C67: =IF(COUNTRY_INFO!C67=0," ",COUNTRY_INFO!C67) -> Kolondieba | D67: =IF(COUNTRY_INFO!$Z67="MDA2 (DEC+ALB)", COUNTRY_INFO!$Z67, " ") ->  | I67: 0 | M67: 0
A68: =IF(COUNTRY_INFO!A68=0," ",COUNTRY_INFO!A68) -> Mali | B68: =IF(COUNTRY_INFO!B68=0," ",COUNTRY_INFO!B68) -> Sikasso | C68: =IF(COUNTRY_INFO!C68=0," ",COUNTRY_INFO!C68) -> Koutiala | D68: =IF(COUNTRY_INFO!$Z68="MDA2 (DEC+ALB)", COUNTRY_INFO!$Z68, " ") ->  | I68: 0 | M68: 0
A69: =IF(COUNTRY_INFO!A69=0," ",COUNTRY_INFO!A69) -> Mali | B69: =IF(COUNTRY_INFO!B69=0," ",COUNTRY_INFO!B69) -> Sikasso | C69: =IF(COUNTRY_INFO!C69=0," ",COUNTRY_INFO!C69) -> Niena | D69: =IF(COUNTRY_INFO!$Z69="MDA2 (DEC+ALB)", COUNTRY_INFO!$Z69, " ") ->  | I69: 0 | M69: 0
A70: =IF(COUNTRY_INFO!A70=0," ",COUNTRY_INFO!A70) -> Mali | B70: =IF(COUNTRY_INFO!B70=0," ",COUNTRY_INFO!B70) -> Sikasso | C70: =IF(COUNTRY_INFO!C70=0," ",COUNTRY_INFO!C70) -> Sélingué | D70: =IF(COUNTRY_INFO!$Z70="MDA2 (DEC+ALB)", COUNTRY_INFO!$Z70, " ") ->  | I70: 0 | M70: 0
A71: =IF(COUNTRY_INFO!A71=0," ",COUNTRY_INFO!A71) -> Mali | B71: =IF(COUNTRY_INFO!B71=0," ",COUNTRY_INFO!B71) -> Sikasso | C71: =IF(COUNTRY_INFO!C71=0," ",COUNTRY_INFO!C71) -> Sikasso | D71: =IF(COUNTRY_INFO!$Z71="MDA2 (DEC+ALB)", COUNTRY_INFO!$Z71, " ") ->  | I71: 0 | M71: 0
A72: =IF(COUNTRY_INFO!A72=0," ",COUNTRY_INFO!A72) -> Mali | B72: =IF(COUNTRY_INFO!B72=0," ",COUNTRY_INFO!B72) -> Sikasso | C72: =IF(COUNTRY_INFO!C72=0," ",COUNTRY_INFO!C72) -> Yanfolila | D72: =IF(COUNTRY_INFO!$Z72="MDA2 (DEC+ALB)", COUNTRY_INFO!$Z72, " ") ->  | I72: 0 | M72: 0
A73: =IF(COUNTRY_INFO!A73=0," ",COUNTRY_INFO!A73) -> Mali | B73: =IF(COUNTRY_INFO!B73=0," ",COUNTRY_INFO!B73) -> Sikasso | C73: =IF(COUNTRY_INFO!C73=0," ",COUNTRY_INFO!C73) -> Yorosso | D73: =IF(COUNTRY_INFO!$Z73="MDA2 (DEC+ALB)", COUNTRY_INFO!$Z73, " ") ->  | I73: 0 | M73: 0
A74: =IF(COUNTRY_INFO!A74=0," ",COUNTRY_INFO!A74) -> Mali | B74: =IF(COUNTRY_INFO!B74=0," ",COUNTRY_INFO!B74) -> Tombouctou | C74: =IF(COUNTRY_INFO!C74=0," ",COUNTRY_INFO!C74) -> Diré | D74: =IF(COUNTRY_INFO!$Z74="MDA2 (DEC+ALB)", COUNTRY_INFO!$Z74, " ") ->  | I74: 0 | M74: 0
A75: =IF(COUNTRY_INFO!A75=0," ",COUNTRY_INFO!A75) -> Mali | B75: =IF(COUNTRY_INFO!B75=0," ",COUNTRY_INFO!B75) -> Tombouctou | C75: =IF(COUNTRY_INFO!C75=0," ",COUNTRY_INFO!C75) -> Goundam | D75: =IF(COUNTRY_INFO!$Z75="MDA2 (DEC+ALB)", COUNTRY_INFO!$Z75, " ") ->  | I75: =SUM(F75:H75) -> 0 | M75: =SUM(J75:L75) -> 0 | N75: =IF(F75<>0, IF(J75/F75*100=0, "-", J75/F75*100), " ") ->  | O75: =IF(G75<>0, IF(K75/G75*100=0, "-", K75/G75*100), " ") ->  | P75: =IF(H75<>0, IF(L75/H75*100=0, "-", L75/H75*100), " ") ->  | Q75: =IF(I75<>0, IF(M75/I75*100=0, "-", M75/I75*100), " ") -> 
A76: =IF(COUNTRY_INFO!A76=0," ",COUNTRY_INFO!A76) -> Mali | B76: =IF(COUNTRY_INFO!B76=0," ",COUNTRY_INFO!B76) -> Tombouctou | C76: =IF(COUNTRY_INFO!C76=0," ",COUNTRY_INFO!C76) -> Gourma-Rharous | D76: =IF(COUNTRY_INFO!$Z76="MDA2 (DEC+ALB)", COUNTRY_INFO!$Z76, " ") ->  | I76: 0 | M76: 0
A77: =IF(COUNTRY_INFO!A77=0," ",COUNTRY_INFO!A77) -> Mali | B77: =IF(COUNTRY_INFO!B77=0," ",COUNTRY_INFO!B77) -> Tombouctou | C77: =IF(COUNTRY_INFO!C77=0," ",COUNTRY_INFO!C77) -> Niafunké | D77: =IF(COUNTRY_INFO!$Z77="MDA2 (DEC+ALB)", COUNTRY_INFO!$Z77, " ") ->  | I77: 0 | M77: 0
A78: =IF(COUNTRY_INFO!A78=0," ",COUNTRY_INFO!A78) -> Mali | B78: =IF(COUNTRY_INFO!B78=0," ",COUNTRY_INFO!B78) -> Tombouctou | C78: =IF(COUNTRY_INFO!C78=0," ",COUNTRY_INFO!C78) -> Tombouctou | D78: =IF(COUNTRY_INFO!$Z78="MDA2 (DEC+ALB)", COUNTRY_INFO!$Z78, " ") ->  | I78: 0 | M78: 0
A79: =IF(COUNTRY_INFO!A79=0," ",COUNTRY_INFO!A79) -> Mali | B79: =IF(COUNTRY_INFO!B79=0," ",COUNTRY_INFO!B79) -> Taoudenit | C79: =IF(COUNTRY_INFO!C79=0," ",COUNTRY_INFO!C79) -> Achourat | D79: =IF(COUNTRY_INFO!$Z79="MDA2 (DEC+ALB)", COUNTRY_INFO!$Z79, " ") ->  | I79: 0 | M79: 0
A80: =IF(COUNTRY_INFO!A80=0," ",COUNTRY_INFO!A80) -> Mali | B80: =IF(COUNTRY_INFO!B80=0," ",COUNTRY_INFO!B80) -> Taoudenit | C80: =IF(COUNTRY_INFO!C80=0," ",COUNTRY_INFO!C80) -> Al-Ourch | D80: =IF(COUNTRY_INFO!$Z80="MDA2 (DEC+ALB)", COUNTRY_INFO!$Z80, " ") ->  | I80: 0 | M80: 0
A81: =IF(COUNTRY_INFO!A81=0," ",COUNTRY_INFO!A81) -> Mali | B81: =IF(COUNTRY_INFO!B81=0," ",COUNTRY_INFO!B81) -> Taoudenit | C81: =IF(COUNTRY_INFO!C81=0," ",COUNTRY_INFO!C81) -> Araouane | D81: =IF(COUNTRY_INFO!$Z81="MDA2 (DEC+ALB)", COUNTRY_INFO!$Z81, " ") ->  | I81: 0 | M81: 0
A82: =IF(COUNTRY_INFO!A82=0," ",COUNTRY_INFO!A82) -> Mali | B82: =IF(COUNTRY_INFO!B82=0," ",COUNTRY_INFO!B82) -> Taoudenit | C82: =IF(COUNTRY_INFO!C82=0," ",COUNTRY_INFO!C82) -> Boujbeha | D82: =IF(COUNTRY_INFO!$Z82="MDA2 (DEC+ALB)", COUNTRY_INFO!$Z82, " ") ->  | I82: 0 | M82: 0
A83: =IF(COUNTRY_INFO!A83=0," ",COUNTRY_INFO!A83) -> Mali | B83: =IF(COUNTRY_INFO!B83=0," ",COUNTRY_INFO!B83) -> Taoudenit | C83: =IF(COUNTRY_INFO!C83=0," ",COUNTRY_INFO!C83) -> Foum-Elba | D83: =IF(COUNTRY_INFO!$Z83="MDA2 (DEC+ALB)", COUNTRY_INFO!$Z83, " ") ->  | I83: 0 | M83: 0
A84: =IF(COUNTRY_INFO!A84=0," ",COUNTRY_INFO!A84) -> Mali | B84: =IF(COUNTRY_INFO!B84=0," ",COUNTRY_INFO!B84) -> Taoudenit | C84: =IF(COUNTRY_INFO!C84=0," ",COUNTRY_INFO!C84) -> Taoudenit | D84: =IF(COUNTRY_INFO!$Z84="MDA2 (DEC+ALB)", COUNTRY_INFO!$Z84, " ") ->  | I84: 0 | M84: 0

Sheet MDA3
A1: MDA 3 - Ivermectine (IVM)
A2: Structure administrative, population nécessitant une chimioprévention par groupe d'âge, population traitée par groupe d'âge et couverture
A4: TOTAL | F4: =SUBTOTAL(9,F$10:F$1010) -> 1885504.796 | G4: 3352008.526 | H4: 5237513.322 | I4: 2060663 | J4: 3118166 | K4: 5178829 | L4: 0 | M4: 0 | N4: 0 | O4: 2060663 | P4: 3118166 | Q4: 5178829 | R4: =IF(F4<>0, IF(O4/F4*100=0, "-", O4/F4*100), " ") -> 109.2897247 | S4: =IF(G4<>0, IF(P4/G4*100=0, "-", P4/G4*100), " ") -> 93.02380873 | T4: =IF(H4<>0, IF(Q4/H4*100=0, "-", Q4/H4*100), " ") -> 98.87953847
A6: Structure administrative du pays | D6: Mise en oeuvre de la CP | E6: Date | F6: Population ciblée pour MDA 3 | I6: Population traitée - tournée 1 | L6: Population traitée - tournée 2 | O6: Population traitée | R6: Couverture du Programme (%)
A7: Pays | B7: Région/Département | C7: District | F7: EAS | G7: Adultes | H7: Total | I7: EAS | J7: Adultes | K7: Total | L7: EAS | M7: Adultes | N7: Total | O7: EAS | P7: Adultes | Q7: Total | R7: EAS | S7: Adultes | T7: Total
A10: =IF(COUNTRY_INFO!A10=0," ",COUNTRY_INFO!A10) -> Mali | B10: =IF(COUNTRY_INFO!B10=0," ",COUNTRY_INFO!B10) -> Bamako | C10: =IF(COUNTRY_INFO!C10=0," ",COUNTRY_INFO!C10) -> Commune 1 | D10: =IF(COUNTRY_INFO!$Z10="MDA3 (IVM)", COUNTRY_INFO!$Z10, " ") ->  | H10: =SUM(F10:G10) -> 0 | K10: =SUM(I10:J10) -> 0 | N10: =SUM(L10:M10) -> 0 | O10: =MAX(I10,L10) -> 0 | P10: 0 | Q10: =SUM(O10:P10) -> 0 | R10: =IF(F10<>0, IF(MAX(I10,L10)/F10*100=0, "-", MAX(I10,L10)/F10*100), " ") ->  | T10: =IF(H10<>0, IF((MAX(I10,L10)+MAX(J10,M10))/H10*100=0, "-",(MAX(I10,L10)+MAX(J10,M10))/H10*100), " ") -> 
A11: =IF(COUNTRY_INFO!A11=0," ",COUNTRY_INFO!A11) -> Mali | B11: =IF(COUNTRY_INFO!B11=0," ",COUNTRY_INFO!B11) -> Bamako | C11: =IF(COUNTRY_INFO!C11=0," ",COUNTRY_INFO!C11) -> Commune 2 | D11: =IF(COUNTRY_INFO!$Z11="MDA3 (IVM)", COUNTRY_INFO!$Z11, " ") ->  | H11: =SUM(F11:G11) -> 0 | K11: =SUM(I11:J11) -> 0 | N11: =SUM(L11:M11) -> 0 | O11: =MAX(I11,L11) -> 0 | P11: =MAX(J11,M11) -> 0 | Q11: =SUM(O11:P11) -> 0 | R11: =IF(F11<>0, IF(MAX(I11,L11)/F11*100=0, "-", MAX(I11,L11)/F11*100), " ") ->  | S11: =IF(G11<>0, IF(MAX(J11,M11)/G11*100=0, "-", MAX(J11,M11)/G11*100), " ") ->  | T11: =IF(H11<>0, IF((MAX(I11,L11)+MAX(J11,M11))/H11*100=0, "-",(MAX(I11,L11)+MAX(J11,M11))/H11*100), " ") -> 
A12: =IF(COUNTRY_INFO!A12=0," ",COUNTRY_INFO!A12) -> Mali | B12: =IF(COUNTRY_INFO!B12=0," ",COUNTRY_INFO!B12) -> Bamako | C12: =IF(COUNTRY_INFO!C12=0," ",COUNTRY_INFO!C12) -> Commune 3 | D12: =IF(COUNTRY_INFO!$Z12="MDA3 (IVM)", COUNTRY_INFO!$Z12, " ") ->  | H12: 0 | K12: 0 | N12: 0 | O12: 0 | P12: 0 | Q12: 0
A13: =IF(COUNTRY_INFO!A13=0," ",COUNTRY_INFO!A13) -> Mali | B13: =IF(COUNTRY_INFO!B13=0," ",COUNTRY_INFO!B13) -> Bamako | C13: =IF(COUNTRY_INFO!C13=0," ",COUNTRY_INFO!C13) -> Commune 4 | D13: =IF(COUNTRY_INFO!$Z13="MDA3 (IVM)", COUNTRY_INFO!$Z13, " ") ->  | H13: 0 | K13: 0 | N13: 0 | O13: 0 | P13: 0 | Q13: 0
A14: =IF(COUNTRY_INFO!A14=0," ",COUNTRY_INFO!A14) -> Mali | B14: =IF(COUNTRY_INFO!B14=0," ",COUNTRY_INFO!B14) -> Bamako | C14: =IF(COUNTRY_INFO!C14=0," ",COUNTRY_INFO!C14) -> Commune 5 | D14: =IF(COUNTRY_INFO!$Z14="MDA3 (IVM)", COUNTRY_INFO!$Z14, " ") ->  | H14: 0 | K14: 0 | N14: 0 | O14: 0 | P14: 0 | Q14: 0
A15: =IF(COUNTRY_INFO!A15=0," ",COUNTRY_INFO!A15) -> Mali | B15: =IF(COUNTRY_INFO!B15=0," ",COUNTRY_INFO!B15) -> Bamako | C15: =IF(COUNTRY_INFO!C15=0," ",COUNTRY_INFO!C15) -> Commune 6 | D15: =IF(COUNTRY_INFO!$Z15="MDA3 (IVM)", COUNTRY_INFO!$Z15, " ") ->  | H15: 0 | K15: 0 | N15: 0 | O15: 0 | P15: 0 | Q15: 0
A16: =IF(COUNTRY_INFO!A16=0," ",COUNTRY_INFO!A16) -> Mali | B16: =IF(COUNTRY_INFO!B16=0," ",COUNTRY_INFO!B16) -> Gao | C16: =IF(COUNTRY_INFO!C16=0," ",COUNTRY_INFO!C16) -> Ansongo | D16: =IF(COUNTRY_INFO!$Z16="MDA3 (IVM)", COUNTRY_INFO!$Z16, " ") ->  | H16: 0 | K16: 0 | N16: 0 | O16: 0 | P16: 0 | Q16: 0
A17: =IF(COUNTRY_INFO!A17=0," ",COUNTRY_INFO!A17) -> Mali | B17: =IF(COUNTRY_INFO!B17=0," ",COUNTRY_INFO!B17) -> Gao | C17: =IF(COUNTRY_INFO!C17=0," ",COUNTRY_INFO!C17) -> Bourem | D17: =IF(COUNTRY_INFO!$Z17="MDA3 (IVM)", COUNTRY_INFO!$Z17, " ") ->  | H17: 0 | K17: 0 | N17: 0 | O17: 0 | P17: 0 | Q17: 0
A18: =IF(COUNTRY_INFO!A18=0," ",COUNTRY_INFO!A18) -> Mali | B18: =IF(COUNTRY_INFO!B18=0," ",COUNTRY_INFO!B18) -> Gao | C18: =IF(COUNTRY_INFO!C18=0," ",COUNTRY_INFO!C18) -> Almoustrat | D18: =IF(COUNTRY_INFO!$Z18="MDA3 (IVM)", COUNTRY_INFO!$Z18, " ") ->  | H18: 0 | K18: 0 | N18: 0 | O18: 0 | P18: 0 | Q18: 0
A19: =IF(COUNTRY_INFO!A19=0," ",COUNTRY_INFO!A19) -> Mali | B19: =IF(COUNTRY_INFO!B19=0," ",COUNTRY_INFO!B19) -> Gao | C19: =IF(COUNTRY_INFO!C19=0," ",COUNTRY_INFO!C19) -> Gao | D19: =IF(COUNTRY_INFO!$Z19="MDA3 (IVM)", COUNTRY_INFO!$Z19, " ") ->  | H19: 0 | K19: 0 | N19: 0 | O19: 0 | P19: 0 | Q19: 0
A20: =IF(COUNTRY_INFO!A20=0," ",COUNTRY_INFO!A20) -> Mali | B20: =IF(COUNTRY_INFO!B20=0," ",COUNTRY_INFO!B20) -> Menaka | C20: =IF(COUNTRY_INFO!C20=0," ",COUNTRY_INFO!C20) -> Menaka | D20: =IF(COUNTRY_INFO!$Z20="MDA3 (IVM)", COUNTRY_INFO!$Z20, " ") ->  | H20: 0 | K20: 0 | N20: 0 | O20: 0 | P20: 0 | Q20: 0
A21: =IF(COUNTRY_INFO!A21=0," ",COUNTRY_INFO!A21) -> Mali | B21: =IF(COUNTRY_INFO!B21=0," ",COUNTRY_INFO!B21) -> Menaka | C21: =IF(COUNTRY_INFO!C21=0," ",COUNTRY_INFO!C21) -> Anderamboukane | D21: =IF(COUNTRY_INFO!$Z21="MDA3 (IVM)", COUNTRY_INFO!$Z21, " ") ->  | H21: 0 | K21: 0 | N21: 0 | O21: 0 | P21: 0 | Q21: 0
A22: =IF(COUNTRY_INFO!A22=0," ",COUNTRY_INFO!A22) -> Mali | B22: =IF(COUNTRY_INFO!B22=0," ",COUNTRY_INFO!B22) -> Menaka | C22: =IF(COUNTRY_INFO!C22=0," ",COUNTRY_INFO!C22) -> Inekar | D22: =IF(COUNTRY_INFO!$Z22="MDA3 (IVM)", COUNTRY_INFO!$Z22, " ") ->  | H22: 0 | K22: 0 | N22: 0 | O22: 0 | P22: 0 | Q22: 0
A23: =IF(COUNTRY_INFO!A23=0," ",COUNTRY_INFO!A23) -> Mali | B23: =IF(COUNTRY_INFO!B23=0," ",COUNTRY_INFO!B23) -> Menaka | C23: =IF(COUNTRY_INFO!C23=0," ",COUNTRY_INFO!C23) -> Tidermene | D23: =IF(COUNTRY_INFO!$Z23="MDA3 (IVM)", COUNTRY_INFO!$Z23, " ") ->  | H23: 0 | K23: 0 | N23: 0 | O23: 0 | P23: 0 | Q23: 0
A24: =IF(COUNTRY_INFO!A24=0," ",COUNTRY_INFO!A24) -> Mali | B24: =IF(COUNTRY_INFO!B24=0," ",COUNTRY_INFO!B24) -> Kayes | C24: =IF(COUNTRY_INFO!C24=0," ",COUNTRY_INFO!C24) -> Bafoulabe | D24: =IF(COUNTRY_INFO!$Z24="MDA3 (IVM)", COUNTRY_INFO!$Z24, " ") -> MDA3 (IVM) | E24: mars 2023 | F24: 54996.48 | G24: 97771.52 | H24: 152768 | I24: 50133 | J24: 75545 | K24: 125678 | N24: 0 | O24: 50133 | P24: 75545 | Q24: 125678 | R24: 91.15674312 | S24: 77.2668769 | T24: 82.26722874
A25: =IF(COUNTRY_INFO!A25=0," ",COUNTRY_INFO!A25) -> Mali | B25: =IF(COUNTRY_INFO!B25=0," ",COUNTRY_INFO!B25) -> Kayes | C25: =IF(COUNTRY_INFO!C25=0," ",COUNTRY_INFO!C25) -> Diema | D25: =IF(COUNTRY_INFO!$Z25="MDA3 (IVM)", COUNTRY_INFO!$Z25, " ") ->  | H25: 0 | K25: 0 | N25: 0 | O25: 0 | P25: 0 | Q25: 0
A26: =IF(COUNTRY_INFO!A26=0," ",COUNTRY_INFO!A26) -> Mali | B26: =IF(COUNTRY_INFO!B26=0," ",COUNTRY_INFO!B26) -> Kayes | C26: =IF(COUNTRY_INFO!C26=0," ",COUNTRY_INFO!C26) -> Kayes | D26: =IF(COUNTRY_INFO!$Z26="MDA3 (IVM)", COUNTRY_INFO!$Z26, " ") -> MDA3 (IVM) | E26: mars 2023 | F26: 220713.696 | G26: 392379.904 | H26: 613093.6 | I26: 200998 | J26: 377725 | K26: 578723 | N26: 0 | O26: 200998 | P26: 377725 | Q26: 578723 | R26: 91.06729833 | S26: 96.26512371 | T26: 94.39390657
A27: =IF(COUNTRY_INFO!A27=0," ",COUNTRY_INFO!A27) -> Mali | B27: =IF(COUNTRY_INFO!B27=0," ",COUNTRY_INFO!B27) -> Kayes | C27: =IF(COUNTRY_INFO!C27=0," ",COUNTRY_INFO!C27) -> Kenieba | D27: =IF(COUNTRY_INFO!$Z27="MDA3 (IVM)", COUNTRY_INFO!$Z27, " ") -> MDA3 (IVM) | E27: mars 2023 | F27: 83623.38333 | G27: 148663.7926 | H27: 232287.1759 | I27: 84628 | J27: 107905 | K27: 192533 | N27: 0 | O27: 84628 | P27: 107905 | Q27: 192533 | R27: 101.2013586 | S27: 72.58324177 | T27: 82.88576381
A28: =IF(COUNTRY_INFO!A28=0," ",COUNTRY_INFO!A28) -> Mali | B28: =IF(COUNTRY_INFO!B28=0," ",COUNTRY_INFO!B28) -> Kayes | C28: =IF(COUNTRY_INFO!C28=0," ",COUNTRY_INFO!C28) -> Kita | D28: =IF(COUNTRY_INFO!$Z28="MDA3 (IVM)", COUNTRY_INFO!$Z28, " ") -> MDA3 (IVM) | E28: mars 2023 | F28: 156686.976 | G28: 278554.624 | H28: 435241.6 | I28: 173623 | J28: 289356 | K28: 462979 | N28: 0 | O28: 173623 | P28: 289356 | Q28: 462979 | R28: 110.8088269 | S28: 103.8776509 | T28: 106.3728743
A29: =IF(COUNTRY_INFO!A29=0," ",COUNTRY_INFO!A29) -> Mali | B29: =IF(COUNTRY_INFO!B29=0," ",COUNTRY_INFO!B29) -> Kayes | C29: =IF(COUNTRY_INFO!C29=0," ",COUNTRY_INFO!C29) -> Sagabari | D29: =IF(COUNTRY_INFO!$Z29="MDA3 (IVM)", COUNTRY_INFO!$Z29, " ") -> MDA3 (IVM) | E29: mars 2023 | F29: 17202.73694 | G29: 30582.64345 | H29: 47785.3804 | I29: 17279 | J29: 21282 | K29: 38561 | N29: 0 | O29: 17279 | P29: 21282 | Q29: 38561 | R29: 100.4433193 | S29: 69.58849071 | T29: 80.69622901
A30: =IF(COUNTRY_INFO!A30=0," ",COUNTRY_INFO!A30) -> Mali | B30: =IF(COUNTRY_INFO!B30=0," ",COUNTRY_INFO!B30) -> Kayes | C30: =IF(COUNTRY_INFO!C30=0," ",COUNTRY_INFO!C30) -> Sefeto | D30: =IF(COUNTRY_INFO!$Z30="MDA3 (IVM)", COUNTRY_INFO!$Z30, " ") -> MDA3 (IVM) | E30: mars 2023 | F30: 20469.312 | G30: 36389.888 | H30: 56859.2 | I30: 19164 | J30: 35365 | K30: 54529 | N30: 0 | O30: 19164 | P30: 35365 | Q30: 54529 | R30: 93.62307829 | S30: 97.18359122 | T30: 95.90180657
A31: =IF(COUNTRY_INFO!A31=0," ",COUNTRY_INFO!A31) -> Mali | B31: =IF(COUNTRY_INFO!B31=0," ",COUNTRY_INFO!B31) -> Kayes | C31: =IF(COUNTRY_INFO!C31=0," ",COUNTRY_INFO!C31) -> Nioro | D31: =IF(COUNTRY_INFO!$Z31="MDA3 (IVM)", COUNTRY_INFO!$Z31, " ") ->  | H31: 0 | K31: 0 | N31: 0 | O31: 0 | P31: 0 | Q31: 0
A32: =IF(COUNTRY_INFO!A32=0," ",COUNTRY_INFO!A32) -> Mali | B32: =IF(COUNTRY_INFO!B32=0," ",COUNTRY_INFO!B32) -> Kayes | C32: =IF(COUNTRY_INFO!C32=0," ",COUNTRY_INFO!C32) -> Oussoubidiagna | D32: =IF(COUNTRY_INFO!$Z32="MDA3 (IVM)", COUNTRY_INFO!$Z32, " ") -> MDA3 (IVM) | E32: mars 2023 | F32: 44660.65165 | G32: 79396.71404 | H32: 124057.3657 | I32: 51119 | J32: 61700 | K32: 112819 | N32: 0 | O32: 51119 | P32: 61700 | Q32: 112819 | R32: 114.4609362 | S32: 77.71102463 | T32: 90.9409928
A33: =IF(COUNTRY_INFO!A33=0," ",COUNTRY_INFO!A33) -> Mali | B33: =IF(COUNTRY_INFO!B33=0," ",COUNTRY_INFO!B33) -> Kayes | C33: =IF(COUNTRY_INFO!C33=0," ",COUNTRY_INFO!C33) -> Yelimane | D33: =IF(COUNTRY_INFO!$Z33="MDA3 (IVM)", COUNTRY_INFO!$Z33, " ") ->  | H33: 0 | K33: 0 | N33: 0 | O33: 0 | P33: 0 | Q33: 0
A34: =IF(COUNTRY_INFO!A34=0," ",COUNTRY_INFO!A34) -> Mali | B34: =IF(COUNTRY_INFO!B34=0," ",COUNTRY_INFO!B34) -> Kidal | C34: =IF(COUNTRY_INFO!C34=0," ",COUNTRY_INFO!C34) -> Abeibara | D34: =IF(COUNTRY_INFO!$Z34="MDA3 (IVM)", COUNTRY_INFO!$Z34, " ") ->  | H34: 0 | K34: 0 | N34: 0 | O34: 0 | P34: 0 | Q34: 0
A35: =IF(COUNTRY_INFO!A35=0," ",COUNTRY_INFO!A35) -> Mali | B35: =IF(COUNTRY_INFO!B35=0," ",COUNTRY_INFO!B35) -> Kidal | C35: =IF(COUNTRY_INFO!C35=0," ",COUNTRY_INFO!C35) -> Kidal | D35: =IF(COUNTRY_INFO!$Z35="MDA3 (IVM)", COUNTRY_INFO!$Z35, " ") ->  | H35: 0 | K35: 0 | N35: 0 | O35: 0 | P35: 0 | Q35: 0
A36: =IF(COUNTRY_INFO!A36=0," ",COUNTRY_INFO!A36) -> Mali | B36: =IF(COUNTRY_INFO!B36=0," ",COUNTRY_INFO!B36) -> Kidal | C36: =IF(COUNTRY_INFO!C36=0," ",COUNTRY_INFO!C36) -> Tessalit | D36: =IF(COUNTRY_INFO!$Z36="MDA3 (IVM)", COUNTRY_INFO!$Z36, " ") ->  | H36: 0 | K36: 0 | N36: 0 | O36: 0 | P36: 0 | Q36: 0
A37: =IF(COUNTRY_INFO!A37=0," ",COUNTRY_INFO!A37) -> Mali | B37: =IF(COUNTRY_INFO!B37=0," ",COUNTRY_INFO!B37) -> Kidal | C37: =IF(COUNTRY_INFO!C37=0," ",COUNTRY_INFO!C37) -> Tin-Essako | D37: =IF(COUNTRY_INFO!$Z37="MDA3 (IVM)", COUNTRY_INFO!$Z37, " ") ->  | H37: 0 | K37: 0 | N37: 0 | O37: 0 | P37: 0 | Q37: 0
A38: =IF(COUNTRY_INFO!A38=0," ",COUNTRY_INFO!A38) -> Mali | B38: =IF(COUNTRY_INFO!B38=0," ",COUNTRY_INFO!B38) -> Koulikoro | C38: =IF(COUNTRY_INFO!C38=0," ",COUNTRY_INFO!C38) -> Banamba | D38: =IF(COUNTRY_INFO!$Z38="MDA3 (IVM)", COUNTRY_INFO!$Z38, " ") ->  | H38: 0 | K38: 0 | N38: 0 | O38: 0 | P38: 0 | Q38: 0
A39: =IF(COUNTRY_INFO!A39=0," ",COUNTRY_INFO!A39) -> Mali | B39: =IF(COUNTRY_INFO!B39=0," ",COUNTRY_INFO!B39) -> Koulikoro | C39: =IF(COUNTRY_INFO!C39=0," ",COUNTRY_INFO!C39) -> Dioila | D39: =IF(COUNTRY_INFO!$Z39="MDA3 (IVM)", COUNTRY_INFO!$Z39, " ") -> MDA3 (IVM) | E39: fevrier 2023 | F39: 113777.64 | G39: 202271.36 | H39: 316049 | I39: 139436 | J39: 178882 | K39: 318318 | N39: 0 | O39: 139436 | P39: 178882 | Q39: 318318 | R39: 122.5513203 | S39: 88.43664274 | T39: 100.7179267
A40: =IF(COUNTRY_INFO!A40=0," ",COUNTRY_INFO!A40) -> Mali | B40: =IF(COUNTRY_INFO!B40=0," ",COUNTRY_INFO!B40) -> Koulikoro | C40: =IF(COUNTRY_INFO!C40=0," ",COUNTRY_INFO!C40) -> Fana | D40: =IF(COUNTRY_INFO!$Z40="MDA3 (IVM)", COUNTRY_INFO!$Z40, " ") -> MDA3 (IVM) | E40: fevrier 2023 | F40: 96921.72 | G40: 172305.28 | H40: 269227 | I40: 107565 | J40: 162612 | K40: 270177 | N40: 0 | O40: 107565 | P40: 162612 | Q40: 270177 | R40: 110.9813156 | S40: 94.37435696 | T40: 100.3528621
A41: =IF(COUNTRY_INFO!A41=0," ",COUNTRY_INFO!A41) -> Mali | B41: =IF(COUNTRY_INFO!B41=0," ",COUNTRY_INFO!B41) -> Koulikoro | C41: =IF(COUNTRY_INFO!C41=0," ",COUNTRY_INFO!C41) -> Kalabancoro | D41: =IF(COUNTRY_INFO!$Z41="MDA3 (IVM)", COUNTRY_INFO!$Z41, " ") -> MDA3 (IVM) | E41: fevrier 2023 | F41: 106023.96 | G41: 188487.04 | H41: 294511 | I41: 173661 | J41: 176989 | K41: 350650 | N41: 0 | O41: 173661 | P41: 176989 | Q41: 350650 | R41: 163.7941084 | S41: 93.89982462 | T41: 119.0617668
A42: =IF(COUNTRY_INFO!A42=0," ",COUNTRY_INFO!A42) -> Mali | B42: =IF(COUNTRY_INFO!B42=0," ",COUNTRY_INFO!B42) -> Koulikoro | C42: =IF(COUNTRY_INFO!C42=0," ",COUNTRY_INFO!C42) -> Kangaba | D42: =IF(COUNTRY_INFO!$Z42="MDA3 (IVM)", COUNTRY_INFO!$Z42, " ") -> MDA3 (IVM) | E42: fevrier 2023 | F42: 43202.52 | G42: 76804.48 | H42: 120007 | I42: 55256 | J42: 68335 | K42: 123591 | N42: 0 | O42: 55256 | P42: 68335 | Q42: 123591 | R42: 127.8999466 | S42: 88.97267451 | T42: 102.9864925
A43: =IF(COUNTRY_INFO!A43=0," ",COUNTRY_INFO!A43) -> Mali | B43: =IF(COUNTRY_INFO!B43=0," ",COUNTRY_INFO!B43) -> Koulikoro | C43: =IF(COUNTRY_INFO!C43=0," ",COUNTRY_INFO!C43) -> Kati | D43: =IF(COUNTRY_INFO!$Z43="MDA3 (IVM)", COUNTRY_INFO!$Z43, " ") -> MDA3 (IVM) | E43: fevrier 2023 | F43: 215260.56 | G43: 382685.44 | H43: 597946 | I43: 242790 | J43: 364321 | K43: 607111 | N43: 0 | O43: 242790 | P43: 364321 | Q43: 607111 | R43: 112.7888918 | S43: 95.20116574 | T43: 101.5327471
A44: =IF(COUNTRY_INFO!A44=0," ",COUNTRY_INFO!A44) -> Mali | B44: =IF(COUNTRY_INFO!B44=0," ",COUNTRY_INFO!B44) -> Koulikoro | C44: =IF(COUNTRY_INFO!C44=0," ",COUNTRY_INFO!C44) -> Kolokani | D44: =IF(COUNTRY_INFO!$Z44="MDA3 (IVM)", COUNTRY_INFO!$Z44, " ") -> MDA3 (IVM) | E44: fevrier 2023 | F44: 100337.04 | G44: 178376.96 | H44: 278714 | I44: 110594 | J44: 173272 | K44: 283866 | N44: 0 | O44: 110594 | P44: 173272 | Q44: 283866 | R44: 110.2225061 | S44: 97.13810573 | T44: 101.8484898
A45: =IF(COUNTRY_INFO!A45=0," ",COUNTRY_INFO!A45) -> Mali | B45: =IF(COUNTRY_INFO!B45=0," ",COUNTRY_INFO!B45) -> Koulikoro | C45: =IF(COUNTRY_INFO!C45=0," ",COUNTRY_INFO!C45) -> Koulikoro | D45: =IF(COUNTRY_INFO!$Z45="MDA3 (IVM)", COUNTRY_INFO!$Z45, " ") -> MDA3 (IVM) | E45: fevrier 2023 | F45: 90550.8 | G45: 160979.2 | H45: 251530 | I45: 90848 | J45: 153523 | K45: 244371 | N45: 0 | O45: 90848 | P45: 153523 | Q45: 244371 | R45: 100.3282136 | S45: 95.36822148 | T45: 97.15381863
A46: =IF(COUNTRY_INFO!A46=0," ",COUNTRY_INFO!A46) -> Mali | B46: =IF(COUNTRY_INFO!B46=0," ",COUNTRY_INFO!B46) -> Koulikoro | C46: =IF(COUNTRY_INFO!C46=0," ",COUNTRY_INFO!C46) -> Nara | D46: =IF(COUNTRY_INFO!$Z46="MDA3 (IVM)", COUNTRY_INFO!$Z46, " ") ->  | H46: 0 | K46: 0 | N46: 0 | O46: 0 | P46: 0 | Q46: 0
A47: =IF(COUNTRY_INFO!A47=0," ",COUNTRY_INFO!A47) -> Mali | B47: =IF(COUNTRY_INFO!B47=0," ",COUNTRY_INFO!B47) -> Koulikoro | C47: =IF(COUNTRY_INFO!C47=0," ",COUNTRY_INFO!C47) -> Ouelessebougou | D47: =IF(COUNTRY_INFO!$Z47="MDA3 (IVM)", COUNTRY_INFO!$Z47, " ") -> MDA3 (IVM) | E47: fevrier 2023 | F47: 85404.24 | G47: 151829.76 | H47: 237234 | I47: 75870 | J47: 171916 | K47: 247786 | N47: 0 | O47: 75870 | P47: 171916 | Q47: 247786 | R47: 88.8363388 | S47: 113.2294486 | T47: 104.447929
A48: =IF(COUNTRY_INFO!A48=0," ",COUNTRY_INFO!A48) -> Mali | B48: =IF(COUNTRY_INFO!B48=0," ",COUNTRY_INFO!B48) -> Mopti | C48: =IF(COUNTRY_INFO!C48=0," ",COUNTRY_INFO!C48) -> Bandiagara | D48: =IF(COUNTRY_INFO!$Z48="MDA3 (IVM)", COUNTRY_INFO!$Z48, " ") ->  | H48: 0 | K48: 0 | N48: 0 | O48: 0 | P48: 0 | Q48: 0
A49: =IF(COUNTRY_INFO!A49=0," ",COUNTRY_INFO!A49) -> Mali | B49: =IF(COUNTRY_INFO!B49=0," ",COUNTRY_INFO!B49) -> Mopti | C49: =IF(COUNTRY_INFO!C49=0," ",COUNTRY_INFO!C49) -> Bankass | D49: =IF(COUNTRY_INFO!$Z49="MDA3 (IVM)", COUNTRY_INFO!$Z49, " ") ->  | H49: 0 | K49: 0 | N49: 0 | O49: 0 | P49: 0 | Q49: 0
A50: =IF(COUNTRY_INFO!A50=0," ",COUNTRY_INFO!A50) -> Mali | B50: =IF(COUNTRY_INFO!B50=0," ",COUNTRY_INFO!B50) -> Mopti | C50: =IF(COUNTRY_INFO!C50=0," ",COUNTRY_INFO!C50) -> Djenne | D50: =IF(COUNTRY_INFO!$Z50="MDA3 (IVM)", COUNTRY_INFO!$Z50, " ") ->  | H50: 0 | K50: 0 | N50: 0 | O50: 0 | P50: 0 | Q50: 0
A51: =IF(COUNTRY_INFO!A51=0," ",COUNTRY_INFO!A51) -> Mali | B51: =IF(COUNTRY_INFO!B51=0," ",COUNTRY_INFO!B51) -> Mopti | C51: =IF(COUNTRY_INFO!C51=0," ",COUNTRY_INFO!C51) -> Douentza | D51: =IF(COUNTRY_INFO!$Z51="MDA3 (IVM)", COUNTRY_INFO!$Z51, " ") ->  | H51: 0 | K51: 0 | N51: 0 | O51: 0 | P51: 0 | Q51: 0
A52: =IF(COUNTRY_INFO!A52=0," ",COUNTRY_INFO!A52) -> Mali | B52: =IF(COUNTRY_INFO!B52=0," ",COUNTRY_INFO!B52) -> Mopti | C52: =IF(COUNTRY_INFO!C52=0," ",COUNTRY_INFO!C52) -> Koro | D52: =IF(COUNTRY_INFO!$Z52="MDA3 (IVM)", COUNTRY_INFO!$Z52, " ") ->  | H52: 0 | K52: 0 | N52: 0 | O52: 0 | P52: 0 | Q52: 0
A53: =IF(COUNTRY_INFO!A53=0," ",COUNTRY_INFO!A53) -> Mali | B53: =IF(COUNTRY_INFO!B53=0," ",COUNTRY_INFO!B53) -> Mopti | C53: =IF(COUNTRY_INFO!C53=0," ",COUNTRY_INFO!C53) -> Mopti | D53: =IF(COUNTRY_INFO!$Z53="MDA3 (IVM)", COUNTRY_INFO!$Z53, " ") ->  | H53: 0 | K53: 0 | N53: 0 | O53: 0 | P53: 0 | Q53: 0
A54: =IF(COUNTRY_INFO!A54=0," ",COUNTRY_INFO!A54) -> Mali | B54: =IF(COUNTRY_INFO!B54=0," ",COUNTRY_INFO!B54) -> Mopti | C54: =IF(COUNTRY_INFO!C54=0," ",COUNTRY_INFO!C54) -> Teninkou | D54: =IF(COUNTRY_INFO!$Z54="MDA3 (IVM)", COUNTRY_INFO!$Z54, " ") ->  | H54: 0 | K54: 0 | N54: 0 | O54: 0 | P54: 0 | Q54: 0
A55: =IF(COUNTRY_INFO!A55=0," ",COUNTRY_INFO!A55) -> Mali | B55: =IF(COUNTRY_INFO!B55=0," ",COUNTRY_INFO!B55) -> Mopti | C55: =IF(COUNTRY_INFO!C55=0," ",COUNTRY_INFO!C55) -> Youwarou | D55: =IF(COUNTRY_INFO!$Z55="MDA3 (IVM)", COUNTRY_INFO!$Z55, " ") ->  | H55: 0 | K55: 0 | N55: 0 | O55: 0 | P55: 0 | Q55: 0
A56: =IF(COUNTRY_INFO!A56=0," ",COUNTRY_INFO!A56) -> Mali | B56: =IF(COUNTRY_INFO!B56=0," ",COUNTRY_INFO!B56) -> Segou | C56: =IF(COUNTRY_INFO!C56=0," ",COUNTRY_INFO!C56) -> Barouéli | D56: =IF(COUNTRY_INFO!$Z56="MDA3 (IVM)", COUNTRY_INFO!$Z56, " ") ->  | H56: 0 | K56: 0 | N56: 0 | O56: 0 | P56: 0 | Q56: 0
A57: =IF(COUNTRY_INFO!A57=0," ",COUNTRY_INFO!A57) -> Mali | B57: =IF(COUNTRY_INFO!B57=0," ",COUNTRY_INFO!B57) -> Segou | C57: =IF(COUNTRY_INFO!C57=0," ",COUNTRY_INFO!C57) -> Bla | D57: =IF(COUNTRY_INFO!$Z57="MDA3 (IVM)", COUNTRY_INFO!$Z57, " ") ->  | H57: 0 | K57: 0 | N57: 0 | O57: 0 | P57: 0 | Q57: 0
A58: =IF(COUNTRY_INFO!A58=0," ",COUNTRY_INFO!A58) -> Mali | B58: =IF(COUNTRY_INFO!B58=0," ",COUNTRY_INFO!B58) -> Segou | C58: =IF(COUNTRY_INFO!C58=0," ",COUNTRY_INFO!C58) -> Macina | D58: =IF(COUNTRY_INFO!$Z58="MDA3 (IVM)", COUNTRY_INFO!$Z58, " ") ->  | H58: 0 | K58: 0 | N58: 0 | O58: 0 | P58: 0 | Q58: 0
A59: =IF(COUNTRY_INFO!A59=0," ",COUNTRY_INFO!A59) -> Mali | B59: =IF(COUNTRY_INFO!B59=0," ",COUNTRY_INFO!B59) -> Segou | C59: =IF(COUNTRY_INFO!C59=0," ",COUNTRY_INFO!C59) -> Markala | D59: =IF(COUNTRY_INFO!$Z59="MDA3 (IVM)", COUNTRY_INFO!$Z59, " ") ->  | H59: 0 | K59: 0 | N59: 0 | O59: 0 | P59: 0 | Q59: 0
A60: =IF(COUNTRY_INFO!A60=0," ",COUNTRY_INFO!A60) -> Mali | B60: =IF(COUNTRY_INFO!B60=0," ",COUNTRY_INFO!B60) -> Segou | C60: =IF(COUNTRY_INFO!C60=0," ",COUNTRY_INFO!C60) -> Niono | D60: =IF(COUNTRY_INFO!$Z60="MDA3 (IVM)", COUNTRY_INFO!$Z60, " ") ->  | H60: 0 | K60: 0 | N60: 0 | O60: 0 | P60: 0 | Q60: 0
A61: =IF(COUNTRY_INFO!A61=0," ",COUNTRY_INFO!A61) -> Mali | B61: =IF(COUNTRY_INFO!B61=0," ",COUNTRY_INFO!B61) -> Segou | C61: =IF(COUNTRY_INFO!C61=0," ",COUNTRY_INFO!C61) -> San | D61: =IF(COUNTRY_INFO!$Z61="MDA3 (IVM)", COUNTRY_INFO!$Z61, " ") ->  | H61: 0 | K61: 0 | N61: 0 | O61: 0 | P61: 0 | Q61: 0
A62: =IF(COUNTRY_INFO!A62=0," ",COUNTRY_INFO!A62) -> Mali | B62: =IF(COUNTRY_INFO!B62=0," ",COUNTRY_INFO!B62) -> Segou | C62: =IF(COUNTRY_INFO!C62=0," ",COUNTRY_INFO!C62) -> Segou | D62: =IF(COUNTRY_INFO!$Z62="MDA3 (IVM)", COUNTRY_INFO!$Z62, " ") ->  | H62: 0 | K62: 0 | N62: 0 | O62: 0 | P62: 0 | Q62: 0
A63: =IF(COUNTRY_INFO!A63=0," ",COUNTRY_INFO!A63) -> Mali | B63: =IF(COUNTRY_INFO!B63=0," ",COUNTRY_INFO!B63) -> Segou | C63: =IF(COUNTRY_INFO!C63=0," ",COUNTRY_INFO!C63) -> Tominian | D63: =IF(COUNTRY_INFO!$Z63="MDA3 (IVM)", COUNTRY_INFO!$Z63, " ") ->  | H63: 0 | K63: 0 | N63: 0 | O63: 0 | P63: 0 | Q63: 0
A64: =IF(COUNTRY_INFO!A64=0," ",COUNTRY_INFO!A64) -> Mali | B64: =IF(COUNTRY_INFO!B64=0," ",COUNTRY_INFO!B64) -> Sikasso | C64: =IF(COUNTRY_INFO!C64=0," ",COUNTRY_INFO!C64) -> Bougouni | D64: =IF(COUNTRY_INFO!$Z64="MDA3 (IVM)", COUNTRY_INFO!$Z64, " ") ->  | H64: 0 | K64: 0 | N64: 0 | O64: 0 | P64: 0 | Q64: 0
A65: =IF(COUNTRY_INFO!A65=0," ",COUNTRY_INFO!A65) -> Mali | B65: =IF(COUNTRY_INFO!B65=0," ",COUNTRY_INFO!B65) -> Sikasso | C65: =IF(COUNTRY_INFO!C65=0," ",COUNTRY_INFO!C65) -> Kadiolo | D65: =IF(COUNTRY_INFO!$Z65="MDA3 (IVM)", COUNTRY_INFO!$Z65, " ") ->  | H65: 0 | K65: 0 | N65: 0 | O65: 0 | P65: 0 | Q65: 0
A66: =IF(COUNTRY_INFO!A66=0," ",COUNTRY_INFO!A66) -> Mali | B66: =IF(COUNTRY_INFO!B66=0," ",COUNTRY_INFO!B66) -> Sikasso | C66: =IF(COUNTRY_INFO!C66=0," ",COUNTRY_INFO!C66) -> Kignan | D66: =IF(COUNTRY_INFO!$Z66="MDA3 (IVM)", COUNTRY_INFO!$Z66, " ") -> MDA3 (IVM) | E66: fevrier 2023 | F66: 50036.4 | G66: 88953.6 | H66: 138990 | I66: 60401 | J66: 85641 | K66: 146042 | N66: 0 | O66: 60401 | P66: 85641 | Q66: 146042 | R66: 120.7141201 | S66: 96.27603605 | T66: 105.0737463
A67: =IF(COUNTRY_INFO!A67=0," ",COUNTRY_INFO!A67) -> Mali | B67: =IF(COUNTRY_INFO!B67=0," ",COUNTRY_INFO!B67) -> Sikasso | C67: =IF(COUNTRY_INFO!C67=0," ",COUNTRY_INFO!C67) -> Kolondieba | D67: =IF(COUNTRY_INFO!$Z67="MDA3 (IVM)", COUNTRY_INFO!$Z67, " ") -> MDA3 (IVM) | E67: fevrier 2023 | F67: 87338.52 | G67: 155268.48 | H67: 242607 | I67: 79290 | J67: 169023 | K67: 248313 | N67: 0 | O67: 79290 | P67: 169023 | Q67: 248313 | R67: 90.7846847 | S67: 108.8585397 | T67: 102.3519519
A68: =IF(COUNTRY_INFO!A68=0," ",COUNTRY_INFO!A68) -> Mali | B68: =IF(COUNTRY_INFO!B68=0," ",COUNTRY_INFO!B68) -> Sikasso | C68: =IF(COUNTRY_INFO!C68=0," ",COUNTRY_INFO!C68) -> Koutiala | D68: =IF(COUNTRY_INFO!$Z68="MDA3 (IVM)", COUNTRY_INFO!$Z68, " ") ->  | H68: 0 | K68: 0 | N68: 0 | O68: 0 | P68: 0 | Q68: 0
A69: =IF(COUNTRY_INFO!A69=0," ",COUNTRY_INFO!A69) -> Mali | B69: =IF(COUNTRY_INFO!B69=0," ",COUNTRY_INFO!B69) -> Sikasso | C69: =IF(COUNTRY_INFO!C69=0," ",COUNTRY_INFO!C69) -> Niena | D69: =IF(COUNTRY_INFO!$Z69="MDA3 (IVM)", COUNTRY_INFO!$Z69, " ") -> MDA3 (IVM) | E69: fevrier 2023 | F69: 52537.68 | G69: 93400.32 | H69: 145938 | I69: 49688 | J69: 70294 | K69: 119982 | N69: 0 | O69: 49688 | P69: 70294 | Q69: 119982 | R69: 94.57593103 | S69: 75.26098412 | T69: 82.214365
A70: =IF(COUNTRY_INFO!A70=0," ",COUNTRY_INFO!A70) -> Mali | B70: =IF(COUNTRY_INFO!B70=0," ",COUNTRY_INFO!B70) -> Sikasso | C70: =IF(COUNTRY_INFO!C70=0," ",COUNTRY_INFO!C70) -> Sélingué | D70: =IF(COUNTRY_INFO!$Z70="MDA3 (IVM)", COUNTRY_INFO!$Z70, " ") -> MDA3 (IVM) | E70: fevrier 2023 | F70: 35609.4 | G70: 63305.6 | H70: 98915 | I70: 45377 | J70: 56106 | K70: 101483 | N70: 0 | O70: 45377 | P70: 56106 | Q70: 101483 | R70: 127.4298359 | S70: 88.62723045 | T70: 102.5961684
A71: =IF(COUNTRY_INFO!A71=0," ",COUNTRY_INFO!A71) -> Mali | B71: =IF(COUNTRY_INFO!B71=0," ",COUNTRY_INFO!B71) -> Sikasso | C71: =IF(COUNTRY_INFO!C71=0," ",COUNTRY_INFO!C71) -> Sikasso | D71: =IF(COUNTRY_INFO!$Z71="MDA3 (IVM)", COUNTRY_INFO!$Z71, " ") -> MDA3 (IVM) | E71: fevrier 2023 | F71: 210151.08 | G71: 373601.92 | H71: 583753 | I71: 232943 | J71: 318374 | K71: 551317 | N71: 0 | O71: 232943 | P71: 318374 | Q71: 551317 | R71: 110.8454927 | S71: 85.21744214 | T71: 94.44354033
A72: =IF(COUNTRY_INFO!A72=0," ",COUNTRY_INFO!A72) -> Mali | B72: =IF(COUNTRY_INFO!B72=0," ",COUNTRY_INFO!B72) -> Sikasso | C72: =IF(COUNTRY_INFO!C72=0," ",COUNTRY_INFO!C72) -> Yanfolila | D72: =IF(COUNTRY_INFO!$Z72="MDA3 (IVM)", COUNTRY_INFO!$Z72, " ") ->  | H72: 0 | K72: 0 | N72: 0 | O72: 0 | P72: 0 | Q72: 0
A73: =IF(COUNTRY_INFO!A73=0," ",COUNTRY_INFO!A73) -> Mali | B73: =IF(COUNTRY_INFO!B73=0," ",COUNTRY_INFO!B73) -> Sikasso | C73: =IF(COUNTRY_INFO!C73=0," ",COUNTRY_INFO!C73) -> Yorosso | D73: =IF(COUNTRY_INFO!$Z73="MDA3 (IVM)", COUNTRY_INFO!$Z73, " ") ->  | H73: 0 | K73: 0 | N73: 0 | O73: 0 | P73: 0 | Q73: 0
A74: =IF(COUNTRY_INFO!A74=0," ",COUNTRY_INFO!A74) -> Mali | B74: =IF(COUNTRY_INFO!B74=0," ",COUNTRY_INFO!B74) -> Tombouctou | C74: =IF(COUNTRY_INFO!C74=0," ",COUNTRY_INFO!C74) -> Diré | D74: =IF(COUNTRY_INFO!$Z74="MDA3 (IVM)", COUNTRY_INFO!$Z74, " ") ->  | H74: 0 | K74: 0 | N74: 0 | O74: 0 | P74: 0 | Q74: 0
A75: =IF(COUNTRY_INFO!A75=0," ",COUNTRY_INFO!A75) -> Mali | B75: =IF(COUNTRY_INFO!B75=0," ",COUNTRY_INFO!B75) -> Tombouctou | C75: =IF(COUNTRY_INFO!C75=0," ",COUNTRY_INFO!C75) -> Goundam | D75: =IF(COUNTRY_INFO!$Z75="MDA3 (IVM)", COUNTRY_INFO!$Z75, " ") ->  | H75: =SUM(F75:G75) -> 0 | K75: =SUM(I75:J75) -> 0 | N75: =SUM(L75:M75) -> 0 | O75: =MAX(I75,L75) -> 0 | P75: =MAX(J75,M75) -> 0 | Q75: =SUM(O75:P75) -> 0 | R75: =IF(F75<>0, IF(MAX(I75,L75)/F75*100=0, "-", MAX(I75,L75)/F75*100), " ") ->  | S75: =IF(G75<>0, IF(MAX(J75,M75)/G75*100=0, "-", MAX(J75,M75)/G75*100), " ") ->  | T75: =IF(H75<>0, IF((MAX(I75,L75)+MAX(J75,M75))/H75*100=0, "-",(MAX(I75,L75)+MAX(J75,M75))/H75*100), " ") -> 
A76: =IF(COUNTRY_INFO!A76=0," ",COUNTRY_INFO!A76) -> Mali | B76: =IF(COUNTRY_INFO!B76=0," ",COUNTRY_INFO!B76) -> Tombouctou | C76: =IF(COUNTRY_INFO!C76=0," ",COUNTRY_INFO!C76) -> Gourma-Rharous | D76: =IF(COUNTRY_INFO!$Z76="MDA3 (IVM)", COUNTRY_INFO!$Z76, " ") ->  | H76: 0 | K76: 0 | N76: 0 | O76: 0 | P76: 0 | Q76: 0
A77: =IF(COUNTRY_INFO!A77=0," ",COUNTRY_INFO!A77) -> Mali | B77: =IF(COUNTRY_INFO!B77=0," ",COUNTRY_INFO!B77) -> Tombouctou | C77: =IF(COUNTRY_INFO!C77=0," ",COUNTRY_INFO!C77) -> Niafunké | D77: =IF(COUNTRY_INFO!$Z77="MDA3 (IVM)", COUNTRY_INFO!$Z77, " ") ->  | H77: 0 | K77: 0 | N77: 0 | O77: 0 | P77: 0 | Q77: 0
A78: =IF(COUNTRY_INFO!A78=0," ",COUNTRY_INFO!A78) -> Mali | B78: =IF(COUNTRY_INFO!B78=0," ",COUNTRY_INFO!B78) -> Tombouctou | C78: =IF(COUNTRY_INFO!C78=0," ",COUNTRY_INFO!C78) -> Tombouctou | D78: =IF(COUNTRY_INFO!$Z78="MDA3 (IVM)", COUNTRY_INFO!$Z78, " ") ->  | H78: 0 | K78: 0 | N78: 0 | O78: 0 | P78: 0 | Q78: 0
A79: =IF(COUNTRY_INFO!A79=0," ",COUNTRY_INFO!A79) -> Mali | B79: =IF(COUNTRY_INFO!B79=0," ",COUNTRY_INFO!B79) -> Taoudenit | C79: =IF(COUNTRY_INFO!C79=0," ",COUNTRY_INFO!C79) -> Achourat | D79: =IF(COUNTRY_INFO!$Z79="MDA3 (IVM)", COUNTRY_INFO!$Z79, " ") ->  | H79: 0 | K79: 0 | N79: 0 | O79: 0 | P79: 0 | Q79: 0
A80: =IF(COUNTRY_INFO!A80=0," ",COUNTRY_INFO!A80) -> Mali | B80: =IF(COUNTRY_INFO!B80=0," ",COUNTRY_INFO!B80) -> Taoudenit | C80: =IF(COUNTRY_INFO!C80=0," ",COUNTRY_INFO!C80) -> Al-Ourch | D80: =IF(COUNTRY_INFO!$Z80="MDA3 (IVM)", COUNTRY_INFO!$Z80, " ") ->  | H80: 0 | K80: 0 | N80: 0 | O80: 0 | P80: 0 | Q80: 0
A81: =IF(COUNTRY_INFO!A81=0," ",COUNTRY_INFO!A81) -> Mali | B81: =IF(COUNTRY_INFO!B81=0," ",COUNTRY_INFO!B81) -> Taoudenit | C81: =IF(COUNTRY_INFO!C81=0," ",COUNTRY_INFO!C81) -> Araouane | D81: =IF(COUNTRY_INFO!$Z81="MDA3 (IVM)", COUNTRY_INFO!$Z81, " ") ->  | H81: 0 | K81: 0 | N81: 0 | O81: 0 | P81: 0 | Q81: 0
A82: =IF(COUNTRY_INFO!A82=0," ",COUNTRY_INFO!A82) -> Mali | B82: =IF(COUNTRY_INFO!B82=0," ",COUNTRY_INFO!B82) -> Taoudenit | C82: =IF(COUNTRY_INFO!C82=0," ",COUNTRY_INFO!C82) -> Boujbeha | D82: =IF(COUNTRY_INFO!$Z82="MDA3 (IVM)", COUNTRY_INFO!$Z82, " ") ->  | H82: 0 | K82: 0 | N82: 0 | O82: 0 | P82: 0 | Q82: 0
A83: =IF(COUNTRY_INFO!A83=0," ",COUNTRY_INFO!A83) -> Mali | B83: =IF(COUNTRY_INFO!B83=0," ",COUNTRY_INFO!B83) -> Taoudenit | C83: =IF(COUNTRY_INFO!C83=0," ",COUNTRY_INFO!C83) -> Foum-Elba | D83: =IF(COUNTRY_INFO!$Z83="MDA3 (IVM)", COUNTRY_INFO!$Z83, " ") ->  | H83: 0 | K83: 0 | N83: 0 | O83: 0 | P83: 0 | Q83: 0
A84: =IF(COUNTRY_INFO!A84=0," ",COUNTRY_INFO!A84) -> Mali | B84: =IF(COUNTRY_INFO!B84=0," ",COUNTRY_INFO!B84) -> Taoudenit | C84: =IF(COUNTRY_INFO!C84=0," ",COUNTRY_INFO!C84) -> Taoudenit | D84: =IF(COUNTRY_INFO!$Z84="MDA3 (IVM)", COUNTRY_INFO!$Z84, " ") ->  | H84: 0 | K84: 0 | N84: 0 | O84: 0 | P84: 0 | Q84: 0

Sheet MDA5 (hidden)
A1: MDA 5 - Ivermectine (IVM) + Diethylcarbamazine (DEC) + Albendazole (ALB)
A2: Structure administrative, population nécessitant une chimioprévention par groupe d'âge, population traitée par groupe d'âge et couverture
A4: TOTAL | F4: =SUBTOTAL(9,F$10:F$1010) -> 0 | G4: 0 | H4: 0 | I4: 0 | J4: 0 | K4: 0 | L4: 0 | M4: 0 | N4: =IF(F4<>0, IF(J4/F4*100=0, "-", J4/F4*100), " ") ->  | O4: =IF(G4<>0, IF(K4/G4*100=0, "-", K4/G4*100), " ") ->  | P4: =IF(H4<>0, IF(L4/H4*100=0, "-", L4/H4*100), " ") ->  | Q4: =IF(I4<>0, IF(M4/I4*100=0, "-", M4/I4*100), " ") -> 
A6: Structure administrative du pays | D6: Mise en oeuvre de la CP | E6: Date | F6: Population ciblée pour MDA 2 | J6: Population traitée | N6: Couverture du Programme (%)
A7: Pays | B7: Région/Département | C7: District | F7: EAPréS | G7: EAS | H7: Adultes | I7: Total | J7: EAPréS | K7: EAS | L7: Adultes | M7: Total | N7: EAPréS | O7: EAS | P7: Adultes | Q7: Total
A10: =IF(COUNTRY_INFO!A10=0," ",COUNTRY_INFO!A10) -> Mali | B10: =IF(COUNTRY_INFO!B10=0," ",COUNTRY_INFO!B10) -> Bamako | C10: =IF(COUNTRY_INFO!C10=0," ",COUNTRY_INFO!C10) -> Commune 1 | D10: =IF(COUNTRY_INFO!$Z10="MDA5 (IDA)", COUNTRY_INFO!$Z10, " ") ->  | I10: =SUM(F10:H10) -> 0 | M10: =SUM(J10:L10) -> 0 | N10: =IF(F10<>0, IF(J10/F10*100=0, "-", J10/F10*100), " ") ->  | O10: =IF(G10<>0, IF(K10/G10*100=0, "-", K10/G10*100), " ") -> 
A11: =IF(COUNTRY_INFO!A11=0," ",COUNTRY_INFO!A11) -> Mali | B11: =IF(COUNTRY_INFO!B11=0," ",COUNTRY_INFO!B11) -> Bamako | C11: =IF(COUNTRY_INFO!C11=0," ",COUNTRY_INFO!C11) -> Commune 2 | D11: =IF(COUNTRY_INFO!$Z11="MDA5 (IDA)", COUNTRY_INFO!$Z11, " ") ->  | I11: =SUM(F11:H11) -> 0 | M11: =SUM(J11:L11) -> 0 | N11: =IF(F11<>0, IF(J11/F11*100=0, "-", J11/F11*100), " ") ->  | O11: =IF(G11<>0, IF(K11/G11*100=0, "-", K11/G11*100), " ") ->  | P11: =IF(H11<>0, IF(L11/H11*100=0, "-", L11/H11*100), " ") ->  | Q11: =IF(I11<>0, IF(M11/I11*100=0, "-", M11/I11*100), " ") -> 
A12: =IF(COUNTRY_INFO!A12=0," ",COUNTRY_INFO!A12) -> Mali | B12: =IF(COUNTRY_INFO!B12=0," ",COUNTRY_INFO!B12) -> Bamako | C12: =IF(COUNTRY_INFO!C12=0," ",COUNTRY_INFO!C12) -> Commune 3 | D12: =IF(COUNTRY_INFO!$Z12="MDA5 (IDA)", COUNTRY_INFO!$Z12, " ") ->  | I12: 0 | M12: 0
A13: =IF(COUNTRY_INFO!A13=0," ",COUNTRY_INFO!A13) -> Mali | B13: =IF(COUNTRY_INFO!B13=0," ",COUNTRY_INFO!B13) -> Bamako | C13: =IF(COUNTRY_INFO!C13=0," ",COUNTRY_INFO!C13) -> Commune 4 | D13: =IF(COUNTRY_INFO!$Z13="MDA5 (IDA)", COUNTRY_INFO!$Z13, " ") ->  | I13: 0 | M13: 0
A14: =IF(COUNTRY_INFO!A14=0," ",COUNTRY_INFO!A14) -> Mali | B14: =IF(COUNTRY_INFO!B14=0," ",COUNTRY_INFO!B14) -> Bamako | C14: =IF(COUNTRY_INFO!C14=0," ",COUNTRY_INFO!C14) -> Commune 5 | D14: =IF(COUNTRY_INFO!$Z14="MDA5 (IDA)", COUNTRY_INFO!$Z14, " ") ->  | I14: 0 | M14: 0
A15: =IF(COUNTRY_INFO!A15=0," ",COUNTRY_INFO!A15) -> Mali | B15: =IF(COUNTRY_INFO!B15=0," ",COUNTRY_INFO!B15) -> Bamako | C15: =IF(COUNTRY_INFO!C15=0," ",COUNTRY_INFO!C15) -> Commune 6 | D15: =IF(COUNTRY_INFO!$Z15="MDA5 (IDA)", COUNTRY_INFO!$Z15, " ") ->  | I15: 0 | M15: 0
A16: =IF(COUNTRY_INFO!A16=0," ",COUNTRY_INFO!A16) -> Mali | B16: =IF(COUNTRY_INFO!B16=0," ",COUNTRY_INFO!B16) -> Gao | C16: =IF(COUNTRY_INFO!C16=0," ",COUNTRY_INFO!C16) -> Ansongo | D16: =IF(COUNTRY_INFO!$Z16="MDA5 (IDA)", COUNTRY_INFO!$Z16, " ") ->  | I16: 0 | M16: 0
A17: =IF(COUNTRY_INFO!A17=0," ",COUNTRY_INFO!A17) -> Mali | B17: =IF(COUNTRY_INFO!B17=0," ",COUNTRY_INFO!B17) -> Gao | C17: =IF(COUNTRY_INFO!C17=0," ",COUNTRY_INFO!C17) -> Bourem | D17: =IF(COUNTRY_INFO!$Z17="MDA5 (IDA)", COUNTRY_INFO!$Z17, " ") ->  | I17: 0 | M17: 0
A18: =IF(COUNTRY_INFO!A18=0," ",COUNTRY_INFO!A18) -> Mali | B18: =IF(COUNTRY_INFO!B18=0," ",COUNTRY_INFO!B18) -> Gao | C18: =IF(COUNTRY_INFO!C18=0," ",COUNTRY_INFO!C18) -> Almoustrat | D18: =IF(COUNTRY_INFO!$Z18="MDA5 (IDA)", COUNTRY_INFO!$Z18, " ") ->  | I18: 0 | M18: 0
A19: =IF(COUNTRY_INFO!A19=0," ",COUNTRY_INFO!A19) -> Mali | B19: =IF(COUNTRY_INFO!B19=0," ",COUNTRY_INFO!B19) -> Gao | C19: =IF(COUNTRY_INFO!C19=0," ",COUNTRY_INFO!C19) -> Gao | D19: =IF(COUNTRY_INFO!$Z19="MDA5 (IDA)", COUNTRY_INFO!$Z19, " ") ->  | I19: 0 | M19: 0
A20: =IF(COUNTRY_INFO!A20=0," ",COUNTRY_INFO!A20) -> Mali | B20: =IF(COUNTRY_INFO!B20=0," ",COUNTRY_INFO!B20) -> Menaka | C20: =IF(COUNTRY_INFO!C20=0," ",COUNTRY_INFO!C20) -> Menaka | D20: =IF(COUNTRY_INFO!$Z20="MDA5 (IDA)", COUNTRY_INFO!$Z20, " ") ->  | I20: 0 | M20: 0
A21: =IF(COUNTRY_INFO!A21=0," ",COUNTRY_INFO!A21) -> Mali | B21: =IF(COUNTRY_INFO!B21=0," ",COUNTRY_INFO!B21) -> Menaka | C21: =IF(COUNTRY_INFO!C21=0," ",COUNTRY_INFO!C21) -> Anderamboukane | D21: =IF(COUNTRY_INFO!$Z21="MDA5 (IDA)", COUNTRY_INFO!$Z21, " ") ->  | I21: 0 | M21: 0
A22: =IF(COUNTRY_INFO!A22=0," ",COUNTRY_INFO!A22) -> Mali | B22: =IF(COUNTRY_INFO!B22=0," ",COUNTRY_INFO!B22) -> Menaka | C22: =IF(COUNTRY_INFO!C22=0," ",COUNTRY_INFO!C22) -> Inekar | D22: =IF(COUNTRY_INFO!$Z22="MDA5 (IDA)", COUNTRY_INFO!$Z22, " ") ->  | I22: 0 | M22: 0
A23: =IF(COUNTRY_INFO!A23=0," ",COUNTRY_INFO!A23) -> Mali | B23: =IF(COUNTRY_INFO!B23=0," ",COUNTRY_INFO!B23) -> Menaka | C23: =IF(COUNTRY_INFO!C23=0," ",COUNTRY_INFO!C23) -> Tidermene | D23: =IF(COUNTRY_INFO!$Z23="MDA5 (IDA)", COUNTRY_INFO!$Z23, " ") ->  | I23: 0 | M23: 0
A24: =IF(COUNTRY_INFO!A24=0," ",COUNTRY_INFO!A24) -> Mali | B24: =IF(COUNTRY_INFO!B24=0," ",COUNTRY_INFO!B24) -> Kayes | C24: =IF(COUNTRY_INFO!C24=0," ",COUNTRY_INFO!C24) -> Bafoulabe | D24: =IF(COUNTRY_INFO!$Z24="MDA5 (IDA)", COUNTRY_INFO!$Z24, " ") ->  | I24: 0 | M24: 0
A25: =IF(COUNTRY_INFO!A25=0," ",COUNTRY_INFO!A25) -> Mali | B25: =IF(COUNTRY_INFO!B25=0," ",COUNTRY_INFO!B25) -> Kayes | C25: =IF(COUNTRY_INFO!C25=0," ",COUNTRY_INFO!C25) -> Diema | D25: =IF(COUNTRY_INFO!$Z25="MDA5 (IDA)", COUNTRY_INFO!$Z25, " ") ->  | I25: 0 | M25: 0
A26: =IF(COUNTRY_INFO!A26=0," ",COUNTRY_INFO!A26) -> Mali | B26: =IF(COUNTRY_INFO!B26=0," ",COUNTRY_INFO!B26) -> Kayes | C26: =IF(COUNTRY_INFO!C26=0," ",COUNTRY_INFO!C26) -> Kayes | D26: =IF(COUNTRY_INFO!$Z26="MDA5 (IDA)", COUNTRY_INFO!$Z26, " ") ->  | I26: 0 | M26: 0
A27: =IF(COUNTRY_INFO!A27=0," ",COUNTRY_INFO!A27) -> Mali | B27: =IF(COUNTRY_INFO!B27=0," ",COUNTRY_INFO!B27) -> Kayes | C27: =IF(COUNTRY_INFO!C27=0," ",COUNTRY_INFO!C27) -> Kenieba | D27: =IF(COUNTRY_INFO!$Z27="MDA5 (IDA)", COUNTRY_INFO!$Z27, " ") ->  | I27: 0 | M27: 0
A28: =IF(COUNTRY_INFO!A28=0," ",COUNTRY_INFO!A28) -> Mali | B28: =IF(COUNTRY_INFO!B28=0," ",COUNTRY_INFO!B28) -> Kayes | C28: =IF(COUNTRY_INFO!C28=0," ",COUNTRY_INFO!C28) -> Kita | D28: =IF(COUNTRY_INFO!$Z28="MDA5 (IDA)", COUNTRY_INFO!$Z28, " ") ->  | I28: 0 | M28: 0
A29: =IF(COUNTRY_INFO!A29=0," ",COUNTRY_INFO!A29) -> Mali | B29: =IF(COUNTRY_INFO!B29=0," ",COUNTRY_INFO!B29) -> Kayes | C29: =IF(COUNTRY_INFO!C29=0," ",COUNTRY_INFO!C29) -> Sagabari | D29: =IF(COUNTRY_INFO!$Z29="MDA5 (IDA)", COUNTRY_INFO!$Z29, " ") ->  | I29: 0 | M29: 0
A30: =IF(COUNTRY_INFO!A30=0," ",COUNTRY_INFO!A30) -> Mali | B30: =IF(COUNTRY_INFO!B30=0," ",COUNTRY_INFO!B30) -> Kayes | C30: =IF(COUNTRY_INFO!C30=0," ",COUNTRY_INFO!C30) -> Sefeto | D30: =IF(COUNTRY_INFO!$Z30="MDA5 (IDA)", COUNTRY_INFO!$Z30, " ") ->  | I30: 0 | M30: 0
A31: =IF(COUNTRY_INFO!A31=0," ",COUNTRY_INFO!A31) -> Mali | B31: =IF(COUNTRY_INFO!B31=0," ",COUNTRY_INFO!B31) -> Kayes | C31: =IF(COUNTRY_INFO!C31=0," ",COUNTRY_INFO!C31) -> Nioro | D31: =IF(COUNTRY_INFO!$Z31="MDA5 (IDA)", COUNTRY_INFO!$Z31, " ") ->  | I31: 0 | M31: 0
A32: =IF(COUNTRY_INFO!A32=0," ",COUNTRY_INFO!A32) -> Mali | B32: =IF(COUNTRY_INFO!B32=0," ",COUNTRY_INFO!B32) -> Kayes | C32: =IF(COUNTRY_INFO!C32=0," ",COUNTRY_INFO!C32) -> Oussoubidiagna | D32: =IF(COUNTRY_INFO!$Z32="MDA5 (IDA)", COUNTRY_INFO!$Z32, " ") ->  | I32: 0 | M32: 0
A33: =IF(COUNTRY_INFO!A33=0," ",COUNTRY_INFO!A33) -> Mali | B33: =IF(COUNTRY_INFO!B33=0," ",COUNTRY_INFO!B33) -> Kayes | C33: =IF(COUNTRY_INFO!C33=0," ",COUNTRY_INFO!C33) -> Yelimane | D33: =IF(COUNTRY_INFO!$Z33="MDA5 (IDA)", COUNTRY_INFO!$Z33, " ") ->  | I33: 0 | M33: 0
A34: =IF(COUNTRY_INFO!A34=0," ",COUNTRY_INFO!A34) -> Mali | B34: =IF(COUNTRY_INFO!B34=0," ",COUNTRY_INFO!B34) -> Kidal | C34: =IF(COUNTRY_INFO!C34=0," ",COUNTRY_INFO!C34) -> Abeibara | D34: =IF(COUNTRY_INFO!$Z34="MDA5 (IDA)", COUNTRY_INFO!$Z34, " ") ->  | I34: 0 | M34: 0
A35: =IF(COUNTRY_INFO!A35=0," ",COUNTRY_INFO!A35) -> Mali | B35: =IF(COUNTRY_INFO!B35=0," ",COUNTRY_INFO!B35) -> Kidal | C35: =IF(COUNTRY_INFO!C35=0," ",COUNTRY_INFO!C35) -> Kidal | D35: =IF(COUNTRY_INFO!$Z35="MDA5 (IDA)", COUNTRY_INFO!$Z35, " ") ->  | I35: 0 | M35: 0
A36: =IF(COUNTRY_INFO!A36=0," ",COUNTRY_INFO!A36) -> Mali | B36: =IF(COUNTRY_INFO!B36=0," ",COUNTRY_INFO!B36) -> Kidal | C36: =IF(COUNTRY_INFO!C36=0," ",COUNTRY_INFO!C36) -> Tessalit | D36: =IF(COUNTRY_INFO!$Z36="MDA5 (IDA)", COUNTRY_INFO!$Z36, " ") ->  | I36: 0 | M36: 0
A37: =IF(COUNTRY_INFO!A37=0," ",COUNTRY_INFO!A37) -> Mali | B37: =IF(COUNTRY_INFO!B37=0," ",COUNTRY_INFO!B37) -> Kidal | C37: =IF(COUNTRY_INFO!C37=0," ",COUNTRY_INFO!C37) -> Tin-Essako | D37: =IF(COUNTRY_INFO!$Z37="MDA5 (IDA)", COUNTRY_INFO!$Z37, " ") ->  | I37: 0 | M37: 0
A38: =IF(COUNTRY_INFO!A38=0," ",COUNTRY_INFO!A38) -> Mali | B38: =IF(COUNTRY_INFO!B38=0," ",COUNTRY_INFO!B38) -> Koulikoro | C38: =IF(COUNTRY_INFO!C38=0," ",COUNTRY_INFO!C38) -> Banamba | D38: =IF(COUNTRY_INFO!$Z38="MDA5 (IDA)", COUNTRY_INFO!$Z38, " ") ->  | I38: 0 | M38: 0
A39: =IF(COUNTRY_INFO!A39=0," ",COUNTRY_INFO!A39) -> Mali | B39: =IF(COUNTRY_INFO!B39=0," ",COUNTRY_INFO!B39) -> Koulikoro | C39: =IF(COUNTRY_INFO!C39=0," ",COUNTRY_INFO!C39) -> Dioila | D39: =IF(COUNTRY_INFO!$Z39="MDA5 (IDA)", COUNTRY_INFO!$Z39, " ") ->  | I39: 0 | M39: 0
A40: =IF(COUNTRY_INFO!A40=0," ",COUNTRY_INFO!A40) -> Mali | B40: =IF(COUNTRY_INFO!B40=0," ",COUNTRY_INFO!B40) -> Koulikoro | C40: =IF(COUNTRY_INFO!C40=0," ",COUNTRY_INFO!C40) -> Fana | D40: =IF(COUNTRY_INFO!$Z40="MDA5 (IDA)", COUNTRY_INFO!$Z40, " ") ->  | I40: 0 | M40: 0
A41: =IF(COUNTRY_INFO!A41=0," ",COUNTRY_INFO!A41) -> Mali | B41: =IF(COUNTRY_INFO!B41=0," ",COUNTRY_INFO!B41) -> Koulikoro | C41: =IF(COUNTRY_INFO!C41=0," ",COUNTRY_INFO!C41) -> Kalabancoro | D41: =IF(COUNTRY_INFO!$Z41="MDA5 (IDA)", COUNTRY_INFO!$Z41, " ") ->  | I41: 0 | M41: 0
A42: =IF(COUNTRY_INFO!A42=0," ",COUNTRY_INFO!A42) -> Mali | B42: =IF(COUNTRY_INFO!B42=0," ",COUNTRY_INFO!B42) -> Koulikoro | C42: =IF(COUNTRY_INFO!C42=0," ",COUNTRY_INFO!C42) -> Kangaba | D42: =IF(COUNTRY_INFO!$Z42="MDA5 (IDA)", COUNTRY_INFO!$Z42, " ") ->  | I42: 0 | M42: 0
A43: =IF(COUNTRY_INFO!A43=0," ",COUNTRY_INFO!A43) -> Mali | B43: =IF(COUNTRY_INFO!B43=0," ",COUNTRY_INFO!B43) -> Koulikoro | C43: =IF(COUNTRY_INFO!C43=0," ",COUNTRY_INFO!C43) -> Kati | D43: =IF(COUNTRY_INFO!$Z43="MDA5 (IDA)", COUNTRY_INFO!$Z43, " ") ->  | I43: 0 | M43: 0
A44: =IF(COUNTRY_INFO!A44=0," ",COUNTRY_INFO!A44) -> Mali | B44: =IF(COUNTRY_INFO!B44=0," ",COUNTRY_INFO!B44) -> Koulikoro | C44: =IF(COUNTRY_INFO!C44=0," ",COUNTRY_INFO!C44) -> Kolokani | D44: =IF(COUNTRY_INFO!$Z44="MDA5 (IDA)", COUNTRY_INFO!$Z44, " ") ->  | I44: 0 | M44: 0
A45: =IF(COUNTRY_INFO!A45=0," ",COUNTRY_INFO!A45) -> Mali | B45: =IF(COUNTRY_INFO!B45=0," ",COUNTRY_INFO!B45) -> Koulikoro | C45: =IF(COUNTRY_INFO!C45=0," ",COUNTRY_INFO!C45) -> Koulikoro | D45: =IF(COUNTRY_INFO!$Z45="MDA5 (IDA)", COUNTRY_INFO!$Z45, " ") ->  | I45: 0 | M45: 0
A46: =IF(COUNTRY_INFO!A46=0," ",COUNTRY_INFO!A46) -> Mali | B46: =IF(COUNTRY_INFO!B46=0," ",COUNTRY_INFO!B46) -> Koulikoro | C46: =IF(COUNTRY_INFO!C46=0," ",COUNTRY_INFO!C46) -> Nara | D46: =IF(COUNTRY_INFO!$Z46="MDA5 (IDA)", COUNTRY_INFO!$Z46, " ") ->  | I46: 0 | M46: 0
A47: =IF(COUNTRY_INFO!A47=0," ",COUNTRY_INFO!A47) -> Mali | B47: =IF(COUNTRY_INFO!B47=0," ",COUNTRY_INFO!B47) -> Koulikoro | C47: =IF(COUNTRY_INFO!C47=0," ",COUNTRY_INFO!C47) -> Ouelessebougou | D47: =IF(COUNTRY_INFO!$Z47="MDA5 (IDA)", COUNTRY_INFO!$Z47, " ") ->  | I47: 0 | M47: 0
A48: =IF(COUNTRY_INFO!A48=0," ",COUNTRY_INFO!A48) -> Mali | B48: =IF(COUNTRY_INFO!B48=0," ",COUNTRY_INFO!B48) -> Mopti | C48: =IF(COUNTRY_INFO!C48=0," ",COUNTRY_INFO!C48) -> Bandiagara | D48: =IF(COUNTRY_INFO!$Z48="MDA5 (IDA)", COUNTRY_INFO!$Z48, " ") ->  | I48: 0 | M48: 0
A49: =IF(COUNTRY_INFO!A49=0," ",COUNTRY_INFO!A49) -> Mali | B49: =IF(COUNTRY_INFO!B49=0," ",COUNTRY_INFO!B49) -> Mopti | C49: =IF(COUNTRY_INFO!C49=0," ",COUNTRY_INFO!C49) -> Bankass | D49: =IF(COUNTRY_INFO!$Z49="MDA5 (IDA)", COUNTRY_INFO!$Z49, " ") ->  | I49: 0 | M49: 0
A50: =IF(COUNTRY_INFO!A50=0," ",COUNTRY_INFO!A50) -> Mali | B50: =IF(COUNTRY_INFO!B50=0," ",COUNTRY_INFO!B50) -> Mopti | C50: =IF(COUNTRY_INFO!C50=0," ",COUNTRY_INFO!C50) -> Djenne | D50: =IF(COUNTRY_INFO!$Z50="MDA5 (IDA)", COUNTRY_INFO!$Z50, " ") ->  | I50: 0 | M50: 0
A51: =IF(COUNTRY_INFO!A51=0," ",COUNTRY_INFO!A51) -> Mali | B51: =IF(COUNTRY_INFO!B51=0," ",COUNTRY_INFO!B51) -> Mopti | C51: =IF(COUNTRY_INFO!C51=0," ",COUNTRY_INFO!C51) -> Douentza | D51: =IF(COUNTRY_INFO!$Z51="MDA5 (IDA)", COUNTRY_INFO!$Z51, " ") ->  | I51: 0 | M51: 0
A52: =IF(COUNTRY_INFO!A52=0," ",COUNTRY_INFO!A52) -> Mali | B52: =IF(COUNTRY_INFO!B52=0," ",COUNTRY_INFO!B52) -> Mopti | C52: =IF(COUNTRY_INFO!C52=0," ",COUNTRY_INFO!C52) -> Koro | D52: =IF(COUNTRY_INFO!$Z52="MDA5 (IDA)", COUNTRY_INFO!$Z52, " ") ->  | I52: 0 | M52: 0
A53: =IF(COUNTRY_INFO!A53=0," ",COUNTRY_INFO!A53) -> Mali | B53: =IF(COUNTRY_INFO!B53=0," ",COUNTRY_INFO!B53) -> Mopti | C53: =IF(COUNTRY_INFO!C53=0," ",COUNTRY_INFO!C53) -> Mopti | D53: =IF(COUNTRY_INFO!$Z53="MDA5 (IDA)", COUNTRY_INFO!$Z53, " ") ->  | I53: 0 | M53: 0
A54: =IF(COUNTRY_INFO!A54=0," ",COUNTRY_INFO!A54) -> Mali | B54: =IF(COUNTRY_INFO!B54=0," ",COUNTRY_INFO!B54) -> Mopti | C54: =IF(COUNTRY_INFO!C54=0," ",COUNTRY_INFO!C54) -> Teninkou | D54: =IF(COUNTRY_INFO!$Z54="MDA5 (IDA)", COUNTRY_INFO!$Z54, " ") ->  | I54: 0 | M54: 0
A55: =IF(COUNTRY_INFO!A55=0," ",COUNTRY_INFO!A55) -> Mali | B55: =IF(COUNTRY_INFO!B55=0," ",COUNTRY_INFO!B55) -> Mopti | C55: =IF(COUNTRY_INFO!C55=0," ",COUNTRY_INFO!C55) -> Youwarou | D55: =IF(COUNTRY_INFO!$Z55="MDA5 (IDA)", COUNTRY_INFO!$Z55, " ") ->  | I55: 0 | M55: 0
A56: =IF(COUNTRY_INFO!A56=0," ",COUNTRY_INFO!A56) -> Mali | B56: =IF(COUNTRY_INFO!B56=0," ",COUNTRY_INFO!B56) -> Segou | C56: =IF(COUNTRY_INFO!C56=0," ",COUNTRY_INFO!C56) -> Barouéli | D56: =IF(COUNTRY_INFO!$Z56="MDA5 (IDA)", COUNTRY_INFO!$Z56, " ") ->  | I56: 0 | M56: 0
A57: =IF(COUNTRY_INFO!A57=0," ",COUNTRY_INFO!A57) -> Mali | B57: =IF(COUNTRY_INFO!B57=0," ",COUNTRY_INFO!B57) -> Segou | C57: =IF(COUNTRY_INFO!C57=0," ",COUNTRY_INFO!C57) -> Bla | D57: =IF(COUNTRY_INFO!$Z57="MDA5 (IDA)", COUNTRY_INFO!$Z57, " ") ->  | I57: 0 | M57: 0
A58: =IF(COUNTRY_INFO!A58=0," ",COUNTRY_INFO!A58) -> Mali | B58: =IF(COUNTRY_INFO!B58=0," ",COUNTRY_INFO!B58) -> Segou | C58: =IF(COUNTRY_INFO!C58=0," ",COUNTRY_INFO!C58) -> Macina | D58: =IF(COUNTRY_INFO!$Z58="MDA5 (IDA)", COUNTRY_INFO!$Z58, " ") ->  | I58: 0 | M58: 0
A59: =IF(COUNTRY_INFO!A59=0," ",COUNTRY_INFO!A59) -> Mali | B59: =IF(COUNTRY_INFO!B59=0," ",COUNTRY_INFO!B59) -> Segou | C59: =IF(COUNTRY_INFO!C59=0," ",COUNTRY_INFO!C59) -> Markala | D59: =IF(COUNTRY_INFO!$Z59="MDA5 (IDA)", COUNTRY_INFO!$Z59, " ") ->  | I59: 0 | M59: 0
A60: =IF(COUNTRY_INFO!A60=0," ",COUNTRY_INFO!A60) -> Mali | B60: =IF(COUNTRY_INFO!B60=0," ",COUNTRY_INFO!B60) -> Segou | C60: =IF(COUNTRY_INFO!C60=0," ",COUNTRY_INFO!C60) -> Niono | D60: =IF(COUNTRY_INFO!$Z60="MDA5 (IDA)", COUNTRY_INFO!$Z60, " ") ->  | I60: 0 | M60: 0
A61: =IF(COUNTRY_INFO!A61=0," ",COUNTRY_INFO!A61) -> Mali | B61: =IF(COUNTRY_INFO!B61=0," ",COUNTRY_INFO!B61) -> Segou | C61: =IF(COUNTRY_INFO!C61=0," ",COUNTRY_INFO!C61) -> San | D61: =IF(COUNTRY_INFO!$Z61="MDA5 (IDA)", COUNTRY_INFO!$Z61, " ") ->  | I61: 0 | M61: 0
A62: =IF(COUNTRY_INFO!A62=0," ",COUNTRY_INFO!A62) -> Mali | B62: =IF(COUNTRY_INFO!B62=0," ",COUNTRY_INFO!B62) -> Segou | C62: =IF(COUNTRY_INFO!C62=0," ",COUNTRY_INFO!C62) -> Segou | D62: =IF(COUNTRY_INFO!$Z62="MDA5 (IDA)", COUNTRY_INFO!$Z62, " ") ->  | I62: 0 | M62: 0
A63: =IF(COUNTRY_INFO!A63=0," ",COUNTRY_INFO!A63) -> Mali | B63: =IF(COUNTRY_INFO!B63=0," ",COUNTRY_INFO!B63) -> Segou | C63: =IF(COUNTRY_INFO!C63=0," ",COUNTRY_INFO!C63) -> Tominian | D63: =IF(COUNTRY_INFO!$Z63="MDA5 (IDA)", COUNTRY_INFO!$Z63, " ") ->  | I63: 0 | M63: 0
A64: =IF(COUNTRY_INFO!A64=0," ",COUNTRY_INFO!A64) -> Mali | B64: =IF(COUNTRY_INFO!B64=0," ",COUNTRY_INFO!B64) -> Sikasso | C64: =IF(COUNTRY_INFO!C64=0," ",COUNTRY_INFO!C64) -> Bougouni | D64: =IF(COUNTRY_INFO!$Z64="MDA5 (IDA)", COUNTRY_INFO!$Z64, " ") ->  | I64: 0 | M64: 0
A65: =IF(COUNTRY_INFO!A65=0," ",COUNTRY_INFO!A65) -> Mali | B65: =IF(COUNTRY_INFO!B65=0," ",COUNTRY_INFO!B65) -> Sikasso | C65: =IF(COUNTRY_INFO!C65=0," ",COUNTRY_INFO!C65) -> Kadiolo | D65: =IF(COUNTRY_INFO!$Z65="MDA5 (IDA)", COUNTRY_INFO!$Z65, " ") ->  | I65: 0 | M65: 0
A66: =IF(COUNTRY_INFO!A66=0," ",COUNTRY_INFO!A66) -> Mali | B66: =IF(COUNTRY_INFO!B66=0," ",COUNTRY_INFO!B66) -> Sikasso | C66: =IF(COUNTRY_INFO!C66=0," ",COUNTRY_INFO!C66) -> Kignan | D66: =IF(COUNTRY_INFO!$Z66="MDA5 (IDA)", COUNTRY_INFO!$Z66, " ") ->  | I66: 0 | M66: 0
A67: =IF(COUNTRY_INFO!A67=0," ",COUNTRY_INFO!A67) -> Mali | B67: =IF(COUNTRY_INFO!B67=0," ",COUNTRY_INFO!B67) -> Sikasso | C67: =IF(COUNTRY_INFO!C67=0," ",COUNTRY_INFO!C67) -> Kolondieba | D67: =IF(COUNTRY_INFO!$Z67="MDA5 (IDA)", COUNTRY_INFO!$Z67, " ") ->  | I67: 0 | M67: 0
A68: =IF(COUNTRY_INFO!A68=0," ",COUNTRY_INFO!A68) -> Mali | B68: =IF(COUNTRY_INFO!B68=0," ",COUNTRY_INFO!B68) -> Sikasso | C68: =IF(COUNTRY_INFO!C68=0," ",COUNTRY_INFO!C68) -> Koutiala | D68: =IF(COUNTRY_INFO!$Z68="MDA5 (IDA)", COUNTRY_INFO!$Z68, " ") ->  | I68: 0 | M68: 0
A69: =IF(COUNTRY_INFO!A69=0," ",COUNTRY_INFO!A69) -> Mali | B69: =IF(COUNTRY_INFO!B69=0," ",COUNTRY_INFO!B69) -> Sikasso | C69: =IF(COUNTRY_INFO!C69=0," ",COUNTRY_INFO!C69) -> Niena | D69: =IF(COUNTRY_INFO!$Z69="MDA5 (IDA)", COUNTRY_INFO!$Z69, " ") ->  | I69: 0 | M69: 0
A70: =IF(COUNTRY_INFO!A70=0," ",COUNTRY_INFO!A70) -> Mali | B70: =IF(COUNTRY_INFO!B70=0," ",COUNTRY_INFO!B70) -> Sikasso | C70: =IF(COUNTRY_INFO!C70=0," ",COUNTRY_INFO!C70) -> Sélingué | D70: =IF(COUNTRY_INFO!$Z70="MDA5 (IDA)", COUNTRY_INFO!$Z70, " ") ->  | I70: 0 | M70: 0
A71: =IF(COUNTRY_INFO!A71=0," ",COUNTRY_INFO!A71) -> Mali | B71: =IF(COUNTRY_INFO!B71=0," ",COUNTRY_INFO!B71) -> Sikasso | C71: =IF(COUNTRY_INFO!C71=0," ",COUNTRY_INFO!C71) -> Sikasso | D71: =IF(COUNTRY_INFO!$Z71="MDA5 (IDA)", COUNTRY_INFO!$Z71, " ") ->  | I71: 0 | M71: 0
A72: =IF(COUNTRY_INFO!A72=0," ",COUNTRY_INFO!A72) -> Mali | B72: =IF(COUNTRY_INFO!B72=0," ",COUNTRY_INFO!B72) -> Sikasso | C72: =IF(COUNTRY_INFO!C72=0," ",COUNTRY_INFO!C72) -> Yanfolila | D72: =IF(COUNTRY_INFO!$Z72="MDA5 (IDA)", COUNTRY_INFO!$Z72, " ") ->  | I72: 0 | M72: 0
A73: =IF(COUNTRY_INFO!A73=0," ",COUNTRY_INFO!A73) -> Mali | B73: =IF(COUNTRY_INFO!B73=0," ",COUNTRY_INFO!B73) -> Sikasso | C73: =IF(COUNTRY_INFO!C73=0," ",COUNTRY_INFO!C73) -> Yorosso | D73: =IF(COUNTRY_INFO!$Z73="MDA5 (IDA)", COUNTRY_INFO!$Z73, " ") ->  | I73: 0 | M73: 0
A74: =IF(COUNTRY_INFO!A74=0," ",COUNTRY_INFO!A74) -> Mali | B74: =IF(COUNTRY_INFO!B74=0," ",COUNTRY_INFO!B74) -> Tombouctou | C74: =IF(COUNTRY_INFO!C74=0," ",COUNTRY_INFO!C74) -> Diré | D74: =IF(COUNTRY_INFO!$Z74="MDA5 (IDA)", COUNTRY_INFO!$Z74, " ") ->  | I74: 0 | M74: 0
A75: =IF(COUNTRY_INFO!A75=0," ",COUNTRY_INFO!A75) -> Mali | B75: =IF(COUNTRY_INFO!B75=0," ",COUNTRY_INFO!B75) -> Tombouctou | C75: =IF(COUNTRY_INFO!C75=0," ",COUNTRY_INFO!C75) -> Goundam | D75: =IF(COUNTRY_INFO!$Z75="MDA5 (IDA)", COUNTRY_INFO!$Z75, " ") ->  | I75: =SUM(F75:H75) -> 0 | M75: =SUM(J75:L75) -> 0 | N75: =IF(F75<>0, IF(J75/F75*100=0, "-", J75/F75*100), " ") ->  | O75: =IF(G75<>0, IF(K75/G75*100=0, "-", K75/G75*100), " ") ->  | P75: =IF(H75<>0, IF(L75/H75*100=0, "-", L75/H75*100), " ") ->  | Q75: =IF(I75<>0, IF(M75/I75*100=0, "-", M75/I75*100), " ") -> 
A76: =IF(COUNTRY_INFO!A76=0," ",COUNTRY_INFO!A76) -> Mali | B76: =IF(COUNTRY_INFO!B76=0," ",COUNTRY_INFO!B76) -> Tombouctou | C76: =IF(COUNTRY_INFO!C76=0," ",COUNTRY_INFO!C76) -> Gourma-Rharous | D76: =IF(COUNTRY_INFO!$Z76="MDA5 (IDA)", COUNTRY_INFO!$Z76, " ") ->  | I76: 0 | M76: 0
A77: =IF(COUNTRY_INFO!A77=0," ",COUNTRY_INFO!A77) -> Mali | B77: =IF(COUNTRY_INFO!B77=0," ",COUNTRY_INFO!B77) -> Tombouctou | C77: =IF(COUNTRY_INFO!C77=0," ",COUNTRY_INFO!C77) -> Niafunké | D77: =IF(COUNTRY_INFO!$Z77="MDA5 (IDA)", COUNTRY_INFO!$Z77, " ") ->  | I77: 0 | M77: 0
A78: =IF(COUNTRY_INFO!A78=0," ",COUNTRY_INFO!A78) -> Mali | B78: =IF(COUNTRY_INFO!B78=0," ",COUNTRY_INFO!B78) -> Tombouctou | C78: =IF(COUNTRY_INFO!C78=0," ",COUNTRY_INFO!C78) -> Tombouctou | D78: =IF(COUNTRY_INFO!$Z78="MDA5 (IDA)", COUNTRY_INFO!$Z78, " ") ->  | I78: 0 | M78: 0
A79: =IF(COUNTRY_INFO!A79=0," ",COUNTRY_INFO!A79) -> Mali | B79: =IF(COUNTRY_INFO!B79=0," ",COUNTRY_INFO!B79) -> Taoudenit | C79: =IF(COUNTRY_INFO!C79=0," ",COUNTRY_INFO!C79) -> Achourat | D79: =IF(COUNTRY_INFO!$Z79="MDA5 (IDA)", COUNTRY_INFO!$Z79, " ") ->  | I79: 0 | M79: 0
A80: =IF(COUNTRY_INFO!A80=0," ",COUNTRY_INFO!A80) -> Mali | B80: =IF(COUNTRY_INFO!B80=0," ",COUNTRY_INFO!B80) -> Taoudenit | C80: =IF(COUNTRY_INFO!C80=0," ",COUNTRY_INFO!C80) -> Al-Ourch | D80: =IF(COUNTRY_INFO!$Z80="MDA5 (IDA)", COUNTRY_INFO!$Z80, " ") ->  | I80: 0 | M80: 0
A81: =IF(COUNTRY_INFO!A81=0," ",COUNTRY_INFO!A81) -> Mali | B81: =IF(COUNTRY_INFO!B81=0," ",COUNTRY_INFO!B81) -> Taoudenit | C81: =IF(COUNTRY_INFO!C81=0," ",COUNTRY_INFO!C81) -> Araouane | D81: =IF(COUNTRY_INFO!$Z81="MDA5 (IDA)", COUNTRY_INFO!$Z81, " ") ->  | I81: 0 | M81: 0
A82: =IF(COUNTRY_INFO!A82=0," ",COUNTRY_INFO!A82) -> Mali | B82: =IF(COUNTRY_INFO!B82=0," ",COUNTRY_INFO!B82) -> Taoudenit | C82: =IF(COUNTRY_INFO!C82=0," ",COUNTRY_INFO!C82) -> Boujbeha | D82: =IF(COUNTRY_INFO!$Z82="MDA5 (IDA)", COUNTRY_INFO!$Z82, " ") ->  | I82: 0 | M82: 0
A83: =IF(COUNTRY_INFO!A83=0," ",COUNTRY_INFO!A83) -> Mali | B83: =IF(COUNTRY_INFO!B83=0," ",COUNTRY_INFO!B83) -> Taoudenit | C83: =IF(COUNTRY_INFO!C83=0," ",COUNTRY_INFO!C83) -> Foum-Elba | D83: =IF(COUNTRY_INFO!$Z83="MDA5 (IDA)", COUNTRY_INFO!$Z83, " ") ->  | I83: 0 | M83: 0
A84: =IF(COUNTRY_INFO!A84=0," ",COUNTRY_INFO!A84) -> Mali | B84: =IF(COUNTRY_INFO!B84=0," ",COUNTRY_INFO!B84) -> Taoudenit | C84: =IF(COUNTRY_INFO!C84=0," ",COUNTRY_INFO!C84) -> Taoudenit | D84: =IF(COUNTRY_INFO!$Z84="MDA5 (IDA)", COUNTRY_INFO!$Z84, " ") ->  | I84: 0 | M84: 0

Sheet T1 (hidden)
A1: T 1 - Praziquantel (PZQ) et Albendazole (ALB) ou Mebendazole (MBD)
A2: Structure administrative, population nécessitant une chimioprévention par groupe d'âge, population traitée par groupe d'âge et couverture
A4: TOTAL | G4: =SUBTOTAL(9,G$10:G$1010) -> 0 | H4: 0 | I4: 0 | J4: 0 | K4: 0 | L4: 0 | M4: 0 | N4: 0 | O4: =IF(G4<>0, IF(K4/G4*100=0, "-", K4/G4*100), " ") ->  | P4: =IF(H4<>0, IF(L4/H4*100=0, "-", L4/H4*100), " ") ->  | Q4: =IF(I4<>0, IF(M4/I4*100=0, "-", M4/I4*100), " ") ->  | R4: =IF(J4<>0, IF(N4/J4*100=0, "-", N4/J4*100), " ") -> 
A6: Structure administrative du pays | D6: Mise en oeuvre de la CP | E6: Médica-ment | F6: Date | G6: Population ciblée pour T1 | K6: Population traitée | O6: Couverture du Programme (%)
A7: Pays | B7: Région/Département | C7: District | G7: EAPréS | H7: EAS | I7: Adultes | J7: Total | K7: EAPréS | L7: EAS | M7: Adultes | N7: Total | O7: EAPréS | P7: EAS | Q7: Adultes | R7: Total
A10: =IF(COUNTRY_INFO!A10=0," ",COUNTRY_INFO!A10) -> Mali | B10: =IF(COUNTRY_INFO!B10=0," ",COUNTRY_INFO!B10) -> Bamako | C10: =IF(COUNTRY_INFO!C10=0," ",COUNTRY_INFO!C10) -> Commune 1 | D10: =IF(OR(COUNTRY_INFO!$Z10="T1 (PZQ+ALB/MBD)",COUNTRY_INFO!$AA10="T1 (PZQ+ALB/MBD)"), "T1 (PZQ+ALB/MBD)", " ") ->  | J10: =SUM(G10:I10) -> 0 | N10: =SUM(K10:M10) -> 0 | O10: =IF(G10<>0, IF(K10/G10*100=0, "-", K10/G10*100), " ") ->  | P10: =IF(H10<>0, IF(L10/H10*100=0, "-", L10/H10*100), " ") ->  | Q10: =IF(I10<>0, IF(M10/I10*100=0, "-", M10/I10*100), " ") -> 
A11: =IF(COUNTRY_INFO!A11=0," ",COUNTRY_INFO!A11) -> Mali | B11: =IF(COUNTRY_INFO!B11=0," ",COUNTRY_INFO!B11) -> Bamako | C11: =IF(COUNTRY_INFO!C11=0," ",COUNTRY_INFO!C11) -> Commune 2 | D11: =IF(OR(COUNTRY_INFO!$Z11="T1 (PZQ+ALB/MBD)",COUNTRY_INFO!$AA11="T1 (PZQ+ALB/MBD)"), "T1 (PZQ+ALB/MBD)", " ") ->  | J11: =SUM(G11:I11) -> 0 | N11: =SUM(K11:M11) -> 0 | O11: =IF(G11<>0, IF(K11/G11*100=0, "-", K11/G11*100), " ") ->  | P11: =IF(H11<>0, IF(L11/H11*100=0, "-", L11/H11*100), " ") ->  | Q11: =IF(I11<>0, IF(M11/I11*100=0, "-", M11/I11*100), " ") ->  | R11: =IF(J11<>0, IF(N11/J11*100=0, "-", N11/J11*100), " ") -> 
A12: =IF(COUNTRY_INFO!A12=0," ",COUNTRY_INFO!A12) -> Mali | B12: =IF(COUNTRY_INFO!B12=0," ",COUNTRY_INFO!B12) -> Bamako | C12: =IF(COUNTRY_INFO!C12=0," ",COUNTRY_INFO!C12) -> Commune 3 | D12: =IF(OR(COUNTRY_INFO!$Z12="T1 (PZQ+ALB/MBD)",COUNTRY_INFO!$AA12="T1 (PZQ+ALB/MBD)"), "T1 (PZQ+ALB/MBD)", " ") ->  | J12: 0 | N12: 0
A13: =IF(COUNTRY_INFO!A13=0," ",COUNTRY_INFO!A13) -> Mali | B13: =IF(COUNTRY_INFO!B13=0," ",COUNTRY_INFO!B13) -> Bamako | C13: =IF(COUNTRY_INFO!C13=0," ",COUNTRY_INFO!C13) -> Commune 4 | D13: =IF(OR(COUNTRY_INFO!$Z13="T1 (PZQ+ALB/MBD)",COUNTRY_INFO!$AA13="T1 (PZQ+ALB/MBD)"), "T1 (PZQ+ALB/MBD)", " ") ->  | J13: 0 | N13: 0
A14: =IF(COUNTRY_INFO!A14=0," ",COUNTRY_INFO!A14) -> Mali | B14: =IF(COUNTRY_INFO!B14=0," ",COUNTRY_INFO!B14) -> Bamako | C14: =IF(COUNTRY_INFO!C14=0," ",COUNTRY_INFO!C14) -> Commune 5 | D14: =IF(OR(COUNTRY_INFO!$Z14="T1 (PZQ+ALB/MBD)",COUNTRY_INFO!$AA14="T1 (PZQ+ALB/MBD)"), "T1 (PZQ+ALB/MBD)", " ") ->  | J14: 0 | N14: 0
A15: =IF(COUNTRY_INFO!A15=0," ",COUNTRY_INFO!A15) -> Mali | B15: =IF(COUNTRY_INFO!B15=0," ",COUNTRY_INFO!B15) -> Bamako | C15: =IF(COUNTRY_INFO!C15=0," ",COUNTRY_INFO!C15) -> Commune 6 | D15: =IF(OR(COUNTRY_INFO!$Z15="T1 (PZQ+ALB/MBD)",COUNTRY_INFO!$AA15="T1 (PZQ+ALB/MBD)"), "T1 (PZQ+ALB/MBD)", " ") ->  | J15: 0 | N15: 0
A16: =IF(COUNTRY_INFO!A16=0," ",COUNTRY_INFO!A16) -> Mali | B16: =IF(COUNTRY_INFO!B16=0," ",COUNTRY_INFO!B16) -> Gao | C16: =IF(COUNTRY_INFO!C16=0," ",COUNTRY_INFO!C16) -> Ansongo | D16: =IF(OR(COUNTRY_INFO!$Z16="T1 (PZQ+ALB/MBD)",COUNTRY_INFO!$AA16="T1 (PZQ+ALB/MBD)"), "T1 (PZQ+ALB/MBD)", " ") ->  | J16: 0 | N16: 0
A17: =IF(COUNTRY_INFO!A17=0," ",COUNTRY_INFO!A17) -> Mali | B17: =IF(COUNTRY_INFO!B17=0," ",COUNTRY_INFO!B17) -> Gao | C17: =IF(COUNTRY_INFO!C17=0," ",COUNTRY_INFO!C17) -> Bourem | D17: =IF(OR(COUNTRY_INFO!$Z17="T1 (PZQ+ALB/MBD)",COUNTRY_INFO!$AA17="T1 (PZQ+ALB/MBD)"), "T1 (PZQ+ALB/MBD)", " ") ->  | J17: 0 | N17: 0
A18: =IF(COUNTRY_INFO!A18=0," ",COUNTRY_INFO!A18) -> Mali | B18: =IF(COUNTRY_INFO!B18=0," ",COUNTRY_INFO!B18) -> Gao | C18: =IF(COUNTRY_INFO!C18=0," ",COUNTRY_INFO!C18) -> Almoustrat | D18: =IF(OR(COUNTRY_INFO!$Z18="T1 (PZQ+ALB/MBD)",COUNTRY_INFO!$AA18="T1 (PZQ+ALB/MBD)"), "T1 (PZQ+ALB/MBD)", " ") ->  | J18: 0 | N18: 0
A19: =IF(COUNTRY_INFO!A19=0," ",COUNTRY_INFO!A19) -> Mali | B19: =IF(COUNTRY_INFO!B19=0," ",COUNTRY_INFO!B19) -> Gao | C19: =IF(COUNTRY_INFO!C19=0," ",COUNTRY_INFO!C19) -> Gao | D19: =IF(OR(COUNTRY_INFO!$Z19="T1 (PZQ+ALB/MBD)",COUNTRY_INFO!$AA19="T1 (PZQ+ALB/MBD)"), "T1 (PZQ+ALB/MBD)", " ") ->  | J19: 0 | N19: 0
A20: =IF(COUNTRY_INFO!A20=0," ",COUNTRY_INFO!A20) -> Mali | B20: =IF(COUNTRY_INFO!B20=0," ",COUNTRY_INFO!B20) -> Menaka | C20: =IF(COUNTRY_INFO!C20=0," ",COUNTRY_INFO!C20) -> Menaka | D20: =IF(OR(COUNTRY_INFO!$Z20="T1 (PZQ+ALB/MBD)",COUNTRY_INFO!$AA20="T1 (PZQ+ALB/MBD)"), "T1 (PZQ+ALB/MBD)", " ") ->  | J20: 0 | N20: 0
A21: =IF(COUNTRY_INFO!A21=0," ",COUNTRY_INFO!A21) -> Mali | B21: =IF(COUNTRY_INFO!B21=0," ",COUNTRY_INFO!B21) -> Menaka | C21: =IF(COUNTRY_INFO!C21=0," ",COUNTRY_INFO!C21) -> Anderamboukane | D21: =IF(OR(COUNTRY_INFO!$Z21="T1 (PZQ+ALB/MBD)",COUNTRY_INFO!$AA21="T1 (PZQ+ALB/MBD)"), "T1 (PZQ+ALB/MBD)", " ") ->  | J21: 0 | N21: 0
A22: =IF(COUNTRY_INFO!A22=0," ",COUNTRY_INFO!A22) -> Mali | B22: =IF(COUNTRY_INFO!B22=0," ",COUNTRY_INFO!B22) -> Menaka | C22: =IF(COUNTRY_INFO!C22=0," ",COUNTRY_INFO!C22) -> Inekar | D22: =IF(OR(COUNTRY_INFO!$Z22="T1 (PZQ+ALB/MBD)",COUNTRY_INFO!$AA22="T1 (PZQ+ALB/MBD)"), "T1 (PZQ+ALB/MBD)", " ") ->  | J22: 0 | N22: 0
A23: =IF(COUNTRY_INFO!A23=0," ",COUNTRY_INFO!A23) -> Mali | B23: =IF(COUNTRY_INFO!B23=0," ",COUNTRY_INFO!B23) -> Menaka | C23: =IF(COUNTRY_INFO!C23=0," ",COUNTRY_INFO!C23) -> Tidermene | D23: =IF(OR(COUNTRY_INFO!$Z23="T1 (PZQ+ALB/MBD)",COUNTRY_INFO!$AA23="T1 (PZQ+ALB/MBD)"), "T1 (PZQ+ALB/MBD)", " ") ->  | J23: 0 | N23: 0
A24: =IF(COUNTRY_INFO!A24=0," ",COUNTRY_INFO!A24) -> Mali | B24: =IF(COUNTRY_INFO!B24=0," ",COUNTRY_INFO!B24) -> Kayes | C24: =IF(COUNTRY_INFO!C24=0," ",COUNTRY_INFO!C24) -> Bafoulabe | D24: =IF(OR(COUNTRY_INFO!$Z24="T1 (PZQ+ALB/MBD)",COUNTRY_INFO!$AA24="T1 (PZQ+ALB/MBD)"), "T1 (PZQ+ALB/MBD)", " ") ->  | J24: 0 | N24: 0
A25: =IF(COUNTRY_INFO!A25=0," ",COUNTRY_INFO!A25) -> Mali | B25: =IF(COUNTRY_INFO!B25=0," ",COUNTRY_INFO!B25) -> Kayes | C25: =IF(COUNTRY_INFO!C25=0," ",COUNTRY_INFO!C25) -> Diema | D25: =IF(OR(COUNTRY_INFO!$Z25="T1 (PZQ+ALB/MBD)",COUNTRY_INFO!$AA25="T1 (PZQ+ALB/MBD)"), "T1 (PZQ+ALB/MBD)", " ") ->  | J25: 0 | N25: 0
A26: =IF(COUNTRY_INFO!A26=0," ",COUNTRY_INFO!A26) -> Mali | B26: =IF(COUNTRY_INFO!B26=0," ",COUNTRY_INFO!B26) -> Kayes | C26: =IF(COUNTRY_INFO!C26=0," ",COUNTRY_INFO!C26) -> Kayes | D26: =IF(OR(COUNTRY_INFO!$Z26="T1 (PZQ+ALB/MBD)",COUNTRY_INFO!$AA26="T1 (PZQ+ALB/MBD)"), "T1 (PZQ+ALB/MBD)", " ") ->  | J26: 0 | N26: 0
A27: =IF(COUNTRY_INFO!A27=0," ",COUNTRY_INFO!A27) -> Mali | B27: =IF(COUNTRY_INFO!B27=0," ",COUNTRY_INFO!B27) -> Kayes | C27: =IF(COUNTRY_INFO!C27=0," ",COUNTRY_INFO!C27) -> Kenieba | D27: =IF(OR(COUNTRY_INFO!$Z27="T1 (PZQ+ALB/MBD)",COUNTRY_INFO!$AA27="T1 (PZQ+ALB/MBD)"), "T1 (PZQ+ALB/MBD)", " ") ->  | J27: 0 | N27: 0
A28: =IF(COUNTRY_INFO!A28=0," ",COUNTRY_INFO!A28) -> Mali | B28: =IF(COUNTRY_INFO!B28=0," ",COUNTRY_INFO!B28) -> Kayes | C28: =IF(COUNTRY_INFO!C28=0," ",COUNTRY_INFO!C28) -> Kita | D28: =IF(OR(COUNTRY_INFO!$Z28="T1 (PZQ+ALB/MBD)",COUNTRY_INFO!$AA28="T1 (PZQ+ALB/MBD)"), "T1 (PZQ+ALB/MBD)", " ") ->  | J28: 0 | N28: 0
A29: =IF(COUNTRY_INFO!A29=0," ",COUNTRY_INFO!A29) -> Mali | B29: =IF(COUNTRY_INFO!B29=0," ",COUNTRY_INFO!B29) -> Kayes | C29: =IF(COUNTRY_INFO!C29=0," ",COUNTRY_INFO!C29) -> Sagabari | D29: =IF(OR(COUNTRY_INFO!$Z29="T1 (PZQ+ALB/MBD)",COUNTRY_INFO!$AA29="T1 (PZQ+ALB/MBD)"), "T1 (PZQ+ALB/MBD)", " ") ->  | J29: 0 | N29: 0
A30: =IF(COUNTRY_INFO!A30=0," ",COUNTRY_INFO!A30) -> Mali | B30: =IF(COUNTRY_INFO!B30=0," ",COUNTRY_INFO!B30) -> Kayes | C30: =IF(COUNTRY_INFO!C30=0," ",COUNTRY_INFO!C30) -> Sefeto | D30: =IF(OR(COUNTRY_INFO!$Z30="T1 (PZQ+ALB/MBD)",COUNTRY_INFO!$AA30="T1 (PZQ+ALB/MBD)"), "T1 (PZQ+ALB/MBD)", " ") ->  | J30: 0 | N30: 0
A31: =IF(COUNTRY_INFO!A31=0," ",COUNTRY_INFO!A31) -> Mali | B31: =IF(COUNTRY_INFO!B31=0," ",COUNTRY_INFO!B31) -> Kayes | C31: =IF(COUNTRY_INFO!C31=0," ",COUNTRY_INFO!C31) -> Nioro | D31: =IF(OR(COUNTRY_INFO!$Z31="T1 (PZQ+ALB/MBD)",COUNTRY_INFO!$AA31="T1 (PZQ+ALB/MBD)"), "T1 (PZQ+ALB/MBD)", " ") ->  | J31: 0 | N31: 0
A32: =IF(COUNTRY_INFO!A32=0," ",COUNTRY_INFO!A32) -> Mali | B32: =IF(COUNTRY_INFO!B32=0," ",COUNTRY_INFO!B32) -> Kayes | C32: =IF(COUNTRY_INFO!C32=0," ",COUNTRY_INFO!C32) -> Oussoubidiagna | D32: =IF(OR(COUNTRY_INFO!$Z32="T1 (PZQ+ALB/MBD)",COUNTRY_INFO!$AA32="T1 (PZQ+ALB/MBD)"), "T1 (PZQ+ALB/MBD)", " ") ->  | J32: 0 | N32: 0
A33: =IF(COUNTRY_INFO!A33=0," ",COUNTRY_INFO!A33) -> Mali | B33: =IF(COUNTRY_INFO!B33=0," ",COUNTRY_INFO!B33) -> Kayes | C33: =IF(COUNTRY_INFO!C33=0," ",COUNTRY_INFO!C33) -> Yelimane | D33: =IF(OR(COUNTRY_INFO!$Z33="T1 (PZQ+ALB/MBD)",COUNTRY_INFO!$AA33="T1 (PZQ+ALB/MBD)"), "T1 (PZQ+ALB/MBD)", " ") ->  | J33: 0 | N33: 0
A34: =IF(COUNTRY_INFO!A34=0," ",COUNTRY_INFO!A34) -> Mali | B34: =IF(COUNTRY_INFO!B34=0," ",COUNTRY_INFO!B34) -> Kidal | C34: =IF(COUNTRY_INFO!C34=0," ",COUNTRY_INFO!C34) -> Abeibara | D34: =IF(OR(COUNTRY_INFO!$Z34="T1 (PZQ+ALB/MBD)",COUNTRY_INFO!$AA34="T1 (PZQ+ALB/MBD)"), "T1 (PZQ+ALB/MBD)", " ") ->  | J34: 0 | N34: 0
A35: =IF(COUNTRY_INFO!A35=0," ",COUNTRY_INFO!A35) -> Mali | B35: =IF(COUNTRY_INFO!B35=0," ",COUNTRY_INFO!B35) -> Kidal | C35: =IF(COUNTRY_INFO!C35=0," ",COUNTRY_INFO!C35) -> Kidal | D35: =IF(OR(COUNTRY_INFO!$Z35="T1 (PZQ+ALB/MBD)",COUNTRY_INFO!$AA35="T1 (PZQ+ALB/MBD)"), "T1 (PZQ+ALB/MBD)", " ") ->  | J35: 0 | N35: 0
A36: =IF(COUNTRY_INFO!A36=0," ",COUNTRY_INFO!A36) -> Mali | B36: =IF(COUNTRY_INFO!B36=0," ",COUNTRY_INFO!B36) -> Kidal | C36: =IF(COUNTRY_INFO!C36=0," ",COUNTRY_INFO!C36) -> Tessalit | D36: =IF(OR(COUNTRY_INFO!$Z36="T1 (PZQ+ALB/MBD)",COUNTRY_INFO!$AA36="T1 (PZQ+ALB/MBD)"), "T1 (PZQ+ALB/MBD)", " ") ->  | J36: 0 | N36: 0
A37: =IF(COUNTRY_INFO!A37=0," ",COUNTRY_INFO!A37) -> Mali | B37: =IF(COUNTRY_INFO!B37=0," ",COUNTRY_INFO!B37) -> Kidal | C37: =IF(COUNTRY_INFO!C37=0," ",COUNTRY_INFO!C37) -> Tin-Essako | D37: =IF(OR(COUNTRY_INFO!$Z37="T1 (PZQ+ALB/MBD)",COUNTRY_INFO!$AA37="T1 (PZQ+ALB/MBD)"), "T1 (PZQ+ALB/MBD)", " ") ->  | J37: 0 | N37: 0
A38: =IF(COUNTRY_INFO!A38=0," ",COUNTRY_INFO!A38) -> Mali | B38: =IF(COUNTRY_INFO!B38=0," ",COUNTRY_INFO!B38) -> Koulikoro | C38: =IF(COUNTRY_INFO!C38=0," ",COUNTRY_INFO!C38) -> Banamba | D38: =IF(OR(COUNTRY_INFO!$Z38="T1 (PZQ+ALB/MBD)",COUNTRY_INFO!$AA38="T1 (PZQ+ALB/MBD)"), "T1 (PZQ+ALB/MBD)", " ") ->  | J38: 0 | N38: 0
A39: =IF(COUNTRY_INFO!A39=0," ",COUNTRY_INFO!A39) -> Mali | B39: =IF(COUNTRY_INFO!B39=0," ",COUNTRY_INFO!B39) -> Koulikoro | C39: =IF(COUNTRY_INFO!C39=0," ",COUNTRY_INFO!C39) -> Dioila | D39: =IF(OR(COUNTRY_INFO!$Z39="T1 (PZQ+ALB/MBD)",COUNTRY_INFO!$AA39="T1 (PZQ+ALB/MBD)"), "T1 (PZQ+ALB/MBD)", " ") ->  | J39: 0 | N39: 0
A40: =IF(COUNTRY_INFO!A40=0," ",COUNTRY_INFO!A40) -> Mali | B40: =IF(COUNTRY_INFO!B40=0," ",COUNTRY_INFO!B40) -> Koulikoro | C40: =IF(COUNTRY_INFO!C40=0," ",COUNTRY_INFO!C40) -> Fana | D40: =IF(OR(COUNTRY_INFO!$Z40="T1 (PZQ+ALB/MBD)",COUNTRY_INFO!$AA40="T1 (PZQ+ALB/MBD)"), "T1 (PZQ+ALB/MBD)", " ") ->  | J40: 0 | N40: 0
A41: =IF(COUNTRY_INFO!A41=0," ",COUNTRY_INFO!A41) -> Mali | B41: =IF(COUNTRY_INFO!B41=0," ",COUNTRY_INFO!B41) -> Koulikoro | C41: =IF(COUNTRY_INFO!C41=0," ",COUNTRY_INFO!C41) -> Kalabancoro | D41: =IF(OR(COUNTRY_INFO!$Z41="T1 (PZQ+ALB/MBD)",COUNTRY_INFO!$AA41="T1 (PZQ+ALB/MBD)"), "T1 (PZQ+ALB/MBD)", " ") ->  | J41: 0 | N41: 0
A42: =IF(COUNTRY_INFO!A42=0," ",COUNTRY_INFO!A42) -> Mali | B42: =IF(COUNTRY_INFO!B42=0," ",COUNTRY_INFO!B42) -> Koulikoro | C42: =IF(COUNTRY_INFO!C42=0," ",COUNTRY_INFO!C42) -> Kangaba | D42: =IF(OR(COUNTRY_INFO!$Z42="T1 (PZQ+ALB/MBD)",COUNTRY_INFO!$AA42="T1 (PZQ+ALB/MBD)"), "T1 (PZQ+ALB/MBD)", " ") ->  | J42: 0 | N42: 0
A43: =IF(COUNTRY_INFO!A43=0," ",COUNTRY_INFO!A43) -> Mali | B43: =IF(COUNTRY_INFO!B43=0," ",COUNTRY_INFO!B43) -> Koulikoro | C43: =IF(COUNTRY_INFO!C43=0," ",COUNTRY_INFO!C43) -> Kati | D43: =IF(OR(COUNTRY_INFO!$Z43="T1 (PZQ+ALB/MBD)",COUNTRY_INFO!$AA43="T1 (PZQ+ALB/MBD)"), "T1 (PZQ+ALB/MBD)", " ") ->  | J43: 0 | N43: 0
A44: =IF(COUNTRY_INFO!A44=0," ",COUNTRY_INFO!A44) -> Mali | B44: =IF(COUNTRY_INFO!B44=0," ",COUNTRY_INFO!B44) -> Koulikoro | C44: =IF(COUNTRY_INFO!C44=0," ",COUNTRY_INFO!C44) -> Kolokani | D44: =IF(OR(COUNTRY_INFO!$Z44="T1 (PZQ+ALB/MBD)",COUNTRY_INFO!$AA44="T1 (PZQ+ALB/MBD)"), "T1 (PZQ+ALB/MBD)", " ") ->  | J44: 0 | N44: 0
A45: =IF(COUNTRY_INFO!A45=0," ",COUNTRY_INFO!A45) -> Mali | B45: =IF(COUNTRY_INFO!B45=0," ",COUNTRY_INFO!B45) -> Koulikoro | C45: =IF(COUNTRY_INFO!C45=0," ",COUNTRY_INFO!C45) -> Koulikoro | D45: =IF(OR(COUNTRY_INFO!$Z45="T1 (PZQ+ALB/MBD)",COUNTRY_INFO!$AA45="T1 (PZQ+ALB/MBD)"), "T1 (PZQ+ALB/MBD)", " ") ->  | J45: 0 | N45: 0
A46: =IF(COUNTRY_INFO!A46=0," ",COUNTRY_INFO!A46) -> Mali | B46: =IF(COUNTRY_INFO!B46=0," ",COUNTRY_INFO!B46) -> Koulikoro | C46: =IF(COUNTRY_INFO!C46=0," ",COUNTRY_INFO!C46) -> Nara | D46: =IF(OR(COUNTRY_INFO!$Z46="T1 (PZQ+ALB/MBD)",COUNTRY_INFO!$AA46="T1 (PZQ+ALB/MBD)"), "T1 (PZQ+ALB/MBD)", " ") ->  | J46: 0 | N46: 0
A47: =IF(COUNTRY_INFO!A47=0," ",COUNTRY_INFO!A47) -> Mali | B47: =IF(COUNTRY_INFO!B47=0," ",COUNTRY_INFO!B47) -> Koulikoro | C47: =IF(COUNTRY_INFO!C47=0," ",COUNTRY_INFO!C47) -> Ouelessebougou | D47: =IF(OR(COUNTRY_INFO!$Z47="T1 (PZQ+ALB/MBD)",COUNTRY_INFO!$AA47="T1 (PZQ+ALB/MBD)"), "T1 (PZQ+ALB/MBD)", " ") ->  | J47: 0 | N47: 0
A48: =IF(COUNTRY_INFO!A48=0," ",COUNTRY_INFO!A48) -> Mali | B48: =IF(COUNTRY_INFO!B48=0," ",COUNTRY_INFO!B48) -> Mopti | C48: =IF(COUNTRY_INFO!C48=0," ",COUNTRY_INFO!C48) -> Bandiagara | D48: =IF(OR(COUNTRY_INFO!$Z48="T1 (PZQ+ALB/MBD)",COUNTRY_INFO!$AA48="T1 (PZQ+ALB/MBD)"), "T1 (PZQ+ALB/MBD)", " ") ->  | J48: 0 | N48: 0
A49: =IF(COUNTRY_INFO!A49=0," ",COUNTRY_INFO!A49) -> Mali | B49: =IF(COUNTRY_INFO!B49=0," ",COUNTRY_INFO!B49) -> Mopti | C49: =IF(COUNTRY_INFO!C49=0," ",COUNTRY_INFO!C49) -> Bankass | D49: =IF(OR(COUNTRY_INFO!$Z49="T1 (PZQ+ALB/MBD)",COUNTRY_INFO!$AA49="T1 (PZQ+ALB/MBD)"), "T1 (PZQ+ALB/MBD)", " ") ->  | J49: 0 | N49: 0
A50: =IF(COUNTRY_INFO!A50=0," ",COUNTRY_INFO!A50) -> Mali | B50: =IF(COUNTRY_INFO!B50=0," ",COUNTRY_INFO!B50) -> Mopti | C50: =IF(COUNTRY_INFO!C50=0," ",COUNTRY_INFO!C50) -> Djenne | D50: =IF(OR(COUNTRY_INFO!$Z50="T1 (PZQ+ALB/MBD)",COUNTRY_INFO!$AA50="T1 (PZQ+ALB/MBD)"), "T1 (PZQ+ALB/MBD)", " ") ->  | J50: 0 | N50: 0
A51: =IF(COUNTRY_INFO!A51=0," ",COUNTRY_INFO!A51) -> Mali | B51: =IF(COUNTRY_INFO!B51=0," ",COUNTRY_INFO!B51) -> Mopti | C51: =IF(COUNTRY_INFO!C51=0," ",COUNTRY_INFO!C51) -> Douentza | D51: =IF(OR(COUNTRY_INFO!$Z51="T1 (PZQ+ALB/MBD)",COUNTRY_INFO!$AA51="T1 (PZQ+ALB/MBD)"), "T1 (PZQ+ALB/MBD)", " ") ->  | J51: 0 | N51: 0
A52: =IF(COUNTRY_INFO!A52=0," ",COUNTRY_INFO!A52) -> Mali | B52: =IF(COUNTRY_INFO!B52=0," ",COUNTRY_INFO!B52) -> Mopti | C52: =IF(COUNTRY_INFO!C52=0," ",COUNTRY_INFO!C52) -> Koro | D52: =IF(OR(COUNTRY_INFO!$Z52="T1 (PZQ+ALB/MBD)",COUNTRY_INFO!$AA52="T1 (PZQ+ALB/MBD)"), "T1 (PZQ+ALB/MBD)", " ") ->  | J52: 0 | N52: 0
A53: =IF(COUNTRY_INFO!A53=0," ",COUNTRY_INFO!A53) -> Mali | B53: =IF(COUNTRY_INFO!B53=0," ",COUNTRY_INFO!B53) -> Mopti | C53: =IF(COUNTRY_INFO!C53=0," ",COUNTRY_INFO!C53) -> Mopti | D53: =IF(OR(COUNTRY_INFO!$Z53="T1 (PZQ+ALB/MBD)",COUNTRY_INFO!$AA53="T1 (PZQ+ALB/MBD)"), "T1 (PZQ+ALB/MBD)", " ") ->  | J53: 0 | N53: 0
A54: =IF(COUNTRY_INFO!A54=0," ",COUNTRY_INFO!A54) -> Mali | B54: =IF(COUNTRY_INFO!B54=0," ",COUNTRY_INFO!B54) -> Mopti | C54: =IF(COUNTRY_INFO!C54=0," ",COUNTRY_INFO!C54) -> Teninkou | D54: =IF(OR(COUNTRY_INFO!$Z54="T1 (PZQ+ALB/MBD)",COUNTRY_INFO!$AA54="T1 (PZQ+ALB/MBD)"), "T1 (PZQ+ALB/MBD)", " ") ->  | J54: 0 | N54: 0
A55: =IF(COUNTRY_INFO!A55=0," ",COUNTRY_INFO!A55) -> Mali | B55: =IF(COUNTRY_INFO!B55=0," ",COUNTRY_INFO!B55) -> Mopti | C55: =IF(COUNTRY_INFO!C55=0," ",COUNTRY_INFO!C55) -> Youwarou | D55: =IF(OR(COUNTRY_INFO!$Z55="T1 (PZQ+ALB/MBD)",COUNTRY_INFO!$AA55="T1 (PZQ+ALB/MBD)"), "T1 (PZQ+ALB/MBD)", " ") ->  | J55: 0 | N55: 0
A56: =IF(COUNTRY_INFO!A56=0," ",COUNTRY_INFO!A56) -> Mali | B56: =IF(COUNTRY_INFO!B56=0," ",COUNTRY_INFO!B56) -> Segou | C56: =IF(COUNTRY_INFO!C56=0," ",COUNTRY_INFO!C56) -> Barouéli | D56: =IF(OR(COUNTRY_INFO!$Z56="T1 (PZQ+ALB/MBD)",COUNTRY_INFO!$AA56="T1 (PZQ+ALB/MBD)"), "T1 (PZQ+ALB/MBD)", " ") ->  | J56: 0 | N56: 0
A57: =IF(COUNTRY_INFO!A57=0," ",COUNTRY_INFO!A57) -> Mali | B57: =IF(COUNTRY_INFO!B57=0," ",COUNTRY_INFO!B57) -> Segou | C57: =IF(COUNTRY_INFO!C57=0," ",COUNTRY_INFO!C57) -> Bla | D57: =IF(OR(COUNTRY_INFO!$Z57="T1 (PZQ+ALB/MBD)",COUNTRY_INFO!$AA57="T1 (PZQ+ALB/MBD)"), "T1 (PZQ+ALB/MBD)", " ") ->  | J57: 0 | N57: 0
A58: =IF(COUNTRY_INFO!A58=0," ",COUNTRY_INFO!A58) -> Mali | B58: =IF(COUNTRY_INFO!B58=0," ",COUNTRY_INFO!B58) -> Segou | C58: =IF(COUNTRY_INFO!C58=0," ",COUNTRY_INFO!C58) -> Macina | D58: =IF(OR(COUNTRY_INFO!$Z58="T1 (PZQ+ALB/MBD)",COUNTRY_INFO!$AA58="T1 (PZQ+ALB/MBD)"), "T1 (PZQ+ALB/MBD)", " ") ->  | J58: 0 | N58: 0
A59: =IF(COUNTRY_INFO!A59=0," ",COUNTRY_INFO!A59) -> Mali | B59: =IF(COUNTRY_INFO!B59=0," ",COUNTRY_INFO!B59) -> Segou | C59: =IF(COUNTRY_INFO!C59=0," ",COUNTRY_INFO!C59) -> Markala | D59: =IF(OR(COUNTRY_INFO!$Z59="T1 (PZQ+ALB/MBD)",COUNTRY_INFO!$AA59="T1 (PZQ+ALB/MBD)"), "T1 (PZQ+ALB/MBD)", " ") ->  | J59: 0 | N59: 0
A60: =IF(COUNTRY_INFO!A60=0," ",COUNTRY_INFO!A60) -> Mali | B60: =IF(COUNTRY_INFO!B60=0," ",COUNTRY_INFO!B60) -> Segou | C60: =IF(COUNTRY_INFO!C60=0," ",COUNTRY_INFO!C60) -> Niono | D60: =IF(OR(COUNTRY_INFO!$Z60="T1 (PZQ+ALB/MBD)",COUNTRY_INFO!$AA60="T1 (PZQ+ALB/MBD)"), "T1 (PZQ+ALB/MBD)", " ") ->  | J60: 0 | N60: 0
A61: =IF(COUNTRY_INFO!A61=0," ",COUNTRY_INFO!A61) -> Mali | B61: =IF(COUNTRY_INFO!B61=0," ",COUNTRY_INFO!B61) -> Segou | C61: =IF(COUNTRY_INFO!C61=0," ",COUNTRY_INFO!C61) -> San | D61: =IF(OR(COUNTRY_INFO!$Z61="T1 (PZQ+ALB/MBD)",COUNTRY_INFO!$AA61="T1 (PZQ+ALB/MBD)"), "T1 (PZQ+ALB/MBD)", " ") ->  | J61: 0 | N61: 0
A62: =IF(COUNTRY_INFO!A62=0," ",COUNTRY_INFO!A62) -> Mali | B62: =IF(COUNTRY_INFO!B62=0," ",COUNTRY_INFO!B62) -> Segou | C62: =IF(COUNTRY_INFO!C62=0," ",COUNTRY_INFO!C62) -> Segou | D62: =IF(OR(COUNTRY_INFO!$Z62="T1 (PZQ+ALB/MBD)",COUNTRY_INFO!$AA62="T1 (PZQ+ALB/MBD)"), "T1 (PZQ+ALB/MBD)", " ") ->  | J62: 0 | N62: 0
A63: =IF(COUNTRY_INFO!A63=0," ",COUNTRY_INFO!A63) -> Mali | B63: =IF(COUNTRY_INFO!B63=0," ",COUNTRY_INFO!B63) -> Segou | C63: =IF(COUNTRY_INFO!C63=0," ",COUNTRY_INFO!C63) -> Tominian | D63: =IF(OR(COUNTRY_INFO!$Z63="T1 (PZQ+ALB/MBD)",COUNTRY_INFO!$AA63="T1 (PZQ+ALB/MBD)"), "T1 (PZQ+ALB/MBD)", " ") ->  | J63: 0 | N63: 0
A64: =IF(COUNTRY_INFO!A64=0," ",COUNTRY_INFO!A64) -> Mali | B64: =IF(COUNTRY_INFO!B64=0," ",COUNTRY_INFO!B64) -> Sikasso | C64: =IF(COUNTRY_INFO!C64=0," ",COUNTRY_INFO!C64) -> Bougouni | D64: =IF(OR(COUNTRY_INFO!$Z64="T1 (PZQ+ALB/MBD)",COUNTRY_INFO!$AA64="T1 (PZQ+ALB/MBD)"), "T1 (PZQ+ALB/MBD)", " ") ->  | J64: 0 | N64: 0
A65: =IF(COUNTRY_INFO!A65=0," ",COUNTRY_INFO!A65) -> Mali | B65: =IF(COUNTRY_INFO!B65=0," ",COUNTRY_INFO!B65) -> Sikasso | C65: =IF(COUNTRY_INFO!C65=0," ",COUNTRY_INFO!C65) -> Kadiolo | D65: =IF(OR(COUNTRY_INFO!$Z65="T1 (PZQ+ALB/MBD)",COUNTRY_INFO!$AA65="T1 (PZQ+ALB/MBD)"), "T1 (PZQ+ALB/MBD)", " ") ->  | J65: 0 | N65: 0
A66: =IF(COUNTRY_INFO!A66=0," ",COUNTRY_INFO!A66) -> Mali | B66: =IF(COUNTRY_INFO!B66=0," ",COUNTRY_INFO!B66) -> Sikasso | C66: =IF(COUNTRY_INFO!C66=0," ",COUNTRY_INFO!C66) -> Kignan | D66: =IF(OR(COUNTRY_INFO!$Z66="T1 (PZQ+ALB/MBD)",COUNTRY_INFO!$AA66="T1 (PZQ+ALB/MBD)"), "T1 (PZQ+ALB/MBD)", " ") ->  | J66: 0 | N66: 0
A67: =IF(COUNTRY_INFO!A67=0," ",COUNTRY_INFO!A67) -> Mali | B67: =IF(COUNTRY_INFO!B67=0," ",COUNTRY_INFO!B67) -> Sikasso | C67: =IF(COUNTRY_INFO!C67=0," ",COUNTRY_INFO!C67) -> Kolondieba | D67: =IF(OR(COUNTRY_INFO!$Z67="T1 (PZQ+ALB/MBD)",COUNTRY_INFO!$AA67="T1 (PZQ+ALB/MBD)"), "T1 (PZQ+ALB/MBD)", " ") ->  | J67: 0 | N67: 0
A68: =IF(COUNTRY_INFO!A68=0," ",COUNTRY_INFO!A68) -> Mali | B68: =IF(COUNTRY_INFO!B68=0," ",COUNTRY_INFO!B68) -> Sikasso | C68: =IF(COUNTRY_INFO!C68=0," ",COUNTRY_INFO!C68) -> Koutiala | D68: =IF(OR(COUNTRY_INFO!$Z68="T1 (PZQ+ALB/MBD)",COUNTRY_INFO!$AA68="T1 (PZQ+ALB/MBD)"), "T1 (PZQ+ALB/MBD)", " ") ->  | J68: 0 | N68: 0
A69: =IF(COUNTRY_INFO!A69=0," ",COUNTRY_INFO!A69) -> Mali | B69: =IF(COUNTRY_INFO!B69=0," ",COUNTRY_INFO!B69) -> Sikasso | C69: =IF(COUNTRY_INFO!C69=0," ",COUNTRY_INFO!C69) -> Niena | D69: =IF(OR(COUNTRY_INFO!$Z69="T1 (PZQ+ALB/MBD)",COUNTRY_INFO!$AA69="T1 (PZQ+ALB/MBD)"), "T1 (PZQ+ALB/MBD)", " ") ->  | J69: 0 | N69: 0
A70: =IF(COUNTRY_INFO!A70=0," ",COUNTRY_INFO!A70) -> Mali | B70: =IF(COUNTRY_INFO!B70=0," ",COUNTRY_INFO!B70) -> Sikasso | C70: =IF(COUNTRY_INFO!C70=0," ",COUNTRY_INFO!C70) -> Sélingué | D70: =IF(OR(COUNTRY_INFO!$Z70="T1 (PZQ+ALB/MBD)",COUNTRY_INFO!$AA70="T1 (PZQ+ALB/MBD)"), "T1 (PZQ+ALB/MBD)", " ") ->  | J70: 0 | N70: 0
A71: =IF(COUNTRY_INFO!A71=0," ",COUNTRY_INFO!A71) -> Mali | B71: =IF(COUNTRY_INFO!B71=0," ",COUNTRY_INFO!B71) -> Sikasso | C71: =IF(COUNTRY_INFO!C71=0," ",COUNTRY_INFO!C71) -> Sikasso | D71: =IF(OR(COUNTRY_INFO!$Z71="T1 (PZQ+ALB/MBD)",COUNTRY_INFO!$AA71="T1 (PZQ+ALB/MBD)"), "T1 (PZQ+ALB/MBD)", " ") ->  | J71: 0 | N71: 0
A72: =IF(COUNTRY_INFO!A72=0," ",COUNTRY_INFO!A72) -> Mali | B72: =IF(COUNTRY_INFO!B72=0," ",COUNTRY_INFO!B72) -> Sikasso | C72: =IF(COUNTRY_INFO!C72=0," ",COUNTRY_INFO!C72) -> Yanfolila | D72: =IF(OR(COUNTRY_INFO!$Z72="T1 (PZQ+ALB/MBD)",COUNTRY_INFO!$AA72="T1 (PZQ+ALB/MBD)"), "T1 (PZQ+ALB/MBD)", " ") ->  | J72: 0 | N72: 0
A73: =IF(COUNTRY_INFO!A73=0," ",COUNTRY_INFO!A73) -> Mali | B73: =IF(COUNTRY_INFO!B73=0," ",COUNTRY_INFO!B73) -> Sikasso | C73: =IF(COUNTRY_INFO!C73=0," ",COUNTRY_INFO!C73) -> Yorosso | D73: =IF(OR(COUNTRY_INFO!$Z73="T1 (PZQ+ALB/MBD)",COUNTRY_INFO!$AA73="T1 (PZQ+ALB/MBD)"), "T1 (PZQ+ALB/MBD)", " ") ->  | J73: 0 | N73: 0
A74: =IF(COUNTRY_INFO!A74=0," ",COUNTRY_INFO!A74) -> Mali | B74: =IF(COUNTRY_INFO!B74=0," ",COUNTRY_INFO!B74) -> Tombouctou | C74: =IF(COUNTRY_INFO!C74=0," ",COUNTRY_INFO!C74) -> Diré | D74: =IF(OR(COUNTRY_INFO!$Z74="T1 (PZQ+ALB/MBD)",COUNTRY_INFO!$AA74="T1 (PZQ+ALB/MBD)"), "T1 (PZQ+ALB/MBD)", " ") ->  | J74: 0 | N74: 0
A75: =IF(COUNTRY_INFO!A75=0," ",COUNTRY_INFO!A75) -> Mali | B75: =IF(COUNTRY_INFO!B75=0," ",COUNTRY_INFO!B75) -> Tombouctou | C75: =IF(COUNTRY_INFO!C75=0," ",COUNTRY_INFO!C75) -> Goundam | D75: =IF(OR(COUNTRY_INFO!$Z75="T1 (PZQ+ALB/MBD)",COUNTRY_INFO!$AA75="T1 (PZQ+ALB/MBD)"), "T1 (PZQ+ALB/MBD)", " ") ->  | J75: =SUM(G75:I75) -> 0 | N75: =SUM(K75:M75) -> 0 | O75: =IF(G75<>0, IF(K75/G75*100=0, "-", K75/G75*100), " ") ->  | P75: =IF(H75<>0, IF(L75/H75*100=0, "-", L75/H75*100), " ") ->  | Q75: =IF(I75<>0, IF(M75/I75*100=0, "-", M75/I75*100), " ") ->  | R75: =IF(J75<>0, IF(N75/J75*100=0, "-", N75/J75*100), " ") -> 
A76: =IF(COUNTRY_INFO!A76=0," ",COUNTRY_INFO!A76) -> Mali | B76: =IF(COUNTRY_INFO!B76=0," ",COUNTRY_INFO!B76) -> Tombouctou | C76: =IF(COUNTRY_INFO!C76=0," ",COUNTRY_INFO!C76) -> Gourma-Rharous | D76: =IF(OR(COUNTRY_INFO!$Z76="T1 (PZQ+ALB/MBD)",COUNTRY_INFO!$AA76="T1 (PZQ+ALB/MBD)"), "T1 (PZQ+ALB/MBD)", " ") ->  | J76: 0 | N76: 0
A77: =IF(COUNTRY_INFO!A77=0," ",COUNTRY_INFO!A77) -> Mali | B77: =IF(COUNTRY_INFO!B77=0," ",COUNTRY_INFO!B77) -> Tombouctou | C77: =IF(COUNTRY_INFO!C77=0," ",COUNTRY_INFO!C77) -> Niafunké | D77: =IF(OR(COUNTRY_INFO!$Z77="T1 (PZQ+ALB/MBD)",COUNTRY_INFO!$AA77="T1 (PZQ+ALB/MBD)"), "T1 (PZQ+ALB/MBD)", " ") ->  | J77: 0 | N77: 0
A78: =IF(COUNTRY_INFO!A78=0," ",COUNTRY_INFO!A78) -> Mali | B78: =IF(COUNTRY_INFO!B78=0," ",COUNTRY_INFO!B78) -> Tombouctou | C78: =IF(COUNTRY_INFO!C78=0," ",COUNTRY_INFO!C78) -> Tombouctou | D78: =IF(OR(COUNTRY_INFO!$Z78="T1 (PZQ+ALB/MBD)",COUNTRY_INFO!$AA78="T1 (PZQ+ALB/MBD)"), "T1 (PZQ+ALB/MBD)", " ") ->  | J78: 0 | N78: 0
A79: =IF(COUNTRY_INFO!A79=0," ",COUNTRY_INFO!A79) -> Mali | B79: =IF(COUNTRY_INFO!B79=0," ",COUNTRY_INFO!B79) -> Taoudenit | C79: =IF(COUNTRY_INFO!C79=0," ",COUNTRY_INFO!C79) -> Achourat | D79: =IF(OR(COUNTRY_INFO!$Z79="T1 (PZQ+ALB/MBD)",COUNTRY_INFO!$AA79="T1 (PZQ+ALB/MBD)"), "T1 (PZQ+ALB/MBD)", " ") ->  | J79: 0 | N79: 0
A80: =IF(COUNTRY_INFO!A80=0," ",COUNTRY_INFO!A80) -> Mali | B80: =IF(COUNTRY_INFO!B80=0," ",COUNTRY_INFO!B80) -> Taoudenit | C80: =IF(COUNTRY_INFO!C80=0," ",COUNTRY_INFO!C80) -> Al-Ourch | D80: =IF(OR(COUNTRY_INFO!$Z80="T1 (PZQ+ALB/MBD)",COUNTRY_INFO!$AA80="T1 (PZQ+ALB/MBD)"), "T1 (PZQ+ALB/MBD)", " ") ->  | J80: 0 | N80: 0
A81: =IF(COUNTRY_INFO!A81=0," ",COUNTRY_INFO!A81) -> Mali | B81: =IF(COUNTRY_INFO!B81=0," ",COUNTRY_INFO!B81) -> Taoudenit | C81: =IF(COUNTRY_INFO!C81=0," ",COUNTRY_INFO!C81) -> Araouane | D81: =IF(OR(COUNTRY_INFO!$Z81="T1 (PZQ+ALB/MBD)",COUNTRY_INFO!$AA81="T1 (PZQ+ALB/MBD)"), "T1 (PZQ+ALB/MBD)", " ") ->  | J81: 0 | N81: 0
A82: =IF(COUNTRY_INFO!A82=0," ",COUNTRY_INFO!A82) -> Mali | B82: =IF(COUNTRY_INFO!B82=0," ",COUNTRY_INFO!B82) -> Taoudenit | C82: =IF(COUNTRY_INFO!C82=0," ",COUNTRY_INFO!C82) -> Boujbeha | D82: =IF(OR(COUNTRY_INFO!$Z82="T1 (PZQ+ALB/MBD)",COUNTRY_INFO!$AA82="T1 (PZQ+ALB/MBD)"), "T1 (PZQ+ALB/MBD)", " ") ->  | J82: 0 | N82: 0
A83: =IF(COUNTRY_INFO!A83=0," ",COUNTRY_INFO!A83) -> Mali | B83: =IF(COUNTRY_INFO!B83=0," ",COUNTRY_INFO!B83) -> Taoudenit | C83: =IF(COUNTRY_INFO!C83=0," ",COUNTRY_INFO!C83) -> Foum-Elba | D83: =IF(OR(COUNTRY_INFO!$Z83="T1 (PZQ+ALB/MBD)",COUNTRY_INFO!$AA83="T1 (PZQ+ALB/MBD)"), "T1 (PZQ+ALB/MBD)", " ") ->  | J83: 0 | N83: 0
A84: =IF(COUNTRY_INFO!A84=0," ",COUNTRY_INFO!A84) -> Mali | B84: =IF(COUNTRY_INFO!B84=0," ",COUNTRY_INFO!B84) -> Taoudenit | C84: =IF(COUNTRY_INFO!C84=0," ",COUNTRY_INFO!C84) -> Taoudenit | D84: =IF(OR(COUNTRY_INFO!$Z84="T1 (PZQ+ALB/MBD)",COUNTRY_INFO!$AA84="T1 (PZQ+ALB/MBD)"), "T1 (PZQ+ALB/MBD)", " ") ->  | J84: 0 | N84: 0

Sheet T2
A1: T 2 - Praziquantel (PZQ)
A2: Structure administrative, population nécessitant une chimioprévention par groupe d'âge, population traitée par groupe d'âge et couverture
A4: TOTAL | F4: =SUBTOTAL(9,F$10:F$1010) -> 0 | G4: =SUBTOTAL(9,G$10:G$1010) -> 3229364 | H4: 909934 | I4: 4139298 | J4: =SUBTOTAL(9,J$10:J$1010) -> 0 | K4: 3254163 | L4: 800203 | M4: 4054366 | N4: 0 | O4: 0 | P4: 0 | Q4: 0 | R4: 0 | S4: 3254163 | T4: 800203 | U4: 4054366 | V4: =IF(F4<>0, IF(R4/F4*100=0, "-", R4/F4*100), " ") ->  | W4: =IF(G4<>0, IF(S4/G4*100=0, "-", S4/G4*100), " ") -> 100.7679221 | X4: =IF(H4<>0, IF(T4/H4*100=0, "-", T4/H4*100), " ") -> 87.94077373 | Y4: =IF(I4<>0, IF(U4/I4*100=0, "-", U4/I4*100), " ") -> 97.94815449
A6: Structure administrative du pays | D6: Mise en oeuvre de la CP | E6: Date | F6: Population ciblée pour T2 | J6: Population traitée | N6: Population traitée dans les HOTSPOTS | R6: Population totale traitée | V6: Couverture du Programme (%)
A7: Pays | B7: Région/Département | C7: District | F7: EAPréS | G7: EAS | H7: Adultes | I7: Total | J7: EAPréS | K7: EAS | L7: Adultes | M7: Total | N7: PreSAC | O7: SAC | P7: Adults | Q7: Total | R7: EAPréS | S7: EAS | T7: Adultes | U7: Total | V7: EAPréS | W7: EAS | X7: Adultes | Y7: Total
A10: =IF(COUNTRY_INFO!A10=0," ",COUNTRY_INFO!A10) -> Mali | B10: =IF(COUNTRY_INFO!B10=0," ",COUNTRY_INFO!B10) -> Bamako | C10: =IF(COUNTRY_INFO!C10=0," ",COUNTRY_INFO!C10) -> Commune 1 | D10: =IF(OR(COUNTRY_INFO!$Z10="T2 (PZQ)",COUNTRY_INFO!$AA10="T2 (PZQ)"), "T2 (PZQ)", " ") ->  | I10: =SUM(F10:H10) -> 0 | M10: =SUM(J10:L10) -> 0 | Q10: =SUM(N10:P10) -> 0 | R10: =MAX(J10,N10) -> 0 | S10: =MAX(K10,O10) -> 0 | T10: =MAX(L10,P10) -> 0 | U10: =SUM(R10:T10) -> 0 | V10: =IF(F10<>0, IF(R10/F10*100=0, "-", R10/F10*100), " ") ->  | W10: =IF(G10<>0, IF(S10/G10*100=0, "-", S10/G10*100), " ") ->  | X10: =IF(H10<>0, IF(T10/H10*100=0, "-",T10/H10*100), " ") ->  | Y10: =IF(I10<>0, IF(U10/I10*100=0, "-", U10/I10*100), " ") -> 
A11: =IF(COUNTRY_INFO!A11=0," ",COUNTRY_INFO!A11) -> Mali | B11: =IF(COUNTRY_INFO!B11=0," ",COUNTRY_INFO!B11) -> Bamako | C11: =IF(COUNTRY_INFO!C11=0," ",COUNTRY_INFO!C11) -> Commune 2 | D11: =IF(OR(COUNTRY_INFO!$Z11="T2 (PZQ)",COUNTRY_INFO!$AA11="T2 (PZQ)"), "T2 (PZQ)", " ") ->  | I11: =SUM(F11:H11) -> 0 | M11: =SUM(J11:L11) -> 0 | Q11: =SUM(N11:P11) -> 0 | R11: =MAX(J11,N11) -> 0 | S11: =MAX(K11,O11) -> 0 | T11: =MAX(L11,P11) -> 0 | U11: =SUM(R11:T11) -> 0 | V11: =IF(F11<>0, IF(R11/F11*100=0, "-", R11/F11*100), " ") ->  | W11: =IF(G11<>0, IF(S11/G11*100=0, "-", S11/G11*100), " ") ->  | X11: =IF(H11<>0, IF(T11/H11*100=0, "-",T11/H11*100), " ") ->  | Y11: =IF(I11<>0, IF(U11/I11*100=0, "-", U11/I11*100), " ") -> 
A12: =IF(COUNTRY_INFO!A12=0," ",COUNTRY_INFO!A12) -> Mali | B12: =IF(COUNTRY_INFO!B12=0," ",COUNTRY_INFO!B12) -> Bamako | C12: =IF(COUNTRY_INFO!C12=0," ",COUNTRY_INFO!C12) -> Commune 3 | D12: =IF(OR(COUNTRY_INFO!$Z12="T2 (PZQ)",COUNTRY_INFO!$AA12="T2 (PZQ)"), "T2 (PZQ)", " ") ->  | I12: 0 | M12: 0 | Q12: 0 | R12: 0 | S12: 0 | T12: 0 | U12: 0
A13: =IF(COUNTRY_INFO!A13=0," ",COUNTRY_INFO!A13) -> Mali | B13: =IF(COUNTRY_INFO!B13=0," ",COUNTRY_INFO!B13) -> Bamako | C13: =IF(COUNTRY_INFO!C13=0," ",COUNTRY_INFO!C13) -> Commune 4 | D13: =IF(OR(COUNTRY_INFO!$Z13="T2 (PZQ)",COUNTRY_INFO!$AA13="T2 (PZQ)"), "T2 (PZQ)", " ") -> T2 (PZQ) | E13: 16 au 21 juin 2023 | G13: 20296 | I13: 20296 | K13: 43994 | M13: 43994 | Q13: 0 | R13: 0 | S13: 43994 | T13: 0 | U13: 43994 | W13: 216.7619235 | Y13: 216.7619235 | AA13: 20296
A14: =IF(COUNTRY_INFO!A14=0," ",COUNTRY_INFO!A14) -> Mali | B14: =IF(COUNTRY_INFO!B14=0," ",COUNTRY_INFO!B14) -> Bamako | C14: =IF(COUNTRY_INFO!C14=0," ",COUNTRY_INFO!C14) -> Commune 5 | D14: =IF(OR(COUNTRY_INFO!$Z14="T2 (PZQ)",COUNTRY_INFO!$AA14="T2 (PZQ)"), "T2 (PZQ)", " ") -> T2 (PZQ) | E14: 16 au 21 juin 2023 | G14: 27657 | I14: 27657 | K14: 51064 | M14: 51064 | Q14: 0 | R14: 0 | S14: 51064 | T14: 0 | U14: 51064 | W14: 184.6331851 | Y14: 184.6331851 | AA14: 27657
A15: =IF(COUNTRY_INFO!A15=0," ",COUNTRY_INFO!A15) -> Mali | B15: =IF(COUNTRY_INFO!B15=0," ",COUNTRY_INFO!B15) -> Bamako | C15: =IF(COUNTRY_INFO!C15=0," ",COUNTRY_INFO!C15) -> Commune 6 | D15: =IF(OR(COUNTRY_INFO!$Z15="T2 (PZQ)",COUNTRY_INFO!$AA15="T2 (PZQ)"), "T2 (PZQ)", " ") -> T2 (PZQ) | E15: 16 au 21 juin 2023 | G15: 91293 | I15: 91293 | K15: 121820 | M15: 121820 | Q15: 0 | R15: 0 | S15: 121820 | T15: 0 | U15: 121820 | W15: 133.4384893 | Y15: 133.4384893 | AA15: 91293
A16: =IF(COUNTRY_INFO!A16=0," ",COUNTRY_INFO!A16) -> Mali | B16: =IF(COUNTRY_INFO!B16=0," ",COUNTRY_INFO!B16) -> Gao | C16: =IF(COUNTRY_INFO!C16=0," ",COUNTRY_INFO!C16) -> Ansongo | D16: =IF(OR(COUNTRY_INFO!$Z16="T2 (PZQ)",COUNTRY_INFO!$AA16="T2 (PZQ)"), "T2 (PZQ)", " ") -> T2 (PZQ) | E16: 1 au 5 juillet 2023 | G16: 27482 | I16: 27482 | K16: 28775 | M16: 28775 | Q16: 0 | R16: 0 | S16: 28775 | T16: 0 | U16: 28775 | W16: 104.7048978 | Y16: 104.7048978 | AA16: 27482
A17: =IF(COUNTRY_INFO!A17=0," ",COUNTRY_INFO!A17) -> Mali | B17: =IF(COUNTRY_INFO!B17=0," ",COUNTRY_INFO!B17) -> Gao | C17: =IF(COUNTRY_INFO!C17=0," ",COUNTRY_INFO!C17) -> Bourem | D17: =IF(OR(COUNTRY_INFO!$Z17="T2 (PZQ)",COUNTRY_INFO!$AA17="T2 (PZQ)"), "T2 (PZQ)", " ") -> T2 (PZQ) | E17: 1 au 5 juillet 2023 | G17: 27185 | I17: 27185 | K17: 35884 | M17: 35884 | Q17: 0 | R17: 0 | S17: 35884 | T17: 0 | U17: 35884 | W17: 131.9992643 | Y17: 131.9992643 | AA17: 27185
A18: =IF(COUNTRY_INFO!A18=0," ",COUNTRY_INFO!A18) -> Mali | B18: =IF(COUNTRY_INFO!B18=0," ",COUNTRY_INFO!B18) -> Gao | C18: =IF(COUNTRY_INFO!C18=0," ",COUNTRY_INFO!C18) -> Almoustrat | D18: =IF(OR(COUNTRY_INFO!$Z18="T2 (PZQ)",COUNTRY_INFO!$AA18="T2 (PZQ)"), "T2 (PZQ)", " ") -> T2 (PZQ) | E18: 1 au 5 juillet 2023 | G18: 3735 | I18: 3735 | K18: 2627 | M18: 2627 | Q18: 0 | R18: 0 | S18: 2627 | T18: 0 | U18: 2627 | W18: 70.33467202 | Y18: 70.33467202 | AA18: 3735
A19: =IF(COUNTRY_INFO!A19=0," ",COUNTRY_INFO!A19) -> Mali | B19: =IF(COUNTRY_INFO!B19=0," ",COUNTRY_INFO!B19) -> Gao | C19: =IF(COUNTRY_INFO!C19=0," ",COUNTRY_INFO!C19) -> Gao | D19: =IF(OR(COUNTRY_INFO!$Z19="T2 (PZQ)",COUNTRY_INFO!$AA19="T2 (PZQ)"), "T2 (PZQ)", " ") -> T2 (PZQ) | E19: 1 au 5 juillet 2023 | G19: 70266 | I19: 70266 | K19: 83403 | M19: 83403 | Q19: 0 | R19: 0 | S19: 83403 | T19: 0 | U19: 83403 | W19: 118.6960977 | Y19: 118.6960977 | AA19: 70266
A20: =IF(COUNTRY_INFO!A20=0," ",COUNTRY_INFO!A20) -> Mali | B20: =IF(COUNTRY_INFO!B20=0," ",COUNTRY_INFO!B20) -> Menaka | C20: =IF(COUNTRY_INFO!C20=0," ",COUNTRY_INFO!C20) -> Menaka | D20: =IF(OR(COUNTRY_INFO!$Z20="T2 (PZQ)",COUNTRY_INFO!$AA20="T2 (PZQ)"), "T2 (PZQ)", " ") ->  | I20: 0 | M20: 0 | Q20: 0 | R20: 0 | S20: 0 | T20: 0 | U20: 0
A21: =IF(COUNTRY_INFO!A21=0," ",COUNTRY_INFO!A21) -> Mali | B21: =IF(COUNTRY_INFO!B21=0," ",COUNTRY_INFO!B21) -> Menaka | C21: =IF(COUNTRY_INFO!C21=0," ",COUNTRY_INFO!C21) -> Anderamboukane | D21: =IF(OR(COUNTRY_INFO!$Z21="T2 (PZQ)",COUNTRY_INFO!$AA21="T2 (PZQ)"), "T2 (PZQ)", " ") ->  | I21: 0 | M21: 0 | Q21: 0 | R21: 0 | S21: 0 | T21: 0 | U21: 0
A22: =IF(COUNTRY_INFO!A22=0," ",COUNTRY_INFO!A22) -> Mali | B22: =IF(COUNTRY_INFO!B22=0," ",COUNTRY_INFO!B22) -> Menaka | C22: =IF(COUNTRY_INFO!C22=0," ",COUNTRY_INFO!C22) -> Inekar | D22: =IF(OR(COUNTRY_INFO!$Z22="T2 (PZQ)",COUNTRY_INFO!$AA22="T2 (PZQ)"), "T2 (PZQ)", " ") ->  | I22: 0 | M22: 0 | Q22: 0 | R22: 0 | S22: 0 | T22: 0 | U22: 0
A23: =IF(COUNTRY_INFO!A23=0," ",COUNTRY_INFO!A23) -> Mali | B23: =IF(COUNTRY_INFO!B23=0," ",COUNTRY_INFO!B23) -> Menaka | C23: =IF(COUNTRY_INFO!C23=0," ",COUNTRY_INFO!C23) -> Tidermene | D23: =IF(OR(COUNTRY_INFO!$Z23="T2 (PZQ)",COUNTRY_INFO!$AA23="T2 (PZQ)"), "T2 (PZQ)", " ") ->  | I23: 0 | M23: 0 | Q23: 0 | R23: 0 | S23: 0 | T23: 0 | U23: 0
A24: =IF(COUNTRY_INFO!A24=0," ",COUNTRY_INFO!A24) -> Mali | B24: =IF(COUNTRY_INFO!B24=0," ",COUNTRY_INFO!B24) -> Kayes | C24: =IF(COUNTRY_INFO!C24=0," ",COUNTRY_INFO!C24) -> Bafoulabe | D24: =IF(OR(COUNTRY_INFO!$Z24="T2 (PZQ)",COUNTRY_INFO!$AA24="T2 (PZQ)"), "T2 (PZQ)", " ") -> T2 (PZQ) | E24: 16 au 20 juin 2023 | G24: 14763 | H24: 26677 | I24: 41440 | K24: 14501 | L24: 26464 | M24: 40965 | Q24: 0 | R24: 0 | S24: 14501 | T24: 26464 | U24: 40965 | W24: 98.22529296 | X24: 99.2015594 | Y24: 98.85376448 | AA24: 14763 | AB24: 26677
A25: =IF(COUNTRY_INFO!A25=0," ",COUNTRY_INFO!A25) -> Mali | B25: =IF(COUNTRY_INFO!B25=0," ",COUNTRY_INFO!B25) -> Kayes | C25: =IF(COUNTRY_INFO!C25=0," ",COUNTRY_INFO!C25) -> Diema | D25: =IF(OR(COUNTRY_INFO!$Z25="T2 (PZQ)",COUNTRY_INFO!$AA25="T2 (PZQ)"), "T2 (PZQ)", " ") -> T2 (PZQ) | E25: 16 au 20 juin 2023 | G25: 3904 | I25: 3904 | K25: 3939 | M25: 3939 | Q25: 0 | R25: 0 | S25: 3939 | T25: 0 | U25: 3939 | W25: 100.8965164 | Y25: 100.8965164 | AA25: 3904
A26: =IF(COUNTRY_INFO!A26=0," ",COUNTRY_INFO!A26) -> Mali | B26: =IF(COUNTRY_INFO!B26=0," ",COUNTRY_INFO!B26) -> Kayes | C26: =IF(COUNTRY_INFO!C26=0," ",COUNTRY_INFO!C26) -> Kayes | D26: =IF(OR(COUNTRY_INFO!$Z26="T2 (PZQ)",COUNTRY_INFO!$AA26="T2 (PZQ)"), "T2 (PZQ)", " ") -> T2 (PZQ) | E26: 16 au 20 juin 2023 | G26: 104420 | I26: 104420 | K26: 86063 | M26: 86063 | Q26: 0 | R26: 0 | S26: 86063 | T26: 0 | U26: 86063 | W26: 82.42003448 | Y26: 82.42003448 | AA26: 104420
A27: =IF(COUNTRY_INFO!A27=0," ",COUNTRY_INFO!A27) -> Mali | B27: =IF(COUNTRY_INFO!B27=0," ",COUNTRY_INFO!B27) -> Kayes | C27: =IF(COUNTRY_INFO!C27=0," ",COUNTRY_INFO!C27) -> Kenieba | D27: =IF(OR(COUNTRY_INFO!$Z27="T2 (PZQ)",COUNTRY_INFO!$AA27="T2 (PZQ)"), "T2 (PZQ)", " ") -> T2 (PZQ) | E27: 16 au 20 juin 2023 | G27: 79683 | I27: 79683 | K27: 67591 | M27: 67591 | Q27: 0 | R27: 0 | S27: 67591 | T27: 0 | U27: 67591 | W27: 84.82486854 | Y27: 84.82486854 | AA27: 79683
A28: =IF(COUNTRY_INFO!A28=0," ",COUNTRY_INFO!A28) -> Mali | B28: =IF(COUNTRY_INFO!B28=0," ",COUNTRY_INFO!B28) -> Kayes | C28: =IF(COUNTRY_INFO!C28=0," ",COUNTRY_INFO!C28) -> Kita | D28: =IF(OR(COUNTRY_INFO!$Z28="T2 (PZQ)",COUNTRY_INFO!$AA28="T2 (PZQ)"), "T2 (PZQ)", " ") -> T2 (PZQ) | E28: 16 au 20 juin 2023 | G28: 155295 | I28: 155295 | K28: 148786 | M28: 148786 | Q28: 0 | R28: 0 | S28: 148786 | T28: 0 | U28: 148786 | W28: 95.8086223 | Y28: 95.8086223 | AA28: 155295
A29: =IF(COUNTRY_INFO!A29=0," ",COUNTRY_INFO!A29) -> Mali | B29: =IF(COUNTRY_INFO!B29=0," ",COUNTRY_INFO!B29) -> Kayes | C29: =IF(COUNTRY_INFO!C29=0," ",COUNTRY_INFO!C29) -> Sagabari | D29: =IF(OR(COUNTRY_INFO!$Z29="T2 (PZQ)",COUNTRY_INFO!$AA29="T2 (PZQ)"), "T2 (PZQ)", " ") -> T2 (PZQ) | E29: 16 au 20 juin 2023 | G29: 20996 | I29: 20996 | K29: 14614 | M29: 14614 | Q29: 0 | R29: 0 | S29: 14614 | T29: 0 | U29: 14614 | W29: 69.60373404 | Y29: 69.60373404 | AA29: 20996
A30: =IF(COUNTRY_INFO!A30=0," ",COUNTRY_INFO!A30) -> Mali | B30: =IF(COUNTRY_INFO!B30=0," ",COUNTRY_INFO!B30) -> Kayes | C30: =IF(COUNTRY_INFO!C30=0," ",COUNTRY_INFO!C30) -> Sefeto | D30: =IF(OR(COUNTRY_INFO!$Z30="T2 (PZQ)",COUNTRY_INFO!$AA30="T2 (PZQ)"), "T2 (PZQ)", " ") -> T2 (PZQ) | E30: 16 au 20 juin 2023 | G30: 21898 | I30: 21898 | K30: 22340 | M30: 22340 | Q30: 0 | R30: 0 | S30: 22340 | T30: 0 | U30: 22340 | W30: 102.0184492 | Y30: 102.0184492 | AA30: 21898
A31: =IF(COUNTRY_INFO!A31=0," ",COUNTRY_INFO!A31) -> Mali | B31: =IF(COUNTRY_INFO!B31=0," ",COUNTRY_INFO!B31) -> Kayes | C31: =IF(COUNTRY_INFO!C31=0," ",COUNTRY_INFO!C31) -> Nioro | D31: =IF(OR(COUNTRY_INFO!$Z31="T2 (PZQ)",COUNTRY_INFO!$AA31="T2 (PZQ)"), "T2 (PZQ)", " ") -> T2 (PZQ) | E31: 16 au 20 juin 2023 | G31: 21341 | I31: 21341 | K31: 20945 | M31: 20945 | Q31: 0 | R31: 0 | S31: 20945 | T31: 0 | U31: 20945 | W31: 98.14441685 | Y31: 98.14441685 | AA31: 21341
A32: =IF(COUNTRY_INFO!A32=0," ",COUNTRY_INFO!A32) -> Mali | B32: =IF(COUNTRY_INFO!B32=0," ",COUNTRY_INFO!B32) -> Kayes | C32: =IF(COUNTRY_INFO!C32=0," ",COUNTRY_INFO!C32) -> Oussoubidiagna | D32: =IF(OR(COUNTRY_INFO!$Z32="T2 (PZQ)",COUNTRY_INFO!$AA32="T2 (PZQ)"), "T2 (PZQ)", " ") -> T2 (PZQ) | E32: 16 au 20 juin 2023 | G32: 42504 | I32: 42504 | K32: 36344 | M32: 36344 | Q32: 0 | R32: 0 | S32: 36344 | T32: 0 | U32: 36344 | W32: 85.50724638 | Y32: 85.50724638 | AA32: 42504
A33: =IF(COUNTRY_INFO!A33=0," ",COUNTRY_INFO!A33) -> Mali | B33: =IF(COUNTRY_INFO!B33=0," ",COUNTRY_INFO!B33) -> Kayes | C33: =IF(COUNTRY_INFO!C33=0," ",COUNTRY_INFO!C33) -> Yelimane | D33: =IF(OR(COUNTRY_INFO!$Z33="T2 (PZQ)",COUNTRY_INFO!$AA33="T2 (PZQ)"), "T2 (PZQ)", " ") -> T2 (PZQ) | E33: 16 au 20 juin 2023 | G33: 78006 | I33: 78006 | K33: 67372 | M33: 67372 | Q33: 0 | R33: 0 | S33: 67372 | T33: 0 | U33: 67372 | W33: 86.3677153 | Y33: 86.3677153 | AA33: 78006
A34: =IF(COUNTRY_INFO!A34=0," ",COUNTRY_INFO!A34) -> Mali | B34: =IF(COUNTRY_INFO!B34=0," ",COUNTRY_INFO!B34) -> Kidal | C34: =IF(COUNTRY_INFO!C34=0," ",COUNTRY_INFO!C34) -> Abeibara | D34: =IF(OR(COUNTRY_INFO!$Z34="T2 (PZQ)",COUNTRY_INFO!$AA34="T2 (PZQ)"), "T2 (PZQ)", " ") ->  | I34: 0 | M34: 0 | Q34: 0 | R34: 0 | S34: 0 | T34: 0 | U34: 0
A35: =IF(COUNTRY_INFO!A35=0," ",COUNTRY_INFO!A35) -> Mali | B35: =IF(COUNTRY_INFO!B35=0," ",COUNTRY_INFO!B35) -> Kidal | C35: =IF(COUNTRY_INFO!C35=0," ",COUNTRY_INFO!C35) -> Kidal | D35: =IF(OR(COUNTRY_INFO!$Z35="T2 (PZQ)",COUNTRY_INFO!$AA35="T2 (PZQ)"), "T2 (PZQ)", " ") ->  | I35: 0 | M35: 0 | Q35: 0 | R35: 0 | S35: 0 | T35: 0 | U35: 0
A36: =IF(COUNTRY_INFO!A36=0," ",COUNTRY_INFO!A36) -> Mali | B36: =IF(COUNTRY_INFO!B36=0," ",COUNTRY_INFO!B36) -> Kidal | C36: =IF(COUNTRY_INFO!C36=0," ",COUNTRY_INFO!C36) -> Tessalit | D36: =IF(OR(COUNTRY_INFO!$Z36="T2 (PZQ)",COUNTRY_INFO!$AA36="T2 (PZQ)"), "T2 (PZQ)", " ") ->  | I36: 0 | M36: 0 | Q36: 0 | R36: 0 | S36: 0 | T36: 0 | U36: 0
A37: =IF(COUNTRY_INFO!A37=0," ",COUNTRY_INFO!A37) -> Mali | B37: =IF(COUNTRY_INFO!B37=0," ",COUNTRY_INFO!B37) -> Kidal | C37: =IF(COUNTRY_INFO!C37=0," ",COUNTRY_INFO!C37) -> Tin-Essako | D37: =IF(OR(COUNTRY_INFO!$Z37="T2 (PZQ)",COUNTRY_INFO!$AA37="T2 (PZQ)"), "T2 (PZQ)", " ") ->  | I37: 0 | M37: 0 | Q37: 0 | R37: 0 | S37: 0 | T37: 0 | U37: 0
A38: =IF(COUNTRY_INFO!A38=0," ",COUNTRY_INFO!A38) -> Mali | B38: =IF(COUNTRY_INFO!B38=0," ",COUNTRY_INFO!B38) -> Koulikoro | C38: =IF(COUNTRY_INFO!C38=0," ",COUNTRY_INFO!C38) -> Banamba | D38: =IF(OR(COUNTRY_INFO!$Z38="T2 (PZQ)",COUNTRY_INFO!$AA38="T2 (PZQ)"), "T2 (PZQ)", " ") -> T2 (PZQ) | E38: 22 au 26 Mai 2023 | G38: 61066 | I38: 61066 | K38: 65676 | M38: 65676 | Q38: 0 | R38: 0 | S38: 65676 | T38: 0 | U38: 65676 | W38: 107.5492091 | Y38: 107.5492091 | AA38: 61066
A39: =IF(COUNTRY_INFO!A39=0," ",COUNTRY_INFO!A39) -> Mali | B39: =IF(COUNTRY_INFO!B39=0," ",COUNTRY_INFO!B39) -> Koulikoro | C39: =IF(COUNTRY_INFO!C39=0," ",COUNTRY_INFO!C39) -> Dioila | D39: =IF(OR(COUNTRY_INFO!$Z39="T2 (PZQ)",COUNTRY_INFO!$AA39="T2 (PZQ)"), "T2 (PZQ)", " ") -> T2 (PZQ) | E39: 22 au 26 Mai 2023 | G39: 32054 | I39: 32054 | K39: 31937 | M39: 31937 | Q39: 0 | R39: 0 | S39: 31937 | T39: 0 | U39: 31937 | W39: 99.63499095 | Y39: 99.63499095 | AA39: 32054
A40: =IF(COUNTRY_INFO!A40=0," ",COUNTRY_INFO!A40) -> Mali | B40: =IF(COUNTRY_INFO!B40=0," ",COUNTRY_INFO!B40) -> Koulikoro | C40: =IF(COUNTRY_INFO!C40=0," ",COUNTRY_INFO!C40) -> Fana | D40: =IF(OR(COUNTRY_INFO!$Z40="T2 (PZQ)",COUNTRY_INFO!$AA40="T2 (PZQ)"), "T2 (PZQ)", " ") -> T2 (PZQ) | E40: 22 au 26 Mai 2023 | G40: 94219 | I40: 94219 | K40: 90936 | M40: 90936 | Q40: 0 | R40: 0 | S40: 90936 | T40: 0 | U40: 90936 | W40: 96.5155648 | Y40: 96.5155648 | AA40: 94219
A41: =IF(COUNTRY_INFO!A41=0," ",COUNTRY_INFO!A41) -> Mali | B41: =IF(COUNTRY_INFO!B41=0," ",COUNTRY_INFO!B41) -> Koulikoro | C41: =IF(COUNTRY_INFO!C41=0," ",COUNTRY_INFO!C41) -> Kalabancoro | D41: =IF(OR(COUNTRY_INFO!$Z41="T2 (PZQ)",COUNTRY_INFO!$AA41="T2 (PZQ)"), "T2 (PZQ)", " ") -> T2 (PZQ) | E41: 22 au 26 Mai 2023 | G41: 58245 | I41: 58245 | K41: 56886 | M41: 56886 | Q41: 0 | R41: 0 | S41: 56886 | T41: 0 | U41: 56886 | W41: 97.66675251 | Y41: 97.66675251 | AA41: 58245
A42: =IF(COUNTRY_INFO!A42=0," ",COUNTRY_INFO!A42) -> Mali | B42: =IF(COUNTRY_INFO!B42=0," ",COUNTRY_INFO!B42) -> Koulikoro | C42: =IF(COUNTRY_INFO!C42=0," ",COUNTRY_INFO!C42) -> Kangaba | D42: =IF(OR(COUNTRY_INFO!$Z42="T2 (PZQ)",COUNTRY_INFO!$AA42="T2 (PZQ)"), "T2 (PZQ)", " ") -> T2 (PZQ) | E42: 22 au 26 Mai 2023 | G42: 39658 | I42: 39658 | K42: 42867 | M42: 42867 | Q42: 0 | R42: 0 | S42: 42867 | T42: 0 | U42: 42867 | W42: 108.0916839 | Y42: 108.0916839 | AA42: 39658
A43: =IF(COUNTRY_INFO!A43=0," ",COUNTRY_INFO!A43) -> Mali | B43: =IF(COUNTRY_INFO!B43=0," ",COUNTRY_INFO!B43) -> Koulikoro | C43: =IF(COUNTRY_INFO!C43=0," ",COUNTRY_INFO!C43) -> Kati | D43: =IF(OR(COUNTRY_INFO!$Z43="T2 (PZQ)",COUNTRY_INFO!$AA43="T2 (PZQ)"), "T2 (PZQ)", " ") -> T2 (PZQ) | E43: 22 au 26 Mai 2023 | G43: 51661 | I43: 51661 | K43: 71599 | M43: 71599 | Q43: 0 | R43: 0 | S43: 71599 | T43: 0 | U43: 71599 | W43: 138.5939103 | Y43: 138.5939103 | AA43: 51661
A44: =IF(COUNTRY_INFO!A44=0," ",COUNTRY_INFO!A44) -> Mali | B44: =IF(COUNTRY_INFO!B44=0," ",COUNTRY_INFO!B44) -> Koulikoro | C44: =IF(COUNTRY_INFO!C44=0," ",COUNTRY_INFO!C44) -> Kolokani | D44: =IF(OR(COUNTRY_INFO!$Z44="T2 (PZQ)",COUNTRY_INFO!$AA44="T2 (PZQ)"), "T2 (PZQ)", " ") -> T2 (PZQ) | E44: 22 au 26 Mai 2023 | G44: 34610 | I44: 34610 | K44: 28874 | M44: 28874 | Q44: 0 | R44: 0 | S44: 28874 | T44: 0 | U44: 28874 | W44: 83.42675527 | Y44: 83.42675527 | AA44: 34610
A45: =IF(COUNTRY_INFO!A45=0," ",COUNTRY_INFO!A45) -> Mali | B45: =IF(COUNTRY_INFO!B45=0," ",COUNTRY_INFO!B45) -> Koulikoro | C45: =IF(COUNTRY_INFO!C45=0," ",COUNTRY_INFO!C45) -> Koulikoro | D45: =IF(OR(COUNTRY_INFO!$Z45="T2 (PZQ)",COUNTRY_INFO!$AA45="T2 (PZQ)"), "T2 (PZQ)", " ") -> T2 (PZQ) | E45: 22 au 26 Mai 2023 | G45: 69119 | I45: 69119 | K45: 66641 | M45: 66641 | Q45: 0 | R45: 0 | S45: 66641 | T45: 0 | U45: 66641 | W45: 96.41487869 | Y45: 96.41487869 | AA45: 69119
A46: =IF(COUNTRY_INFO!A46=0," ",COUNTRY_INFO!A46) -> Mali | B46: =IF(COUNTRY_INFO!B46=0," ",COUNTRY_INFO!B46) -> Koulikoro | C46: =IF(COUNTRY_INFO!C46=0," ",COUNTRY_INFO!C46) -> Nara | D46: =IF(OR(COUNTRY_INFO!$Z46="T2 (PZQ)",COUNTRY_INFO!$AA46="T2 (PZQ)"), "T2 (PZQ)", " ") -> T2 (PZQ) | E46: 22 au 26 Mai 2023 | G46: 29805 | I46: 29805 | K46: 24312 | M46: 24312 | Q46: 0 | R46: 0 | S46: 24312 | T46: 0 | U46: 24312 | W46: 81.57020634 | Y46: 81.57020634 | AA46: 29805
A47: =IF(COUNTRY_INFO!A47=0," ",COUNTRY_INFO!A47) -> Mali | B47: =IF(COUNTRY_INFO!B47=0," ",COUNTRY_INFO!B47) -> Koulikoro | C47: =IF(COUNTRY_INFO!C47=0," ",COUNTRY_INFO!C47) -> Ouelessebougou | D47: =IF(OR(COUNTRY_INFO!$Z47="T2 (PZQ)",COUNTRY_INFO!$AA47="T2 (PZQ)"), "T2 (PZQ)", " ") -> T2 (PZQ) | E47: 22 au 26 Mai 2023 | G47: 67173 | I47: 67173 | K47: 63532 | M47: 63532 | Q47: 0 | R47: 0 | S47: 63532 | T47: 0 | U47: 63532 | W47: 94.57966743 | Y47: 94.57966743 | AA47: 67173
A48: =IF(COUNTRY_INFO!A48=0," ",COUNTRY_INFO!A48) -> Mali | B48: =IF(COUNTRY_INFO!B48=0," ",COUNTRY_INFO!B48) -> Mopti | C48: =IF(COUNTRY_INFO!C48=0," ",COUNTRY_INFO!C48) -> Bandiagara | D48: =IF(OR(COUNTRY_INFO!$Z48="T2 (PZQ)",COUNTRY_INFO!$AA48="T2 (PZQ)"), "T2 (PZQ)", " ") -> T2 (PZQ) | E48: 1 au 05 août 2023 | G48: 124867 | H48: 225636 | I48: 350503 | K48: 149665 | L48: 181003 | M48: 330668 | Q48: 0 | R48: 0 | S48: 149665 | T48: 181003 | U48: 330668 | W48: 119.8595305 | X48: 80.21902533 | Y48: 94.34098995 | AA48: 124867 | AB48: 225636
A49: =IF(COUNTRY_INFO!A49=0," ",COUNTRY_INFO!A49) -> Mali | B49: =IF(COUNTRY_INFO!B49=0," ",COUNTRY_INFO!B49) -> Mopti | C49: =IF(COUNTRY_INFO!C49=0," ",COUNTRY_INFO!C49) -> Bankass | D49: =IF(OR(COUNTRY_INFO!$Z49="T2 (PZQ)",COUNTRY_INFO!$AA49="T2 (PZQ)"), "T2 (PZQ)", " ") -> T2 (PZQ) | E49: 1 au 05 août 2023 | G49: 109802 | H49: 198415 | I49: 308217 | K49: 79399 | L49: 123901 | M49: 203300 | Q49: 0 | R49: 0 | S49: 79399 | T49: 123901 | U49: 203300 | W49: 72.31106902 | X49: 62.44537963 | Y49: 65.96002167 | AA49: 109802 | AB49: 198415
A50: =IF(COUNTRY_INFO!A50=0," ",COUNTRY_INFO!A50) -> Mali | B50: =IF(COUNTRY_INFO!B50=0," ",COUNTRY_INFO!B50) -> Mopti | C50: =IF(COUNTRY_INFO!C50=0," ",COUNTRY_INFO!C50) -> Djenne | D50: =IF(OR(COUNTRY_INFO!$Z50="T2 (PZQ)",COUNTRY_INFO!$AA50="T2 (PZQ)"), "T2 (PZQ)", " ") -> T2 (PZQ) | E50: 1 au 05 août 2023 | G50: 72830 | I50: 72830 | K50: 79677 | M50: 79677 | Q50: 0 | R50: 0 | S50: 79677 | T50: 0 | U50: 79677 | W50: 109.4013456 | Y50: 109.4013456 | AA50: 72830
A51: =IF(COUNTRY_INFO!A51=0," ",COUNTRY_INFO!A51) -> Mali | B51: =IF(COUNTRY_INFO!B51=0," ",COUNTRY_INFO!B51) -> Mopti | C51: =IF(COUNTRY_INFO!C51=0," ",COUNTRY_INFO!C51) -> Douentza | D51: =IF(OR(COUNTRY_INFO!$Z51="T2 (PZQ)",COUNTRY_INFO!$AA51="T2 (PZQ)"), "T2 (PZQ)", " ") -> T2 (PZQ) | E51: 1 au 05 août 2023 | G51: 97075 | I51: 97075 | K51: 89740 | M51: 89740 | Q51: 0 | R51: 0 | S51: 89740 | T51: 0 | U51: 89740 | W51: 92.44398661 | Y51: 92.44398661 | AA51: 97075
A52: =IF(COUNTRY_INFO!A52=0," ",COUNTRY_INFO!A52) -> Mali | B52: =IF(COUNTRY_INFO!B52=0," ",COUNTRY_INFO!B52) -> Mopti | C52: =IF(COUNTRY_INFO!C52=0," ",COUNTRY_INFO!C52) -> Koro | D52: =IF(OR(COUNTRY_INFO!$Z52="T2 (PZQ)",COUNTRY_INFO!$AA52="T2 (PZQ)"), "T2 (PZQ)", " ") -> T2 (PZQ) | E52: 1 au 05 août 2023 | G52: 99193 | I52: 99193 | K52: 94575 | M52: 94575 | Q52: 0 | R52: 0 | S52: 94575 | T52: 0 | U52: 94575 | W52: 95.34442955 | Y52: 95.34442955 | AA52: 99193
A53: =IF(COUNTRY_INFO!A53=0," ",COUNTRY_INFO!A53) -> Mali | B53: =IF(COUNTRY_INFO!B53=0," ",COUNTRY_INFO!B53) -> Mopti | C53: =IF(COUNTRY_INFO!C53=0," ",COUNTRY_INFO!C53) -> Mopti | D53: =IF(OR(COUNTRY_INFO!$Z53="T2 (PZQ)",COUNTRY_INFO!$AA53="T2 (PZQ)"), "T2 (PZQ)", " ") -> T2 (PZQ) | E53: 1 au 05 août 2023 | G53: 111664 | I53: 111664 | K53: 111510 | M53: 111510 | Q53: 0 | R53: 0 | S53: 111510 | T53: 0 | U53: 111510 | W53: 99.86208626 | Y53: 99.86208626 | AA53: 111664
A54: =IF(COUNTRY_INFO!A54=0," ",COUNTRY_INFO!A54) -> Mali | B54: =IF(COUNTRY_INFO!B54=0," ",COUNTRY_INFO!B54) -> Mopti | C54: =IF(COUNTRY_INFO!C54=0," ",COUNTRY_INFO!C54) -> Teninkou | D54: =IF(OR(COUNTRY_INFO!$Z54="T2 (PZQ)",COUNTRY_INFO!$AA54="T2 (PZQ)"), "T2 (PZQ)", " ") -> T2 (PZQ) | E54: 1 au 05 août 2023 | G54: 12105 | I54: 12105 | K54: 10016 | M54: 10016 | Q54: 0 | R54: 0 | S54: 10016 | T54: 0 | U54: 10016 | W54: 82.74266832 | Y54: 82.74266832 | AA54: 12105
A55: =IF(COUNTRY_INFO!A55=0," ",COUNTRY_INFO!A55) -> Mali | B55: =IF(COUNTRY_INFO!B55=0," ",COUNTRY_INFO!B55) -> Mopti | C55: =IF(COUNTRY_INFO!C55=0," ",COUNTRY_INFO!C55) -> Youwarou | D55: =IF(OR(COUNTRY_INFO!$Z55="T2 (PZQ)",COUNTRY_INFO!$AA55="T2 (PZQ)"), "T2 (PZQ)", " ") ->  | I55: 0 | M55: 0 | Q55: 0 | R55: 0 | S55: 0 | T55: 0 | U55: 0
A56: =IF(COUNTRY_INFO!A56=0," ",COUNTRY_INFO!A56) -> Mali | B56: =IF(COUNTRY_INFO!B56=0," ",COUNTRY_INFO!B56) -> Segou | C56: =IF(COUNTRY_INFO!C56=0," ",COUNTRY_INFO!C56) -> Barouéli | D56: =IF(OR(COUNTRY_INFO!$Z56="T2 (PZQ)",COUNTRY_INFO!$AA56="T2 (PZQ)"), "T2 (PZQ)", " ") -> T2 (PZQ) | E56: 20 au 24 juillet 2023 | G56: 4347 | I56: 4347 | K56: 4209 | M56: 4209 | Q56: 0 | R56: 0 | S56: 4209 | T56: 0 | U56: 4209 | W56: 96.82539683 | Y56: 96.82539683 | AA56: 4347
A57: =IF(COUNTRY_INFO!A57=0," ",COUNTRY_INFO!A57) -> Mali | B57: =IF(COUNTRY_INFO!B57=0," ",COUNTRY_INFO!B57) -> Segou | C57: =IF(COUNTRY_INFO!C57=0," ",COUNTRY_INFO!C57) -> Bla | D57: =IF(OR(COUNTRY_INFO!$Z57="T2 (PZQ)",COUNTRY_INFO!$AA57="T2 (PZQ)"), "T2 (PZQ)", " ") -> T2 (PZQ) | E57: 20 au 24 juillet 2023 | G57: 122484 | I57: 122484 | K57: 119028 | M57: 119028 | Q57: 0 | R57: 0 | S57: 119028 | T57: 0 | U57: 119028 | W57: 97.17840698 | Y57: 97.17840698 | AA57: 122484
A58: =IF(COUNTRY_INFO!A58=0," ",COUNTRY_INFO!A58) -> Mali | B58: =IF(COUNTRY_INFO!B58=0," ",COUNTRY_INFO!B58) -> Segou | C58: =IF(COUNTRY_INFO!C58=0," ",COUNTRY_INFO!C58) -> Macina | D58: =IF(OR(COUNTRY_INFO!$Z58="T2 (PZQ)",COUNTRY_INFO!$AA58="T2 (PZQ)"), "T2 (PZQ)", " ") -> T2 (PZQ) | E58: 20 au 24 juillet 2023 | G58: 95160 | H58: 171956 | I58: 267116 | K58: 105981 | L58: 156602 | M58: 262583 | Q58: 0 | R58: 0 | S58: 105981 | T58: 156602 | U58: 262583 | W58: 111.3713745 | X58: 91.07097164 | Y58: 98.30298447 | AA58: 95160 | AB58: 171956
A59: =IF(COUNTRY_INFO!A59=0," ",COUNTRY_INFO!A59) -> Mali | B59: =IF(COUNTRY_INFO!B59=0," ",COUNTRY_INFO!B59) -> Segou | C59: =IF(COUNTRY_INFO!C59=0," ",COUNTRY_INFO!C59) -> Markala | D59: =IF(OR(COUNTRY_INFO!$Z59="T2 (PZQ)",COUNTRY_INFO!$AA59="T2 (PZQ)"), "T2 (PZQ)", " ") -> T2 (PZQ) | E59: 20 au 24 juillet 2023 | G59: 105763 | I59: 105763 | K59: 80289 | L59: 24992 | M59: 105281 | Q59: 0 | R59: 0 | S59: 80289 | T59: 24992 | U59: 105281 | W59: 75.91407203 | Y59: 99.54426406 | AA59: 105763
A60: =IF(COUNTRY_INFO!A60=0," ",COUNTRY_INFO!A60) -> Mali | B60: =IF(COUNTRY_INFO!B60=0," ",COUNTRY_INFO!B60) -> Segou | C60: =IF(COUNTRY_INFO!C60=0," ",COUNTRY_INFO!C60) -> Niono | D60: =IF(OR(COUNTRY_INFO!$Z60="T2 (PZQ)",COUNTRY_INFO!$AA60="T2 (PZQ)"), "T2 (PZQ)", " ") -> T2 (PZQ) | E60: 20 au 24 juillet 2023 | G60: 158964 | H60: 287250 | I60: 446214 | K60: 183188 | L60: 274398 | M60: 457586 | Q60: 0 | R60: 0 | S60: 183188 | T60: 274398 | U60: 457586 | W60: 115.2386704 | X60: 95.52584856 | Y60: 102.5485529 | AA60: 158964 | AB60: 287250
A61: =IF(COUNTRY_INFO!A61=0," ",COUNTRY_INFO!A61) -> Mali | B61: =IF(COUNTRY_INFO!B61=0," ",COUNTRY_INFO!B61) -> Segou | C61: =IF(COUNTRY_INFO!C61=0," ",COUNTRY_INFO!C61) -> San | D61: =IF(OR(COUNTRY_INFO!$Z61="T2 (PZQ)",COUNTRY_INFO!$AA61="T2 (PZQ)"), "T2 (PZQ)", " ") -> T2 (PZQ) | E61: 20 au 24 juillet 2023 | G61: 99643 | I61: 99643 | K61: 92854 | L61: 200 | M61: 93054 | Q61: 0 | R61: 0 | S61: 92854 | T61: 200 | U61: 93054 | W61: 93.18667643 | Y61: 93.38739299 | AA61: 99643
A62: =IF(COUNTRY_INFO!A62=0," ",COUNTRY_INFO!A62) -> Mali | B62: =IF(COUNTRY_INFO!B62=0," ",COUNTRY_INFO!B62) -> Segou | C62: =IF(COUNTRY_INFO!C62=0," ",COUNTRY_INFO!C62) -> Segou | D62: =IF(OR(COUNTRY_INFO!$Z62="T2 (PZQ)",COUNTRY_INFO!$AA62="T2 (PZQ)"), "T2 (PZQ)", " ") -> T2 (PZQ) | E62: 20 au 24 juillet 2023 | G62: 190309 | I62: 190309 | K62: 202538 | L62: 285 | M62: 202823 | Q62: 0 | R62: 0 | S62: 202538 | T62: 285 | U62: 202823 | W62: 106.4258653 | Y62: 106.5756218 | AA62: 190309
A63: =IF(COUNTRY_INFO!A63=0," ",COUNTRY_INFO!A63) -> Mali | B63: =IF(COUNTRY_INFO!B63=0," ",COUNTRY_INFO!B63) -> Segou | C63: =IF(COUNTRY_INFO!C63=0," ",COUNTRY_INFO!C63) -> Tominian | D63: =IF(OR(COUNTRY_INFO!$Z63="T2 (PZQ)",COUNTRY_INFO!$AA63="T2 (PZQ)"), "T2 (PZQ)", " ") -> T2 (PZQ) | E63: 20 au 24 juillet 2023 | G63: 93940 | I63: 93940 | K63: 92300 | L63: 11695 | M63: 103995 | Q63: 0 | R63: 0 | S63: 92300 | T63: 11695 | U63: 103995 | W63: 98.25420481 | Y63: 110.7036406 | AA63: 93940
A64: =IF(COUNTRY_INFO!A64=0," ",COUNTRY_INFO!A64) -> Mali | B64: =IF(COUNTRY_INFO!B64=0," ",COUNTRY_INFO!B64) -> Sikasso | C64: =IF(COUNTRY_INFO!C64=0," ",COUNTRY_INFO!C64) -> Bougouni | D64: =IF(OR(COUNTRY_INFO!$Z64="T2 (PZQ)",COUNTRY_INFO!$AA64="T2 (PZQ)"), "T2 (PZQ)", " ") -> T2 (PZQ) | E64: 17 au 21 juillet 2023 | G64: 66759 | I64: 66759 | K64: 61849 | L64: 62 | M64: 61911 | Q64: 0 | R64: 0 | S64: 61849 | T64: 62 | U64: 61911 | W64: 92.64518642 | Y64: 92.73805779 | AA64: 66759
A65: =IF(COUNTRY_INFO!A65=0," ",COUNTRY_INFO!A65) -> Mali | B65: =IF(COUNTRY_INFO!B65=0," ",COUNTRY_INFO!B65) -> Sikasso | C65: =IF(COUNTRY_INFO!C65=0," ",COUNTRY_INFO!C65) -> Kadiolo | D65: =IF(OR(COUNTRY_INFO!$Z65="T2 (PZQ)",COUNTRY_INFO!$AA65="T2 (PZQ)"), "T2 (PZQ)", " ") ->  | I65: 0 | K65: 0 | L65: 0 | M65: 0 | Q65: 0 | R65: 0 | S65: 0 | T65: 0 | U65: 0
A66: =IF(COUNTRY_INFO!A66=0," ",COUNTRY_INFO!A66) -> Mali | B66: =IF(COUNTRY_INFO!B66=0," ",COUNTRY_INFO!B66) -> Sikasso | C66: =IF(COUNTRY_INFO!C66=0," ",COUNTRY_INFO!C66) -> Kignan | D66: =IF(OR(COUNTRY_INFO!$Z66="T2 (PZQ)",COUNTRY_INFO!$AA66="T2 (PZQ)"), "T2 (PZQ)", " ") ->  | I66: 0 | K66: 0 | L66: 0 | M66: 0 | Q66: 0 | R66: 0 | S66: 0 | T66: 0 | U66: 0
A67: =IF(COUNTRY_INFO!A67=0," ",COUNTRY_INFO!A67) -> Mali | B67: =IF(COUNTRY_INFO!B67=0," ",COUNTRY_INFO!B67) -> Sikasso | C67: =IF(COUNTRY_INFO!C67=0," ",COUNTRY_INFO!C67) -> Kolondieba | D67: =IF(OR(COUNTRY_INFO!$Z67="T2 (PZQ)",COUNTRY_INFO!$AA67="T2 (PZQ)"), "T2 (PZQ)", " ") -> T2 (PZQ) | E67: 17 au 21 juillet 2023 | G67: 26289 | I67: 26289 | K67: 20782 | L67: 0 | M67: 20782 | Q67: 0 | R67: 0 | S67: 20782 | T67: 0 | U67: 20782 | W67: 79.05207501 | Y67: 79.05207501 | AA67: 26289
A68: =IF(COUNTRY_INFO!A68=0," ",COUNTRY_INFO!A68) -> Mali | B68: =IF(COUNTRY_INFO!B68=0," ",COUNTRY_INFO!B68) -> Sikasso | C68: =IF(COUNTRY_INFO!C68=0," ",COUNTRY_INFO!C68) -> Koutiala | D68: =IF(OR(COUNTRY_INFO!$Z68="T2 (PZQ)",COUNTRY_INFO!$AA68="T2 (PZQ)"), "T2 (PZQ)", " ") ->  | I68: 0 | K68: 0 | L68: 0 | M68: 0 | Q68: 0 | R68: 0 | S68: 0 | T68: 0 | U68: 0
A69: =IF(COUNTRY_INFO!A69=0," ",COUNTRY_INFO!A69) -> Mali | B69: =IF(COUNTRY_INFO!B69=0," ",COUNTRY_INFO!B69) -> Sikasso | C69: =IF(COUNTRY_INFO!C69=0," ",COUNTRY_INFO!C69) -> Niena | D69: =IF(OR(COUNTRY_INFO!$Z69="T2 (PZQ)",COUNTRY_INFO!$AA69="T2 (PZQ)"), "T2 (PZQ)", " ") -> T2 (PZQ) | E69: 17 au 21 juillet 2023 | G69: 7443 | I69: 7443 | K69: 5534 | L69: 0 | M69: 5534 | Q69: 0 | R69: 0 | S69: 5534 | T69: 0 | U69: 5534 | W69: 74.35173989 | Y69: 74.35173989 | AA69: 7443
A70: =IF(COUNTRY_INFO!A70=0," ",COUNTRY_INFO!A70) -> Mali | B70: =IF(COUNTRY_INFO!B70=0," ",COUNTRY_INFO!B70) -> Sikasso | C70: =IF(COUNTRY_INFO!C70=0," ",COUNTRY_INFO!C70) -> Sélingué | D70: =IF(OR(COUNTRY_INFO!$Z70="T2 (PZQ)",COUNTRY_INFO!$AA70="T2 (PZQ)"), "T2 (PZQ)", " ") -> T2 (PZQ) | E70: 17 au 21 juillet 2023 | G70: 16418 | I70: 16418 | K70: 18320 | L70: 0 | M70: 18320 | Q70: 0 | R70: 0 | S70: 18320 | T70: 0 | U70: 18320 | W70: 111.5848459 | Y70: 111.5848459 | AA70: 16418
A71: =IF(COUNTRY_INFO!A71=0," ",COUNTRY_INFO!A71) -> Mali | B71: =IF(COUNTRY_INFO!B71=0," ",COUNTRY_INFO!B71) -> Sikasso | C71: =IF(COUNTRY_INFO!C71=0," ",COUNTRY_INFO!C71) -> Sikasso | D71: =IF(OR(COUNTRY_INFO!$Z71="T2 (PZQ)",COUNTRY_INFO!$AA71="T2 (PZQ)"), "T2 (PZQ)", " ") -> T2 (PZQ) | E71: 17 au 21 juillet 2023 | G71: 194766 | I71: 194766 | K71: 194033 | L71: 0 | M71: 194033 | Q71: 0 | R71: 0 | S71: 194033 | T71: 0 | U71: 194033 | W71: 99.62365095 | Y71: 99.62365095 | AA71: 194766
A72: =IF(COUNTRY_INFO!A72=0," ",COUNTRY_INFO!A72) -> Mali | B72: =IF(COUNTRY_INFO!B72=0," ",COUNTRY_INFO!B72) -> Sikasso | C72: =IF(COUNTRY_INFO!C72=0," ",COUNTRY_INFO!C72) -> Yanfolila | D72: =IF(OR(COUNTRY_INFO!$Z72="T2 (PZQ)",COUNTRY_INFO!$AA72="T2 (PZQ)"), "T2 (PZQ)", " ") -> T2 (PZQ) | E72: 17 au 21 juillet 2023 | G72: 1850 | I72: 1850 | K72: 1803 | L72: 0 | M72: 1803 | Q72: 0 | R72: 0 | S72: 1803 | T72: 0 | U72: 1803 | W72: 97.45945946 | Y72: 97.45945946 | AA72: 1850
A73: =IF(COUNTRY_INFO!A73=0," ",COUNTRY_INFO!A73) -> Mali | B73: =IF(COUNTRY_INFO!B73=0," ",COUNTRY_INFO!B73) -> Sikasso | C73: =IF(COUNTRY_INFO!C73=0," ",COUNTRY_INFO!C73) -> Yorosso | D73: =IF(OR(COUNTRY_INFO!$Z73="T2 (PZQ)",COUNTRY_INFO!$AA73="T2 (PZQ)"), "T2 (PZQ)", " ") ->  | I73: 0 | K73: 0 | L73: 0 | M73: 0 | Q73: 0 | R73: 0 | S73: 0 | T73: 0 | U73: 0
A74: =IF(COUNTRY_INFO!A74=0," ",COUNTRY_INFO!A74) -> Mali | B74: =IF(COUNTRY_INFO!B74=0," ",COUNTRY_INFO!B74) -> Tombouctou | C74: =IF(COUNTRY_INFO!C74=0," ",COUNTRY_INFO!C74) -> Diré | D74: =IF(OR(COUNTRY_INFO!$Z74="T2 (PZQ)",COUNTRY_INFO!$AA74="T2 (PZQ)"), "T2 (PZQ)", " ") -> T2 (PZQ) | E74: 24 au 28 Juillet 2023 | G74: 2777 | I74: 2777 | K74: 3170 | L74: 0 | M74: 3170 | Q74: 0 | R74: 0 | S74: 3170 | T74: 0 | U74: 3170 | W74: 114.1519625 | Y74: 114.1519625 | AA74: 2777
A75: =IF(COUNTRY_INFO!A75=0," ",COUNTRY_INFO!A75) -> Mali | B75: =IF(COUNTRY_INFO!B75=0," ",COUNTRY_INFO!B75) -> Tombouctou | C75: =IF(COUNTRY_INFO!C75=0," ",COUNTRY_INFO!C75) -> Goundam | D75: =IF(OR(COUNTRY_INFO!$Z75="T2 (PZQ)",COUNTRY_INFO!$AA75="T2 (PZQ)"), "T2 (PZQ)", " ") -> T2 (PZQ) | E75: 24 au 28 Juillet 2023 | G75: 3789 | I75: =SUM(F75:H75) -> 3789 | K75: 4503 | L75: 294 | M75: =SUM(J75:L75) -> 4797 | Q75: =SUM(N75:P75) -> 0 | R75: =MAX(J75,N75) -> 0 | S75: =MAX(K75,O75) -> 4503 | T75: =MAX(L75,P75) -> 294 | U75: =SUM(R75:T75) -> 4797 | V75: =IF(F75<>0, IF(R75/F75*100=0, "-", R75/F75*100), " ") ->  | W75: =IF(G75<>0, IF(S75/G75*100=0, "-", S75/G75*100), " ") -> 118.8440222 | X75: =IF(H75<>0, IF(T75/H75*100=0, "-",T75/H75*100), " ") ->  | Y75: =IF(I75<>0, IF(U75/I75*100=0, "-", U75/I75*100), " ") -> 126.6033254 | AA75: 3789
A76: =IF(COUNTRY_INFO!A76=0," ",COUNTRY_INFO!A76) -> Mali | B76: =IF(COUNTRY_INFO!B76=0," ",COUNTRY_INFO!B76) -> Tombouctou | C76: =IF(COUNTRY_INFO!C76=0," ",COUNTRY_INFO!C76) -> Gourma-Rharous | D76: =IF(OR(COUNTRY_INFO!$Z76="T2 (PZQ)",COUNTRY_INFO!$AA76="T2 (PZQ)"), "T2 (PZQ)", " ") -> T2 (PZQ) | E76: 24 au 28 Juillet 2023 | G76: 43057 | I76: 43057 | K76: 37449 | L76: 0 | M76: 37449 | Q76: 0 | R76: 0 | S76: 37449 | T76: 0 | U76: 37449 | W76: 86.9754047 | Y76: 86.9754047 | AA76: 43057
A77: =IF(COUNTRY_INFO!A77=0," ",COUNTRY_INFO!A77) -> Mali | B77: =IF(COUNTRY_INFO!B77=0," ",COUNTRY_INFO!B77) -> Tombouctou | C77: =IF(COUNTRY_INFO!C77=0," ",COUNTRY_INFO!C77) -> Niafunké | D77: =IF(OR(COUNTRY_INFO!$Z77="T2 (PZQ)",COUNTRY_INFO!$AA77="T2 (PZQ)"), "T2 (PZQ)", " ") -> T2 (PZQ) | E77: 24 au 28 Juillet 2023 | G77: 15893 | I77: 15893 | K77: 14691 | L77: 0 | M77: 14691 | Q77: 0 | R77: 0 | S77: 14691 | T77: 0 | U77: 14691 | W77: 92.43692192 | Y77: 92.43692192 | AA77: 15893
A78: =IF(COUNTRY_INFO!A78=0," ",COUNTRY_INFO!A78) -> Mali | B78: =IF(COUNTRY_INFO!B78=0," ",COUNTRY_INFO!B78) -> Tombouctou | C78: =IF(COUNTRY_INFO!C78=0," ",COUNTRY_INFO!C78) -> Tombouctou | D78: =IF(OR(COUNTRY_INFO!$Z78="T2 (PZQ)",COUNTRY_INFO!$AA78="T2 (PZQ)"), "T2 (PZQ)", " ") -> T2 (PZQ) | E78: 24 au 28 Juillet 2023 | G78: 3843 | I78: 3843 | K78: 3738 | L78: 307 | M78: 4045 | Q78: 0 | R78: 0 | S78: 3738 | T78: 307 | U78: 4045 | W78: 97.26775956 | Y78: 105.2563102 | AA78: 3843
A79: =IF(COUNTRY_INFO!A79=0," ",COUNTRY_INFO!A79) -> Mali | B79: =IF(COUNTRY_INFO!B79=0," ",COUNTRY_INFO!B79) -> Taoudenit | C79: =IF(COUNTRY_INFO!C79=0," ",COUNTRY_INFO!C79) -> Achourat | D79: =IF(OR(COUNTRY_INFO!$Z79="T2 (PZQ)",COUNTRY_INFO!$AA79="T2 (PZQ)"), "T2 (PZQ)", " ") ->  | I79: 0 | M79: 0 | Q79: 0 | R79: 0 | S79: 0 | T79: 0 | U79: 0
A80: =IF(COUNTRY_INFO!A80=0," ",COUNTRY_INFO!A80) -> Mali | B80: =IF(COUNTRY_INFO!B80=0," ",COUNTRY_INFO!B80) -> Taoudenit | C80: =IF(COUNTRY_INFO!C80=0," ",COUNTRY_INFO!C80) -> Al-Ourch | D80: =IF(OR(COUNTRY_INFO!$Z80="T2 (PZQ)",COUNTRY_INFO!$AA80="T2 (PZQ)"), "T2 (PZQ)", " ") ->  | I80: 0 | M80: 0 | Q80: 0 | R80: 0 | S80: 0 | T80: 0 | U80: 0
A81: =IF(COUNTRY_INFO!A81=0," ",COUNTRY_INFO!A81) -> Mali | B81: =IF(COUNTRY_INFO!B81=0," ",COUNTRY_INFO!B81) -> Taoudenit | C81: =IF(COUNTRY_INFO!C81=0," ",COUNTRY_INFO!C81) -> Araouane | D81: =IF(OR(COUNTRY_INFO!$Z81="T2 (PZQ)",COUNTRY_INFO!$AA81="T2 (PZQ)"), "T2 (PZQ)", " ") ->  | I81: 0 | M81: 0 | Q81: 0 | R81: 0 | S81: 0 | T81: 0 | U81: 0
A82: =IF(COUNTRY_INFO!A82=0," ",COUNTRY_INFO!A82) -> Mali | B82: =IF(COUNTRY_INFO!B82=0," ",COUNTRY_INFO!B82) -> Taoudenit | C82: =IF(COUNTRY_INFO!C82=0," ",COUNTRY_INFO!C82) -> Boujbeha | D82: =IF(OR(COUNTRY_INFO!$Z82="T2 (PZQ)",COUNTRY_INFO!$AA82="T2 (PZQ)"), "T2 (PZQ)", " ") ->  | I82: 0 | M82: 0 | Q82: 0 | R82: 0 | S82: 0 | T82: 0 | U82: 0
A83: =IF(COUNTRY_INFO!A83=0," ",COUNTRY_INFO!A83) -> Mali | B83: =IF(COUNTRY_INFO!B83=0," ",COUNTRY_INFO!B83) -> Taoudenit | C83: =IF(COUNTRY_INFO!C83=0," ",COUNTRY_INFO!C83) -> Foum-Elba | D83: =IF(OR(COUNTRY_INFO!$Z83="T2 (PZQ)",COUNTRY_INFO!$AA83="T2 (PZQ)"), "T2 (PZQ)", " ") ->  | I83: 0 | M83: 0 | Q83: 0 | R83: 0 | S83: 0 | T83: 0 | U83: 0
A84: =IF(COUNTRY_INFO!A84=0," ",COUNTRY_INFO!A84) -> Mali | B84: =IF(COUNTRY_INFO!B84=0," ",COUNTRY_INFO!B84) -> Taoudenit | C84: =IF(COUNTRY_INFO!C84=0," ",COUNTRY_INFO!C84) -> Taoudenit | D84: =IF(OR(COUNTRY_INFO!$Z84="T2 (PZQ)",COUNTRY_INFO!$AA84="T2 (PZQ)"), "T2 (PZQ)", " ") ->  | I84: 0 | M84: 0 | Q84: 0 | R84: 0 | S84: 0 | T84: 0 | U84: 0

Sheet T3_R1 (hidden)
A1: T 3 - Albendazole (ALB) ou Mebendazole (MBD) - Tournée 1 | F1: Choisir le médicament utilisé pour le traitement de la STH pour chaque groupe d'âge
A2: Structure administrative, population nécessitant une CP par groupe d'âge, population traitée par groupe d'âge et couverture | J2: Sélectionner la catégorie d’adultes
A4: TOTAL | F4: =SUBTOTAL(9,F$10:F$1010) -> 0 | G4: 0 | H4: 0 | I4: 0 | J4: 0 | K4: 0 | L4: 0 | M4: 0 | N4: =IF(F4<>0, IF(J4/F4*100=0, "-", J4/F4*100), " ") ->  | O4: =IF(G4<>0, IF(K4/G4*100=0, "-", K4/G4*100), " ") ->  | P4: =IF(H4<>0, IF(L4/H4*100=0, "-", L4/H4*100), " ") ->  | Q4: =IF(I4<>0, IF(M4/I4*100=0, "-", M4/I4*100), " ") -> 
A6: Structure administrative du pays | D6: Mise en oeuvre de la CP | E6: Date | F6: Population ciblée pour T3 | J6: Population traitée | N6: Couverture du Programme (%)
A7: Pays | B7: Région/Département | C7: District | F7: EAPréS | G7: EAS | H7: Adultes | I7: Total | J7: EAPréS | K7: EAS | L7: Adultes | M7: Total | N7: EAPréS | O7: EAS | P7: Adultes | Q7: Total
A10: =IF(COUNTRY_INFO!A10=0," ",COUNTRY_INFO!A10) -> Mali | B10: =IF(COUNTRY_INFO!B10=0," ",COUNTRY_INFO!B10) -> Bamako | C10: =IF(COUNTRY_INFO!C10=0," ",COUNTRY_INFO!C10) -> Commune 1 | D10: =IF(OR(COUNTRY_INFO!$Z10="T3 (ALB/MBD)",COUNTRY_INFO!$AA10="T3 (ALB/MBD)"), "T3 (ALB/MBD)", " ") ->  | I10: =SUM(F10:H10) -> 0 | M10: =SUM(J10:L10) -> 0 | N10: =IF(F10<>0, IF(J10/F10*100=0, "-", J10/F10*100), " ") -> 
A11: =IF(COUNTRY_INFO!A11=0," ",COUNTRY_INFO!A11) -> Mali | B11: =IF(COUNTRY_INFO!B11=0," ",COUNTRY_INFO!B11) -> Bamako | C11: =IF(COUNTRY_INFO!C11=0," ",COUNTRY_INFO!C11) -> Commune 2 | D11: =IF(OR(COUNTRY_INFO!$Z11="T3 (ALB/MBD)",COUNTRY_INFO!$AA11="T3 (ALB/MBD)"), "T3 (ALB/MBD)", " ") ->  | I11: =SUM(F11:H11) -> 0 | M11: =SUM(J11:L11) -> 0 | N11: =IF(F11<>0, IF(J11/F11*100=0, "-", J11/F11*100), " ") ->  | O11: =IF(G11<>0, IF(K11/G11*100=0, "-", K11/G11*100), " ") ->  | P11: =IF(H11<>0, IF(L11/H11*100=0, "-", L11/H11*100), " ") ->  | Q11: =IF(I11<>0, IF(M11/I11*100=0, "-", M11/I11*100), " ") -> 
A12: =IF(COUNTRY_INFO!A12=0," ",COUNTRY_INFO!A12) -> Mali | B12: =IF(COUNTRY_INFO!B12=0," ",COUNTRY_INFO!B12) -> Bamako | C12: =IF(COUNTRY_INFO!C12=0," ",COUNTRY_INFO!C12) -> Commune 3 | D12: =IF(OR(COUNTRY_INFO!$Z12="T3 (ALB/MBD)",COUNTRY_INFO!$AA12="T3 (ALB/MBD)"), "T3 (ALB/MBD)", " ") ->  | I12: 0 | M12: 0
A13: =IF(COUNTRY_INFO!A13=0," ",COUNTRY_INFO!A13) -> Mali | B13: =IF(COUNTRY_INFO!B13=0," ",COUNTRY_INFO!B13) -> Bamako | C13: =IF(COUNTRY_INFO!C13=0," ",COUNTRY_INFO!C13) -> Commune 4 | D13: =IF(OR(COUNTRY_INFO!$Z13="T3 (ALB/MBD)",COUNTRY_INFO!$AA13="T3 (ALB/MBD)"), "T3 (ALB/MBD)", " ") ->  | I13: 0 | M13: 0
A14: =IF(COUNTRY_INFO!A14=0," ",COUNTRY_INFO!A14) -> Mali | B14: =IF(COUNTRY_INFO!B14=0," ",COUNTRY_INFO!B14) -> Bamako | C14: =IF(COUNTRY_INFO!C14=0," ",COUNTRY_INFO!C14) -> Commune 5 | D14: =IF(OR(COUNTRY_INFO!$Z14="T3 (ALB/MBD)",COUNTRY_INFO!$AA14="T3 (ALB/MBD)"), "T3 (ALB/MBD)", " ") ->  | I14: 0 | M14: 0
A15: =IF(COUNTRY_INFO!A15=0," ",COUNTRY_INFO!A15) -> Mali | B15: =IF(COUNTRY_INFO!B15=0," ",COUNTRY_INFO!B15) -> Bamako | C15: =IF(COUNTRY_INFO!C15=0," ",COUNTRY_INFO!C15) -> Commune 6 | D15: =IF(OR(COUNTRY_INFO!$Z15="T3 (ALB/MBD)",COUNTRY_INFO!$AA15="T3 (ALB/MBD)"), "T3 (ALB/MBD)", " ") ->  | I15: 0 | M15: 0
A16: =IF(COUNTRY_INFO!A16=0," ",COUNTRY_INFO!A16) -> Mali | B16: =IF(COUNTRY_INFO!B16=0," ",COUNTRY_INFO!B16) -> Gao | C16: =IF(COUNTRY_INFO!C16=0," ",COUNTRY_INFO!C16) -> Ansongo | D16: =IF(OR(COUNTRY_INFO!$Z16="T3 (ALB/MBD)",COUNTRY_INFO!$AA16="T3 (ALB/MBD)"), "T3 (ALB/MBD)", " ") ->  | I16: 0 | M16: 0
A17: =IF(COUNTRY_INFO!A17=0," ",COUNTRY_INFO!A17) -> Mali | B17: =IF(COUNTRY_INFO!B17=0," ",COUNTRY_INFO!B17) -> Gao | C17: =IF(COUNTRY_INFO!C17=0," ",COUNTRY_INFO!C17) -> Bourem | D17: =IF(OR(COUNTRY_INFO!$Z17="T3 (ALB/MBD)",COUNTRY_INFO!$AA17="T3 (ALB/MBD)"), "T3 (ALB/MBD)", " ") ->  | I17: 0 | M17: 0
A18: =IF(COUNTRY_INFO!A18=0," ",COUNTRY_INFO!A18) -> Mali | B18: =IF(COUNTRY_INFO!B18=0," ",COUNTRY_INFO!B18) -> Gao | C18: =IF(COUNTRY_INFO!C18=0," ",COUNTRY_INFO!C18) -> Almoustrat | D18: =IF(OR(COUNTRY_INFO!$Z18="T3 (ALB/MBD)",COUNTRY_INFO!$AA18="T3 (ALB/MBD)"), "T3 (ALB/MBD)", " ") ->  | I18: 0 | M18: 0
A19: =IF(COUNTRY_INFO!A19=0," ",COUNTRY_INFO!A19) -> Mali | B19: =IF(COUNTRY_INFO!B19=0," ",COUNTRY_INFO!B19) -> Gao | C19: =IF(COUNTRY_INFO!C19=0," ",COUNTRY_INFO!C19) -> Gao | D19: =IF(OR(COUNTRY_INFO!$Z19="T3 (ALB/MBD)",COUNTRY_INFO!$AA19="T3 (ALB/MBD)"), "T3 (ALB/MBD)", " ") ->  | I19: 0 | M19: 0
A20: =IF(COUNTRY_INFO!A20=0," ",COUNTRY_INFO!A20) -> Mali | B20: =IF(COUNTRY_INFO!B20=0," ",COUNTRY_INFO!B20) -> Menaka | C20: =IF(COUNTRY_INFO!C20=0," ",COUNTRY_INFO!C20) -> Menaka | D20: =IF(OR(COUNTRY_INFO!$Z20="T3 (ALB/MBD)",COUNTRY_INFO!$AA20="T3 (ALB/MBD)"), "T3 (ALB/MBD)", " ") ->  | I20: 0 | M20: 0
A21: =IF(COUNTRY_INFO!A21=0," ",COUNTRY_INFO!A21) -> Mali | B21: =IF(COUNTRY_INFO!B21=0," ",COUNTRY_INFO!B21) -> Menaka | C21: =IF(COUNTRY_INFO!C21=0," ",COUNTRY_INFO!C21) -> Anderamboukane | D21: =IF(OR(COUNTRY_INFO!$Z21="T3 (ALB/MBD)",COUNTRY_INFO!$AA21="T3 (ALB/MBD)"), "T3 (ALB/MBD)", " ") ->  | I21: 0 | M21: 0
A22: =IF(COUNTRY_INFO!A22=0," ",COUNTRY_INFO!A22) -> Mali | B22: =IF(COUNTRY_INFO!B22=0," ",COUNTRY_INFO!B22) -> Menaka | C22: =IF(COUNTRY_INFO!C22=0," ",COUNTRY_INFO!C22) -> Inekar | D22: =IF(OR(COUNTRY_INFO!$Z22="T3 (ALB/MBD)",COUNTRY_INFO!$AA22="T3 (ALB/MBD)"), "T3 (ALB/MBD)", " ") ->  | I22: 0 | M22: 0
A23: =IF(COUNTRY_INFO!A23=0," ",COUNTRY_INFO!A23) -> Mali | B23: =IF(COUNTRY_INFO!B23=0," ",COUNTRY_INFO!B23) -> Menaka | C23: =IF(COUNTRY_INFO!C23=0," ",COUNTRY_INFO!C23) -> Tidermene | D23: =IF(OR(COUNTRY_INFO!$Z23="T3 (ALB/MBD)",COUNTRY_INFO!$AA23="T3 (ALB/MBD)"), "T3 (ALB/MBD)", " ") ->  | I23: 0 | M23: 0
A24: =IF(COUNTRY_INFO!A24=0," ",COUNTRY_INFO!A24) -> Mali | B24: =IF(COUNTRY_INFO!B24=0," ",COUNTRY_INFO!B24) -> Kayes | C24: =IF(COUNTRY_INFO!C24=0," ",COUNTRY_INFO!C24) -> Bafoulabe | D24: =IF(OR(COUNTRY_INFO!$Z24="T3 (ALB/MBD)",COUNTRY_INFO!$AA24="T3 (ALB/MBD)"), "T3 (ALB/MBD)", " ") ->  | I24: 0 | M24: 0
A25: =IF(COUNTRY_INFO!A25=0," ",COUNTRY_INFO!A25) -> Mali | B25: =IF(COUNTRY_INFO!B25=0," ",COUNTRY_INFO!B25) -> Kayes | C25: =IF(COUNTRY_INFO!C25=0," ",COUNTRY_INFO!C25) -> Diema | D25: =IF(OR(COUNTRY_INFO!$Z25="T3 (ALB/MBD)",COUNTRY_INFO!$AA25="T3 (ALB/MBD)"), "T3 (ALB/MBD)", " ") ->  | I25: 0 | M25: 0
A26: =IF(COUNTRY_INFO!A26=0," ",COUNTRY_INFO!A26) -> Mali | B26: =IF(COUNTRY_INFO!B26=0," ",COUNTRY_INFO!B26) -> Kayes | C26: =IF(COUNTRY_INFO!C26=0," ",COUNTRY_INFO!C26) -> Kayes | D26: =IF(OR(COUNTRY_INFO!$Z26="T3 (ALB/MBD)",COUNTRY_INFO!$AA26="T3 (ALB/MBD)"), "T3 (ALB/MBD)", " ") ->  | I26: 0 | M26: 0
A27: =IF(COUNTRY_INFO!A27=0," ",COUNTRY_INFO!A27) -> Mali | B27: =IF(COUNTRY_INFO!B27=0," ",COUNTRY_INFO!B27) -> Kayes | C27: =IF(COUNTRY_INFO!C27=0," ",COUNTRY_INFO!C27) -> Kenieba | D27: =IF(OR(COUNTRY_INFO!$Z27="T3 (ALB/MBD)",COUNTRY_INFO!$AA27="T3 (ALB/MBD)"), "T3 (ALB/MBD)", " ") ->  | I27: 0 | M27: 0
A28: =IF(COUNTRY_INFO!A28=0," ",COUNTRY_INFO!A28) -> Mali | B28: =IF(COUNTRY_INFO!B28=0," ",COUNTRY_INFO!B28) -> Kayes | C28: =IF(COUNTRY_INFO!C28=0," ",COUNTRY_INFO!C28) -> Kita | D28: =IF(OR(COUNTRY_INFO!$Z28="T3 (ALB/MBD)",COUNTRY_INFO!$AA28="T3 (ALB/MBD)"), "T3 (ALB/MBD)", " ") ->  | I28: 0 | M28: 0
A29: =IF(COUNTRY_INFO!A29=0," ",COUNTRY_INFO!A29) -> Mali | B29: =IF(COUNTRY_INFO!B29=0," ",COUNTRY_INFO!B29) -> Kayes | C29: =IF(COUNTRY_INFO!C29=0," ",COUNTRY_INFO!C29) -> Sagabari | D29: =IF(OR(COUNTRY_INFO!$Z29="T3 (ALB/MBD)",COUNTRY_INFO!$AA29="T3 (ALB/MBD)"), "T3 (ALB/MBD)", " ") ->  | I29: 0 | M29: 0
A30: =IF(COUNTRY_INFO!A30=0," ",COUNTRY_INFO!A30) -> Mali | B30: =IF(COUNTRY_INFO!B30=0," ",COUNTRY_INFO!B30) -> Kayes | C30: =IF(COUNTRY_INFO!C30=0," ",COUNTRY_INFO!C30) -> Sefeto | D30: =IF(OR(COUNTRY_INFO!$Z30="T3 (ALB/MBD)",COUNTRY_INFO!$AA30="T3 (ALB/MBD)"), "T3 (ALB/MBD)", " ") ->  | I30: 0 | M30: 0
A31: =IF(COUNTRY_INFO!A31=0," ",COUNTRY_INFO!A31) -> Mali | B31: =IF(COUNTRY_INFO!B31=0," ",COUNTRY_INFO!B31) -> Kayes | C31: =IF(COUNTRY_INFO!C31=0," ",COUNTRY_INFO!C31) -> Nioro | D31: =IF(OR(COUNTRY_INFO!$Z31="T3 (ALB/MBD)",COUNTRY_INFO!$AA31="T3 (ALB/MBD)"), "T3 (ALB/MBD)", " ") ->  | I31: 0 | M31: 0
A32: =IF(COUNTRY_INFO!A32=0," ",COUNTRY_INFO!A32) -> Mali | B32: =IF(COUNTRY_INFO!B32=0," ",COUNTRY_INFO!B32) -> Kayes | C32: =IF(COUNTRY_INFO!C32=0," ",COUNTRY_INFO!C32) -> Oussoubidiagna | D32: =IF(OR(COUNTRY_INFO!$Z32="T3 (ALB/MBD)",COUNTRY_INFO!$AA32="T3 (ALB/MBD)"), "T3 (ALB/MBD)", " ") ->  | I32: 0 | M32: 0
A33: =IF(COUNTRY_INFO!A33=0," ",COUNTRY_INFO!A33) -> Mali | B33: =IF(COUNTRY_INFO!B33=0," ",COUNTRY_INFO!B33) -> Kayes | C33: =IF(COUNTRY_INFO!C33=0," ",COUNTRY_INFO!C33) -> Yelimane | D33: =IF(OR(COUNTRY_INFO!$Z33="T3 (ALB/MBD)",COUNTRY_INFO!$AA33="T3 (ALB/MBD)"), "T3 (ALB/MBD)", " ") ->  | I33: 0 | M33: 0
A34: =IF(COUNTRY_INFO!A34=0," ",COUNTRY_INFO!A34) -> Mali | B34: =IF(COUNTRY_INFO!B34=0," ",COUNTRY_INFO!B34) -> Kidal | C34: =IF(COUNTRY_INFO!C34=0," ",COUNTRY_INFO!C34) -> Abeibara | D34: =IF(OR(COUNTRY_INFO!$Z34="T3 (ALB/MBD)",COUNTRY_INFO!$AA34="T3 (ALB/MBD)"), "T3 (ALB/MBD)", " ") ->  | I34: 0 | M34: 0
A35: =IF(COUNTRY_INFO!A35=0," ",COUNTRY_INFO!A35) -> Mali | B35: =IF(COUNTRY_INFO!B35=0," ",COUNTRY_INFO!B35) -> Kidal | C35: =IF(COUNTRY_INFO!C35=0," ",COUNTRY_INFO!C35) -> Kidal | D35: =IF(OR(COUNTRY_INFO!$Z35="T3 (ALB/MBD)",COUNTRY_INFO!$AA35="T3 (ALB/MBD)"), "T3 (ALB/MBD)", " ") ->  | I35: 0 | M35: 0
A36: =IF(COUNTRY_INFO!A36=0," ",COUNTRY_INFO!A36) -> Mali | B36: =IF(COUNTRY_INFO!B36=0," ",COUNTRY_INFO!B36) -> Kidal | C36: =IF(COUNTRY_INFO!C36=0," ",COUNTRY_INFO!C36) -> Tessalit | D36: =IF(OR(COUNTRY_INFO!$Z36="T3 (ALB/MBD)",COUNTRY_INFO!$AA36="T3 (ALB/MBD)"), "T3 (ALB/MBD)", " ") ->  | I36: 0 | M36: 0
A37: =IF(COUNTRY_INFO!A37=0," ",COUNTRY_INFO!A37) -> Mali | B37: =IF(COUNTRY_INFO!B37=0," ",COUNTRY_INFO!B37) -> Kidal | C37: =IF(COUNTRY_INFO!C37=0," ",COUNTRY_INFO!C37) -> Tin-Essako | D37: =IF(OR(COUNTRY_INFO!$Z37="T3 (ALB/MBD)",COUNTRY_INFO!$AA37="T3 (ALB/MBD)"), "T3 (ALB/MBD)", " ") ->  | I37: 0 | M37: 0
A38: =IF(COUNTRY_INFO!A38=0," ",COUNTRY_INFO!A38) -> Mali | B38: =IF(COUNTRY_INFO!B38=0," ",COUNTRY_INFO!B38) -> Koulikoro | C38: =IF(COUNTRY_INFO!C38=0," ",COUNTRY_INFO!C38) -> Banamba | D38: =IF(OR(COUNTRY_INFO!$Z38="T3 (ALB/MBD)",COUNTRY_INFO!$AA38="T3 (ALB/MBD)"), "T3 (ALB/MBD)", " ") ->  | I38: 0 | M38: 0
A39: =IF(COUNTRY_INFO!A39=0," ",COUNTRY_INFO!A39) -> Mali | B39: =IF(COUNTRY_INFO!B39=0," ",COUNTRY_INFO!B39) -> Koulikoro | C39: =IF(COUNTRY_INFO!C39=0," ",COUNTRY_INFO!C39) -> Dioila | D39: =IF(OR(COUNTRY_INFO!$Z39="T3 (ALB/MBD)",COUNTRY_INFO!$AA39="T3 (ALB/MBD)"), "T3 (ALB/MBD)", " ") ->  | I39: 0 | M39: 0
A40: =IF(COUNTRY_INFO!A40=0," ",COUNTRY_INFO!A40) -> Mali | B40: =IF(COUNTRY_INFO!B40=0," ",COUNTRY_INFO!B40) -> Koulikoro | C40: =IF(COUNTRY_INFO!C40=0," ",COUNTRY_INFO!C40) -> Fana | D40: =IF(OR(COUNTRY_INFO!$Z40="T3 (ALB/MBD)",COUNTRY_INFO!$AA40="T3 (ALB/MBD)"), "T3 (ALB/MBD)", " ") ->  | I40: 0 | M40: 0
A41: =IF(COUNTRY_INFO!A41=0," ",COUNTRY_INFO!A41) -> Mali | B41: =IF(COUNTRY_INFO!B41=0," ",COUNTRY_INFO!B41) -> Koulikoro | C41: =IF(COUNTRY_INFO!C41=0," ",COUNTRY_INFO!C41) -> Kalabancoro | D41: =IF(OR(COUNTRY_INFO!$Z41="T3 (ALB/MBD)",COUNTRY_INFO!$AA41="T3 (ALB/MBD)"), "T3 (ALB/MBD)", " ") ->  | I41: 0 | M41: 0
A42: =IF(COUNTRY_INFO!A42=0," ",COUNTRY_INFO!A42) -> Mali | B42: =IF(COUNTRY_INFO!B42=0," ",COUNTRY_INFO!B42) -> Koulikoro | C42: =IF(COUNTRY_INFO!C42=0," ",COUNTRY_INFO!C42) -> Kangaba | D42: =IF(OR(COUNTRY_INFO!$Z42="T3 (ALB/MBD)",COUNTRY_INFO!$AA42="T3 (ALB/MBD)"), "T3 (ALB/MBD)", " ") ->  | I42: 0 | M42: 0
A43: =IF(COUNTRY_INFO!A43=0," ",COUNTRY_INFO!A43) -> Mali | B43: =IF(COUNTRY_INFO!B43=0," ",COUNTRY_INFO!B43) -> Koulikoro | C43: =IF(COUNTRY_INFO!C43=0," ",COUNTRY_INFO!C43) -> Kati | D43: =IF(OR(COUNTRY_INFO!$Z43="T3 (ALB/MBD)",COUNTRY_INFO!$AA43="T3 (ALB/MBD)"), "T3 (ALB/MBD)", " ") ->  | I43: 0 | M43: 0
A44: =IF(COUNTRY_INFO!A44=0," ",COUNTRY_INFO!A44) -> Mali | B44: =IF(COUNTRY_INFO!B44=0," ",COUNTRY_INFO!B44) -> Koulikoro | C44: =IF(COUNTRY_INFO!C44=0," ",COUNTRY_INFO!C44) -> Kolokani | D44: =IF(OR(COUNTRY_INFO!$Z44="T3 (ALB/MBD)",COUNTRY_INFO!$AA44="T3 (ALB/MBD)"), "T3 (ALB/MBD)", " ") ->  | I44: 0 | M44: 0
A45: =IF(COUNTRY_INFO!A45=0," ",COUNTRY_INFO!A45) -> Mali | B45: =IF(COUNTRY_INFO!B45=0," ",COUNTRY_INFO!B45) -> Koulikoro | C45: =IF(COUNTRY_INFO!C45=0," ",COUNTRY_INFO!C45) -> Koulikoro | D45: =IF(OR(COUNTRY_INFO!$Z45="T3 (ALB/MBD)",COUNTRY_INFO!$AA45="T3 (ALB/MBD)"), "T3 (ALB/MBD)", " ") ->  | I45: 0 | M45: 0
A46: =IF(COUNTRY_INFO!A46=0," ",COUNTRY_INFO!A46) -> Mali | B46: =IF(COUNTRY_INFO!B46=0," ",COUNTRY_INFO!B46) -> Koulikoro | C46: =IF(COUNTRY_INFO!C46=0," ",COUNTRY_INFO!C46) -> Nara | D46: =IF(OR(COUNTRY_INFO!$Z46="T3 (ALB/MBD)",COUNTRY_INFO!$AA46="T3 (ALB/MBD)"), "T3 (ALB/MBD)", " ") ->  | I46: 0 | M46: 0
A47: =IF(COUNTRY_INFO!A47=0," ",COUNTRY_INFO!A47) -> Mali | B47: =IF(COUNTRY_INFO!B47=0," ",COUNTRY_INFO!B47) -> Koulikoro | C47: =IF(COUNTRY_INFO!C47=0," ",COUNTRY_INFO!C47) -> Ouelessebougou | D47: =IF(OR(COUNTRY_INFO!$Z47="T3 (ALB/MBD)",COUNTRY_INFO!$AA47="T3 (ALB/MBD)"), "T3 (ALB/MBD)", " ") ->  | I47: 0 | M47: 0
A48: =IF(COUNTRY_INFO!A48=0," ",COUNTRY_INFO!A48) -> Mali | B48: =IF(COUNTRY_INFO!B48=0," ",COUNTRY_INFO!B48) -> Mopti | C48: =IF(COUNTRY_INFO!C48=0," ",COUNTRY_INFO!C48) -> Bandiagara | D48: =IF(OR(COUNTRY_INFO!$Z48="T3 (ALB/MBD)",COUNTRY_INFO!$AA48="T3 (ALB/MBD)"), "T3 (ALB/MBD)", " ") ->  | I48: 0 | M48: 0
A49: =IF(COUNTRY_INFO!A49=0," ",COUNTRY_INFO!A49) -> Mali | B49: =IF(COUNTRY_INFO!B49=0," ",COUNTRY_INFO!B49) -> Mopti | C49: =IF(COUNTRY_INFO!C49=0," ",COUNTRY_INFO!C49) -> Bankass | D49: =IF(OR(COUNTRY_INFO!$Z49="T3 (ALB/MBD)",COUNTRY_INFO!$AA49="T3 (ALB/MBD)"), "T3 (ALB/MBD)", " ") ->  | I49: 0 | M49: 0
A50: =IF(COUNTRY_INFO!A50=0," ",COUNTRY_INFO!A50) -> Mali | B50: =IF(COUNTRY_INFO!B50=0," ",COUNTRY_INFO!B50) -> Mopti | C50: =IF(COUNTRY_INFO!C50=0," ",COUNTRY_INFO!C50) -> Djenne | D50: =IF(OR(COUNTRY_INFO!$Z50="T3 (ALB/MBD)",COUNTRY_INFO!$AA50="T3 (ALB/MBD)"), "T3 (ALB/MBD)", " ") ->  | I50: 0 | M50: 0
A51: =IF(COUNTRY_INFO!A51=0," ",COUNTRY_INFO!A51) -> Mali | B51: =IF(COUNTRY_INFO!B51=0," ",COUNTRY_INFO!B51) -> Mopti | C51: =IF(COUNTRY_INFO!C51=0," ",COUNTRY_INFO!C51) -> Douentza | D51: =IF(OR(COUNTRY_INFO!$Z51="T3 (ALB/MBD)",COUNTRY_INFO!$AA51="T3 (ALB/MBD)"), "T3 (ALB/MBD)", " ") ->  | I51: 0 | M51: 0
A52: =IF(COUNTRY_INFO!A52=0," ",COUNTRY_INFO!A52) -> Mali | B52: =IF(COUNTRY_INFO!B52=0," ",COUNTRY_INFO!B52) -> Mopti | C52: =IF(COUNTRY_INFO!C52=0," ",COUNTRY_INFO!C52) -> Koro | D52: =IF(OR(COUNTRY_INFO!$Z52="T3 (ALB/MBD)",COUNTRY_INFO!$AA52="T3 (ALB/MBD)"), "T3 (ALB/MBD)", " ") ->  | I52: 0 | M52: 0
A53: =IF(COUNTRY_INFO!A53=0," ",COUNTRY_INFO!A53) -> Mali | B53: =IF(COUNTRY_INFO!B53=0," ",COUNTRY_INFO!B53) -> Mopti | C53: =IF(COUNTRY_INFO!C53=0," ",COUNTRY_INFO!C53) -> Mopti | D53: =IF(OR(COUNTRY_INFO!$Z53="T3 (ALB/MBD)",COUNTRY_INFO!$AA53="T3 (ALB/MBD)"), "T3 (ALB/MBD)", " ") ->  | I53: 0 | M53: 0
